Workbook

Sheet PI vs gap
A1: Measurement | B1: Hall
A2: Type | B2: Gap dependence
A4: PS type | B4: SXR
A5: PS serial no | B5: 16334
A7: Measurement date | B7: ='DF raw data'!B2 -> 6. feb 2017
C11: Nominal gap [mm] | D11: Encoder [counts] | E11: Encoder [mm] | F11: PI [T^2mm^3] | H11: Encoder offset
C12: 10 | D12: =' 10 mm'!B3 -> 390620 | E12: =(D12-$H$12)*0.00005+10 -> 9.99745 | F12: =' 10 mm'!Q3 -> 4522.756413 | H12: 390671
C13: 12 | D13: =' 12 mm'!B3 -> 430880 | E13: =(D13-$H$12)*0.00005+10 -> 12.01045 | F13: =' 12 mm'!Q3 -> 3763.750274
C14: 15 | D14: =' 15 mm'!B3 -> 491230 | E14: 15.02795 | F14: =' 15 mm'!Q3 -> 2878.279537
C15: 20 | D15: =' 20 mm'!B3 -> 591570 | E15: 20.04495 | F15: =' 20 mm'!Q3 -> 1874.742524
C16: 30 | D16: =' 30 mm'!B3 -> 791830 | E16: 30.05795 | F16: =' 30 mm'!Q3 -> 839.8116288
C17: 100 | D17: =' 100 mm'!B3 -> 2191900 | E17: 100.06145 | F17: =' 100 mm'!Q3 -> 8.771375718
A42: Reference magnet
A43: Tref | B43: 20.67 | C43: degC
A44: Hall ref field | B44: 0.50549 | C44: T
A45: NMR ref field | B45: 0.506615 | C45: T

Sheet 10 mm
A1: dz | B1: ='DF raw data'!B7 -> 0.50021 | C1: mm | F1: T_coeff | G1: -0.0008 | H1: /degC | L1: Hallref | M1: ='PI vs gap'!B44 -> 0.50549 | N1: T | P1: IBy total | Q1: =P1203*1000 -> -9.215414258 | R1: muTm
A2: Tref | B2: ='DF raw data'!B8 -> 20.82 | C2: degC | F2: Tcorr | G2: 20 | H2: degC | L2: NMRref | M2: ='PI vs gap'!B45 -> 0.506615 | N2: T | P2: JBy total | Q2: =Q1203 -> -7.530793692 | R2: muTm^2
A3: Encoder | B3: ='DF raw data'!B9 -> 390620 | P3: PI total | Q3: =R1203 -> 4522.756413 | R3: T^2mm^3
J4: SXR-rotation
A5: z [mm] | B5: Bx | C5: By | D5: Bz | F5: Bx_corr | G5: By_corr | H5: Bz_corr | J5: Bx_rot | K5: By_rot | L5: Bz_rot | N5: Ix | O5: Jx | P5: Iy | Q5: Jy | R5: PI
A6: 0 | B6: ='DF raw data'!A11 -> -5.3526733e-06 | C6: ='DF raw data'!B11 -> -4.2004335e-06 | D6: ='DF raw data'!C11 -> 5.4798061e-06 | F6: =(1-$G$1*($B$2-$G$2))*B6 -> -5.356184654e-06 | G6: =(1-$G$1*($B$2-$G$2))*C6*$M$2/$M$1 -> -4.212543448e-06 | H6: =(1-$G$1*($B$2-$G$2))*D6 -> 5.483400853e-06 | J6: =-CELL("contents", INDEX($F$6:$F$1203,1204-CELL("row",F6))) -> 2.025072877e-06 | K6: =CELL("contents", INDEX($G$6:$G$1203,1204-CELL("row",G6))) -> -3.080227038e-06 | L6: =-CELL("contents", INDEX($H$6:$H$1203,1204-CELL("row",H6))) -> 1.14634581e-05 | N6: =J6*$B$1 -> 1.012961704e-06 | O6: =N6*$B$1 -> 5.066935738e-07 | P6: =K6*$B$1 -> -1.540760366e-06 | Q6: =P6*$B$1 -> -7.707037429e-07 | R6: =(N6^2+P6)^2*$B$1 -> 1.1874682e-12
A7: =A6+$B$1 -> 0.50021 | B7: ='DF raw data'!A12 -> -5.1060338e-06 | C7: ='DF raw data'!B12 -> -1.0861652e-05 | D7: ='DF raw data'!C12 -> 5.3268645e-06 | F7: =(1-$G$1*($B$2-$G$2))*B7 -> -5.109383358e-06 | G7: =(1-$G$1*($B$2-$G$2))*C7*$M$2/$M$1 -> -1.08929664e-05 | H7: =(1-$G$1*($B$2-$G$2))*D7 -> 5.330358923e-06 | J7: =-CELL("contents", INDEX($F$6:$F$1203,1204-CELL("row",F7))) -> -1.690634029e-06 | K7: =CELL("contents", INDEX($G$6:$G$1203,1204-CELL("row",G7))) -> -7.51767974e-07 | L7: =-CELL("contents", INDEX($H$6:$H$1203,1204-CELL("row",H7))) -> 1.155476296e-05 | N7: =J7*$B$1+N6 -> 1.672896562e-07 | O7: =N7*$B$1+O6 -> 5.903735328e-07 | P7: =K7*$B$1+P6 -> -1.916802225e-06 | Q7: =P7*$B$1+Q6 -> -1.729507384e-06 | R7: =(N7^2+P7^2)*$B$1+R6 -> 3.039303943e-12
A8: =A7+$B$1 -> 1.00042 | B8: ='DF raw data'!A13 -> -5.1714483e-06 | C8: ='DF raw data'!B13 -> -1.0242148e-05 | D8: ='DF raw data'!C13 -> -2.4898452e-06 | F8: -5.17484077e-06 | G8: -1.027167635e-05 | H8: -2.491478538e-06 | J8: -1.100327842e-05 | K8: -4.730527314e-06 | L8: 1.165006443e-05 | N8: =J8*$B$1+N7 -> -5.336660242e-06 | O8: =N8*$B$1+O7 -> -2.079077287e-06 | P8: =K8*$B$1+P7 -> -4.283059293e-06 | Q8: =P8*$B$1+Q7 -> -3.871936472e-06 | R8: =(N8^2+P8^2)*$B$1+R7 -> 2.646140682e-11
A9: 1.50063 | B9: ='DF raw data'!A14 -> -5.7881466e-06 | C9: ='DF raw data'!B14 -> 6.8678842e-06 | D9: ='DF raw data'!C14 -> -7.3800834e-07 | F9: -5.791943624e-06 | G9: 6.88768447e-06 | H9: -7.384924735e-07 | J9: -1.394117842e-05 | K9: 3.093594867e-07 | L9: 1.163514665e-05 | N9: -1.23101771e-05 | O9: -8.236750973e-06 | P9: -4.128314584e-06 | Q9: -5.93696071e-06 | R9: 1.107885301e-10
A10: 2.00084 | B10: ='DF raw data'!A15 -> -5.6306176e-06 | C10: ='DF raw data'!B15 -> 2.7668671e-06 | D10: ='DF raw data'!C15 -> 1.1333589e-06 | F10: -5.634311285e-06 | G10: 2.774844042e-06 | H10: 1.134102383e-06 | J10: -7.981954229e-06 | K10: -7.042126751e-06 | L10: 1.14219669e-05 | N10: -1.630283042e-05 | O10: -1.639158978e-05 | P10: -7.650856806e-06 | Q10: -9.763995793e-06 | R10: 2.730155817e-10
A11: 2.50105 | B11: ='DF raw data'!A16 -> -5.4348416e-06 | C11: ='DF raw data'!B16 -> -1.7436373e-06 | D11: ='DF raw data'!C16 -> 6.6755829e-06 | F11: =(1-$G$1*($B$2-$G$2))*B11 -> -5.438406856e-06 | G11: -1.748664247e-06 | H11: =(1-$G$1*($B$2-$G$2))*D11 -> 6.679962082e-06 | J11: -7.698895965e-07 | K11: 3.103217028e-06 | L11: 1.11698276e-05 | N11: -1.66879369e-05 | O11: -2.473906269e-05 | P11: -6.098596616e-06 | Q11: -1.281457481e-05 | R11: 4.309219338e-10
A12: 3.00126 | B12: ='DF raw data'!A17 -> -5.5690748e-06 | C12: ='DF raw data'!B17 -> 1.8670348e-06 | D12: ='DF raw data'!C17 -> 6.6675298e-06 | F12: -5.572728113e-06 | G12: 1.872417505e-06 | H12: 6.6719037e-06 | J12: 2.610515576e-06 | K12: -5.25881801e-06 | L12: 1.077849906e-05 | N12: -1.53821309e-05 | O12: -3.243335839e-05 | P12: -8.729109973e-06 | Q12: -1.718096291e-05 | R12: 5.873912793e-10
A13: 3.50147 | B13: ='DF raw data'!A18 -> -5.1476854e-06 | C13: ='DF raw data'!B18 -> -1.0272704e-05 | D13: ='DF raw data'!C18 -> 2.4312969e-06 | F13: -5.151062282e-06 | G13: -1.030232044e-05 | H13: 2.432891831e-06 | J13: 1.729112254e-06 | K13: 6.618588089e-06 | L13: 1.089717686e-05 | N13: -1.451721166e-05 | O13: -3.969501284e-05 | P13: -5.418426025e-06 | Q13: -1.989131379e-05 | R13: 7.074960897e-10
A14: 4.00168 | B14: ='DF raw data'!A19 -> -4.9305495e-06 | C14: ='DF raw data'!B19 -> -1.6148571e-05 | D14: ='DF raw data'!C19 -> 1.5282915e-06 | F14: -4.93378394e-06 | G14: -1.619512771e-05 | H14: 1.529294059e-06 | J14: -2.40238263e-06 | K14: 9.415658526e-06 | L14: 1.140658281e-05 | N14: -1.571890748e-05 | O14: -4.755776755e-05 | P14: -7.086194735e-07 | Q14: -2.024577233e-05 | R14: 8.313411797e-10
A15: 4.50189 | B15: ='DF raw data'!A20 -> -5.5202809e-06 | C15: ='DF raw data'!B20 -> 1.975643e-06 | D15: ='DF raw data'!C20 -> 1.3120878e-05 | F15: -5.523902204e-06 | G15: 1.981338825e-06 | H15: 1.31294853e-05 | J15: -4.230513097e-06 | K15: -4.128217533e-07 | L15: 1.164973121e-05 | N15: -1.783505243e-05 | O15: -5.647903912e-05 | P15: -9.151170427e-07 | Q15: -2.070352303e-05 | R15: 9.908714215e-10
A16: 5.0021 | B16: ='DF raw data'!A21 -> -5.9643648e-06 | C16: ='DF raw data'!B21 -> 1.1902092e-05 | D16: ='DF raw data'!C21 -> 1.0102342e-06 | F16: -5.968277423e-06 | G16: 1.193640601e-05 | H16: 1.010896914e-06 | J16: -2.854506028e-06 | K16: 9.982084953e-06 | L16: 1.1984984e-05 | N16: -1.926290489e-05 | O16: -6.611453678e-05 | P16: 4.078021671e-06 | Q16: -1.866365581e-05 | R16: 1.184797719e-09
A17: 5.50231 | B17: ='DF raw data'!A22 -> -5.7258026e-06 | C17: ='DF raw data'!B22 -> 4.4533867e-06 | D17: ='DF raw data'!C22 -> -3.3250979e-06 | F17: -5.729558727e-06 | G17: 4.466225918e-06 | H17: -3.327279164e-06 | J17: -3.624231237e-06 | K17: 5.194295826e-06 | L17: 1.242466123e-05 | N17: -2.10757816e-05 | O17: -7.66568535e-05 | P17: 6.676260386e-06 | Q17: -1.53241236e-05 | R17: 1.42928087e-09
A18: 6.00252 | B18: ='DF raw data'!A23 -> -5.3221688e-06 | C18: ='DF raw data'!B23 -> -5.9970312e-06 | D18: ='DF raw data'!C23 -> 1.0410009e-07 | F18: -5.325660143e-06 | G18: -6.014320781e-06 | H18: 1.041683797e-07 | J18: -6.663455761e-06 | K18: -2.564651193e-06 | L18: 1.21414886e-05 | N18: -2.440890881e-05 | O18: -8.886643377e-05 | P18: 5.393396213e-06 | Q18: -1.262629288e-05 | R18: 1.741853872e-09
A19: 6.50273 | B19: ='DF raw data'!A24 -> -5.0549038e-06 | C19: ='DF raw data'!B24 -> -1.3387959e-05 | D19: ='DF raw data'!C24 -> -1.513097e-06 | F19: -5.058219817e-06 | G19: -1.34265568e-05 | H19: -1.514089592e-06 | J19: -8.72208964e-06 | K19: -1.703437833e-06 | L19: 1.134804344e-05 | N19: -2.877178527e-05 | O19: -0.0001032583685 | P19: 4.541319575e-06 | Q19: -1.035467942e-05 | R19: 2.16625165e-09
A20: 7.00294 | B20: ='DF raw data'!A25 -> -5.4094767e-06 | C20: ='DF raw data'!B25 -> -3.4425661e-06 | D20: ='DF raw data'!C25 -> -5.4919451e-07 | F20: -5.413025317e-06 | G20: -3.452491098e-06 | H20: -5.495547816e-07 | J20: -8.565927064e-06 | K20: 4.188431632e-06 | L20: 1.14729133e-05 | N20: -3.305654764e-05 | O20: -0.0001197935842 | P20: 6.636414961e-06 | Q20: -7.035078291e-06 | R20: 2.734879046e-09
A21: 7.50315 | B21: ='DF raw data'!A26 -> -5.7175257e-06 | C21: ='DF raw data'!B26 -> 3.7430204e-06 | D21: ='DF raw data'!C26 -> -7.4159102e-06 | F21: -5.721276397e-06 | G21: 3.753811615e-06 | H21: -7.420775037e-06 | J21: -6.755162882e-06 | K21: 8.33633255e-06 | L21: 1.242066662e-05 | N21: -3.643554767e-05 | O21: -0.0001380190095 | P21: 1.080633187e-05 | Q21: -1.629643028e-06 | R21: 3.457345325e-09
A22: 8.00336 | B22: ='DF raw data'!A27 -> -8.1585522e-06 | C22: ='DF raw data'!B27 -> 1.1487959e-06 | D22: ='DF raw data'!C27 -> -6.3230923e-06 | F22: -8.16390421e-06 | G22: 1.152107905e-06 | H22: -6.327240249e-06 | J22: -5.680525582e-08 | K22: -7.582727435e-06 | L22: 1.247587581e-05 | N22: -3.646396222e-05 | O22: -0.000156258648 | P22: 7.013375776e-06 | Q22: 1.878517669e-06 | R22: 4.147038865e-09
A23: 8.50357 | B23: ='DF raw data'!A28 -> -1.1970546e-05 | C23: ='DF raw data'!B28 -> -1.3458278e-05 | D23: ='DF raw data'!C28 -> -1.2836188e-06 | F23: -1.197839868e-05 | G23: -1.349707853e-05 | H23: -1.284460854e-06 | J23: 1.689036081e-06 | K23: -5.836884799e-06 | L23: 1.65623788e-05 | N23: -3.561908949e-05 | O23: -0.0001740756728 | P23: 4.093707631e-06 | Q23: 3.926231163e-06 | R23: 4.790047805e-09
A24: 9.00378 | B24: ='DF raw data'!A29 -> -1.1372805e-05 | C24: ='DF raw data'!B29 -> 8.4067005e-06 | D24: ='DF raw data'!C29 -> 7.1673117e-07 | F24: -1.138026556e-05 | G24: 8.430937213e-06 | H24: 7.172013456e-07 | J24: -6.397819218e-06 | K24: 1.261299302e-06 | L24: 1.4111383e-05 | N24: -3.881934264e-05 | O24: -0.0001934934961 | P24: 4.724622155e-06 | Q24: 6.289534411e-06 | R24: 5.555000659e-09
A25: 9.50399 | B25: ='DF raw data'!A30 -> -5.1091042e-06 | C25: ='DF raw data'!B30 -> -3.2661751e-06 | D25: ='DF raw data'!C30 -> -1.8394508e-07 | F25: -5.112455772e-06 | G25: -3.275591559e-06 | H25: -1.84065748e-07 | J25: -1.292184717e-05 | K25: -3.179516468e-06 | L25: 1.329322864e-05 | N25: -4.528297981e-05 | O25: -0.0002161444955 | P25: 3.134196222e-06 | Q25: 7.857290703e-06 | R25: 6.58561906e-09
A26: 10.0042 | B26: ='DF raw data'!A31 -> 1.6624923e-06 | C26: ='DF raw data'!B31 -> -1.4163438e-05 | D26: ='DF raw data'!C31 -> 6.8385075e-06 | F26: 1.663582895e-06 | G26: -1.420427152e-05 | H26: 6.842993561e-06 | J26: -1.697145398e-05 | K26: -3.158508576e-06 | L26: 1.476097685e-05 | N26: -5.377227081e-05 | O26: -0.0002430419231 | P26: 1.554278647e-06 | Q26: 8.634756425e-06 | R26: 8.033163218e-09
A27: 10.50441 | B27: ='DF raw data'!A32 -> 2.7308834e-06 | C27: ='DF raw data'!B32 -> -1.22106e-05 | D27: ='DF raw data'!C32 -> -3.9738438e-07 | F27: 2.73267486e-06 | G27: -1.224580344e-05 | H27: -3.976450642e-07 | J27: -1.887806589e-05 | K27: -5.390086272e-06 | L27: -2.109426276e-06 | N27: -6.321526815e-05 | O27: -0.0002746628323 | P27: -1.141896407e-06 | Q27: 8.063568423e-06 | R27: 1.003273971e-08
A28: 11.00462 | B28: ='DF raw data'!A33 -> 3.8501385e-06 | C28: ='DF raw data'!B33 -> -2.0051571e-06 | D28: ='DF raw data'!C33 -> 2.618913e-06 | F28: 3.852664191e-06 | G28: -2.010938015e-06 | H28: 2.620631007e-06 | J28: -1.39165983e-05 | K28: 1.052147947e-05 | L28: -8.939156442e-06 | N28: -7.017648978e-05 | O28: -0.0003097658143 | P28: 4.121052838e-06 | Q28: 1.012496026e-05 | R28: 1.250463887e-08
A29: 11.50483 | B29: ='DF raw data'!A34 -> 4.1364929e-06 | C29: ='DF raw data'!B34 -> -4.3051746e-06 | D29: ='DF raw data'!C34 -> 2.5697293e-06 | F29: 4.139206439e-06 | G29: -4.317586519e-06 | H29: 2.571415042e-06 | J29: -6.88474173e-06 | K29: 1.387694555e-05 | L29: 9.188546035e-06 | N29: -7.362030644e-05 | O29: -0.0003465914278 | P29: 1.106243977e-05 | Q29: 1.565850326e-05 | R29: 1.527696631e-08
A30: 12.00504 | B30: ='DF raw data'!A35 -> 1.0284394e-06 | C30: ='DF raw data'!B35 -> -9.7791572e-06 | D30: ='DF raw data'!C35 -> -4.0838145e-06 | F30: 1.029114056e-06 | G30: -9.807350738e-06 | H30: -4.086493482e-06 | J30: -4.877004718e-06 | K30: -1.257778881e-05 | L30: 1.8440436e-05 | N30: -7.605983297e-05 | O30: -0.0003846373168 | P30: 4.770904027e-06 | Q30: 1.804495716e-05 | R30: 1.818211582e-08
A31: 12.50525 | B31: ='DF raw data'!A36 -> 3.9872529e-07 | C31: ='DF raw data'!B36 -> 5.8039456e-07 | D31: ='DF raw data'!C36 -> -2.0766763e-06 | F31: 3.989868538e-07 | G31: 5.82067851e-07 | H31: -2.0780386e-06 | J31: -4.34025374e-06 | K31: 2.423051532e-06 | L31: 9.256808285e-06 | N31: -7.82308713e-05 | O31: -0.000423769181 | P31: 5.982938634e-06 | Q31: 2.10376829e-05 | R31: 2.126134094e-08
A32: 13.00546 | B32: ='DF raw data'!A37 -> 1.6146997e-06 | C32: ='DF raw data'!B37 -> -8.1582812e-06 | D32: ='DF raw data'!C37 -> -3.1635043e-06 | F32: 1.615758943e-06 | G32: -8.181801715e-06 | H32: -3.165579559e-06 | J32: -6.070532158e-06 | K32: -1.206074244e-05 | L32: -2.716464533e-06 | N32: -8.126741219e-05 | O32: -0.0004644199532 | P32: -4.996534347e-08 | Q32: 2.101268973e-05 | R32: 2.456492525e-08
A33: 13.50567 | B33: ='DF raw data'!A38 -> -4.9952212e-07 | C33: ='DF raw data'!B38 -> 1.9691056e-06 | D33: ='DF raw data'!C38 -> -4.0721485e-08 | F33: -4.998498065e-07 | G33: 1.974782577e-06 | H33: -4.074819829e-08 | J33: -6.900104101e-06 | K33: -3.807227973e-06 | L33: 7.780136023e-06 | N33: -8.471891326e-05 | O33: -0.0005067972008 | P33: -1.954378848e-06 | Q33: 2.003508989e-05 | R33: 2.815699022e-08
A34: 14.00588 | B34: ='DF raw data'!A39 -> -4.6327805e-06 | C34: ='DF raw data'!B39 -> 5.326669e-06 | D34: ='DF raw data'!C39 -> 2.2741626e-06 | F34: -4.635819604e-06 | G34: 5.342025911e-06 | H34: 2.275654451e-06 | J34: -6.987670307e-06 | K34: -6.865095834e-06 | L34: 1.736568042e-05 | N34: -8.821421582e-05 | O34: -0.0005509228337 | P34: -5.388368435e-06 | Q34: 1.733977412e-05 | R34: 3.206402168e-08
A35: 14.50609 | B35: ='DF raw data'!A40 -> -9.5129653e-06 | C35: ='DF raw data'!B40 -> -2.7344699e-06 | D35: ='DF raw data'!C40 -> -3.7666848e-06 | F35: -9.519205805e-06 | G35: -2.74235344e-06 | H35: -3.769155745e-06 | J35: -9.535230711e-06 | K35: -3.810573591e-06 | L35: 1.989359764e-05 | N35: -9.298383358e-05 | O35: -0.0005974342771 | P35: -7.294455451e-06 | Q35: 1.369101455e-05 | R35: 3.64154497e-08
A36: 15.0063 | B36: ='DF raw data'!A41 -> -1.0870649e-05 | C36: ='DF raw data'!B41 -> 9.4243505e-06 | D36: ='DF raw data'!C41 -> 5.6239173e-07 | F36: -1.087778015e-05 | G36: 9.451521122e-06 | H36: 5.62760659e-07 | J36: -1.236372228e-05 | K36: -8.196121881e-06 | L36: 1.499753193e-05 | N36: -9.91682911e-05 | O36: -0.000647039248 | P36: -1.139423758e-05 | Q36: 7.991502976e-06 | R36: 4.139963148e-08
A37: 15.50651 | B37: ='DF raw data'!A42 -> -6.9835619e-06 | C37: ='DF raw data'!B42 -> -8.7092021e-06 | D37: ='DF raw data'!C42 -> 5.8678161e-06 | F37: -6.988143117e-06 | G37: -8.734310932e-06 | H37: 5.871665387e-06 | J37: -7.323506771e-06 | K37: -8.966072486e-06 | L37: 9.567952162e-06 | N37: -0.0001028315824 | O37: -0.0006984766338 | P37: -1.587915669e-05 | Q37: 4.859000605e-08 | R37: 4.681514603e-08
A38: 16.00672 | B38: ='DF raw data'!A43 -> -8.5216689e-06 | C38: ='DF raw data'!B43 -> -1.2839043e-05 | D38: ='DF raw data'!C43 -> -6.6014886e-06 | F38: -8.527259115e-06 | G38: -1.287605826e-05 | H38: -6.605819177e-06 | J38: 1.972239541e-06 | K38: -6.441983097e-06 | L38: 2.723970453e-06 | N38: -0.0001018450485 | O38: -0.0007494205455 | P38: -1.910150106e-05 | Q38: -9.506171839e-06 | R38: 5.218604148e-08
A39: 16.50693 | B39: ='DF raw data'!A44 -> -1.2512151e-05 | C39: ='DF raw data'!B44 -> -5.7085613e-06 | D39: ='DF raw data'!C44 -> -2.95732e-06 | F39: -1.252035897e-05 | G39: -5.725019215e-06 | H39: -2.959260002e-06 | J39: 1.64862619e-06 | K39: -1.937873774e-06 | L39: 1.283696953e-05 | N39: -0.0001010203892 | O39: -0.0007999519544 | P39: -2.00708449e-05 | Q39: -1.954580917e-05 | R39: 5.749224807e-08
A40: 17.00714 | B40: ='DF raw data'!A45 -> -1.2802311e-05 | C40: ='DF raw data'!B45 -> 5.1622869e-06 | D40: ='DF raw data'!C45 -> -8.9181481e-07 | F40: -1.281070932e-05 | G40: 5.177169893e-06 | H40: -8.923998405e-07 | J40: -5.443010474e-06 | K40: -2.358447212e-06 | L40: 1.23115791e-05 | N40: -0.0001037430374 | O40: -0.0008518452592 | P40: -2.125056378e-05 | Q40: -3.017555367e-05 | R40: 6.310170519e-08
A41: 17.50735 | B41: ='DF raw data'!A46 -> -5.2960695e-06 | C41: ='DF raw data'!B46 -> 5.8042046e-06 | D41: ='DF raw data'!C46 -> 2.513025e-06 | F41: -5.299543722e-06 | G41: 5.820938257e-06 | H41: 2.514673544e-06 | J41: -8.921668077e-06 | K41: 1.992043498e-06 | L41: 1.186757302e-05 | N41: -0.000108205745 | O41: -0.0009059708549 | P41: -2.02541237e-05 | Q41: -4.030686889e-05 | R41: 6.916360652e-08
A42: 18.00756 | B42: ='DF raw data'!A47 -> 1.7871799e-06 | C42: ='DF raw data'!B47 -> 6.7277856e-06 | D42: ='DF raw data'!C47 -> -1.8658336e-06 | F42: 1.78835229e-06 | G42: 6.747181963e-06 | H42: -1.867057587e-06 | J42: -8.717814937e-06 | K42: -5.575818803e-06 | L42: 9.553967694e-06 | N42: -0.0001125664832 | O42: -0.0009622777355 | P42: -2.304320403e-05 | Q42: -5.183330998e-05 | R42: 7.576748018e-08
A43: 18.50777 | B43: ='DF raw data'!A48 -> 2.4012851e-07 | C43: ='DF raw data'!B48 -> 7.4975273e-06 | D43: ='DF raw data'!C48 -> -3.5815972e-06 | F43: 2.402860343e-07 | G43: 7.519142846e-06 | H43: -3.583946728e-06 | J43: -6.081553384e-06 | K43: -1.502184784e-06 | L43: 1.028268002e-05 | N43: -0.0001156085371 | O43: -0.001020106282 | P43: -2.379461188e-05 | Q43: -6.373561278e-05 | R43: 8.27361645e-08
A44: 19.00798 | B44: ='DF raw data'!A49 -> -5.995003e-06 | C44: ='DF raw data'!B49 -> 5.4802426e-06 | D44: ='DF raw data'!C49 -> -4.8974375e-06 | F44: -5.998935722e-06 | G44: 5.496042267e-06 | H44: -4.900650219e-06 | J44: -1.637800493e-06 | K44: -3.694289605e-06 | L44: 7.033309126e-06 | N44: -0.0001164277812 | O44: -0.001078344622 | P44: -2.564253248e-05 | Q44: -7.656226396e-05 | R44: 8.984563308e-08
A45: 19.50819 | B45: ='DF raw data'!A50 -> -9.8991104e-06 | C45: ='DF raw data'!B50 -> -2.0411803e-06 | D45: ='DF raw data'!C50 -> 4.5328084e-06 | F45: -9.905604216e-06 | G45: -2.04706507e-06 | H45: 4.535781922e-06 | J45: 1.773622934e-08 | K45: -3.639292703e-06 | L45: 1.120852097e-05 | N45: -0.0001164189094 | O45: -0.001136578525 | P45: -2.746294308e-05 | Q45: -9.029950271e-05 | R45: 9.700242552e-08
A46: 20.0084 | B46: ='DF raw data'!A51 -> -8.4384992e-06 | C46: ='DF raw data'!B51 -> -4.6140255e-07 | D46: ='DF raw data'!C51 -> 5.8568571e-07 | F46: -8.444034855e-06 | G46: -4.627327843e-07 | H46: 5.860699198e-07 | J46: 9.121644076e-07 | K46: 7.705543498e-06 | L46: 1.096011112e-05 | N46: -0.0001159626356 | O46: -0.001194584195 | P46: -2.360855317e-05 | Q46: -0.0001021087371 | R46: 1.040077148e-07
A47: 20.50861 | B47: ='DF raw data'!A52 -> -3.3274953e-06 | C47: ='DF raw data'!B52 -> -6.942229e-06 | D47: ='DF raw data'!C52 -> 2.447003e-06 | F47: -3.329678137e-06 | G47: -6.962243608e-06 | H47: 2.448608234e-06 | J47: -5.563516874e-07 | K47: 1.117889737e-05 | L47: 1.679314008e-05 | N47: -0.0001162409283 | O47: -0.00125272907 | P47: -1.801675692e-05 | Q47: -0.0001111208991 | R47: 1.10928899e-07
A48: 21.00882 | B48: ='DF raw data'!A53 -> 3.3644692e-06 | C48: ='DF raw data'!B53 -> -1.9184305e-05 | D48: ='DF raw data'!C53 -> 3.8446392e-06 | F48: 3.366676292e-06 | G48: -1.92396138e-05 | H48: 3.847161283e-06 | J48: -3.037519006e-06 | K48: 4.594684803e-06 | L48: 1.103669933e-05 | N48: -0.0001177603257 | O48: -0.001311633962 | P48: -1.571844963e-05 | Q48: -0.0001189834248 | R48: 1.17989145e-07
A49: 21.50903 | B49: ='DF raw data'!A54 -> 3.4992363e-06 | C49: ='DF raw data'!B54 -> -1.3327252e-05 | D49: ='DF raw data'!C54 -> 7.8196472e-06 | F49: 3.501531799e-06 | G49: -1.336567478e-05 | H49: 7.824776889e-06 | J49: -3.186334365e-06 | K49: 6.383214553e-06 | L49: 8.320111415e-06 | N49: -0.000119354162 | O49: -0.001371336108 | P49: -1.252550188e-05 | Q49: -0.0001252488061 | R49: 1.251933216e-07
A50: 22.00924 | B50: ='DF raw data'!A55 -> -8.6691068e-07 | C50: ='DF raw data'!B55 -> 2.0307511e-06 | D50: ='DF raw data'!C55 -> -8.1600933e-07 | F50: -8.674793734e-07 | G50: 2.036605803e-06 | H50: -8.165446321e-07 | J50: -4.175141397e-06 | K50: 8.660157661e-06 | L50: 1.437777364e-05 | N50: -0.0001214426095 | O50: -0.001432082915 | P50: -8.193604415e-06 | Q50: -0.0001293473289 | R50: 1.326041541e-07
A51: 22.50945 | B51: ='DF raw data'!A56 -> -1.792058e-06 | C51: ='DF raw data'!B56 -> -3.3347583e-06 | D51: ='DF raw data'!C56 -> -9.2677783e-06 | F51: -1.79323359e-06 | G51: -3.344372486e-06 | H51: -9.273857963e-06 | J51: -5.977155844e-06 | K51: -1.76724105e-05 | L51: 8.653299443e-06 | N51: -0.0001244324426 | O51: -0.001494325267 | P51: -1.703352087e-05 | Q51: -0.0001378676664 | R51: 1.404942534e-07
A52: 23.00966 | B52: ='DF raw data'!A57 -> -3.5261417e-06 | C52: ='DF raw data'!B57 -> 1.8618325e-06 | D52: ='DF raw data'!C57 -> -1.2685102e-06 | F52: -3.528454849e-06 | G52: 1.867200206e-06 | H52: -1.269342343e-06 | J52: -5.907423729e-06 | K52: -8.027785258e-06 | L52: 4.353217539e-06 | N52: -0.000127387395 | O52: -0.001558045716 | P52: -2.104909934e-05 | Q52: -0.0001483966364 | R52: 1.488330607e-07
A53: 23.50987 | B53: ='DF raw data'!A58 -> -4.8503171e-06 | C53: ='DF raw data'!B58 -> -3.5547796e-06 | D53: ='DF raw data'!C58 -> 6.8582071e-06 | F53: -4.853498908e-06 | G53: -3.565028112e-06 | H53: 6.862706084e-06 | J53: -4.009895167e-06 | K53: 1.643465228e-06 | L53: 8.587967613e-06 | N53: -0.0001293931847 | O53: -0.001622769481 | P53: -2.02270216e-05 | Q53: -0.0001585143948 | R53: 1.574125269e-07
A54: 24.01008 | B54: ='DF raw data'!A59 -> -3.0725125e-06 | C54: ='DF raw data'!B59 -> -5.5605901e-06 | D54: ='DF raw data'!C59 -> 8.1156795e-06 | F54: -3.074528068e-06 | G54: -5.576621411e-06 | H54: 8.121003386e-06 | J54: -2.511589523e-06 | K54: 5.853854783e-06 | L54: 1.602779834e-05 | N54: -0.0001306495069 | O54: -0.001688121671 | P54: -1.729886489e-05 | Q54: -0.0001671674601 | R54: 1.661004465e-07
A55: 24.51029 | B55: ='DF raw data'!A60 -> 2.2330741e-07 | C55: ='DF raw data'!B60 -> 3.2421362e-06 | D55: ='DF raw data'!C60 -> 2.2338975e-06 | F55: 2.234538997e-07 | G55: 3.251483354e-06 | H55: 2.235362937e-06 | J55: -5.141572761e-06 | K55: -6.266287518e-06 | L55: 1.438343435e-05 | N55: -0.000133221373 | O55: -0.001754760334 | P55: -2.043332457e-05 | Q55: -0.0001773884133 | R55: 1.751869887e-07
A56: 25.0105 | B56: ='DF raw data'!A61 -> 2.9964131e-06 | C56: ='DF raw data'!B61 -> 9.6490412e-06 | D56: ='DF raw data'!C61 -> -7.7161781e-07 | F56: 2.998378747e-06 | G56: 9.67685961e-06 | H56: -7.721239913e-07 | J56: -8.615354067e-06 | K56: -1.301455039e-05 | L56: 7.416379255e-06 | N56: -0.0001375308593 | O56: -0.001823554645 | P56: -2.694333282e-05 | Q56: -0.0001908657379 | R56: 1.850114535e-07
A57: 25.51071 | B57: ='DF raw data'!A62 -> 2.4116875e-06 | C57: ='DF raw data'!B62 -> 1.0499506e-05 | D57: ='DF raw data'!C62 -> -1.003968e-08 | F57: 2.413269567e-06 | G57: 1.052977632e-05 | H57: -1.004626603e-08 | J57: -1.088405226e-05 | K57: -7.243248523e-06 | L57: 3.956759933e-06 | N57: -0.0001429751711 | O57: -0.001895072255 | P57: -3.056647817e-05 | Q57: -0.0002061553959 | R57: 1.957040471e-07
A58: 26.01092 | B58: ='DF raw data'!A63 -> 2.1423539e-06 | C58: ='DF raw data'!B63 -> -3.6723263e-06 | D58: ='DF raw data'!C63 -> 1.3226393e-06 | F58: 2.143759284e-06 | G58: -3.682913702e-06 | H58: 1.323506951e-06 | J58: -1.028171138e-05 | K58: -1.781715761e-06 | L58: 2.578121039e-06 | N58: -0.0001481181859 | O58: -0.001969162453 | P58: -3.145771021e-05 | Q58: -0.0002218908571 | R58: 2.071731543e-07
A59: 26.51113 | B59: ='DF raw data'!A64 -> 1.8570669e-06 | C59: ='DF raw data'!B64 -> 1.9137356e-06 | D59: ='DF raw data'!C64 -> 3.9963156e-06 | F59: 1.858285136e-06 | G59: 1.919252944e-06 | H59: 3.998937183e-06 | J59: -4.463153409e-06 | K59: 4.568860966e-06 | L59: 9.228569973e-06 | N59: -0.0001503506999 | O59: -0.002044369377 | P59: -2.917232026e-05 | Q59: -0.0002364831434 | R59: 2.189062588e-07
A60: 27.01134 | B60: ='DF raw data'!A65 -> -2.875926e-07 | C60: ='DF raw data'!B65 -> -2.2796135e-06 | D60: ='DF raw data'!C65 -> 5.4523193e-06 | F60: -2.877812607e-07 | G60: -2.286185679e-06 | H60: 5.455896021e-06 | J60: 1.441087834e-07 | K60: -3.089994015e-06 | L60: 1.488891172e-05 | N60: -0.0001502786152 | O60: -0.002119540243 | P60: -3.071796617e-05 | Q60: -0.0002518485773 | R60: 2.306748273e-07
A61: 27.51155 | B61: ='DF raw data'!A66 -> -4.8143272e-07 | C61: ='DF raw data'!B66 -> -1.0051482e-05 | D61: ='DF raw data'!C66 -> 5.0656404e-06 | F61: -4.817485399e-07 | G61: -1.008046066e-05 | H61: 5.06896346e-06 | J61: 3.149069335e-06 | K61: 3.155671019e-06 | L61: 9.972733424e-06 | N61: -0.0001487034192 | O61: -0.00219392318 | P61: -2.913946797e-05 | Q61: -0.0002664244306 | R61: 2.42160557e-07
A62: 28.01176 | B62: ='DF raw data'!A67 -> 2.0787415e-06 | C62: ='DF raw data'!B67 -> -1.25419e-05 | D62: ='DF raw data'!C67 -> -6.9487664e-06 | F62: 2.080105154e-06 | G62: -1.257805859e-05 | H62: -6.953324791e-06 | J62: 2.318695867e-06 | K62: 5.753095026e-06 | L62: -3.611538416e-06 | N62: -0.0001475435844 | O62: -0.002267725957 | P62: -2.626171231e-05 | Q62: -0.0002795608017 | R62: 2.533946668e-07
A63: 28.51197 | B63: ='DF raw data'!A68 -> 3.6462852e-06 | C63: ='DF raw data'!B68 -> -2.9011185e-06 | D63: ='DF raw data'!C68 -> -7.8911726e-06 | F63: 3.648677163e-06 | G63: -2.909482492e-06 | H63: -7.896349209e-06 | J63: -2.827321107e-06 | K63: 2.200257859e-06 | L63: 4.830922708e-06 | N63: -0.0001489578387 | O63: -0.002342236157 | P63: -2.516112132e-05 | Q63: -0.0002921466462 | R63: 2.648102192e-07
A64: 29.01218 | B64: ='DF raw data'!A69 -> 1.7797707e-06 | C64: ='DF raw data'!B69 -> -9.517475e-07 | D64: ='DF raw data'!C69 -> -8.9210316e-06 | F64: 1.78093823e-06 | G64: -9.544914102e-07 | H64: -8.926883797e-06 | J64: -2.648649275e-06 | K64: -1.070374042e-06 | L64: 8.350146205e-06 | N64: -0.0001502827195 | O64: -0.002417409076 | P64: -2.569653312e-05 | Q64: -0.000305000309 | R64: 2.764377045e-07
A65: 29.51239 | B65: ='DF raw data'!A70 -> 2.7537117e-06 | C65: ='DF raw data'!B70 -> -3.2965959e-06 | D65: ='DF raw data'!C70 -> -8.3184495e-06 | F65: 2.755518135e-06 | G65: -3.306100063e-06 | H65: -8.323906403e-06 | J65: 1.69324414e-06 | K65: 7.067834052e-07 | L65: 6.235468486e-06 | N65: -0.0001494357419 | O65: -0.002492158329 | P65: -2.5342993e-05 | Q65: -0.0003176771275 | R65: 2.87929183e-07
A66: 30.0126 | B66: ='DF raw data'!A71 -> 5.7862053e-06 | C66: ='DF raw data'!B71 -> -8.9512405e-06 | D66: ='DF raw data'!C71 -> -3.5716801e-06 | F66: 5.790001051e-06 | G66: -8.977047135e-06 | H66: -3.574023122e-06 | J66: -2.858388374e-07 | K66: 1.193640601e-05 | L66: 1.186637324e-05 | N66: -0.0001495787213 | O66: -0.002566979101 | P66: -1.937228335e-05 | Q66: -0.0003273673374 | R66: 2.993084999e-07
A67: 30.51281 | B67: ='DF raw data'!A72 -> 4.6257001e-06 | C67: ='DF raw data'!B72 -> -3.7801378e-06 | D67: ='DF raw data'!C72 -> -7.1518002e-07 | F67: 4.628734559e-06 | G67: -3.791036025e-06 | H67: -7.156491781e-07 | J67: -4.260303127e-06 | K67: 1.49653785e-06 | L67: 1.53675495e-05 | N67: -0.0001517097675 | O67: -0.002642865844 | P67: -1.862370015e-05 | Q67: -0.0003366830984 | R67: 3.10994754e-07
A68: 31.01302 | B68: ='DF raw data'!A73 -> -7.7793391e-07 | C68: ='DF raw data'!B73 -> 2.4199567e-06 | D68: ='DF raw data'!C73 -> -8.148605e-06 | F68: -7.784442346e-07 | G68: 2.426933492e-06 | H68: -8.153950485e-06 | J68: -4.683849591e-07 | K68: 1.371023229e-06 | L68: 1.150854366e-05 | N68: -0.0001519440584 | O68: -0.002718869781 | P68: -1.793790062e-05 | Q68: -0.0003456558157 | R68: 3.227040524e-07
A69: 31.51323 | B69: ='DF raw data'!A74 -> -4.6648111e-07 | C69: ='DF raw data'!B74 -> 4.399883e-06 | D69: ='DF raw data'!C74 -> -8.0522727e-07 | F69: -4.667871216e-07 | G69: 4.412567965e-06 | H69: -8.057554991e-07 | J69: 3.174584262e-06 | K69: -2.21178971e-06 | L69: 3.358580785e-06 | N69: -0.0001503560996 | O69: -0.002794079406 | P69: -1.904425995e-05 | Q69: -0.000355181945 | R69: 3.341936963e-07
A70: 32.01344 | B70: ='DF raw data'!A75 -> 1.303447e-06 | C70: ='DF raw data'!B75 -> -9.4753423e-06 | D70: ='DF raw data'!C75 -> 1.1919931e-06 | F70: 1.304302061e-06 | G70: -9.502659932e-06 | H70: 1.192775047e-06 | J70: 1.850475416e-06 | K70: -5.341915493e-06 | L70: 1.027881748e-05 | N70: -0.0001494304733 | O70: -0.002868826023 | P70: -2.17163395e-05 | Q70: -0.0003660446752 | R70: 3.455990174e-07
A71: 32.51365 | B71: ='DF raw data'!A76 -> -7.9467924e-08 | C71: ='DF raw data'!B76 -> 1.1067664e-06 | D71: ='DF raw data'!C76 -> 6.1927999e-06 | F71: -7.952005496e-08 | G71: =(1-$G$1*($B$2-$G$2))*C71*$M$2/$M$1 -> 1.109957233e-06 | H71: 6.196862377e-06 | J71: =-CELL("contents", INDEX($F$6:$F$1203,1204-CELL("row",F71))) -> 6.791896663e-07 | K71: =CELL("contents", INDEX($G$6:$G$1203,1204-CELL("row",G71))) -> -3.626712739e-06 | L71: =-CELL("contents", INDEX($H$6:$H$1203,1204-CELL("row",H71))) -> 2.299476568e-06 | N71: -0.0001490907358 | O71: -0.0029434027 | P71: -2.353045748e-05 | Q71: -0.0003778148453 | R71: 3.569946665e-07
A72: =A71+$B$1 -> 33.01386 | B72: ='DF raw data'!A77 -> 1.3892201e-06 | C72: ='DF raw data'!B77 -> 2.0410248e-06 | D72: ='DF raw data'!C77 -> -4.0844802e-06 | F72: 1.390131428e-06 | G72: 2.046909122e-06 | H72: -4.087159619e-06 | J72: 1.002802707e-06 | K72: 6.771805449e-06 | L72: 3.115298796e-06 | N72: =J72*$B$1+N71 -> -0.0001485891239 | O72: =N72*$B$1+O71 -> -0.003017728465 | P72: =K72*$B$1+P71 -> -2.014313267e-05 | Q72: =P72*$B$1+Q71 -> -0.0003878906417 | R72: =(N72^2+P72^2)*$B$1+R71 -> 3.68241625e-07
A73: 33.51407 | B73: ='DF raw data'!A78 -> 1.0943322e-07 | C73: ='DF raw data'!B78 -> 2.0420907e-06 | D73: ='DF raw data'!C78 -> -1.1898726e-05 | F73: 1.095050082e-07 | G73: 2.047978095e-06 | H73: -1.190653156e-05 | J73: -4.258377364e-07 | K73: 6.477819316e-06 | L73: 7.349915284e-06 | N73: -0.0001488021322 | O73: -0.00309216078 | P73: -1.690286267e-05 | Q73: -0.0003963456226 | R73: 3.794602255e-07
A74: 34.01428 | B74: ='DF raw data'!A79 -> -2.336333e-06 | C74: ='DF raw data'!B79 -> 2.5835384e-06 | D74: ='DF raw data'!C79 -> -5.5589858e-06 | F74: -2.337865634e-06 | G74: 2.590986801e-06 | H74: -5.562632495e-06 | J74: -4.740278984e-06 | K74: -8.461201315e-06 | L74: 1.156814873e-05 | N74: -0.0001511732671 | O74: -0.00316777916 | P74: -2.113524018e-05 | Q74: -0.0004069176811 | R74: 3.91115146e-07
A75: 34.51449 | B75: ='DF raw data'!A80 -> -1.239306e-06 | C75: ='DF raw data'!B80 -> -2.1856745e-07 | D75: ='DF raw data'!C80 -> 1.6080232e-06 | F75: =(1-$G$1*($B$2-$G$2))*B75 -> -1.240118985e-06 | G75: -2.19197585e-07 | H75: =(1-$G$1*($B$2-$G$2))*D75 -> 1.609078063e-06 | J75: -8.570735917e-06 | K75: -2.330478008e-06 | L75: 7.458669379e-06 | N75: -0.0001554604349 | O75: -0.003245542024 | P75: -2.230096859e-05 | Q75: -0.0004180728486 | R75: 4.034529658e-07
A76: 35.0147 | B76: ='DF raw data'!A81 -> 2.3257144e-06 | C76: ='DF raw data'!B81 -> -1.4352895e-06 | D76: ='DF raw data'!C81 -> 7.7855952e-07 | F76: 2.327240069e-06 | G76: -1.439427473e-06 | H76: 7.79070255e-07 | J76: -9.627070818e-06 | K76: 1.034524986e-05 | L76: 2.013505894e-06 | N76: -0.000160275992 | O76: -0.003325713678 | P76: -1.712617116e-05 | Q76: -0.0004266395307 | R76: 4.164492716e-07
A77: 35.51491 | B77: ='DF raw data'!A82 -> 3.8342514e-06 | C77: ='DF raw data'!B82 -> -6.6234264e-07 | D77: ='DF raw data'!C82 -> -9.5721953e-06 | F77: 3.836766669e-06 | G77: -6.642521893e-07 | H77: -9.57847466e-06 | J77: -8.675868839e-06 | K77: -2.362194183e-06 | L77: 2.477958175e-06 | N77: -0.0001646157484 | O77: -0.003408056122 | P77: -1.830776431e-05 | Q77: -0.0004357972575 | R77: 4.301717921e-07
A78: 36.01512 | B78: ='DF raw data'!A83 -> 5.8196465e-06 | C78: ='DF raw data'!B83 -> 4.1803964e-06 | D78: ='DF raw data'!C83 -> -6.410944e-06 | F78: 5.823464188e-06 | G78: 4.19244858e-06 | H78: -6.415149579e-06 | J78: -6.437694859e-06 | K78: -5.507307853e-06 | L78: -7.856077608e-06 | N78: -0.0001678359477 | O78: -0.003492009341 | P78: -2.106257477e-05 | Q78: -0.000446332968 | R78: 4.444840694e-07
A79: 36.51533 | B79: ='DF raw data'!A84 -> 7.586571e-06 | C79: ='DF raw data'!B84 -> 5.328971e-07 | D79: ='DF raw data'!C84 -> -2.2392012e-06 | F79: 7.591547791e-06 | G79: 5.344334547e-07 | H79: -2.240670116e-06 | J79: -8.490584172e-06 | K79: -1.686844632e-06 | L79: -1.273922245e-05 | N79: -0.0001720830228 | O79: -0.00357808699 | P79: -2.190635132e-05 | Q79: -0.000457290744 | R79: 4.595366163e-07
A80: 37.01554 | B80: ='DF raw data'!A85 -> 3.990579e-06 | C80: ='DF raw data'!B85 -> -1.1477151e-05 | D80: ='DF raw data'!C85 -> -1.3753295e-06 | F80: 3.99319682e-06 | G80: -1.151023989e-05 | H80: -1.376231716e-06 | J80: -1.38209496e-05 | K80: -1.802055934e-06 | L80: -1.119349012e-05 | N80: -0.0001789964 | O80: -0.003667622779 | P80: -2.280775772e-05 | Q80: -0.0004686994125 | R80: 4.758234064e-07
A81: 37.51575 | B81: ='DF raw data'!A86 -> -1.459579e-06 | C81: ='DF raw data'!B86 -> -7.3255628e-06 | D81: ='DF raw data'!C86 -> 4.7853141e-06 | F81: -1.460536484e-06 | G81: -7.346682568e-06 | H81: 4.788453266e-06 | J81: -1.508113874e-05 | K81: 5.033886491e-07 | L81: 1.295382814e-06 | N81: -0.0001865401364 | O81: -0.003760932021 | P81: -2.255595769e-05 | Q81: -0.0004799821281 | R81: 4.934838175e-07
A82: 38.01596 | B82: ='DF raw data'!A87 -> -2.9415501e-06 | C82: ='DF raw data'!B87 -> -8.8220813e-06 | D82: ='DF raw data'!C87 -> 4.9074411e-06 | F82: -2.943479757e-06 | G82: -8.847515566e-06 | H82: 4.910660381e-06 | J82: -9.528150169e-06 | K82: 7.323377071e-06 | L82: 5.499696035e-06 | N82: -0.0001913062124 | O82: -0.003856625301 | P82: -1.889273124e-05 | Q82: -0.0004894324612 | R82: 5.119690792e-07
A83: 38.51617 | B83: ='DF raw data'!A88 -> 4.1508438e-06 | C83: ='DF raw data'!B88 -> -4.3018385e-06 | D83: ='DF raw data'!C88 -> 1.3002102e-06 | F83: 4.153566754e-06 | G83: -4.314240801e-06 | H83: 1.301063138e-06 | J83: -6.146744121e-06 | K83: -1.074028548e-05 | L83: -1.773307727e-06 | N83: -0.0001943808753 | O83: -0.003953856559 | P83: -2.426512944e-05 | Q83: -0.0005015701216 | R83: 5.311634981e-07
A84: 39.01638 | B84: ='DF raw data'!A89 -> 7.005784e-06 | C84: ='DF raw data'!B89 -> 7.5633056e-06 | D84: ='DF raw data'!C89 -> -1.2662474e-06 | F84: 7.010379794e-06 | G84: 7.585110786e-06 | H84: -1.267078058e-06 | J84: -6.599468113e-06 | K84: -2.165089359e-06 | L84: -2.607910668e-06 | N84: -0.0001976819953 | O84: -0.00405273907 | P84: -2.534812879e-05 | Q84: -0.0005142495091 | R84: 5.510321888e-07
A85: 39.51659 | B85: ='DF raw data'!A90 -> -1.3414993e-06 | C85: ='DF raw data'!B90 -> 6.050645e-06 | D85: ='DF raw data'!C90 -> 6.7429262e-08 | F85: -1.342379324e-06 | G85: 6.06808915e-06 | H85: 6.74734956e-08 | J85: -9.000083384e-06 | K85: 1.152107905e-06 | L85: 7.220782428e-06 | N85: -0.000202183927 | O85: -0.004153873492 | P85: -2.477183289e-05 | Q85: -0.0005266406276 | R85: 5.717868942e-07
A86: 40.0168 | B86: ='DF raw data'!A91 -> -6.5273298e-06 | C86: ='DF raw data'!B91 -> -5.3373674e-06 | D86: ='DF raw data'!C91 -> -4.4846688e-06 | F86: -6.531611728e-06 | G86: -5.352755154e-06 | H86: -4.487610743e-06 | J86: -9.036352361e-06 | K86: 2.747026976e-07 | L86: 1.245303283e-05 | N86: -0.0002067040008 | O86: -0.0042572689 | P86: -2.463442386e-05 | Q86: -0.0005389630128 | R86: 5.934626936e-07
A87: 40.51701 | B87: ='DF raw data'!A92 -> -3.4947693e-06 | C87: ='DF raw data'!B92 -> 2.2054387e-07 | D87: ='DF raw data'!C92 -> -5.4053776e-06 | F87: -3.497061869e-06 | G87: 2.211797031e-07 | H87: -5.408923528e-06 | J87: -5.202020188e-06 | K87: -3.682782425e-06 | L87: 4.390778863e-06 | N87: -0.0002093061033 | O87: -0.004361965906 | P87: -2.647658845e-05 | Q87: -0.0005522068671 | R87: 6.15727068e-07
A88: 41.01722 | B88: ='DF raw data'!A93 -> 7.9147878e-07 | C88: ='DF raw data'!B93 -> -7.5174233e-07 | D88: ='DF raw data'!C93 -> -7.5643925e-06 | F88: 7.919979901e-07 | G88: -7.539096206e-07 | H88: -7.569354741e-06 | J88: -3.916517951e-06 | K88: -7.215950749e-06 | L88: 7.530927049e-06 | N88: -0.0002112651848 | O88: -0.004467642864 | P88: -3.008607918e-05 | Q88: -0.0005672562247 | R88: 6.385057062e-07
A89: 41.51743 | B89: ='DF raw data'!A94 -> 2.7105916e-06 | C89: ='DF raw data'!B94 -> -5.4421048e-06 | D89: ='DF raw data'!C94 -> -3.2373789e-06 | F89: 2.712369748e-06 | G89: -5.457794515e-06 | H89: -3.239502621e-06 | J89: -5.110780774e-06 | K89: 2.120637371e-06 | L89: 8.509914544e-06 | N89: -0.0002138216484 | O89: -0.004574598591 | P89: -2.902531516e-05 | Q89: -0.0005817749776 | R89: 6.617965674e-07
A90: 42.01764 | B90: ='DF raw data'!A95 -> 4.273129e-06 | C90: ='DF raw data'!B95 -> 1.1402407e-05 | D90: ='DF raw data'!C95 -> 5.5841629e-06 | F90: 4.275932173e-06 | G90: 1.14352804e-05 | H90: 5.587826111e-06 | J90: -3.878780112e-06 | K90: 1.271066179e-06 | L90: 1.230432034e-05 | N90: -0.000215761853 | O90: -0.004682524827 | P90: -2.838951515e-05 | Q90: -0.000595975697 | R90: 6.854860837e-07
A91: 42.51785 | B91: ='DF raw data'!A96 -> 5.0000308e-06 | C91: ='DF raw data'!B96 -> 5.2798337e-06 | D91: ='DF raw data'!C96 -> -7.9610959e-07 | F91: 5.00331082e-06 | G91: 5.295055583e-06 | H91: -7.966318379e-07 | J91: -1.299225533e-06 | K91: 2.949736913e-06 | L91: -1.277155064e-06 | N91: -0.0002164117386 | O91: -0.004790776143 | P91: -2.691402724e-05 | Q91: -0.0006094383626 | R91: 7.092752737e-07
A92: 43.01806 | B92: ='DF raw data'!A97 -> 4.3117107e-06 | C92: ='DF raw data'!B97 -> -7.3088863e-06 | D92: ='DF raw data'!C97 -> -9.7741213e-06 | F92: 4.314539182e-06 | G92: -7.329957989e-06 | H92: -9.780533124e-06 | J92: 8.356193569e-07 | K92: 1.355900956e-05 | L92: -1.293462155e-05 | N92: -0.0002159937534 | O92: -0.004898818379 | P92: -2.013167507e-05 | Q92: -0.0006195084278 | R92: 7.32814449e-07
A93: 43.51827 | B93: ='DF raw data'!A98 -> 3.533879e-06 | C93: ='DF raw data'!B98 -> 1.9784479e-06 | D93: ='DF raw data'!C98 -> -3.2988753e-06 | F93: 3.536197225e-06 | G93: 1.984151811e-06 | H93: -3.301039362e-06 | J93: 1.811802163e-06 | K93: -3.72091986e-06 | L93: -2.105563844e-06 | N93: -0.0002150874719 | O93: -0.005006407283 | P93: -2.199291639e-05 | Q93: -0.0006305095045 | R93: 7.561974202e-07
A94: 44.01848 | B94: ='DF raw data'!A99 -> 2.7563151e-06 | C94: ='DF raw data'!B99 -> -2.3204252e-07 | D94: ='DF raw data'!C99 -> 8.3748409e-06 | F94: 2.758123243e-06 | G94: -2.32711504e-07 | H94: 8.380334796e-06 | J94: -1.269770023e-06 | K94: 6.953254667e-06 | L94: 4.60076062e-06 | N94: -0.0002157226236 | O94: -0.005114313896 | P94: -1.851482888e-05 | Q94: -0.000639770807 | R94: 7.796467894e-07
A95: 44.51869 | B95: ='DF raw data'!A100 -> 3.8973967e-06 | C95: ='DF raw data'!B100 -> 2.6824077e-06 | D95: ='DF raw data'!C100 -> 7.9210758e-06 | F95: 3.899953392e-06 | G95: 2.690141144e-06 | H95: 7.926272026e-06 | J95: -1.013677036e-05 | K95: -5.982874581e-06 | L95: 3.161982901e-06 | N95: -0.0002207931375 | O95: -0.005224756832 | P95: -2.150752257e-05 | Q95: -0.0006505290849 | R95: 8.042632155e-07
A96: 45.0189 | B96: ='DF raw data'!A101 -> 2.3276502e-06 | C96: ='DF raw data'!B101 -> 7.3937213e-06 | D96: ='DF raw data'!C101 -> 2.8432662e-06 | F96: 2.329177139e-06 | G96: 7.415037571e-06 | H96: 2.845131383e-06 | J96: -1.301549157e-05 | K96: -7.470591875e-06 | L96: 1.057371181e-05 | N96: -0.0002273036165 | O96: -0.005338456374 | P96: -2.524438733e-05 | Q96: -0.0006631565799 | R96: 8.304263059e-07
A97: 45.51911 | B97: ='DF raw data'!A102 -> -3.3924425e-06 | C97: ='DF raw data'!B102 -> -2.3595398e-06 | D97: ='DF raw data'!C102 -> -2.8622142e-06 | F97: -3.394667942e-06 | G97: -2.366342408e-06 | H97: -2.864091813e-06 | J97: -9.014911505e-06 | K97: 7.433772428e-06 | L97: 9.354706865e-06 | N97: -0.0002318129654 | O97: -0.005454411537 | P97: -2.152594003e-05 | Q97: -0.0006739240703 | R97: 8.575379966e-07
A98: 46.01932 | B98: ='DF raw data'!A103 -> -7.0722722e-06 | C98: ='DF raw data'!B103 -> -3.9677375e-06 | D98: ='DF raw data'!C103 -> 1.247766e-06 | F98: -7.076911611e-06 | G98: -3.97917658e-06 | H98: 1.248584534e-06 | J98: -6.88915022e-06 | K98: 6.345212106e-06 | L98: 8.872673358e-06 | N98: -0.0002352589872 | O98: -0.005572090435 | P98: -1.835200148e-05 | Q98: -0.000683103925 | R98: 8.853914836e-07
A99: 46.51953 | B99: ='DF raw data'!A104 -> 6.3109013e-08 | C99: ='DF raw data'!B104 -> -4.4562125e-06 | D99: ='DF raw data'!C104 -> 6.5723575e-06 | F99: 6.315041251e-08 | G99: -4.469059864e-06 | H99: 6.576668967e-06 | J99: -6.398019449e-06 | K99: -1.227175204e-07 | L99: 1.82450359e-05 | N99: -0.0002384593405 | O99: -0.005691370182 | P99: -1.841338601e-05 | Q99: -0.0006923144848 | R99: 9.14004451e-07
A100: 47.01974 | B100: ='DF raw data'!A105 -> 9.8794144e-06 | C100: ='DF raw data'!B105 -> 6.5931586e-06 | D100: ='DF raw data'!C105 -> 6.8597383e-06 | F100: 9.885895296e-06 | G100: 6.61216683e-06 | H100: 6.864238288e-06 | J100: -3.40033966e-06 | K100: -2.686553831e-06 | L100: 1.768455046e-05 | N100: -0.0002401602244 | O100: -0.005811500728 | P100: -1.97572271e-05 | Q100: -0.0007021972474 | R100: 9.430502858e-07
A101: 47.51995 | B101: ='DF raw data'!A106 -> 1.3633869e-05 | C101: ='DF raw data'!B106 -> 1.6798353e-06 | D101: ='DF raw data'!C106 -> 2.0269811e-06 | F101: 1.364281282e-05 | G101: 1.684678304e-06 | H101: 2.0283108e-06 | J101: 1.475498192e-06 | K101: -4.459694241e-06 | L101: 6.590167416e-06 | N101: -0.0002394221655 | O101: -0.005931262089 | P101: -2.198801076e-05 | Q101: -0.0007131958702 | R101: 9.719656481e-07
A102: 48.02016 | B102: ='DF raw data'!A107 -> 1.3389433e-05 | C102: ='DF raw data'!B107 -> 1.4719576e-06 | D102: ='DF raw data'!C107 -> -2.7836811e-06 | F102: 1.339821647e-05 | G102: 1.476201288e-06 | H102: -2.785507195e-06 | J102: 4.725311672e-07 | K102: -9.796646065e-06 | L102: 5.561565795e-06 | N102: -0.0002391858007 | O102: -0.006050905218 | P102: -2.688839109e-05 | Q102: -0.0007266457123 | R102: 1.00094423e-06
A103: 48.52037 | B103: ='DF raw data'!A108 -> 1.36591e-05 | C103: ='DF raw data'!B108 -> 6.9123148e-06 | D103: ='DF raw data'!C108 -> -8.0061782e-06 | F103: 1.366806037e-05 | G103: 6.932243165e-06 | H103: -8.011430253e-06 | J103: -5.629429985e-06 | K103: -6.537120592e-06 | L103: 2.906847842e-06 | N103: -0.0002420016978 | O103: -0.006171956888 | P103: -3.015832418e-05 | Q103: -0.0007417312077 | R103: 1.030693893e-06
A104: 49.02058 | B104: ='DF raw data'!A109 -> 1.2167852e-05 | C104: ='DF raw data'!B109 -> 1.1219746e-05 | D104: ='DF raw data'!C109 -> -3.3955127e-06 | F104: 1.217583411e-05 | G104: 1.125209279e-05 | H104: -3.397740156e-06 | J104: -9.903996062e-06 | K104: -2.212723795e-06 | L104: 1.075911936e-05 | N104: -0.0002469557757 | O104: -0.006295486636 | P104: -3.126515075e-05 | Q104: -0.0007573703487 | R104: 1.061689238e-06
A105: 49.52079 | B105: ='DF raw data'!A110 -> 6.9079961e-06 | C105: ='DF raw data'!B110 -> 8.827531e-06 | D105: ='DF raw data'!C110 -> 4.6988603e-06 | F105: 6.912527745e-06 | G105: 8.852980977e-06 | H105: 4.701942752e-06 | J105: -1.128394341e-05 | K105: -4.716970642e-07 | L105: 1.341463723e-05 | N105: -0.000252600117 | O105: -0.006421839741 | P105: -3.150109833e-05 | Q105: -0.0007731275131 | R105: 1.094102415e-06
A106: 50.021 | B106: ='DF raw data'!A111 -> 4.4023564e-06 | C106: ='DF raw data'!B111 -> 1.9819149e-06 | D106: ='DF raw data'!C111 -> 5.5944788e-06 | F106: 4.405244346e-06 | G106: 1.987628807e-06 | H106: 5.598148778e-06 | J106: -6.696718667e-06 | K106: 9.654111415e-06 | L106: 4.670488132e-06 | N106: -0.0002559498827 | O106: -0.006549868432 | P106: -2.667201526e-05 | Q106: -0.0007864691219 | R106: 1.127227191e-06
A107: 50.52121 | B107: ='DF raw data'!A112 -> 8.7405351e-06 | C107: ='DF raw data'!B112 -> 7.6583083e-06 | D107: ='DF raw data'!C112 -> -1.8867311e-06 | F107: 8.746268891e-06 | G107: 7.680387381e-06 | H107: -1.887968796e-06 | J107: -2.9918998e-06 | K107: 6.960478634e-06 | L107: 1.310942014e-05 | N107: -0.0002574464609 | O107: -0.006678645726 | P107: -2.319031425e-05 | Q107: -0.000798069149 | R107: 1.160649458e-06
A108: 51.02142 | B108: ='DF raw data'!A113 -> 9.1609227e-06 | C108: ='DF raw data'!B113 -> -3.3148767e-06 | D108: ='DF raw data'!C113 -> -3.1923898e-06 | F108: 9.166932265e-06 | G108: -3.324433567e-06 | H108: -3.194484008e-06 | J108: -6.09858575e-06 | K108: -5.169164279e-06 | L108: 1.460254099e-05 | N108: -0.0002604970345 | O108: -0.006808948947 | P108: -2.577598191e-05 | Q108: -0.0008109625529 | R108: 1.194925401e-06
A109: 51.52163 | B109: ='DF raw data'!A114 -> 1.8302336e-06 | C109: ='DF raw data'!B114 -> -1.1217901e-05 | D109: ='DF raw data'!C114 -> 2.2436145e-06 | F109: 1.831434233e-06 | G109: -1.125024247e-05 | H109: 2.245086311e-06 | J109: -8.526586474e-06 | K109: -7.282454931e-06 | L109: 2.166080817e-06 | N109: -0.0002647621183 | O109: -0.006941385607 | P109: -2.941873869e-05 | Q109: -0.0008256781002 | R109: 1.230422524e-06
A110: 52.02184 | B110: ='DF raw data'!A115 -> -5.49278e-06 | C110: ='DF raw data'!B115 -> 3.2025077e-06 | D110: ='DF raw data'!C115 -> 2.9986697e-06 | F110: -5.496383264e-06 | G110: 3.211740604e-06 | H110: 3.000636827e-06 | J110: -8.389993628e-06 | K110: 6.861189303e-06 | L110: 5.743443929e-06 | N110: -0.000268958877 | O110: -0.007075921526 | P110: -2.598670319e-05 | Q110: -0.000838676909 | R110: 1.26694495e-06
A111: 52.52205 | B111: ='DF raw data'!A116 -> -6.6209791e-06 | C111: ='DF raw data'!B116 -> 4.6233713e-06 | D111: ='DF raw data'!C116 -> 2.3643436e-06 | F111: -6.625322462e-06 | G111: 4.636700587e-06 | H111: 2.365894609e-06 | J111: -1.163060067e-05 | K111: -6.527087248e-06 | L111: 5.87357614e-06 | N111: -0.0002747766197 | O111: -0.007213367539 | P111: -2.92516175e-05 | Q111: -0.0008533088606 | R111: 1.305139909e-06
A112: 53.02226 | B112: ='DF raw data'!A117 -> -5.9191088e-06 | C112: ='DF raw data'!B117 -> 1.0110699e-05 | D112: ='DF raw data'!C117 -> 6.321116e-06 | F112: -5.922991735e-06 | G112: 1.013984838e-05 | H112: 6.325262652e-06 | J112: -1.550981877e-05 | K112: -8.731235291e-06 | L112: 1.086101315e-05 | N112: -0.0002825347862 | O112: -0.007354694265 | P112: -3.361906871e-05 | Q112: -0.0008701254549 | R112: 1.345634984e-06
A113: 53.52247 | B113: ='DF raw data'!A118 -> -4.3988239e-06 | C113: ='DF raw data'!B118 -> 1.0272147e-05 | D113: ='DF raw data'!C118 -> 4.4040257e-06 | F113: -4.401709528e-06 | G113: 1.030176184e-05 | H113: 4.406914741e-06 | J113: -1.326796908e-05 | K113: -2.839231238e-06 | L113: 1.468871948e-05 | N113: -0.000289171557 | O113: -0.007499340769 | P113: -3.503928056e-05 | Q113: -0.0008876524535 | R113: 1.388076772e-06
A114: 54.02268 | B114: ='DF raw data'!A119 -> 1.3733335e-06 | C114: ='DF raw data'!B119 -> 1.6276667e-06 | D114: ='DF raw data'!C119 -> -3.8666963e-07 | F114: 1.374234407e-06 | G114: 1.632359301e-06 | H114: -3.869232853e-07 | J114: -5.896002142e-06 | K114: -7.967570958e-06 | L114: 6.733885433e-06 | N114: -0.0002921207962 | O114: -0.007645462513 | P114: -3.902473923e-05 | Q114: -0.0009071730183 | R114: 1.431523757e-06
A115: 54.52289 | B115: ='DF raw data'!A120 -> 1.9955719e-06 | C115: ='DF raw data'!B120 -> 1.2121181e-05 | D115: ='DF raw data'!C120 -> -5.0534395e-06 | F115: 1.996880995e-06 | G115: 1.215612665e-05 | H115: -5.056754556e-06 | J115: -1.171917874e-06 | K115: -1.21466494e-05 | L115: 1.077210687e-05 | N115: -0.0002927070013 | O115: -0.007791877482 | P115: -4.510061473e-05 | Q115: -0.0009297327968 | R115: 1.475397904e-06
A116: 55.0231 | B116: ='DF raw data'!A121 -> -3.9920528e-06 | C116: ='DF raw data'!B121 -> 7.3397183e-07 | D116: ='DF raw data'!C121 -> -5.238327e-06 | F116: -3.994671587e-06 | G116: 7.360878879e-07 | H116: -5.241763343e-06 | J116: -5.839428054e-06 | K116: 2.769356668e-06 | L116: 1.535483017e-05 | N116: -0.0002956279416 | O116: -0.007939753535 | P116: -4.371535483e-05 | Q116: -0.0009515996544 | R116: 1.520070114e-06
A117: 55.52331 | B117: ='DF raw data'!A122 -> -9.120211e-06 | C117: ='DF raw data'!B122 -> 6.6127709e-06 | D117: ='DF raw data'!C122 -> 3.0602325e-06 | F117: -9.126193858e-06 | G117: 6.631835672e-06 | H117: 3.062240013e-06 | J117: -1.247827438e-05 | K117: -3.770159511e-06 | L117: 1.666760378e-05 | N117: -0.0003018696992 | O117: -0.008090751777 | P117: -4.560122632e-05 | Q117: -0.0009744098438 | R117: 1.566692081e-06
A118: 56.02352 | B118: ='DF raw data'!A123 -> -9.2795426e-06 | C118: ='DF raw data'!B123 -> 3.8095991e-06 | D118: ='DF raw data'!C123 -> 1.4179421e-05 | F118: -9.28562998e-06 | G118: 3.820582263e-06 | H118: 1.41887227e-05 | J118: -1.328293089e-05 | K118: -8.28336769e-06 | L118: 1.655305569e-05 | N118: -0.0003085139541 | O118: -0.008245073542 | P118: -4.974464967e-05 | Q118: -0.000999292615 | R118: 1.615540283e-06
A119: 56.52373 | B119: ='DF raw data'!A124 -> -9.2872851e-06 | C119: ='DF raw data'!B124 -> 1.0708741e-06 | D119: ='DF raw data'!C124 -> 2.9377063e-06 | F119: -9.293377559e-06 | G119: 1.073961455e-06 | H119: 2.939633435e-06 | J119: -7.717519874e-06 | K119: -8.172837344e-06 | L119: 1.944646252e-05 | N119: -0.0003123743347 | O119: -0.008401326308 | P119: -5.383278464e-05 | Q119: -0.001026220312 | R119: 1.66579923e-06
A120: 57.02394 | B120: ='DF raw data'!A125 -> -6.8527333e-06 | C120: ='DF raw data'!B125 -> 8.6260543e-06 | D120: ='DF raw data'!C125 -> -4.0910686e-06 | F120: -6.857228693e-06 | G120: 8.650923415e-06 | H120: -4.093752341e-06 | J120: 2.780291776e-07 | K120: -1.267373263e-05 | L120: 1.148330311e-05 | N120: -0.0003122352617 | O120: -0.008557509508 | P120: -6.017231244e-05 | Q120: -0.001056319105 | R120: 1.716376246e-06
A121: 57.52415 | B121: ='DF raw data'!A126 -> -8.7271826e-07 | C121: ='DF raw data'!B126 -> 5.4987891e-06 | D121: ='DF raw data'!C126 -> -2.3610626e-06 | F121: -8.732907632e-07 | G121: 5.514642237e-06 | H121: -2.362611457e-06 | J121: 2.75325265e-06 | K121: -8.832797656e-06 | L121: 4.373661841e-06 | N121: -0.0003108580572 | O121: -0.008713003817 | P121: -6.459056615e-05 | Q121: -0.001088627952 | R121: 1.766799752e-06
A122: 58.02436 | B122: ='DF raw data'!A127 -> 2.2364707e-06 | C122: ='DF raw data'!B127 -> 7.2490861e-06 | D122: ='DF raw data'!C127 -> 4.9253445e-06 | F122: 2.237937825e-06 | G122: 7.269985384e-06 | H122: 4.928575526e-06 | J122: -5.044532744e-07 | K122: -1.697684193e-06 | L122: 4.748140738e-06 | N122: -0.0003111103898 | O122: -0.008868624345 | P122: -6.543976476e-05 | Q122: -0.001121361576 | R122: 1.817356996e-06
A123: 58.52457 | B123: ='DF raw data'!A128 -> 1.7054787e-06 | C123: ='DF raw data'!B128 -> 3.5203288e-06 | D123: ='DF raw data'!C128 -> 7.4846807e-06 | F123: 1.706597494e-06 | G123: 3.53047799e-06 | H123: 7.489590651e-06 | J123: -4.702139782e-06 | K123: -3.886578485e-06 | L123: 9.872638005e-06 | N123: -0.0003134624471 | O123: -0.009025421396 | P123: -6.738387019e-05 | Q123: -0.001155067662 | R123: 1.868778229e-06
A124: 59.02478 | B124: ='DF raw data'!A129 -> -3.2243006e-06 | C124: ='DF raw data'!B129 -> 4.6516602e-06 | D124: ='DF raw data'!C129 -> 5.6740773e-06 | F124: -3.226415741e-06 | G124: 4.665071045e-06 | H124: 5.677799495e-06 | J124: -9.717442863e-06 | K124: -3.750089314e-06 | L124: 1.791802152e-06 | N124: -0.0003183232092 | O124: -0.009184649848 | P124: -6.925970236e-05 | Q124: -0.001189712058 | R124: 1.921863802e-06
A125: 59.52499 | B125: ='DF raw data'!A130 -> -1.2519226e-05 | C125: ='DF raw data'!B130 -> 2.42943e-06 | D125: ='DF raw data'!C130 -> 3.3351009e-06 | F125: -1.252743861e-05 | G125: 2.436434103e-06 | H125: 3.337288726e-06 | J125: -1.354536193e-05 | K125: -4.814161139e-06 | L125: -4.471514891e-06 | N125: -0.0003250987347 | O125: -0.009347267486 | P125: -7.166779391e-05 | Q125: -0.001225561005 | R125: 1.977299805e-06
A126: 60.0252 | B126: ='DF raw data'!A131 -> -1.4276005e-05 | C126: ='DF raw data'!B131 -> -1.6854624e-06 | D126: ='DF raw data'!C131 -> 7.6361575e-06 | F126: -1.428537006e-05 | G126: -1.690321627e-06 | H126: 7.641166819e-06 | J126: -1.352672672e-05 | K126: 7.704783413e-07 | L126: 7.16950251e-06 | N126: -0.0003318649387 | O126: -0.009513269647 | P126: -7.128239294e-05 | Q126: -0.001261217171 | R126: 2.034931759e-06
A127: 60.52541 | B127: ='DF raw data'!A132 -> -5.4854377e-06 | C127: ='DF raw data'!B132 -> 1.4408674e-06 | D127: ='DF raw data'!C132 -> 9.4735824e-06 | F127: -5.489036147e-06 | G127: 1.445021454e-06 | H127: 9.47979707e-06 | J127: -1.360193702e-05 | K127: -9.233964905e-06 | L127: 7.699687584e-06 | N127: -0.0003386687636 | O127: -0.009682675149 | P127: -7.590131452e-05 | Q127: -0.001299183767 | R127: 2.095185826e-06
A128: 61.02562 | B128: ='DF raw data'!A133 -> 1.6228429e-06 | C128: ='DF raw data'!B133 -> 2.636642e-06 | D128: ='DF raw data'!C133 -> -9.314806e-07 | F128: 1.623907485e-06 | G128: 2.6442435e-06 | H128: -9.320916513e-07 | J128: -1.537249074e-05 | K128: -7.377727414e-06 | L128: -9.29806253e-08 | N128: -0.0003463582372 | O128: -0.009855927003 | P128: -7.959172755e-05 | Q128: -0.001338996345 | R128: 2.158361784e-06
A129: 61.52583 | B129: ='DF raw data'!A134 -> 2.0844818e-06 | C129: ='DF raw data'!B134 -> 8.3210407e-06 | D129: ='DF raw data'!C134 -> -6.7308697e-06 | F129: 2.08584922e-06 | G129: 8.345030454e-06 | H129: -6.735285151e-06 | J129: -1.708066157e-05 | K129: -4.790596497e-07 | L129: 2.321853938e-06 | N129: -0.0003549021549 | O129: -0.01003345261 | P129: -7.983135798e-05 | Q129: -0.001378928789 | R129: 2.224553866e-06
A130: 62.02604 | B130: ='DF raw data'!A135 -> 9.7084552e-08 | C130: ='DF raw data'!B135 -> 2.9465941e-06 | D130: ='DF raw data'!C135 -> -1.2892758e-06 | F130: 9.714823947e-08 | G130: 2.955089199e-06 | H130: -1.290121565e-06 | J130: -1.395680866e-05 | K130: 2.702451132e-06 | L130: -3.304722076e-06 | N130: -0.0003618834902 | O130: -0.01021447035 | P130: -7.84795649e-05 | Q130: -0.001418185052 | R130: 2.293142012e-06
A131: 62.52625 | B131: ='DF raw data'!A136 -> 2.773746e-07 | C131: ='DF raw data'!B136 -> -1.3221411e-06 | D131: ='DF raw data'!C136 -> 1.4895818e-07 | F131: 2.775565577e-07 | G131: -1.325952864e-06 | H131: 1.490558966e-07 | J131: -7.506052843e-06 | K131: -4.763312463e-06 | L131: 6.086030319e-08 | N131: -0.0003656380929 | O131: -0.01039736618 | P131: -8.086222143e-05 | Q131: -0.001458633144 | R131: 2.363286417e-06
A132: 63.02646 | B132: ='DF raw data'!A137 -> 3.8068847e-06 | C132: ='DF raw data'!B137 -> 6.5209738e-06 | D132: ='DF raw data'!C137 -> 1.3262991e-06 | F132: 3.809382016e-06 | G132: 6.539773919e-06 | H132: 1.327169152e-06 | J132: -5.405339078e-06 | K132: -1.133266341e-06 | L132: 9.459398297e-06 | N132: -0.0003683418975 | O132: -0.01058161448 | P132: -8.142909258e-05 | Q132: -0.00149936479 | R132: 2.434469527e-06
A133: 63.52667 | B133: ='DF raw data'!A138 -> 3.166424e-06 | C133: ='DF raw data'!B138 -> 5.4970537e-06 | D133: ='DF raw data'!C138 -> -1.7269347e-06 | F133: 3.168501174e-06 | G133: 5.512901834e-06 | H133: -1.728067569e-06 | J133: -8.298220064e-06 | K133: -3.097757934e-06 | L133: 7.743974417e-06 | N133: -0.0003724927502 | O133: -0.01076793908 | P133: -8.297862208e-05 | Q133: -0.001540871527 | R133: 2.507318261e-06
A134: 64.02688 | B134: ='DF raw data'!A139 -> 1.1381086e-06 | C134: ='DF raw data'!B139 -> 7.3781107e-06 | D134: ='DF raw data'!C139 -> 3.7790437e-07 | F134: 1.138855199e-06 | G134: 7.399381965e-06 | H134: 3.781522753e-07 | J134: -7.29491893e-06 | K134: 2.594733773e-06 | L134: 2.823667311e-06 | N134: -0.0003761417416 | O134: -0.01095608894 | P134: -8.16807103e-05 | Q134: -0.001581729035 | R134: 2.581426547e-06
A135: 64.52709 | B135: ='DF raw data'!A140 -> 2.0588504e-06 | C135: ='DF raw data'!B140 -> 4.3689274e-06 | D135: ='DF raw data'!C140 -> 4.1745475e-06 | F135: 2.060201006e-06 | G135: =(1-$G$1*($B$2-$G$2))*C135*$M$2/$M$1 -> 4.381523119e-06 | H135: 4.177286003e-06 | J135: =-CELL("contents", INDEX($F$6:$F$1203,1204-CELL("row",F135))) -> -1.455989203e-06 | K135: =CELL("contents", INDEX($G$6:$G$1203,1204-CELL("row",G135))) -> 2.247359564e-06 | L135: =-CELL("contents", INDEX($H$6:$H$1203,1204-CELL("row",H135))) -> 1.205875336e-06 | N135: -0.0003768700419 | O135: -0.0111446031 | P135: -8.055655857e-05 | Q135: -0.001622024231 | R135: 2.65571793e-06
A136: =A135+$B$1 -> 65.0273 | B136: ='DF raw data'!A141 -> 3.7913987e-06 | C136: ='DF raw data'!B141 -> 3.6330771e-06 | D136: ='DF raw data'!C141 -> -9.1331162e-07 | F136: 3.793885858e-06 | G136: 3.643551346e-06 | H136: -9.139107524e-07 | J136: 2.464705887e-06 | K136: 4.362130471e-07 | L136: -2.404281575e-07 | N136: =J136*$B$1+N135 -> -0.0003756371714 | O136: =N136*$B$1+O135 -> -0.01133250057 | P136: =K136*$B$1+P135 -> -8.033836044e-05 | Q136: =P136*$B$1+Q135 -> -0.001662210282 | R136: =(N136^2+P136^2)*$B$1+R135 -> 2.729527686e-06
A137: 65.52751 | B137: ='DF raw data'!A142 -> 3.049011e-06 | C137: ='DF raw data'!B142 -> 4.6573973e-06 | D137: ='DF raw data'!C142 -> -1.4593877e-06 | F137: 3.051011151e-06 | G137: 4.670824685e-06 | H137: -1.460345058e-06 | J137: -2.381476024e-06 | K137: -4.862836067e-07 | L137: 2.215830032e-06 | N137: -0.0003768284095 | O137: -0.01152099391 | P137: -8.058160436e-05 | Q137: -0.001702518007 | R137: 2.803805392e-06
A138: 66.02772 | B138: ='DF raw data'!A143 -> 1.7118201e-06 | C138: ='DF raw data'!B143 -> 3.1019031e-06 | D138: ='DF raw data'!C143 -> 1.1425439e-06 | F138: 1.712943054e-06 | G138: 3.110845959e-06 | H138: 1.143293409e-06 | J138: -5.568047044e-06 | K138: -2.996191959e-06 | L138: -9.39437457e-07 | N138: -0.0003796136023 | O138: -0.01171088043 | P138: -8.208032954e-05 | Q138: -0.001743575408 | R138: 2.879258903e-06
A139: 66.52793 | B139: ='DF raw data'!A144 -> 2.5342397e-06 | C139: ='DF raw data'!B144 -> 2.3043927e-05 | D139: ='DF raw data'!C144 -> -2.0538489e-06 | F139: =(1-$G$1*($B$2-$G$2))*B139 -> 2.535902161e-06 | G139: 2.311036318e-05 | H139: =(1-$G$1*($B$2-$G$2))*D139 -> -2.055196225e-06 | J139: -3.957222136e-08 | K139: -6.054194808e-06 | L139: -2.515205993e-06 | N139: -0.0003796333968 | O139: -0.01190077685 | P139: -8.510869833e-05 | Q139: -0.00178614763 | R139: 2.954973193e-06
A140: 67.02814 | B140: ='DF raw data'!A145 -> 6.4870073e-06 | C140: ='DF raw data'!B145 -> 1.5334239e-05 | D140: ='DF raw data'!C145 -> -1.566928e-05 | F140: 6.491262777e-06 | G140: 1.537844797e-05 | H140: -1.567955905e-05 | J140: 5.460782825e-06 | K140: -1.101072091e-05 | L140: 7.767549372e-06 | N140: -0.0003769018586 | O140: -0.01208930693 | P140: -9.061637104e-05 | Q140: -0.001831474845 | R140: 3.030137918e-06
A141: 67.52835 | B141: ='DF raw data'!A146 -> 6.9704074e-06 | C141: ='DF raw data'!B146 -> 2.2347972e-07 | D141: ='DF raw data'!C146 -> -1.6696875e-05 | F141: 6.974979987e-06 | G141: 2.241240172e-07 | H141: -1.670782815e-05 | J141: 8.049353714e-06 | K141: 1.30050571e-06 | L141: 1.301678341e-05 | N141: -0.0003728754914 | O141: -0.01227582298 | P141: -8.996584507e-05 | Q141: -0.001876476661 | R141: 3.103733808e-06
A142: 68.02856 | B142: ='DF raw data'!A147 -> 1.2895631e-06 | C142: ='DF raw data'!B147 -> 1.3347243e-05 | D142: ='DF raw data'!C147 -> -5.4978877e-06 | F142: 1.290409053e-06 | G142: 1.338572341e-05 | H142: -5.501494314e-06 | J142: 3.765437107e-06 | K142: -1.548605531e-05 | L142: 8.965442575e-06 | N142: -0.0003709919821 | O142: -0.01246139688 | P142: -9.77121248e-05 | Q142: -0.001925353243 | R142: 3.177356071e-06
A143: 68.52877 | B143: ='DF raw data'!A148 -> -3.8580197e-06 | C143: ='DF raw data'!B148 -> 1.3776077e-05 | D143: ='DF raw data'!C148 -> -2.5702207e-07 | F143: -3.860550561e-06 | G143: 1.381579375e-05 | H143: -2.571906765e-07 | J143: -5.646339671e-07 | K143: -7.187715179e-06 | L143: 1.231914906e-06 | N143: -0.0003712744176 | O143: -0.01264711206 | P143: -0.0001013074918 | Q143: -0.001976028263 | R143: 3.251441124e-06
A144: 69.02898 | B144: ='DF raw data'!A149 -> -5.0169233e-06 | C144: ='DF raw data'!B149 -> 8.5477341e-06 | D144: ='DF raw data'!C149 -> -1.4794e-07 | F144: -5.020214402e-06 | G144: 8.572377416e-06 | H144: -1.480370486e-07 | J144: -7.988109364e-07 | K144: 4.909437333e-07 | L144: 2.627802909e-06 | N144: -0.0003716739908 | O144: -0.01283302711 | P144: -0.0001010619168 | Q144: -0.002026580445 | R144: 3.325649812e-06
A145: 69.52919 | B145: ='DF raw data'!A150 -> -7.1405464e-07 | C145: ='DF raw data'!B150 -> 2.8314448e-06 | D145: ='DF raw data'!C150 -> 1.5808021e-06 | F145: -7.145230598e-07 | G145: 2.839607921e-06 | H145: 1.581839106e-06 | J145: -4.383869933e-06 | K145: -4.669645294e-06 | L145: 1.372718013e-05 | N145: -0.0003738668464 | O145: -0.01302003904 | P145: -0.0001033977201 | Q145: -0.002078301018 | R145: 3.400915164e-06
A146: 70.0294 | B146: ='DF raw data'!A151 -> 2.1685864e-06 | C146: ='DF raw data'!B151 -> 7.6617753e-06 | D146: ='DF raw data'!C151 -> 3.2858702e-07 | F146: 2.170008993e-06 | G146: 7.683864377e-06 | H146: 3.288025731e-07 | J146: -9.210147896e-06 | K146: 8.54909288e-06 | L146: 1.165006443e-05 | N146: -0.0003784738545 | O146: -0.01320935545 | P146: -9.912137837e-05 | Q146: -0.002127882523 | R146: 3.477481061e-06
A147: 70.52961 | B147: ='DF raw data'!A152 -> 8.7838646e-07 | C147: ='DF raw data'!B152 -> -8.1318658e-06 | D147: ='DF raw data'!C152 -> -1.0258543e-06 | F147: 8.789626815e-07 | G147: -8.155310158e-06 | H147: -1.02652726e-06 | J147: -8.686355814e-06 | K147: 9.599917121e-06 | L147: 2.263913854e-06 | N147: -0.0003828188565 | O147: -0.01340084527 | P147: -9.431940383e-05 | Q147: -0.002175062032 | R147: 3.555236918e-06
A148: 71.02982 | B148: ='DF raw data'!A153 -> -1.9864992e-06 | C148: ='DF raw data'!B153 -> 2.5551185e-06 | D148: ='DF raw data'!C153 -> 3.5727248e-07 | F148: -1.987802343e-06 | G148: 2.562484966e-06 | H148: 3.575068507e-07 | J148: -7.397179569e-06 | K148: 3.350502809e-06 | L148: 8.304526998e-06 | N148: -0.0003865189997 | O148: -0.01359418594 | P148: -9.264344882e-05 | Q148: -0.002221403211 | R148: 3.634259967e-06
A149: 71.53003 | B149: ='DF raw data'!A154 -> -4.060671e-06 | C149: ='DF raw data'!B154 -> 1.0374485e-05 | D149: ='DF raw data'!C154 -> 5.4635188e-07 | F149: -4.0633348e-06 | G149: 1.040439488e-05 | H149: 5.467102868e-07 | J149: -8.613551185e-06 | K149: -4.700420164e-06 | L149: 3.673426688e-07 | N149: -0.0003908275842 | O149: -0.0137896818 | P149: -9.499464599e-05 | Q149: -0.002268920483 | R149: 3.71517903e-06
A150: 72.03024 | B150: ='DF raw data'!A155 -> -2.8926227e-06 | C150: ='DF raw data'!B155 -> 9.1409908e-07 | D150: ='DF raw data'!C155 -> -8.445611e-07 | F150: -2.89452026e-06 | G150: 9.167344489e-07 | H150: -8.451151321e-07 | J150: -1.001213365e-05 | K150: 2.070861278e-06 | L150: -4.368222275e-06 | N150: -0.0003958357536 | O150: -0.0139876828 | P150: -9.395878047e-05 | Q150: -0.002315919605 | R150: 3.797970887e-06
A151: 72.53045 | B151: ='DF raw data'!A156 -> 9.1289587e-07 | C151: ='DF raw data'!B156 -> -7.5641306e-06 | D151: ='DF raw data'!C156 -> 2.6953833e-06 | F151: 9.134947297e-07 | G151: -7.585938165e-06 | H151: 2.697151471e-06 | J151: -1.14964127e-05 | K151: 2.566899657e-06 | L151: 1.42904634e-05 | N151: -0.0004015863742 | O151: -0.01418856032 | P151: -9.267479159e-05 | Q151: -0.002362276462 | R151: 3.882936674e-06
A152: 73.03066 | B152: ='DF raw data'!A157 -> 4.424317e-06 | C152: ='DF raw data'!B157 -> -1.1786299e-05 | D152: ='DF raw data'!C157 -> -1.8813876e-07 | F152: 4.427219352e-06 | G152: -1.182027917e-05 | H152: -1.88262179e-07 | J152: -9.509715384e-06 | K152: -7.31068679e-06 | L152: 1.421181184e-05 | N152: -0.0004063432289 | O152: -0.01439181727 | P152: -9.633167023e-05 | Q152: -0.002410462527 | R152: 3.970170602e-06
A153: 73.53087 | B153: ='DF raw data'!A158 -> 2.9775892e-06 | C153: ='DF raw data'!B158 -> -2.2179715e-06 | D153: ='DF raw data'!C158 -> 1.379942e-06 | F153: 2.979542499e-06 | G153: -2.224365963e-06 | H153: 1.380847242e-06 | J153: -1.970096536e-06 | K153: -1.769542567e-05 | L153: 5.06354751e-06 | N153: -0.0004073286909 | O153: -0.01459556716 | P153: -0.0001051830991 | Q153: -0.002463076165 | R153: 4.058697841e-06
A154: 74.03108 | B154: ='DF raw data'!A159 -> -2.7953688e-06 | C154: ='DF raw data'!B159 -> 8.3289133e-06 | D154: ='DF raw data'!C159 -> 5.9775864e-08 | F154: -2.797202562e-06 | G154: 8.352925751e-06 | H154: 5.981507697e-08 | J154: 2.733882751e-06 | K154: -1.919675258e-06 | L154: 7.863849804e-06 | N154: -0.0004059611754 | O154: -0.014798633 | P154: -0.0001061433399 | Q154: -0.002516170125 | R154: 4.146770258e-06
A155: 74.53129 | B155: ='DF raw data'!A160 -> -7.2894081e-06 | C155: ='DF raw data'!B160 -> 9.7310995e-06 | D155: ='DF raw data'!C160 -> -5.1942693e-06 | F155: -7.294189952e-06 | G155: 9.759154486e-06 | H155: -5.197676741e-06 | J155: -1.322870634e-06 | K155: -2.275615994e-06 | L155: 1.525892829e-05 | N155: -0.0004066228885 | O155: -0.01500202983 | P155: -0.0001072816257 | Q155: -0.002569833467 | R155: 4.235233157e-06
A156: 75.0315 | B156: ='DF raw data'!A161 -> -6.6508828e-06 | C156: ='DF raw data'!B161 -> 7.8222902e-06 | D156: ='DF raw data'!C161 -> 3.3054841e-06 | F156: -6.655245779e-06 | G156: 7.844842045e-06 | H156: 3.307652498e-06 | J156: -4.881479651e-06 | K156: -1.066655352e-05 | L156: 1.61779768e-05 | N156: -0.0004090646534 | O156: -0.01520664806 | P156: -0.0001126171425 | Q156: -0.002626165688 | R156: 4.325279216e-06
A157: 75.53171 | B157: ='DF raw data'!A162 -> -6.66203e-06 | C157: ='DF raw data'!B162 -> 1.3100403e-05 | D157: ='DF raw data'!C162 -> 2.7371791e-06 | F157: -6.666400292e-06 | G157: 1.313817177e-05 | H157: 2.738974689e-06 | J157: -6.775001087e-06 | K157: -1.119912753e-05 | L157: 8.932409919e-06 | N157: -0.0004124535767 | O157: -0.01541296146 | P157: -0.0001182190581 | Q157: -0.002685300043 | R157: 4.417364725e-06
A158: 76.03192 | B158: ='DF raw data'!A163 -> -4.1287553e-06 | C158: ='DF raw data'!B163 -> 3.1421973e-06 | D158: ='DF raw data'!C163 -> -3.6187337e-06 | F158: -4.131463763e-06 | G158: 3.151256328e-06 | H158: -3.621107589e-06 | J158: -8.086084994e-06 | K158: -6.624501388e-06 | L158: 5.848202706e-06 | N158: -0.0004164983173 | O158: -0.01562129809 | P158: -0.0001215326999 | Q158: -0.002746091915 | R158: 4.511524779e-06
A159: 76.53213 | B159: ='DF raw data'!A164 -> 7.3854665e-07 | C159: ='DF raw data'!B164 -> 6.3415159e-06 | D159: ='DF raw data'!C164 -> -9.8168493e-06 | F159: 7.390311366e-07 | G159: 6.359798638e-06 | H159: -9.823289153e-06 | J159: -1.014565319e-05 | K159: -1.076958972e-05 | L159: 2.120374054e-07 | N159: -0.0004215732745 | O159: -0.01583217325 | P159: -0.0001269197564 | Q159: -0.002809578446 | R159: 4.608481809e-06
A160: 77.03234 | B160: ='DF raw data'!A165 -> 4.4313256e-06 | C160: ='DF raw data'!B165 -> 1.0467617e-05 | D160: ='DF raw data'!C165 -> -8.7193712e-06 | F160: 4.43423255e-06 | G160: 1.049779538e-05 | H160: -8.725091108e-06 | J160: -1.045844624e-05 | K160: -9.12410589e-06 | L160: -3.979977253e-07 | N160: -0.0004268046939 | O160: -0.01604566523 | P160: -0.0001314837254 | Q160: -0.00287534792 | R160: 4.708248802e-06
A161: 77.53255 | B161: ='DF raw data'!A166 -> 4.8464399e-06 | C161: ='DF raw data'!B166 -> 1.7247185e-05 | D161: ='DF raw data'!C166 -> -3.9683432e-06 | F161: 4.849619165e-06 | G161: 1.729690904e-05 | H161: -3.970946433e-06 | J161: -7.589744008e-06 | K161: -6.373738511e-06 | L161: 4.109402301e-06 | N161: -0.0004306011597 | O161: -0.01626105624 | P161: -0.0001346719331 | Q161: -0.002942712168 | R161: 4.810068492e-06
A162: 78.03276 | B162: ='DF raw data'!A167 -> -3.0181027e-07 | C162: ='DF raw data'!B167 -> 1.9430587e-05 | D162: ='DF raw data'!C167 -> -7.3787064e-06 | F162: -3.020082575e-07 | G162: 1.948660583e-05 | H162: -7.383546831e-06 | J162: -5.125208433e-06 | K162: -1.822396107e-06 | L162: 9.272325358e-06 | N162: -0.0004331648402 | O162: -0.01647772962 | P162: -0.0001355835139 | Q162: -0.003010532398 | R162: 4.913119089e-06
A163: 78.53297 | B163: ='DF raw data'!A168 -> -5.9537422e-07 | C163: ='DF raw data'!B168 -> -1.0977178e-06 | D163: ='DF raw data'!C168 -> -2.9800156e-06 | F163: -5.957647855e-07 | G163: -1.100882546e-06 | H163: -2.98197049e-06 | J163: -5.79915205e-06 | K163: 8.534239981e-06 | L163: 4.290614198e-06 | N163: -0.0004360656341 | O163: -0.01669585401 | P163: -0.0001313146017 | Q163: -0.003076217274 | R163: 5.016861023e-06
A164: 79.03318 | B164: ='DF raw data'!A169 -> 5.4542606e-06 | C164: ='DF raw data'!B169 -> 2.7898434e-07 | D164: ='DF raw data'!C169 -> -6.1708829e-06 | F164: 5.457838595e-06 | G164: 2.797886583e-07 | H164: -6.174930999e-06 | J164: -9.262379838e-06 | K164: -4.467319561e-06 | L164: 5.825026412e-06 | N164: -0.0004406987691 | O164: -0.01691629594 | P164: -0.0001335491996 | Q164: -0.00314301992 | R164: 5.122930951e-06
A165: 79.53339 | B165: ='DF raw data'!A170 -> 6.2688705e-06 | C165: ='DF raw data'!B170 -> 9.6686554e-06 | D165: ='DF raw data'!C170 -> -8.9499827e-06 | F165: 6.272982879e-06 | G165: 9.696530359e-06 | H165: -8.955853889e-06 | J165: -1.148732875e-05 | K165: -1.716312143e-05 | L165: 1.183993491e-05 | N165: -0.0004464448458 | O165: -0.01713961212 | P165: -0.0001421343646 | Q165: -0.00321411695 | R165: 5.232734638e-06
A166: 80.0336 | B166: ='DF raw data'!A171 -> 2.8790673e-06 | C166: ='DF raw data'!B171 -> 3.8034618e-06 | D166: ='DF raw data'!C171 -> -6.9807788e-06 | F166: 2.880955968e-06 | G166: 3.814427269e-06 | H166: -6.985358191e-06 | J166: -1.108136061e-05 | K166: -1.032198899e-05 | L166: 1.126739256e-05 | N166: -0.0004519878532 | O166: -0.01736570096 | P166: -0.0001472975267 | Q166: -0.003287796646 | R166: 5.345776886e-06
A167: 80.53381 | B167: ='DF raw data'!A172 -> 2.116522e-06 | C167: ='DF raw data'!B172 -> 7.9962783e-06 | D167: ='DF raw data'!C172 -> -7.0353303e-07 | F167: 2.117910438e-06 | G167: 8.019331757e-06 | H167: -7.039945477e-07 | J167: -7.261121773e-06 | K167: -4.60969736e-06 | L167: 1.497455587e-05 | N167: -0.0004556199389 | O167: -0.01759360661 | P167: -0.0001496033434 | Q167: -0.003362629734 | R167: 5.460810525e-06
A168: 81.03402 | B168: ='DF raw data'!A173 -> 1.6536147e-06 | C168: ='DF raw data'!B173 -> 9.7457769e-06 | D168: ='DF raw data'!C173 -> -2.3167374e-06 | F168: 1.654699471e-06 | G168: 9.773874202e-06 | H168: -2.31825718e-06 | J168: -4.982270427e-06 | K168: 2.389467386e-06 | L168: 1.376853924e-05 | N168: -0.0004581121204 | O168: -0.01782275888 | P168: -0.0001484081079 | Q168: -0.003436864954 | R168: 5.576805063e-06
A169: 81.53423 | B169: ='DF raw data'!A174 -> -2.412294e-06 | C169: ='DF raw data'!B174 -> 1.3225167e-06 | D169: ='DF raw data'!C174 -> -6.4559349e-06 | F169: -2.413876465e-06 | G169: 1.326329546e-06 | H169: -6.460169993e-06 | J169: -8.271168429e-06 | K169: -3.202396041e-06 | L169: 3.204340369e-06 | N169: -0.0004622494416 | O169: -0.01805398067 | P169: -0.0001500099784 | Q169: -0.003511901445 | R169: 5.69494343e-06
A170: 82.03444 | B170: ='DF raw data'!A175 -> -8.1771086e-06 | C170: ='DF raw data'!B175 -> 7.5518315e-06 | D170: ='DF raw data'!C175 -> -1.1165673e-06 | F170: -8.182472783e-06 | G170: 7.573603606e-06 | H170: -1.117299768e-06 | J170: -1.10018765e-05 | K170: -2.087610528e-06 | L170: 1.844214311e-06 | N170: -0.0004677526902 | O170: -0.01828795524 | P170: -0.0001510542221 | Q170: -0.003587460278 | R170: 5.815799147e-06
A171: 82.53465 | B171: ='DF raw data'!A176 -> -1.0274309e-05 | C171: ='DF raw data'!B176 -> 1.7139642e-05 | D171: ='DF raw data'!C176 -> 1.2011117e-06 | F171: -1.028104895e-05 | G171: 1.718905599e-05 | H171: 1.201899629e-06 | J171: -1.122529897e-05 | K171: -7.555149455e-07 | L171: 8.665885994e-06 | N171: -0.000473367697 | O171: -0.0185247385 | P171: -0.0001514321382 | Q171: -0.003663208148 | R171: 5.939355353e-06
A172: 83.03486 | B172: ='DF raw data'!A177 -> -6.2897016e-06 | C172: ='DF raw data'!B177 -> 8.86609e-06 | D172: ='DF raw data'!C177 -> -3.1726229e-06 | F172: -6.293827644e-06 | G172: 8.891651144e-06 | H172: -3.174704141e-06 | J172: -1.316156833e-05 | K172: -4.548410376e-06 | L172: 6.172268053e-06 | N172: -0.0004799512451 | O172: -0.01876481491 | P172: -0.0001537072986 | Q172: -0.003740094075 | R172: 6.066398254e-06
A173: 83.53507 | B173: ='DF raw data'!A178 -> -5.4704776e-07 | C173: ='DF raw data'!B178 -> 1.0448553e-06 | D173: ='DF raw data'!C178 -> -3.6788986e-06 | F173: -5.474066233e-07 | G173: 1.047867642e-06 | H173: -3.681311957e-06 | J173: -1.220168306e-05 | K173: -3.709142603e-06 | L173: 6.337429628e-06 | N173: -0.000486054649 | O173: -0.01900794431 | P173: -0.0001555626488 | Q173: -0.003817908068 | R173: 6.196677378e-06
A174: 84.03528 | B174: ='DF raw data'!A179 -> 7.7659354e-07 | C174: ='DF raw data'!B179 -> 3.1317891e-06 | D174: ='DF raw data'!C179 -> 8.7506328e-07 | F174: 7.771029854e-07 | G174: 3.140818121e-06 | H174: 8.756373215e-07 | J174: -8.508284576e-06 | K174: -6.899752663e-06 | L174: 1.748513673e-06 | N174: -0.000490310578 | O174: -0.01925320256 | P174: -0.0001590139741 | Q174: -0.003897448448 | R174: 6.329578127e-06
A175: 84.53549 | B175: ='DF raw data'!A180 -> -2.8635868e-06 | C175: ='DF raw data'!B180 -> 1.6879592e-05 | D175: ='DF raw data'!C180 -> -6.4496521e-07 | F175: -2.865465313e-06 | G175: 1.692825626e-05 | H175: -6.453883072e-07 | J175: -6.248335821e-06 | K175: -1.594717491e-05 | L175: 3.486115493e-06 | N175: -0.0004934360581 | O175: -0.01950002421 | P175: -0.0001669909105 | Q175: -0.003980978971 | R175: 6.465317667e-06
A176: 85.0357 | B176: ='DF raw data'!A181 -> -6.9323651e-06 | C176: ='DF raw data'!B181 -> -9.0474224e-08 | D176: ='DF raw data'!C181 -> -1.4214518e-06 | F176: -6.936912732e-06 | G176: -9.073506329e-08 | H176: -1.422384272e-06 | J176: -6.945323746e-06 | K176: -1.120501245e-05 | L176: 8.831114914e-06 | N176: -0.0004969101785 | O176: -0.01974858365 | P176: -0.0001725957697 | Q176: -0.004067313101 | R176: 6.603730289e-06
A177: 85.53591 | B177: ='DF raw data'!A182 -> -1.0194143e-05 | C177: ='DF raw data'!B182 -> -2.4593405e-06 | D177: ='DF raw data'!C182 -> 3.6801168e-06 | F177: -1.020083036e-05 | G177: -2.466430836e-06 | H177: 3.682530957e-06 | J177: -1.022720865e-05 | K177: -4.667233662e-06 | L177: 3.086394347e-06 | N177: -0.0005020259305 | O177: -0.01999970204 | P177: -0.0001749303667 | Q177: -0.00415481502 | R177: 6.745104975e-06
A178: 86.03612 | B178: ='DF raw data'!A183 -> -1.1326814e-05 | C178: ='DF raw data'!B183 -> 9.0710355e-06 | D178: ='DF raw data'!C183 -> -5.7388547e-07 | F178: -1.133424439e-05 | G178: 9.097187507e-06 | H178: -5.742619389e-07 | J178: -1.312002309e-05 | K178: -5.420864752e-06 | L178: 2.051732454e-06 | N178: -0.0005085886973 | O178: -0.0202541032 | P178: -0.0001776419374 | Q178: -0.004243673294 | R178: 6.890275482e-06
A179: 86.53633 | B179: ='DF raw data'!A184 -> -1.0121119e-05 | C179: ='DF raw data'!B184 -> 1.3710297e-05 | D179: ='DF raw data'!C184 -> 3.9932543e-06 | F179: -1.012775845e-05 | G179: 1.374982411e-05 | H179: 3.995873875e-06 | J179: -1.402159814e-05 | K179: -6.223465516e-06 | L179: 5.278725874e-06 | N179: -0.0005156024409 | O179: -0.02051201269 | P179: -0.0001807549771 | Q179: -0.004334088741 | R179: 7.03959729e-06
A180: 87.03654 | B180: ='DF raw data'!A185 -> -6.4551737e-06 | C180: ='DF raw data'!B185 -> 2.3673971e-05 | D180: ='DF raw data'!C185 -> 7.1497143e-06 | F180: -6.459408294e-06 | G180: 2.374222361e-05 | H180: 7.154404513e-06 | J180: -1.305356252e-05 | K180: -1.462818717e-05 | L180: 2.533233512e-06 | N180: -0.0005221319634 | O180: -0.02077318832 | P180: -0.0001880721426 | Q180: -0.004428164307 | R180: 7.193658427e-06
A181: 87.53675 | B181: ='DF raw data'!A186 -> -2.3408052e-06 | C181: ='DF raw data'!B186 -> 1.4040664e-05 | D181: ='DF raw data'!C186 -> 1.9033898e-06 | F181: -2.342340768e-06 | G181: 1.408114356e-05 | H181: 1.904638424e-06 | J181: -9.317951869e-06 | K181: -6.02970631e-06 | L181: 1.924598109e-06 | N181: -0.0005267928961 | O181: -0.0210366954 | P181: -0.000191088262 | Q181: -0.004523748567 | R181: 7.350737112e-06
A182: 88.03696 | B182: ='DF raw data'!A187 -> -4.5353173e-07 | C182: ='DF raw data'!B187 -> 5.5013247e-06 | D182: ='DF raw data'!C187 -> -7.6292158e-06 | F182: -4.538292468e-07 | G182: 5.517185147e-06 | H182: -7.634220566e-06 | J182: -3.260474969e-06 | K182: 2.709408733e-06 | L182: 7.202668053e-06 | N182: -0.0005284238183 | O182: -0.02130101828 | P182: -0.0001897329887 | Q182: -0.004618654905 | R182: 7.50841848e-06
A183: 88.53717 | B183: ='DF raw data'!A188 -> 5.5178145e-07 | C183: ='DF raw data'!B188 -> 1.3902833e-05 | D183: ='DF raw data'!C188 -> -3.5731443e-06 | F183: 5.521434186e-07 | G183: 1.394291519e-05 | H183: -3.575488283e-06 | J183: -1.439090725e-06 | K183: -1.497529501e-05 | L183: 1.699599706e-05 | N183: -0.0005291436658 | O183: -0.02156570123 | P183: -0.000197223781 | Q183: -0.004717308212 | R183: 7.667930566e-06
A184: 89.03738 | B184: ='DF raw data'!A189 -> -3.2744211e-07 | C184: ='DF raw data'!B189 -> 1.3900965e-05 | D184: ='DF raw data'!C189 -> -2.2202337e-06 | F184: -3.27656912e-07 | G184: 1.394104181e-05 | H184: -2.221690173e-06 | J184: -2.22411126e-06 | K184: -5.70159969e-06 | L184: 1.957572826e-05 | N184: -0.0005302561885 | O184: -0.02183094068 | P184: -0.0002000757782 | Q184: -0.004817388117 | R184: 7.82859899e-06
A185: 89.53759 | B185: ='DF raw data'!A190 -> -2.2164511e-06 | C185: ='DF raw data'!B190 -> 1.3422362e-05 | D185: ='DF raw data'!C190 -> -1.4080749e-06 | F185: -2.217905092e-06 | G185: 1.346105898e-05 | H185: -1.408998597e-06 | J185: -6.04762244e-06 | K185: -6.623698681e-06 | L185: 1.88405563e-05 | N185: -0.0005332812698 | O185: -0.0220976933 | P185: -0.0002033890185 | Q185: -0.004919125338 | R185: 7.991545402e-06
A186: 90.0378 | B186: ='DF raw data'!A191 -> -8.1411224e-07 | C186: ='DF raw data'!B191 -> 1.3151905e-05 | D186: ='DF raw data'!C191 -> 9.5559358e-07 | F186: -8.146462976e-07 | G186: 1.318982225e-05 | H186: 9.562204494e-07 | J186: -1.001781138e-05 | K186: -8.845910251e-06 | L186: 4.345357986e-06 | N186: -0.0005382922792 | O186: -0.02236695248 | P186: -0.0002078138313 | Q186: -0.005023075895 | R186: 8.158087903e-06
A187: 90.53801 | B187: ='DF raw data'!A192 -> 4.7163458e-06 | C187: ='DF raw data'!B192 -> 1.1868736e-05 | D187: ='DF raw data'!C192 -> -4.4481981e-06 | F187: 4.719439723e-06 | G187: 1.190295384e-05 | H187: -4.451116118e-06 | J187: -1.172992278e-05 | K187: -9.577595753e-06 | L187: 1.329589339e-05 | N187: -0.0005441597039 | O187: -0.02263914661 | P187: -0.0002126046404 | Q187: -0.005129422862 | R187: 8.328814837e-06
A188: 91.03822 | B188: ='DF raw data'!A193 -> 9.9160598e-06 | C188: ='DF raw data'!B193 -> 8.2611323e-06 | D188: ='DF raw data'!C193 -> -5.4755269e-06 | F188: 9.922564735e-06 | G188: 8.284949337e-06 | H188: -5.479118846e-06 | J188: -1.133383812e-05 | K188: -9.343692543e-06 | L188: 1.530621229e-05 | N188: -0.000549829003 | O188: -0.02291417657 | P188: -0.0002172784489 | Q188: -0.005238107715 | R188: 8.503649165e-06
A189: 91.53843 | B189: ='DF raw data'!A194 -> 8.6896725e-06 | C189: ='DF raw data'!B194 -> 9.3420249e-06 | D189: ='DF raw data'!C194 -> -3.0667138e-07 | F189: 8.695372925e-06 | G189: 9.368958175e-06 | H189: -3.068725564e-07 | J189: -9.957430292e-06 | K189: -1.281930411e-06 | L189: 1.193536947e-05 | N189: -0.0005548098092 | O189: -0.02319169799 | P189: -0.0002179196833 | Q189: -0.00534711332 | R189: 8.681375235e-06
A190: 92.03864 | B190: ='DF raw data'!A195 -> 2.0173989e-06 | C190: ='DF raw data'!B195 -> 1.4649892e-05 | D190: ='DF raw data'!C195 -> -5.4974221e-06 | F190: 2.018722314e-06 | G190: 1.469212798e-05 | H190: -5.501028409e-06 | J190: -8.934625972e-06 | K190: -1.269005956e-05 | L190: 1.206363556e-05 | N190: -0.0005592789985 | O190: -0.02347145493 | P190: -0.000224267378 | Q190: -0.005459294105 | R190: 8.862995911e-06
A191: 92.53885 | B191: ='DF raw data'!A196 -> -4.1063277e-06 | C191: ='DF raw data'!B196 -> 1.2521595e-05 | D191: ='DF raw data'!C196 -> -1.0098573e-05 | F191: -4.109021451e-06 | G191: 1.255769505e-05 | H191: -1.010519766e-05 | J191: -7.5194112e-06 | K191: -1.594730629e-05 | L191: 1.034228509e-05 | N191: -0.0005630402832 | O191: -0.02375309331 | P191: -0.0002322443801 | Q191: -0.005575465066 | R191: 9.048549717e-06
A192: 93.03906 | B192: ='DF raw data'!A197 -> -5.7733282e-06 | C192: ='DF raw data'!B197 -> 7.7762588e-06 | D192: ='DF raw data'!C197 -> -4.7032986e-06 | F192: -5.777115503e-06 | G192: 7.798677935e-06 | H192: -4.706383964e-06 | J192: -8.955265003e-06 | K192: -3.321087949e-06 | L192: 6.180458923e-06 | N192: -0.0005675197963 | O192: -0.02403697239 | P192: -0.0002339056215 | Q192: -0.005692466997 | R192: 9.237024123e-06
A193: 93.53927 | B193: ='DF raw data'!A198 -> -1.7596846e-06 | C193: ='DF raw data'!B198 -> 1.1154901e-05 | D193: ='DF raw data'!C198 -> 1.660201e-06 | F193: -1.760838953e-06 | G193: 1.118706084e-05 | H193: 1.661290092e-06 | J193: -9.466299521e-06 | K193: -1.211945523e-06 | L193: 1.496323345e-05 | N193: -0.000572254934 | O193: -0.02432322003 | P193: -0.0002345118487 | Q193: -0.005809772169 | R193: 9.4283402e-06
A194: 94.03948 | B194: ='DF raw data'!A199 -> 1.8130123e-06 | C194: ='DF raw data'!B199 -> 2.1667627e-05 | D194: ='DF raw data'!C199 -> -1.0264537e-06 | F194: 1.814201636e-06 | G194: 2.173009527e-05 | H194: -1.027127054e-06 | J194: -7.841888406e-06 | K194: -1.34798139e-05 | L194: 1.233581999e-05 | N194: -0.000576177525 | O194: -0.02461142979 | P194: -0.0002412545864 | Q194: -0.005930450126 | R194: 9.623514296e-06
A195: 94.53969 | B195: ='DF raw data'!A200 -> 8.7037654e-07 | C195: ='DF raw data'!B200 -> 1.9439925e-05 | D195: ='DF raw data'!C200 -> 1.7134446e-06 | F195: 8.70947507e-07 | G195: 1.949597076e-05 | H195: 1.71456862e-06 | J195: -8.849798162e-06 | K195: -5.29788953e-06 | L195: 1.581501885e-05 | N195: -0.0005806042825 | O195: -0.02490185386 | P195: -0.0002439046438 | Q195: -0.006052453668 | R195: 9.821892985e-06
A196: 95.0399 | B196: ='DF raw data'!A201 -> -2.5819709e-06 | C196: ='DF raw data'!B201 -> 2.2480197e-05 | D196: ='DF raw data'!C201 -> 4.2605357e-06 | F196: -2.583664673e-06 | G196: 2.254500793e-05 | H196: 4.263330611e-06 | J196: -1.457651493e-05 | K196: 8.596997192e-06 | L196: 1.811197667e-05 | N196: -0.000587895601 | O196: -0.02519592512 | P196: -0.0002396043398 | Q196: -0.006172306154 | R196: 1.002349336e-05
A197: 95.54011 | B197: ='DF raw data'!A202 -> -4.3099135e-06 | C197: ='DF raw data'!B202 -> 1.0864295e-05 | D197: ='DF raw data'!C202 -> -1.5426465e-06 | F197: -4.312740803e-06 | G197: 1.089561702e-05 | H197: -1.543658476e-06 | J197: -1.757419712e-05 | K197: -5.909544075e-06 | L197: 1.805469912e-05 | N197: -0.0005966863902 | O197: -0.02549439362 | P197: -0.0002425603528 | Q197: -0.006293637268 | R197: 1.023101557e-05
A198: 96.04032 | B198: ='DF raw data'!A203 -> -1.147659e-06 | C198: ='DF raw data'!B203 -> 7.3164688e-06 | D198: ='DF raw data'!C203 -> -1.8335547e-06 | F198: -1.148411864e-06 | G198: 7.33756235e-06 | H198: -1.834757512e-06 | J198: -1.379463335e-05 | K198: -7.182629258e-06 | L198: 1.604964266e-05 | N198: -0.0006035866037 | O198: -0.02579631367 | P198: -0.0002461531758 | Q198: -0.006416765549 | R198: 1.044355889e-05
A199: 96.54053 | B199: ='DF raw data'!A204 -> 1.1696812e-06 | C199: ='DF raw data'!B204 -> 1.1449508e-05 | D199: ='DF raw data'!C204 -> 8.3552936e-07 | F199: 1.170448511e-06 | G199: =(1-$G$1*($B$2-$G$2))*C199*$M$2/$M$1 -> 1.14825172e-05 | H199: 8.360774673e-07 | J199: =-CELL("contents", INDEX($F$6:$F$1203,1204-CELL("row",F199))) -> -1.290735267e-05 | K199: =CELL("contents", INDEX($G$6:$G$1203,1204-CELL("row",G199))) -> -8.995245651e-06 | L199: =-CELL("contents", INDEX($H$6:$H$1203,1204-CELL("row",H199))) -> 6.439057753e-06 | N199: -0.0006100429906 | O199: -0.02610146328 | P199: -0.0002506526877 | Q199: -0.006542144529 | R199: 1.066113984e-05
A200: =A199+$B$1 -> 97.04074 | B200: ='DF raw data'!A205 -> -2.3804544e-06 | C200: ='DF raw data'!B205 -> 1.0798382e-05 | D200: ='DF raw data'!C205 -> 8.3193595e-07 | F200: -2.382015978e-06 | G200: 1.082951399e-05 | H200: 8.324817e-07 | J200: -1.597336266e-05 | K200: 6.220766558e-06 | L200: 1.189960602e-05 | N200: =J200*$B$1+N199 -> -0.0006180330263 | O200: =N200*$B$1+O199 -> -0.02641060958 | P200: =K200*$B$1+P199 -> -0.000247540998 | Q200: =P200*$B$1+Q199 -> -0.006665967012 | R200: =(N200^2+P200^2)*$B$1+R199 -> 1.088285361e-05
... 1003 more rows

Sheet 12 mm
A1: dz | B1: ='DF raw data'!E7 -> 0.50026 | C1: mm | F1: T_coeff | G1: -0.0008 | H1: /degC | L1: Hallref | M1: ='PI vs gap'!B44 -> 0.50549 | N1: T | P1: IBy total | Q1: =P1203*1000 -> -3.501621574 | R1: muTm
A2: Tref | B2: ='DF raw data'!E8 -> 20.82 | C2: degC | F2: Tcorr | G2: 20 | H2: degC | L2: NMRref | M2: ='PI vs gap'!B45 -> 0.506615 | N2: T | P2: JBy total | Q2: =Q1203 -> -5.414795623 | R2: muTm^2
A3: Encoder | B3: ='DF raw data'!E9 -> 430880 | P3: PI total | Q3: =R1203 -> 3763.750274 | R3: T^2mm^3
J4: SXR-rotation
A5: z [mm] | B5: Bx | C5: By | D5: Bz | F5: Bx_corr | G5: By_corr | H5: Bz_corr | J5: Bx_rot | K5: By_rot | L5: Bz_rot | N5: Ix | O5: Jx | P5: Iy | Q5: Jy | R5: PI
A6: 0 | B6: ='DF raw data'!D11 -> -1.2005074e-05 | C6: ='DF raw data'!E11 -> -9.424778e-06 | D6: ='DF raw data'!F11 -> -7.2054008e-06 | F6: =(1-$G$1*($B$2-$G$2))*B6 -> -1.201294933e-05 | G6: =(1-$G$1*($B$2-$G$2))*C6*$M$2/$M$1 -> -9.451949854e-06 | H6: =(1-$G$1*($B$2-$G$2))*D6 -> -7.210127543e-06 | J6: =-CELL("contents", INDEX($F$6:$F$1203,1204-CELL("row",F6))) -> 4.287178145e-06 | K6: =CELL("contents", INDEX($G$6:$G$1203,1204-CELL("row",G6))) -> 3.542649781e-06 | L6: =-CELL("contents", INDEX($H$6:$H$1203,1204-CELL("row",H6))) -> -4.552712822e-07 | N6: =J6*$B$1 -> 2.144703739e-06 | O6: =N6*$B$1 -> 1.072909492e-06 | P6: =K6*$B$1 -> 1.772245979e-06 | Q6: =P6*$B$1 -> 8.865837736e-07 | R6: =(N6^2+P6)^2*$B$1 -> 1.571252684e-12
A7: =A6+$B$1 -> 0.50026 | B7: ='DF raw data'!D12 -> -1.2008412e-05 | C7: ='DF raw data'!E12 -> -8.4015273e-06 | D7: ='DF raw data'!F12 -> -1.4537328e-06 | F7: =(1-$G$1*($B$2-$G$2))*B7 -> -1.201628952e-05 | G7: =(1-$G$1*($B$2-$G$2))*C7*$M$2/$M$1 -> -8.425749099e-06 | H7: -1.454686449e-06 | J7: =-CELL("contents", INDEX($F$6:$F$1203,1204-CELL("row",F7))) -> 8.365973581e-06 | K7: =CELL("contents", INDEX($G$6:$G$1203,1204-CELL("row",G7))) -> 9.685953453e-06 | L7: =-CELL("contents", INDEX($H$6:$H$1203,1204-CELL("row",H7))) -> -1.82087351e-07 | N7: =J7*$B$1+N6 -> 6.329865682e-06 | O7: =N7*$B$1+O6 -> 4.239488099e-06 | P7: =K7*$B$1+P6 -> 6.617741054e-06 | Q7: =P7*$B$1+Q6 -> 4.197174913e-06 | R7: =(N7^2+P7^2)*$B$1+R6 -> 4.352390483e-11
A8: =A7+$B$1 -> 1.00052 | B8: ='DF raw data'!D13 -> -1.1897875e-05 | C8: ='DF raw data'!E13 -> -1.1572957e-05 | D8: ='DF raw data'!F13 -> -2.1717169e-06 | F8: -1.190568001e-05 | G8: -1.16063221e-05 | H8: -2.173141546e-06 | J8: 4.647995186e-06 | K8: 8.335389338e-06 | L8: 3.632812463e-07 | N8: =J8*$B$1+N7 -> 8.655071754e-06 | O8: =N8*$B$1+O7 -> 8.569274294e-06 | P8: =K8*$B$1+P7 -> 1.078760292e-05 | Q8: =P8*$B$1+Q7 -> 9.593781152e-06 | R8: =(N8^2+P8^2)*$B$1+R7 -> 1.392149603e-10
A9: 1.50078 | B9: ='DF raw data'!D14 -> -1.1753897e-05 | C9: ='DF raw data'!E14 -> -1.5958172e-05 | D9: ='DF raw data'!F14 -> -5.2900414e-06 | F9: -1.176160756e-05 | G9: -1.600417978e-05 | H9: -5.293511667e-06 | J9: -9.291046731e-07 | K9: 1.384081167e-05 | L9: 9.17574154e-07 | N9: 8.19027785e-06 | O9: 1.266654269e-05 | P9: 1.771160737e-05 | Q9: 1.845418985e-05 | R9: 3.29704807e-10
A10: 2.00104 | B10: ='DF raw data'!D15 -> -1.1545571e-05 | C10: ='DF raw data'!E15 -> -2.1321812e-05 | D10: ='DF raw data'!F15 -> -4.2392858e-06 | F10: -1.155314489e-05 | G10: -2.138328328e-05 | H10: -4.242066771e-06 | J10: -4.256141799e-06 | K10: 5.485064509e-06 | L10: 1.172112202e-06 | N10: 6.061100354e-06 | O10: 1.569866876e-05 | P10: 2.045556574e-05 | Q10: 2.868729117e-05 | R10: 5.574067041e-10
A11: 2.5013 | B11: ='DF raw data'!D16 -> -1.2154726e-05 | C11: ='DF raw data'!E16 -> -4.2997062e-06 | D11: ='DF raw data'!F16 -> -2.0499901e-06 | F11: -1.21626995e-05 | G11: -4.312102353e-06 | H11: -2.051334894e-06 | J11: -1.832616909e-06 | K11: 1.156065783e-05 | L11: 1.196952186e-06 | N11: 5.14431542e-06 | O11: 1.827216399e-05 | P11: 2.623890043e-05 | Q11: 4.18135635e-05 | R11: 9.150645279e-10
A12: 3.00156 | B12: ='DF raw data'!D17 -> -1.2277345e-05 | C12: ='DF raw data'!E17 -> 2.1666987e-07 | D12: ='DF raw data'!F17 -> 5.4920501e-06 | F12: -1.228539894e-05 | G12: 2.172945343e-07 | H12: 5.495652885e-06 | J12: -1.61961367e-06 | K12: 1.43765568e-06 | L12: 1.123961135e-06 | N12: 4.334087485e-06 | O12: 2.044033459e-05 | P12: 2.695810206e-05 | Q12: 5.529962364e-05 | R12: 1.288020154e-09
A13: 3.50182 | B13: ='DF raw data'!D18 -> -1.1843407e-05 | C13: ='DF raw data'!E18 -> -1.1625926e-05 | D13: ='DF raw data'!F18 -> 5.7964025e-06 | F13: -1.185117627e-05 | G13: -1.165944382e-05 | H13: 5.80020494e-06 | J13: -6.689953532e-06 | K13: 1.134348151e-05 | L13: 1.50057143e-06 | N13: 9.873713308e-07 | O13: 2.093427697e-05 | P13: 3.263279212e-05 | Q13: 7.162450422e-05 | R13: 1.821234294e-09
A14: 4.00208 | B14: ='DF raw data'!D19 -> -1.2281817e-05 | C14: ='DF raw data'!E19 -> 1.4435049e-07 | D14: ='DF raw data'!F19 -> 4.545851e-06 | F14: -1.228987387e-05 | G14: 1.447666558e-07 | H14: 4.548833078e-06 | J14: -1.03125516e-05 | K14: 1.524901488e-06 | L14: 1.739057274e-06 | N14: -4.171585732e-06 | O14: 1.88473995e-05 | P14: 3.339563934e-05 | Q14: 8.833100676e-05 | R14: 2.387864215e-09
A15: 4.50234 | B15: ='DF raw data'!D20 -> -1.1999e-05 | C15: ='DF raw data'!E20 -> -8.2260676e-06 | D15: ='DF raw data'!F20 -> 4.7207678e-07 | F15: -1.200687134e-05 | G15: -8.249783544e-06 | H15: 4.723864624e-07 | J15: -4.696643278e-06 | K15: -3.65040545e-06 | L15: 1.428246515e-06 | N15: -6.521128498e-06 | O15: 1.558513975e-05 | P15: 3.156948751e-05 | Q15: 0.0001041239586 | R15: 2.907713225e-09
A16: 5.0026 | B16: ='DF raw data'!D21 -> -1.2432738e-05 | C16: ='DF raw data'!E21 -> 2.2127379e-06 | D16: ='DF raw data'!F21 -> -8.0068457e-06 | F16: -1.244089388e-05 | G16: 2.219117275e-06 | H16: -8.012098191e-06 | J16: 2.029366892e-06 | K16: -8.359413e-07 | L16: 1.18010284e-06 | N16: -5.505917417e-06 | O16: 1.283074951e-05 | P16: 3.115129951e-05 | Q16: 0.0001197077077 | R16: 3.408332706e-09
A17: 5.50286 | B17: ='DF raw data'!D22 -> -1.2161802e-05 | C17: ='DF raw data'!E22 -> -4.4235285e-06 | D17: ='DF raw data'!F22 -> -3.6210658e-06 | F17: -1.216978014e-05 | G17: -4.436281636e-06 | H17: -3.623441219e-06 | J17: 1.082973965e-06 | K17: 1.326326337e-06 | L17: 1.109175742e-06 | N17: -4.964148861e-06 | O17: 1.03473844e-05 | P17: 3.181480752e-05 | Q17: 0.0001356233833 | R17: 3.927014656e-09
A18: 6.00312 | B18: ='DF raw data'!D23 -> -1.2609357e-05 | C18: ='DF raw data'!E23 -> 9.0256644e-06 | D18: ='DF raw data'!F23 -> 4.0157483e-06 | F18: -1.261762874e-05 | G18: 9.051685601e-06 | H18: 4.018382631e-06 | J18: -4.903034682e-06 | K18: -1.295193138e-05 | L18: 3.837273501e-07 | N18: -7.416940991e-06 | O18: 6.636985496e-06 | P18: 2.533547433e-05 | Q18: 0.0001482977077 | R18: 4.275644486e-09
A19: 6.50338 | B19: ='DF raw data'!D24 -> -1.2447957e-05 | C19: ='DF raw data'!E24 -> 4.7714702e-06 | D19: ='DF raw data'!F24 -> 5.4466609e-06 | F19: -1.245612286e-05 | G19: 4.78522646e-06 | H19: 5.45023391e-06 | J19: -6.114996908e-06 | K19: 3.566871913e-06 | L19: -2.161848343e-07 | N19: -1.047602934e-05 | O19: 1.396247056e-06 | P19: 2.711983768e-05 | Q19: 0.0001618646777 | R19: 4.69848064e-09
A20: 7.00364 | B20: ='DF raw data'!D25 -> -1.2406373e-05 | C20: ='DF raw data'!E25 -> 3.4749601e-06 | D20: ='DF raw data'!F25 -> 4.768408e-06 | F20: -1.241451158e-05 | G20: 3.484978491e-06 | H20: 4.771536076e-06 | J20: -5.103547833e-06 | K20: 3.399997694e-07 | L20: 3.362424304e-07 | N20: -1.302913018e-05 | O20: -5.121705609e-06 | P20: 2.728992596e-05 | Q20: 0.000175516736 | R20: 5.155967556e-09
A21: 7.5039 | B21: ='DF raw data'!D26 -> -1.2243637e-05 | C21: ='DF raw data'!E26 -> -2.8565601e-06 | D21: ='DF raw data'!F26 -> -6.7336659e-06 | F21: -1.225166883e-05 | G21: -2.864795629e-06 | H21: -6.738083185e-06 | J21: -1.024018015e-06 | K21: 1.190214552e-05 | L21: 1.57083229e-06 | N21: -1.354140544e-05 | O21: -1.189592909e-05 | P21: 3.324409328e-05 | Q21: 0.0001921474261 | R21: 5.800572276e-09
A22: 8.00416 | B22: ='DF raw data'!D27 -> -9.326086e-06 | C22: ='DF raw data'!E27 -> 6.8646392e-07 | D22: ='DF raw data'!F27 -> -1.6232444e-06 | F22: -9.332203912e-06 | G22: 6.884430115e-07 | H22: -1.624309248e-06 | J22: 2.977430014e-06 | K22: -1.243649062e-05 | L22: 1.535801125e-06 | N22: -1.20519163e-05 | O22: -1.792502074e-05 | P22: 2.702261448e-05 | Q22: 0.0002056657593 | R22: 6.238535088e-09
A23: 8.50442 | B23: ='DF raw data'!D28 -> -4.3842251e-06 | C23: ='DF raw data'!E28 -> 7.7172723e-07 | D23: ='DF raw data'!F28 -> 1.9985609e-06 | F23: =(1-$G$1*($B$2-$G$2))*B23 -> -4.387101152e-06 | G23: 7.739521376e-07 | H23: 1.999871956e-06 | J23: 5.923612442e-06 | K23: -5.981561005e-07 | L23: -9.121981397e-07 | N23: -9.088569937e-06 | O23: -2.247166874e-05 | P23: 2.672338091e-05 | Q23: 0.0002190343978 | R23: 6.637112836e-09
A24: 9.00468 | B24: ='DF raw data'!D29 -> -6.1779824e-06 | C24: ='DF raw data'!E29 -> 1.3894924e-06 | D24: ='DF raw data'!F29 -> 3.2740027e-06 | F24: -6.182035156e-06 | G24: 1.393498339e-06 | H24: 3.276150446e-06 | J24: 2.484963667e-06 | K24: -5.714719105e-06 | L24: -1.828448876e-06 | N24: -7.845442012e-06 | O24: -2.639642956e-05 | P24: 2.386453553e-05 | Q24: 0.0002309728703 | R24: 6.952810422e-09
A25: 9.50494 | B25: ='DF raw data'!D30 -> -7.0593419e-06 | C25: ='DF raw data'!E30 -> -7.5030266e-06 | D25: ='DF raw data'!F30 -> 8.1083721e-07 | F25: -7.063972828e-06 | G25: -7.524658e-06 | H25: 8.113691192e-07 | J25: -4.48470844e-06 | K25: 9.741618074e-06 | L25: 3.241701662e-06 | N25: -1.008896226e-05 | O25: -3.144353382e-05 | P25: 2.873787739e-05 | Q25: 0.0002453492809 | R25: 7.41687799e-09
A26: 10.0052 | B26: ='DF raw data'!D31 -> -5.7049292e-06 | C26: ='DF raw data'!E31 -> -1.4572011e-07 | D26: ='DF raw data'!F31 -> -4.6448004e-06 | F26: -5.708671634e-06 | G26: -1.461402245e-07 | H26: -4.647847389e-06 | J26: -1.262039055e-05 | K26: -1.051376028e-06 | L26: 6.532362521e-06 | N26: -1.640243883e-05 | O26: -3.964901787e-05 | P26: 2.821191602e-05 | Q26: 0.000259462574 | R26: 7.94963098e-09
A27: 10.50546 | B27: ='DF raw data'!D32 -> -8.6105319e-06 | C27: ='DF raw data'!E32 -> 1.4574061e-06 | D27: ='DF raw data'!F32 -> -2.7957285e-06 | F27: -8.616180409e-06 | G27: 1.461607836e-06 | H27: -2.797562498e-06 | J27: -1.242194645e-05 | K27: -5.081009859e-07 | L27: 7.018658922e-06 | N27: -2.261664177e-05 | O27: -5.096321908e-05 | P27: 2.795773342e-05 | Q27: 0.0002734487097 | R27: 8.596540869e-09
A28: 11.00572 | B28: ='DF raw data'!D33 -> -1.0699322e-05 | C28: ='DF raw data'!E33 -> 6.143905e-06 | D28: ='DF raw data'!F33 -> 3.1539394e-06 | F28: -1.070634076e-05 | G28: 6.161618021e-06 | H28: 3.156008384e-06 | J28: -6.327599684e-06 | K28: 5.202585557e-06 | L28: 7.676378303e-06 | N28: -2.578208678e-05 | O28: -6.386096581e-05 | P28: 3.056037887e-05 | Q28: 0.0002887368448 | R28: 9.396282897e-09
A29: 11.50598 | B29: ='DF raw data'!D34 -> -5.787098e-06 | C29: ='DF raw data'!E34 -> -4.9984674e-06 | D29: ='DF raw data'!F34 -> -6.1849933e-06 | F29: -5.790894336e-06 | G29: -5.012878098e-06 | H29: -6.189050656e-06 | J29: -4.966087618e-06 | K29: 4.971225357e-06 | L29: 8.013962113e-06 | N29: -2.826642178e-05 | O29: -7.800152597e-05 | P29: 3.304728407e-05 | Q29: 0.0003052690792 | R29: 1.034233138e-08
A30: 12.00624 | B30: ='DF raw data'!D35 -> -2.0045406e-06 | C30: ='DF raw data'!E35 -> -9.3236422e-06 | D30: ='DF raw data'!F35 -> -8.0927002e-06 | F30: -2.005855579e-06 | G30: -9.350522478e-06 | H30: -8.098009011e-06 | J30: -5.728331022e-06 | K30: -4.699088035e-06 | L30: 3.867853549e-06 | N30: -3.113207665e-05 | O30: -9.357565863e-05 | P30: 3.069651829e-05 | Q30: 0.0003206253194 | R30: 1.129856958e-08
A31: 12.5065 | B31: ='DF raw data'!D36 -> 8.1662409e-07 | C31: ='DF raw data'!E36 -> -5.8950982e-06 | D31: ='DF raw data'!F36 -> -5.0479848e-06 | F31: 8.171597954e-07 | G31: -5.912093905e-06 | H31: -5.051296278e-06 | J31: -8.349431737e-06 | K31: -3.560350365e-06 | L31: 2.726568056e-06 | N31: -3.530896337e-05 | O31: -0.0001112393207 | P31: 2.891541741e-05 | Q31: 0.0003350905461 | R31: 1.234052324e-08
A32: 13.00676 | B32: ='DF raw data'!D37 -> 5.4107873e-06 | C32: ='DF raw data'!E37 -> -2.138856e-06 | D32: ='DF raw data'!F37 -> -1.0465752e-05 | F32: 5.414336776e-06 | G32: -2.145022372e-06 | H32: -1.047261753e-05 | J32: -1.27316675e-05 | K32: -1.133883114e-05 | L32: -1.465824851e-06 | N32: -4.167810736e-05 | O32: -0.0001320892106 | P32: 2.324305375e-05 | Q32: 0.0003467181162 | R32: 1.347976743e-08
A33: 13.50702 | B33: ='DF raw data'!D38 -> 8.156926e-06 | C33: ='DF raw data'!E38 -> -2.9179364e-06 | D33: ='DF raw data'!F38 -> -7.5229964e-06 | F33: 8.162276943e-06 | G33: -2.926348879e-06 | H33: -7.527931486e-06 | J33: -1.533967523e-05 | K33: -3.252580207e-06 | L33: -2.665116871e-06 | N33: -4.935193329e-05 | O33: -0.0001567780088 | P33: 2.161591797e-05 | Q33: 0.0003575316953 | R33: 1.493195279e-08
A34: 14.00728 | B34: ='DF raw data'!D39 -> 8.1506505e-06 | C34: ='DF raw data'!E39 -> -8.7183156e-07 | D34: ='DF raw data'!F39 -> 1.074657e-06 | F34: 8.155997327e-06 | G34: -8.743450707e-07 | H34: 1.075361975e-06 | J34: -1.438693764e-05 | K34: -2.032084004e-06 | L34: -7.362187429e-06 | N34: -5.654914271e-05 | O34: -0.0001850672829 | P34: 2.059934763e-05 | Q34: 0.000367836725 | R34: 1.674396388e-08
A35: 14.50754 | B35: ='DF raw data'!D40 -> 6.0808175e-06 | C35: ='DF raw data'!E40 -> -3.2254875e-06 | D35: ='DF raw data'!F40 -> -4.5910238e-06 | F35: 6.084806516e-06 | G35: -3.234786656e-06 | H35: -4.594035512e-06 | J35: -1.226571904e-05 | K35: -2.370227577e-06 | L35: -7.191231355e-06 | N35: -6.268519132e-05 | O35: -0.0002164261767 | P35: 1.941361758e-05 | Q35: 0.0003775485813 | R35: 1.88982444e-08
A36: 15.0078 | B36: ='DF raw data'!D41 -> -1.4407086e-06 | C36: ='DF raw data'!E41 -> -1.4308907e-06 | D36: ='DF raw data'!F41 -> -5.4303382e-06 | F36: -1.441653705e-06 | G36: -1.435015991e-06 | H36: -5.433900502e-06 | J36: -9.615563574e-06 | K36: -6.598144319e-06 | L36: -3.862676955e-06 | N36: -6.749547315e-05 | O36: -0.0002501914621 | P36: 1.61128299e-05 | Q36: 0.0003856091856 | R36: 2.130712746e-08
A37: 15.50806 | B37: ='DF raw data'!D42 -> -7.9716729e-06 | C37: ='DF raw data'!E42 -> -3.7654988e-07 | D37: ='DF raw data'!F42 -> 2.1328669e-06 | F37: -7.976902317e-06 | G37: -3.776354821e-07 | H37: 2.134266061e-06 | J37: -6.493447509e-06 | K37: 6.26679237e-06 | L37: -2.465789598e-06 | N37: -7.07438852e-05 | O37: -0.0002855817981 | P37: 1.924785546e-05 | Q37: 0.0003952381177 | R37: 2.399611362e-08
A38: 16.00832 | B38: ='DF raw data'!D43 -> -5.7981783e-06 | C38: ='DF raw data'!E43 -> -3.626702e-06 | D38: ='DF raw data'!F43 -> 5.9433532e-06 | F38: -5.801981905e-06 | G38: -3.637157866e-06 | H38: 5.94725204e-06 | J38: -5.215226045e-06 | K38: -4.970592338e-06 | L38: -5.841504415e-08 | N38: -7.335285418e-05 | O38: -0.000322277297 | P38: 1.676126693e-05 | Q38: 0.0004036231091 | R38: 2.682837628e-08
A39: 16.50858 | B39: ='DF raw data'!D44 -> 8.0914805e-07 | C39: ='DF raw data'!E44 -> -1.5010174e-05 | D39: ='DF raw data'!F44 -> 7.9318561e-06 | F39: 8.096788511e-07 | G39: -1.505344868e-05 | H39: 7.937059398e-06 | J39: -5.511587231e-06 | K39: -6.228156903e-06 | L39: -9.836566257e-07 | N39: -7.611008081e-05 | O39: -0.000360352126 | P39: 1.364556916e-05 | Q39: 0.0004104494416 | R39: 2.981940378e-08
A40: 17.00884 | B40: ='DF raw data'!D45 -> 5.7040174e-06 | C40: ='DF raw data'!E45 -> -7.2796693e-06 | D40: ='DF raw data'!F45 -> 3.4312034e-06 | F40: 5.707759235e-06 | G40: -7.300656756e-06 | H40: 3.433454269e-06 | J40: -8.00791815e-06 | K40: 4.061841219e-06 | L40: 1.292919499e-06 | N40: -8.011612195e-05 | O40: -0.0004004310172 | P40: 1.567754585e-05 | Q40: 0.0004182922907 | R40: 3.315332574e-08
A41: 17.5091 | B41: ='DF raw data'!D46 -> 4.7443605e-06 | C41: ='DF raw data'!E46 -> -5.0375611e-06 | D41: ='DF raw data'!F46 -> -3.6830178e-07 | F41: 4.7474728e-06 | G41: -5.052084506e-06 | H41: -3.68543386e-07 | J41: -6.623560507e-06 | K41: 1.195058176e-06 | L41: 2.414625156e-06 | N41: -8.342962433e-05 | O41: -0.000442167521 | P41: 1.627538565e-05 | Q41: 0.0004264342151 | R41: 3.676789954e-08
A42: 18.00936 | B42: ='DF raw data'!D47 -> -2.5183436e-07 | C42: ='DF raw data'!E47 -> 4.9313081e-07 | D42: ='DF raw data'!F47 -> 1.5327486e-06 | F42: -2.519995633e-07 | G42: 4.945525176e-07 | H42: 1.533754083e-06 | J42: -4.352190966e-06 | K42: -3.357893254e-06 | L42: -1.662820495e-06 | N42: -8.560685138e-05 | O42: -0.0004849932045 | P42: 1.459556597e-05 | Q42: 0.0004337357929 | R42: 4.054064212e-08
A43: 18.50962 | B43: ='DF raw data'!D48 -> -1.3804337e-06 | C43: ='DF raw data'!E48 -> -4.8974625e-06 | D43: ='DF raw data'!F48 -> 3.0236934e-06 | F43: -1.381339265e-06 | G43: -4.911581998e-06 | H43: 3.025676943e-06 | J43: -4.138586133e-06 | K43: -4.761845245e-06 | L43: -5.214477455e-06 | N43: -8.767722048e-05 | O43: -0.0005288546108 | P43: 1.221340527e-05 | Q43: 0.000439845671 | R43: 4.446091073e-08
A44: 19.00988 | B44: ='DF raw data'!D49 -> 1.0862919e-06 | C44: ='DF raw data'!E49 -> -1.2503476e-05 | D44: ='DF raw data'!F49 -> -1.4253802e-06 | F44: 1.087004507e-06 | G44: -1.253952381e-05 | H44: -1.426315249e-06 | J44: -3.282698338e-06 | K44: 1.737277513e-05 | L44: 4.126785497e-06 | N44: -8.931942315e-05 | O44: -0.0005735375454 | P44: 2.090430976e-05 | Q44: 0.000450303261 | R44: 4.867057338e-08
A45: 19.51014 | B45: ='DF raw data'!D50 -> 1.9185907e-06 | C45: ='DF raw data'!E50 -> -1.1613117e-05 | D45: ='DF raw data'!F50 -> -5.0521776e-06 | F45: 1.919849295e-06 | G45: -1.164659789e-05 | H45: -5.055491829e-06 | J45: -3.045582192e-06 | K45: 1.273994096e-05 | L45: 2.829463011e-06 | N45: -9.084300609e-05 | O45: -0.0006189826677 | P45: 2.727759262e-05 | Q45: 0.0004639491495 | R45: 5.317117188e-08
A46: 20.0104 | B46: ='DF raw data'!D51 -> 2.9335158e-06 | C46: ='DF raw data'!E51 -> 5.6289572e-08 | D46: ='DF raw data'!F51 -> 6.3160672e-07 | F46: 2.935440186e-06 | G46: 5.645185615e-08 | H46: 6.32021054e-07 | J46: -4.594916889e-06 | K46: 2.076608099e-06 | L46: 5.057089976e-06 | N46: -9.314165922e-05 | O46: -0.0006655777141 | P46: 2.831643659e-05 | Q46: 0.0004781147301 | R46: 5.791223058e-08
A47: 20.51066 | B47: ='DF raw data'!D52 -> 3.3350805e-06 | C47: ='DF raw data'!E52 -> -9.9656945e-06 | D47: ='DF raw data'!F52 -> 1.9884035e-05 | F47: 3.337268313e-06 | G47: -9.994425829e-06 | H47: 1.989707893e-05 | J47: -6.39118687e-06 | K47: 1.377163079e-05 | L47: 1.278542374e-05 | N47: -9.633891436e-05 | O47: -0.0007137722194 | P47: 3.520583261e-05 | Q47: 0.0004957267999 | R47: 6.317528448e-08
A48: 21.01092 | B48: ='DF raw data'!D53 -> -2.5410061e-06 | C48: ='DF raw data'!E53 -> -9.2740056e-06 | D48: ='DF raw data'!F53 -> 1.8715346e-05 | F48: -2.542673e-06 | G48: -9.300742774e-06 | H48: 1.872762327e-05 | J48: -7.897442226e-06 | K48: 1.194750692e-05 | L48: 8.934808892e-06 | N48: -0.0001002896888 | O48: -0.0007639431391 | P48: 4.118269242e-05 | Q48: 0.0005163288536 | R48: 6.905535845e-08
A49: 21.51118 | B49: ='DF raw data'!D54 -> -7.8391759e-06 | C49: ='DF raw data'!E54 -> -4.6077921e-06 | D49: ='DF raw data'!F54 -> 1.1714456e-05 | F49: -7.844318399e-06 | G49: -4.621076472e-06 | H49: 1.172214068e-05 | J49: -8.084394986e-06 | K49: 8.693871379e-06 | L49: 2.620546051e-06 | N49: -0.0001043339882 | O49: -0.0008161372601 | P49: 4.553188852e-05 | Q49: 0.0005391066362 | R49: 7.553809471e-08
A50: 22.01144 | B50: ='DF raw data'!D55 -> -4.9625419e-06 | C50: ='DF raw data'!E55 -> -9.5275182e-06 | D50: ='DF raw data'!F55 -> 3.880843e-06 | F50: -4.965797327e-06 | G50: -9.554986257e-06 | H50: 3.883388833e-06 | J50: -7.911868984e-06 | K50: 2.740049016e-06 | L50: 4.234856044e-07 | N50: -0.0001082919798 | O50: -0.0008703114059 | P50: 4.690262544e-05 | Q50: 0.0005625701436 | R50: 8.250522031e-08
A51: 22.5117 | B51: ='DF raw data'!D56 -> -1.1112332e-06 | C51: ='DF raw data'!E56 -> 3.3206597e-08 | D51: ='DF raw data'!F56 -> -1.64401e-06 | F51: -1.111962169e-06 | G51: 3.330233239e-08 | H51: -1.645088471e-06 | J51: -3.776032453e-06 | K51: -1.366370153e-06 | L51: -2.431558357e-06 | N51: -0.0001101809778 | O51: -0.0009254305419 | P51: 4.621908511e-05 | Q51: 0.0005856917031 | R51: 8.964695794e-08
A52: 23.01196 | B52: ='DF raw data'!D57 -> 1.5681559e-06 | C52: ='DF raw data'!E57 -> -7.3202327e-06 | D52: ='DF raw data'!F57 -> -1.897448e-06 | F52: 1.56918461e-06 | G52: -7.341337101e-06 | H52: -1.898692726e-06 | J52: 8.111255495e-07 | K52: 1.294239797e-05 | L52: -6.031965175e-06 | N52: -0.0001097752042 | O52: -0.0009803466855 | P52: 5.269364911e-05 | Q52: 0.000612052228 | R52: 9.706442106e-08
A53: 23.51222 | B53: ='DF raw data'!D58 -> 3.928149e-06 | C53: ='DF raw data'!E58 -> 5.2440691e-06 | D53: ='DF raw data'!F58 -> 1.6615312e-06 | F53: 3.930725866e-06 | G53: 5.259187873e-06 | H53: 1.662621164e-06 | J53: -2.651569089e-06 | K53: 2.011859464e-05 | L53: -2.052683678e-06 | N53: -0.0001111016781 | O53: -0.001035926411 | P53: 6.275817727e-05 | Q53: 0.0006434476338 | R53: 1.052097403e-07
A54: 24.01248 | B54: ='DF raw data'!D59 -> 7.3113438e-06 | C54: ='DF raw data'!E59 -> -8.9264444e-07 | D54: ='DF raw data'!F59 -> 9.6036938e-06 | F54: 7.316140042e-06 | G54: -8.952179547e-07 | H54: 9.609993823e-06 | J54: -1.057758635e-05 | K54: -6.12324892e-06 | L54: 6.150025872e-06 | N54: -0.0001163932214 | O54: -0.001094153284 | P54: 5.969496076e-05 | Q54: 0.0006733106348 | R54: 1.137696243e-07
A55: 24.51274 | B55: ='DF raw data'!D60 -> 7.0488181e-06 | C55: ='DF raw data'!E60 -> 5.2541787e-07 | D55: ='DF raw data'!F60 -> 4.682287e-06 | F55: 7.053442125e-06 | G55: 5.26932662e-07 | H55: 4.68535858e-06 | J55: -1.302909748e-05 | K55: -7.708785217e-06 | L55: 1.014575625e-05 | N55: -0.0001229111578 | O55: -0.00115564082 | P55: 5.583856387e-05 | Q55: 0.0007012444348 | R55: 1.228869118e-07
A56: 25.013 | B56: ='DF raw data'!D61 -> 2.4257522e-06 | C56: ='DF raw data'!E61 -> -5.9251188e-06 | D56: ='DF raw data'!F61 -> 2.7076276e-06 | F56: 2.427343493e-06 | G56: -5.942201055e-06 | H56: 2.709403804e-06 | J56: -8.217581399e-06 | K56: 1.00382804e-05 | L56: 8.171999417e-06 | N56: -0.000127022085 | O56: -0.001219184888 | P56: 6.086031402e-05 | Q56: 0.0007316904155 | R56: 1.328113637e-07
A57: 25.51326 | B57: ='DF raw data'!D62 -> -3.2469482e-06 | C57: ='DF raw data'!E62 -> -6.1708897e-06 | D57: ='DF raw data'!F62 -> 2.2019503e-06 | F57: -3.249078198e-06 | G57: -6.188680519e-06 | H57: 2.203394779e-06 | J57: -5.611443394e-06 | K57: 3.472799881e-06 | L57: 6.36054098e-06 | N57: -0.0001298292657 | O57: -0.001284133276 | P57: 6.259761689e-05 | Q57: 0.0007630054993 | R57: 1.432038149e-07
A58: 26.01352 | B58: ='DF raw data'!D63 -> -5.2450923e-06 | C58: ='DF raw data'!E63 -> -5.1519064e-06 | D58: ='DF raw data'!F63 -> -4.2979818e-07 | F58: -5.248533081e-06 | G58: -5.166759466e-06 | H58: -4.300801276e-07 | J58: -7.551920112e-06 | K58: 5.151871868e-06 | L58: 1.470669527e-06 | N58: -0.0001336071893 | O58: -0.001350971609 | P58: 6.517489231e-05 | Q58: 0.0007956098909 | R58: 1.542588844e-07
A59: 26.51378 | B59: ='DF raw data'!D64 -> -3.1680499e-06 | C59: ='DF raw data'!E64 -> 3.1087029e-06 | D59: ='DF raw data'!F64 -> 5.6756735e-06 | F59: -3.170128141e-06 | G59: 3.117665363e-06 | H59: 5.679396742e-06 | J59: -9.638607081e-06 | K59: -8.620577278e-06 | L59: 9.233300674e-06 | N59: -0.0001384289988 | O59: -0.0014202221 | P59: 6.086236232e-05 | Q59: 0.0008260568963 | R59: 1.656982372e-07
A60: 27.01404 | B60: ='DF raw data'!D65 -> -1.9944616e-06 | C60: ='DF raw data'!E65 -> 2.617292e-06 | D60: ='DF raw data'!F65 -> 2.6461985e-06 | F60: -1.995769967e-06 | G60: 2.624837714e-06 | H60: 2.647934406e-06 | J60: -8.896067194e-06 | K60: -3.102978442e-06 | L60: 1.749554655e-05 | N60: -0.0001428793454 | O60: -0.001491698921 | P60: 5.931006633e-05 | Q60: 0.0008557273501 | R60: 1.776705552e-07
A61: 27.5143 | B61: ='DF raw data'!D66 -> -3.3106937e-06 | C61: ='DF raw data'!E66 -> 1.1884874e-05 | D61: ='DF raw data'!F66 -> -1.3649479e-06 | F61: -3.312865515e-06 | G61: 1.191913837e-05 | H61: -1.365843306e-06 | J61: -6.852461268e-06 | K61: 2.6305725e-07 | L61: 1.129097002e-05 | N61: -0.0001463073577 | O61: -0.00156489064 | P61: 5.944166335e-05 | Q61: 0.0008854636366 | R61: 1.901466165e-07
A62: 28.01456 | B62: ='DF raw data'!D67 -> -1.4622686e-06 | C62: ='DF raw data'!E67 -> 2.5399013e-06 | D62: ='DF raw data'!F67 -> -8.866246e-07 | F62: -1.463227848e-06 | G62: 2.547223895e-06 | H62: -8.872062257e-07 | J62: -5.987689749e-06 | K62: 6.400202288e-06 | L62: 1.18048379e-05 | N62: -0.0001493027594 | O62: -0.001639580838 | P62: 6.264342854e-05 | Q62: 0.0009168016382 | R62: 2.032611891e-07
A63: 28.51482 | B63: ='DF raw data'!D68 -> 5.4555466e-07 | C63: ='DF raw data'!E68 -> 1.960297e-05 | D63: ='DF raw data'!F68 -> -5.2683396e-07 | F63: 5.459125439e-07 | G63: 1.965948582e-05 | H63: -5.271795631e-07 | J63: -6.882451428e-06 | K63: -1.753487111e-06 | L63: 1.271223176e-05 | N63: -0.0001527457745 | O63: -0.00171599344 | P63: 6.176622908e-05 | Q63: 0.0009477008119 | R63: 2.168414165e-07
A64: 29.01508 | B64: ='DF raw data'!D69 -> -3.1444877e-06 | C64: ='DF raw data'!E69 -> 2.7986162e-06 | D64: ='DF raw data'!F69 -> -2.0090818e-08 | F64: -3.146550484e-06 | G64: 2.806684676e-06 | H64: -2.010399758e-08 | J64: -8.610926465e-06 | K64: 1.952965158e-06 | L64: 7.864450497e-06 | N64: -0.0001570534766 | O64: -0.001794561012 | P64: 6.274321943e-05 | Q64: 0.0009790887349 | R64: 2.311501062e-07
A65: 29.51534 | B65: ='DF raw data'!D70 -> -9.0463391e-06 | C65: ='DF raw data'!E70 -> -6.7794508e-06 | D65: ='DF raw data'!F70 -> 2.2791528e-06 | F65: -9.052273498e-06 | G65: -6.798996115e-06 | H65: 2.280647924e-06 | J65: -9.517712426e-06 | K65: -5.76570277e-06 | L65: -1.723291538e-06 | N65: -0.0001618148074 | O65: -0.001875510487 | P65: 5.985886896e-05 | Q65: 0.001009033733 | R65: 2.460414037e-07
A66: 30.0156 | B66: ='DF raw data'!D71 -> -9.674518e-06 | C66: ='DF raw data'!E71 -> 8.8596798e-06 | D66: ='DF raw data'!F71 -> -7.1795785e-06 | F66: -9.680864484e-06 | G66: 8.885222463e-06 | H66: -7.184288303e-06 | J66: -7.385671925e-06 | K66: -7.734503551e-07 | L66: -5.257432915e-06 | N66: -0.0001655095636 | O66: -0.001958308302 | P66: 5.947194269e-05 | Q66: 0.001038785167 | R66: 2.615146094e-07
A67: 30.51586 | B67: ='DF raw data'!D72 -> -2.4440858e-06 | C67: ='DF raw data'!E72 -> 1.3003661e-05 | D67: ='DF raw data'!F72 -> -4.8308175e-06 | F67: -2.44568912e-06 | G67: 1.304115086e-05 | H67: -4.833986516e-06 | J67: -8.583474468e-06 | K67: 1.957784813e-06 | L67: 3.186293438e-06 | N67: -0.0001698035326 | O67: -0.002043254217 | P67: 6.045134412e-05 | Q67: 0.001069026556 | R67: 2.777668585e-07
A68: 31.01612 | B68: ='DF raw data'!D73 -> 5.5539645e-06 | C68: ='DF raw data'!E73 -> 7.4820446e-06 | D68: ='DF raw data'!F73 -> 1.3125881e-06 | F68: 5.557607901e-06 | G68: 7.503615509e-06 | H68: 1.313449158e-06 | J68: -1.211884075e-05 | K68: 4.916498332e-06 | L68: 1.107725892e-05 | N68: -0.0001758661038 | O68: -0.002131232994 | P68: 6.291087157e-05 | Q68: 0.001100498349 | R68: 2.952192612e-07
A69: 31.51638 | B69: ='DF raw data'!D74 -> 6.7462429e-06 | C69: ='DF raw data'!E74 -> -5.4119749e-07 | D69: ='DF raw data'!F74 -> 6.2732624e-06 | F69: 6.750668435e-06 | G69: -5.42757775e-07 | H69: 6.27737766e-06 | J69: -1.331771169e-05 | K69: -6.041085422e-06 | L69: 4.037012244e-06 | N69: -0.0001825284223 | O69: -0.002222544662 | P69: 5.988875818e-05 | Q69: 0.001130458299 | R69: 3.136805002e-07
A70: 32.01664 | B70: ='DF raw data'!D75 -> 3.1345651e-06 | C70: ='DF raw data'!E75 -> 1.8628916e-06 | D70: ='DF raw data'!F75 -> 8.2581701e-06 | F70: 3.136621375e-06 | G70: 1.86826236e-06 | H70: 8.26358746e-06 | J70: -1.242542173e-05 | K70: -1.112192258e-05 | L70: 8.525899423e-06 | N70: -0.0001887443638 | O70: -0.002316965918 | P70: 5.432490519e-05 | Q70: 0.001157634876 | R70: 3.329783449e-07
A71: 32.5169 | B71: ='DF raw data'!D76 -> -1.745353e-06 | C71: ='DF raw data'!E76 -> -1.9635308e-06 | D71: ='DF raw data'!F76 -> 1.2839699e-06 | F71: -1.746497952e-06 | G71: =(1-$G$1*($B$2-$G$2))*C71*$M$2/$M$1 -> -1.969191705e-06 | H71: 1.284812184e-06 | J71: =-CELL("contents", INDEX($F$6:$F$1203,1204-CELL("row",F71))) -> -8.978623416e-06 | K71: =CELL("contents", INDEX($G$6:$G$1203,1204-CELL("row",G71))) -> 2.274785506e-06 | L71: =-CELL("contents", INDEX($H$6:$H$1203,1204-CELL("row",H71))) -> 2.824666867e-06 | N71: -0.0001932360099 | O71: -0.002413634164 | P71: 5.546288939e-05 | Q71: 0.001185380741 | R71: 3.53196997e-07
A72: =A71+$B$1 -> 33.01716 | B72: ='DF raw data'!D77 -> -4.3246846e-06 | C72: ='DF raw data'!E77 -> -6.8257514e-06 | D72: ='DF raw data'!F77 -> 2.4616438e-06 | F72: -4.327521593e-06 | G72: -6.8454302e-06 | H72: 2.463258638e-06 | J72: -4.730373991e-06 | K72: 4.830857838e-06 | L72: -6.49402889e-07 | N72: =J72*$B$1+N71 -> -0.0001956024268 | O72: =N72*$B$1+O71 -> -0.002511486234 | P72: =K72*$B$1+P71 -> 5.787957433e-05 | Q72: =P72*$B$1+Q71 -> 0.001214335577 | R72: =(N72^2+P72^2)*$B$1+R71 -> 3.740129929e-07
A73: 33.51742 | B73: ='DF raw data'!D78 -> -4.2473221e-06 | C73: ='DF raw data'!E78 -> 5.4052498e-06 | D73: ='DF raw data'!F78 -> 6.0770608e-06 | F73: -4.250108343e-06 | G73: 5.420833261e-06 | H73: 6.081047352e-06 | J73: 7.279303693e-08 | K73: -4.329498262e-06 | L73: 3.70735353e-06 | N73: -0.0001955660114 | O73: -0.002609320087 | P73: 5.571369953e-05 | Q73: 0.001242206912 | R73: 3.946987845e-07
A74: 34.01768 | B74: ='DF raw data'!D79 -> -1.2811773e-06 | C74: ='DF raw data'!E79 -> -1.1754685e-05 | D74: ='DF raw data'!F79 -> 2.3608145e-06 | F74: -1.282017752e-06 | G74: -1.178857403e-05 | H74: 2.362363194e-06 | J74: 2.346100533e-06 | K74: 9.840372968e-06 | L74: 5.004211811e-06 | N74: -0.0001943923511 | O74: -0.002706566805 | P74: 6.063644451e-05 | Q74: 0.0012725409 | R74: 4.154421477e-07
A75: 34.51794 | B75: ='DF raw data'!D80 -> 9.3550506e-07 | C75: ='DF raw data'!E80 -> 1.0308422e-06 | D75: ='DF raw data'!F80 -> 6.9344769e-06 | F75: 9.361187513e-07 | G75: 1.033814142e-06 | H75: 6.939025917e-06 | J75: -2.285074426e-06 | K75: -2.408799862e-07 | L75: 4.518579745e-06 | N75: -0.0001955354825 | O75: -0.002804385385 | P75: 6.051594189e-05 | Q75: 0.001302814605 | R75: 4.364011928e-07
A76: 35.0182 | B76: ='DF raw data'!D81 -> 1.1647886e-06 | C76: ='DF raw data'!E81 -> 1.6383337e-06 | D76: ='DF raw data'!F81 -> 8.3684508e-06 | F76: 1.165552701e-06 | G76: 1.643057054e-06 | H76: 8.373940504e-06 | J76: -5.556939863e-06 | K76: 5.385508813e-06 | L76: 3.248228841e-06 | N76: -0.0001983153972 | O76: -0.002903594646 | P76: 6.321009653e-05 | Q76: 0.001334436088 | R76: 4.580747137e-07
A77: 35.51846 | B77: ='DF raw data'!D82 -> -3.0240715e-06 | C77: ='DF raw data'!E82 -> 1.8458031e-05 | D77: ='DF raw data'!F82 -> 1.9737363e-06 | F77: -3.026055291e-06 | G77: 1.851124593e-05 | H77: 1.975031071e-06 | J77: -5.386216742e-06 | K77: 1.124258646e-05 | L77: 5.574154648e-06 | N77: -0.000201009906 | O77: -0.003004151861 | P77: 6.883431283e-05 | Q77: 0.001368871141 | R77: 4.806580234e-07
A78: 36.01872 | B78: ='DF raw data'!D83 -> -4.8983957e-06 | C78: ='DF raw data'!E83 -> 8.1615786e-07 | D78: ='DF raw data'!F83 -> 4.1734811e-06 | F78: -4.901609048e-06 | G78: 8.185108621e-07 | H78: 4.176218904e-06 | J78: -3.237078131e-06 | K78: 1.915634041e-06 | L78: 5.522474268e-06 | N78: -0.0002026292867 | O78: -0.003105519188 | P78: 6.979262791e-05 | Q78: 0.001403785601 | R78: 5.036347845e-07
A79: 36.51898 | B79: ='DF raw data'!D84 -> -6.8102331e-06 | C79: ='DF raw data'!E84 -> 1.0462008e-05 | D79: ='DF raw data'!F84 -> 2.7256638e-06 | F79: -6.814700613e-06 | G79: 1.049217021e-05 | H79: 2.727451835e-06 | J79: -2.86991543e-06 | K79: 9.121801866e-06 | L79: 7.834415607e-06 | N79: -0.0002040649906 | O79: -0.00320760474 | P79: 7.435590051e-05 | Q79: 0.001440982884 | R79: 5.272327092e-07
A80: 37.01924 | B80: ='DF raw data'!D85 -> -4.8181632e-06 | C80: ='DF raw data'!E85 -> -1.2767531e-05 | D80: ='DF raw data'!F85 -> -2.0822052e-08 | F80: -4.821323915e-06 | G80: -1.280434009e-05 | H80: -2.083571127e-08 | J80: -1.825336136e-06 | K80: -6.928662672e-06 | L80: 1.300253107e-05 | N80: -0.0002049781332 | O80: -0.003310147101 | P80: 7.088976773e-05 | Q80: 0.001476446199 | R80: 5.507656371e-07
A81: 37.5195 | B81: ='DF raw data'!D86 -> -1.2621177e-07 | C81: ='DF raw data'!E86 -> 9.8681239e-06 | D81: ='DF raw data'!F86 -> -3.5695521e-06 | F81: -1.262945649e-07 | G81: 9.896573931e-06 | H81: -3.571893726e-06 | J81: 3.407578306e-06 | K81: -3.836670613e-06 | L81: 1.5440007e-05 | N81: -0.0002032734581 | O81: -0.003411836681 | P81: 6.897043489e-05 | Q81: 0.001510949349 | R81: 5.738161269e-07
A82: 38.01976 | B82: ='DF raw data'!D87 -> 7.6452243e-06 | C82: ='DF raw data'!E87 -> 2.2839877e-06 | D82: ='DF raw data'!F87 -> 4.1716839e-06 | F82: 7.650239567e-06 | G82: 2.29057249e-06 | H82: 4.174420525e-06 | J82: 6.488215379e-06 | K82: 5.987126404e-06 | L82: 6.7547324e-06 | N82: -0.0002000276635 | O82: -0.00351190252 | P82: 7.196555474e-05 | Q82: 0.001546950837 | R82: 5.9642293e-07
A83: 38.52002 | B83: ='DF raw data'!D88 -> 1.1684967e-05 | C83: ='DF raw data'!E88 -> 5.418288e-07 | D83: ='DF raw data'!F88 -> -1.622113e-06 | F83: 1.169263234e-05 | G83: 5.43390905e-07 | H83: -1.623177106e-06 | J83: -1.040916594e-06 | K83: 1.386807003e-06 | L83: 5.617176552e-06 | N83: -0.0002005483924 | O83: -0.003612228859 | P83: 7.265931881e-05 | Q83: 0.001583299388 | R83: 6.191842769e-07
A84: 39.02028 | B84: ='DF raw data'!D89 -> 1.2555046e-05 | C84: ='DF raw data'!E89 -> 5.9013319e-06 | D84: ='DF raw data'!F89 -> -4.606798e-06 | F84: 1.256328211e-05 | G84: 5.918345577e-06 | H84: -4.609820059e-06 | J84: -9.269441267e-06 | K84: 6.705144416e-07 | L84: 6.216289613e-06 | N84: -0.0002051855231 | O84: -0.003714874969 | P84: 7.299475037e-05 | Q84: 0.001619815742 | R84: 6.429112747e-07
A85: 39.52054 | B85: ='DF raw data'!D90 -> 1.0722707e-05 | C85: ='DF raw data'!E90 -> 9.1822864e-07 | D85: ='DF raw data'!F90 -> 1.0043758e-06 | F85: 1.07297411e-05 | G85: 9.208759145e-07 | H85: 1.005034671e-06 | J85: -8.63851315e-06 | K85: 9.912620862e-07 | L85: 5.025455137e-06 | N85: -0.0002095070257 | O85: -0.003819682954 | P85: 7.349063914e-05 | Q85: 0.001656580169 | R85: 6.675711251e-07
A86: 40.0208 | B86: ='DF raw data'!D91 -> 4.9297237e-06 | C86: ='DF raw data'!E91 -> 4.7087624e-06 | D86: ='DF raw data'!F91 -> -2.6781927e-06 | F86: 4.932957599e-06 | G86: 4.722337872e-06 | H86: -2.679949594e-06 | J86: -7.120302056e-06 | K86: 4.106535001e-06 | L86: 8.077630252e-06 | N86: -0.000213069028 | O86: -0.003926272866 | P86: 7.554497434e-05 | Q86: 0.001694372298 | R86: 6.931371395e-07
A87: 40.52106 | B87: ='DF raw data'!D92 -> 2.2417241e-06 | C87: ='DF raw data'!E92 -> -2.413316e-06 | D87: ='DF raw data'!F92 -> -1.923936e-06 | F87: =(1-$G$1*($B$2-$G$2))*B87 -> 2.243194671e-06 | G87: -2.420273646e-06 | H87: -1.925198102e-06 | J87: -6.019750367e-06 | K87: 1.078842888e-05 | L87: 6.255050423e-06 | N87: -0.0002160804683 | O87: -0.004034369281 | P87: 8.094199377e-05 | Q87: 0.00173486434 | R87: 7.197721701e-07
A88: 41.02132 | B88: ='DF raw data'!D93 -> 2.8080938e-06 | C88: ='DF raw data'!E93 -> 5.5365444e-06 | D88: ='DF raw data'!F93 -> 7.9607993e-08 | F88: 2.80993591e-06 | G88: 5.552506386e-06 | H88: 7.966021584e-08 | J88: -6.716135897e-06 | K88: -6.285332467e-07 | L88: 6.207099588e-06 | N88: -0.0002194402825 | O88: -0.004144146476 | P88: 8.062756373e-05 | Q88: 0.001775199085 | R88: 7.471138011e-07
A89: 41.52158 | B89: ='DF raw data'!D94 -> 1.3700434e-06 | C89: ='DF raw data'!E94 -> -1.2427563e-06 | D89: ='DF raw data'!F94 -> -1.057868e-06 | F89: 1.370942148e-06 | G89: -1.246339195e-06 | H89: -1.058561961e-06 | J89: -4.66458256e-06 | K89: 3.311289481e-06 | L89: 1.112341117e-05 | N89: -0.0002217737865 | O89: -0.004255091031 | P89: 8.22840694e-05 | Q89: 0.001816362513 | R89: 7.751054895e-07
A90: 42.02184 | B90: ='DF raw data'!D95 -> -3.1761267e-06 | C90: ='DF raw data'!E95 -> -4.1658795e-06 | D90: ='DF raw data'!F95 -> -1.0388995e-06 | F90: -3.178210239e-06 | G90: -4.177889828e-06 | H90: -1.039581018e-06 | J90: -2.238185587e-06 | K90: 1.776871937e-06 | L90: 7.922989374e-06 | N90: -0.0002228934613 | O90: -0.004366595714 | P90: 8.317296736e-05 | Q90: 0.001857970622 | R90: 8.03419824e-07
A91: 42.5221 | B91: ='DF raw data'!D96 -> -1.7851356e-06 | C91: ='DF raw data'!E96 -> -1.0241486e-05 | D91: ='DF raw data'!F96 -> -1.5622155e-06 | F91: -1.786306649e-06 | G91: -1.027101244e-05 | H91: -1.563240313e-06 | J91: -3.814973382e-06 | K91: -2.360591977e-06 | L91: 1.515503519e-05 | N91: -0.0002248019398 | O91: -0.004479055132 | P91: 8.199205761e-05 | Q91: 0.001898987969 | R91: 8.320640161e-07
A92: 43.02236 | B92: ='DF raw data'!D97 -> 2.5810784e-06 | C92: ='DF raw data'!E97 -> 2.9806133e-06 | D92: ='DF raw data'!F97 -> -1.3816483e-05 | F92: 2.582771587e-06 | G92: 2.989206478e-06 | H92: -1.382554661e-05 | J92: -6.227142928e-06 | K92: -5.76824578e-06 | L92: 1.62872004e-05 | N92: -0.0002279171304 | O92: -0.004593072956 | P92: 7.910643498e-05 | Q92: 0.001938561754 | R92: 8.611811723e-07
A93: 43.52262 | B93: ='DF raw data'!D98 -> 2.2857118e-06 | C93: ='DF raw data'!E98 -> 2.0251418e-06 | D93: ='DF raw data'!F98 -> -1.1143939e-05 | F93: 2.287211227e-06 | G93: 2.030980331e-06 | H93: -1.115124942e-05 | J93: -9.50508755e-06 | K93: 2.119160125e-06 | L93: 9.23376658e-06 | N93: -0.0002326721455 | O93: -0.004709469523 | P93: 8.016656602e-05 | Q93: 0.00197866588 | R93: 8.914784215e-07
A94: 44.02288 | B94: ='DF raw data'!D99 -> -1.0862021e-06 | C94: ='DF raw data'!E99 -> 1.3807693e-05 | D94: ='DF raw data'!F99 -> 6.1458113e-06 | F94: -1.086914649e-06 | G94: 1.38475009e-05 | H94: 6.149842952e-06 | J94: -1.22661193e-05 | K94: -2.047203268e-06 | L94: 1.669863012e-06 | N94: -0.0002388083943 | O94: -0.004828935811 | P94: 7.914243212e-05 | Q94: 0.002018257673 | R94: 9.231413646e-07
A95: 44.52314 | B95: ='DF raw data'!D100 -> -1.1372942e-07 | C95: ='DF raw data'!E100 -> 6.9896987e-06 | D95: ='DF raw data'!F100 -> 7.3875772e-06 | F95: -1.138040265e-07 | G95: 7.009850164e-06 | H95: 7.392423451e-06 | J95: -1.206734199e-05 | K95: -5.747770619e-06 | L95: 2.423217188e-08 | N95: -0.0002448452028 | O95: -0.004951422072 | P95: 7.626705239e-05 | Q95: 0.002056411029 | R95: 9.56041382e-07
A96: 45.0234 | B96: ='DF raw data'!D101 -> 6.7004265e-07 | C96: ='DF raw data'!E101 -> -1.5691194e-06 | D96: ='DF raw data'!F101 -> 8.1888987e-07 | F96: 6.70482198e-07 | G96: -1.573643208e-06 | H96: 8.194270618e-07 | J96: -1.093673379e-05 | K96: -1.06917329e-06 | L96: 9.230435696e-06 | N96: -0.0002503164132 | O96: -0.005076645361 | P96: 7.573218776e-05 | Q96: 0.002094296813 | R96: 9.902559998e-07
A97: 45.52366 | B97: ='DF raw data'!D102 -> -6.3299193e-09 | C97: ='DF raw data'!E102 -> -8.9197574e-06 | D97: ='DF raw data'!F102 -> 5.2852478e-08 | F97: -6.334071727e-09 | G97: -8.945473268e-06 | H97: 5.288714923e-08 | J97: -1.119342007e-05 | K97: -1.278172307e-05 | L97: 9.039300093e-06 | N97: -0.0002559160336 | O97: -0.005204669916 | P97: 6.933800297e-05 | Q97: 0.002128983843 | R97: 1.025424665e-06
A98: 46.02392 | B98: ='DF raw data'!D103 -> 2.6449577e-06 | C98: ='DF raw data'!E103 -> 8.8587467e-06 | D98: ='DF raw data'!F103 -> 9.1901939e-06 | F98: 2.646692792e-06 | G98: 8.884286673e-06 | H98: 9.196222667e-06 | J98: -1.048287326e-05 | K98: -3.831453314e-06 | L98: -4.101230143e-06 | N98: -0.0002611601957 | O98: -0.005335317915 | P98: 6.742128014e-05 | Q98: 0.002162712012 | R98: 1.061818719e-06
A99: 46.52418 | B99: ='DF raw data'!D104 -> 6.1352853e-06 | C99: ='DF raw data'!E104 -> 3.0882866e-06 | D99: ='DF raw data'!F104 -> 5.000149e-06 | F99: 6.139310047e-06 | G99: 3.097190202e-06 | H99: 5.003429098e-06 | J99: -6.635851265e-06 | K99: 5.480248564e-06 | L99: -1.138363977e-06 | N99: -0.0002644798467 | O99: -0.005467626603 | P99: 7.016282929e-05 | Q99: 0.002197811669 | R99: 1.099274392e-06
A100: 47.02444 | B100: ='DF raw data'!D105 -> 4.868381e-06 | C100: ='DF raw data'!E105 -> 2.7078886e-06 | D100: ='DF raw data'!F105 -> 3.3199258e-06 | F100: 4.871574658e-06 | G100: 2.715695506e-06 | H100: 3.322103671e-06 | J100: -2.733791291e-06 | K100: 8.272230774e-06 | L100: -1.581571131e-06 | N100: -0.0002658474531 | O100: -0.00560061945 | P100: 7.430109545e-05 | Q100: 0.002234981535 | R100: 1.137391963e-06
A101: 47.5247 | B101: ='DF raw data'!D106 -> 2.6957539e-06 | C101: ='DF raw data'!E106 -> -1.6214221e-05 | D101: ='DF raw data'!F106 -> 2.5691288e-06 | F101: 2.697522315e-06 | G101: -1.626096698e-05 | H101: 2.570814148e-06 | J101: -1.524299785e-06 | K101: -2.306934025e-06 | L101: -5.542671009e-06 | N101: -0.0002666099993 | O101: -0.005733993768 | P101: 7.314702864e-05 | Q101: 0.002271574068 | R101: 1.175627525e-06
A102: 48.02496 | B102: ='DF raw data'!D107 -> 1.2361439e-06 | C102: ='DF raw data'!E107 -> -3.6404426e-06 | D102: ='DF raw data'!F107 -> 5.3126869e-06 | F102: 1.23695481e-06 | G102: -3.650938081e-06 | H102: 5.316172023e-06 | J102: -2.232107102e-06 | K102: -2.721213769e-06 | L102: -9.321773675e-07 | N102: -0.0002677266332 | O102: -0.005867926694 | P102: 7.178571424e-05 | Q102: 0.002307485589 | R102: 1.214062871e-06
A103: 48.52522 | B103: ='DF raw data'!D108 -> -6.6748299e-07 | C103: ='DF raw data'!E108 -> 2.3731181e-06 | D103: ='DF raw data'!F108 -> 3.6197516e-06 | F103: -6.679208588e-07 | G103: 2.379959855e-06 | H103: 3.622126157e-06 | J103: -8.723977978e-07 | K103: 1.174504991e-05 | L103: 6.883932599e-06 | N103: -0.000268163059 | O103: -0.006002077946 | P103: 7.766129291e-05 | Q103: 0.002346336428 | R103: 1.253054487e-06
A104: 49.02548 | B104: ='DF raw data'!D109 -> -1.7433503e-06 | C104: ='DF raw data'!E109 -> -2.0519919e-06 | D104: ='DF raw data'!F109 -> -1.1938945e-07 | F104: -1.744493938e-06 | G104: -2.05790784e-06 | H104: -1.194677695e-07 | J104: -2.538260107e-07 | K104: -3.931410364e-06 | L104: 1.008415187e-05 | N104: -0.000268290038 | O104: -0.00613629272 | P104: 7.569456556e-05 | Q104: 0.002384203391 | R104: 1.291929297e-06
A105: 49.52574 | B105: ='DF raw data'!D110 -> -2.0214286e-06 | C105: ='DF raw data'!E110 -> -7.3563906e-06 | D105: ='DF raw data'!F110 -> -6.0268612e-06 | F105: -2.022754657e-06 | G105: -7.377599245e-06 | H105: -6.030814821e-06 | J105: -2.433956229e-06 | K105: 4.337760213e-06 | L105: 5.7148748e-06 | N105: -0.0002695076489 | O105: -0.006271116617 | P105: 7.786457348e-05 | Q105: 0.002423155922 | R105: 1.331298391e-06
A106: 50.026 | B106: ='DF raw data'!D111 -> -5.8794121e-06 | C106: ='DF raw data'!E111 -> -1.4575068e-05 | D106: ='DF raw data'!F111 -> -8.6077616e-06 | F106: -5.883268994e-06 | G106: -1.461708826e-05 | H106: -8.613408292e-06 | J106: -6.272963266e-06 | K106: 6.205505486e-06 | L106: 7.729922605e-06 | N106: -0.0002726457615 | O106: -0.006407510385 | P106: 8.096893965e-05 | Q106: 0.002463661444 | R106: 1.371765263e-06
A107: 50.52626 | B107: ='DF raw data'!D112 -> -8.4168923e-06 | C107: ='DF raw data'!E112 -> -1.2107067e-05 | D107: ='DF raw data'!F112 -> -9.4732313e-06 | F107: -8.422413781e-06 | G107: -1.214197196e-05 | H107: -9.47944574e-06 | J107: -9.467082135e-06 | K107: -6.085914193e-06 | L107: 8.62612773e-06 | N107: -0.000277381764 | O107: -0.006546273387 | P107: 7.792440022e-05 | Q107: 0.002502643905 | R107: 1.413293274e-06
A108: 51.02652 | B108: ='DF raw data'!D113 -> -8.1420176e-06 | C108: ='DF raw data'!E113 -> -5.2559817e-06 | D108: ='DF raw data'!F113 -> -9.4818824e-06 | F108: -8.147358764e-06 | G108: -5.271134818e-06 | H108: -9.488102515e-06 | J108: -1.207301971e-05 | K108: -4.747832161e-07 | L108: 9.818695041e-06 | N108: -0.0002834214129 | O108: -0.006688057783 | P108: 7.768688517e-05 | Q108: 0.002541507546 | R108: 1.456497203e-06
A109: 51.52678 | B109: ='DF raw data'!D114 -> -8.6893633e-06 | C109: ='DF raw data'!E114 -> 4.347442e-06 | D109: ='DF raw data'!F114 -> -3.2898261e-06 | F109: -8.695063522e-06 | G109: 4.359975777e-06 | H109: -3.291984226e-06 | J109: -1.299322897e-05 | K109: -1.507138926e-06 | L109: 4.232198602e-07 | N109: -0.0002899214056 | O109: -0.006833093865 | P109: 7.693292385e-05 | Q109: 0.00257999401 | R109: 1.501507144e-06
A110: 52.02704 | B110: ='DF raw data'!D115 -> -6.1860592e-06 | C110: ='DF raw data'!E115 -> 1.388692e-06 | D110: ='DF raw data'!F115 -> -7.2541188e-06 | F110: -6.190117255e-06 | G110: 1.392695631e-06 | H110: -7.258877502e-06 | J110: -8.608522088e-06 | K110: 6.457074581e-06 | L110: 1.544925607e-06 | N110: -0.0002942279048 | O110: -0.006980284317 | P110: 8.016313998e-05 | Q110: 0.002620096423 | R110: 1.548029417e-06
A111: 52.5273 | B111: ='DF raw data'!D116 -> -5.7837252e-07 | C111: ='DF raw data'!E116 -> -1.7367065e-06 | D111: ='DF raw data'!F116 -> -1.5976876e-06 | F111: -5.787519324e-07 | G111: -1.741713465e-06 | H111: -1.598735683e-06 | J111: -5.803005776e-06 | K111: 7.09308083e-06 | L111: 5.123886966e-06 | N111: -0.0002971309165 | O111: -0.007128927029 | P111: 8.37115246e-05 | Q111: 0.00266197395 | R111: 1.595701394e-06
A112: 53.02756 | B112: ='DF raw data'!D117 -> 4.164775e-06 | C112: ='DF raw data'!E117 -> 7.7350223e-06 | D112: ='DF raw data'!F117 -> 7.5755925e-06 | F112: 4.167507092e-06 | G112: 7.757322549e-06 | H112: 7.580562089e-06 | J112: -7.856564528e-06 | K112: 1.469279089e-05 | L112: 5.076935386e-06 | N112: -0.0003010612415 | O112: -0.007279535926 | P112: 9.106174016e-05 | Q112: 0.002707528496 | R112: 1.645192172e-06
A113: 53.52782 | B113: ='DF raw data'!D118 -> 3.987489e-06 | C113: ='DF raw data'!E118 -> 3.9775796e-06 | D113: ='DF raw data'!F118 -> -3.6701822e-06 | F113: 3.990104793e-06 | G113: 3.989047055e-06 | H113: -3.67258984e-06 | J113: -1.228528887e-05 | K113: 1.983878626e-06 | L113: 5.704153972e-06 | N113: -0.0003072070801 | O113: -0.007433219339 | P113: 9.205419529e-05 | Q113: 0.002753579528 | R113: 1.696643996e-06
A114: 54.02808 | B114: ='DF raw data'!D119 -> 1.5158245e-06 | C114: ='DF raw data'!E119 -> 6.6624007e-06 | D114: ='DF raw data'!F119 -> -7.4831314e-06 | F114: 1.516818881e-06 | G114: 6.681608556e-06 | H114: -7.488040334e-06 | J114: -1.225075623e-05 | K114: -6.48869799e-07 | L114: 8.247720858e-06 | N114: -0.0003133356434 | O114: -0.007589968628 | P114: 9.172959168e-05 | Q114: 0.002799468173 | R114: 1.749968482e-06
A115: 54.52834 | B115: ='DF raw data'!D120 -> 2.8698366e-06 | C115: ='DF raw data'!E120 -> 1.1398e-05 | D115: ='DF raw data'!F120 -> -7.3142164e-06 | F115: 2.871719213e-06 | G115: 1.14308607e-05 | H115: -7.319014526e-06 | J115: -6.948242859e-06 | K115: 2.813510899e-06 | L115: 2.830327578e-06 | N115: -0.0003168115714 | O115: -0.007748456785 | P115: 9.313707864e-05 | Q115: 0.002846060928 | R115: 1.804518877e-06
A116: 55.0286 | B116: ='DF raw data'!D121 -> 6.1080514e-06 | C116: ='DF raw data'!E121 -> 9.2107266e-06 | D116: ='DF raw data'!F121 -> -1.1793705e-05 | F116: 6.112058282e-06 | G116: 9.237281339e-06 | H116: -1.180144167e-05 | J116: -3.428240051e-06 | K116: -1.404999301e-05 | L116: 4.026356859e-06 | N116: -0.0003185265827 | O116: -0.007907802893 | P116: 8.610842914e-05 | Q116: 0.002889137531 | R116: 1.858984107e-06
A117: 55.52886 | B117: ='DF raw data'!D122 -> 8.8545248e-06 | C117: ='DF raw data'!E122 -> 1.7879056e-06 | D117: ='DF raw data'!F122 -> -6.840286e-06 | F117: 8.860333368e-06 | G117: 1.793060173e-06 | H117: -6.844773228e-06 | J117: -5.570565695e-06 | K117: -7.062605221e-06 | L117: 7.134606333e-06 | N117: -0.0003213133139 | O117: -0.008068543092 | P117: 8.257529025e-05 | Q117: 0.002930446646 | R117: 1.914043185e-06
A118: 56.02912 | B118: ='DF raw data'!D123 -> 7.6432225e-06 | C118: ='DF raw data'!E123 -> 6.6202401e-06 | D118: ='DF raw data'!F123 -> -2.8451104e-06 | F118: 7.648236454e-06 | G118: 6.639326406e-06 | H118: -2.846976792e-06 | J118: -8.190864785e-06 | K118: 1.438192021e-06 | L118: 9.635750308e-06 | N118: -0.000325410876 | O118: -0.008231333137 | P118: 8.329476019e-05 | Q118: 0.002972115683 | R118: 1.970487648e-06
A119: 56.52938 | B119: ='DF raw data'!D124 -> 2.6818705e-06 | C119: ='DF raw data'!E124 -> 9.6455669e-06 | D119: ='DF raw data'!F124 -> 3.8768658e-07 | F119: 2.683629807e-06 | G119: 9.673375294e-06 | H119: 3.879409024e-07 | J119: -6.195683804e-06 | K119: -4.33150493e-06 | L119: 1.359383471e-06 | N119: -0.0003285103287 | O119: -0.008395673714 | P119: 8.112788154e-05 | Q119: 0.003012700717 | R119: 2.027767803e-06
A120: 57.02964 | B120: ='DF raw data'!D125 -> -6.9278104e-07 | C120: ='DF raw data'!E125 -> 3.5538169e-06 | D120: ='DF raw data'!F125 -> 1.7750725e-06 | F120: -6.932355044e-07 | G120: 3.564062637e-06 | H120: 1.776236948e-06 | J120: -2.756634567e-06 | K120: 5.483860548e-06 | L120: 3.716478111e-06 | N120: -0.0003298893627 | O120: -0.008560704166 | P120: 8.387123761e-05 | Q120: 0.003054658142 | R120: 2.085728615e-06
A121: 57.5299 | B121: ='DF raw data'!D126 -> -2.5499505e-06 | C121: ='DF raw data'!E126 -> 2.1502956e-06 | D121: ='DF raw data'!F126 -> 6.7659761e-07 | F121: -2.551623268e-06 | G121: 2.156494952e-06 | H121: 6.77041458e-07 | J121: -3.064551228e-06 | K121: -2.238288086e-06 | L121: 6.27756068e-06 | N121: -0.0003314224351 | O121: -0.008726501554 | P121: 8.275151161e-05 | Q121: 0.003096055413 | R121: 2.144103276e-06
A122: 58.03016 | B122: ='DF raw data'!D127 -> -4.9150167e-06 | C122: ='DF raw data'!E127 -> 4.1304875e-06 | D122: ='DF raw data'!F127 -> -3.3618362e-06 | F122: -4.918240951e-06 | G122: 4.142395792e-06 | H122: -3.364041565e-06 | J122: -3.112508467e-06 | K122: -1.017346301e-05 | L122: 5.068478842e-06 | N122: -0.0003329794986 | O122: -0.008893077878 | P122: 7.766213501e-05 | Q122: 0.003134906673 | R122: 2.202587048e-06
A123: 58.53042 | B123: ='DF raw data'!D128 -> -5.7265561e-06 | C123: ='DF raw data'!E128 -> 7.6984643e-06 | D123: ='DF raw data'!F128 -> -9.3756626e-06 | F123: -5.730312721e-06 | G123: 7.720659152e-06 | H123: -9.381813035e-06 | J123: -7.046027664e-06 | K123: -4.583205403e-06 | L123: -3.349954329e-07 | N123: -0.0003365043444 | O123: -0.009061417541 | P123: 7.536934067e-05 | Q123: 0.003172610939 | R123: 2.262075822e-06
A124: 59.03068 | B124: ='DF raw data'!D129 -> -2.7982585e-06 | C124: ='DF raw data'!E129 -> 5.3976464e-06 | D124: ='DF raw data'!F129 -> -6.6910052e-06 | F124: -2.800094158e-06 | G124: 5.41320794e-06 | H124: -6.695394499e-06 | J124: -1.559075083e-05 | K124: -5.763159859e-06 | L124: -1.584449918e-07 | N124: -0.0003443037734 | O124: -0.009233658947 | P124: 7.248626232e-05 | Q124: 0.003208872917 | R124: 2.324007683e-06
A125: 59.53094 | B125: ='DF raw data'!D130 -> 8.8010228e-07 | C125: ='DF raw data'!E130 -> -1.5681881e-06 | D125: ='DF raw data'!F130 -> 2.8694212e-06 | F125: 8.806796271e-07 | G125: -1.572709223e-06 | H125: 2.87130354e-06 | J125: -1.620531572e-05 | K125: 4.971761699e-06 | L125: 7.651803993e-06 | N125: -0.0003524106447 | O125: -0.009409955896 | P125: 7.497343583e-05 | Q125: 0.003246379128 | R125: 2.388948574e-06
A126: 60.0312 | B126: ='DF raw data'!D131 -> 3.0140825e-06 | C126: ='DF raw data'!E131 -> 7.6911247e-06 | D126: ='DF raw data'!F131 -> 1.4725837e-06 | F126: 3.016059738e-06 | G126: 7.713298392e-06 | H126: 1.473549715e-06 | J126: -1.033686354e-05 | K126: -4.804532359e-06 | L126: 8.271829163e-06 | N126: -0.000357581764 | O126: -0.009588839749 | P126: 7.256992047e-05 | Q126: 0.003282682956 | R126: 2.455548744e-06
A127: 60.53146 | B127: ='DF raw data'!D132 -> 3.9250112e-06 | C127: ='DF raw data'!E132 -> -1.0107296e-06 | D127: ='DF raw data'!F132 -> -2.7028855e-06 | F127: 3.927586007e-06 | G127: -1.013643557e-06 | H127: -2.704658593e-06 | J127: -8.53130987e-06 | K127: 3.931214602e-07 | L127: 9.798782287e-06 | N127: -0.0003618496371 | O127: -0.009769858649 | P127: 7.276658341e-05 | Q127: 0.003319085167 | R127: 2.523699231e-06
A128: 61.03172 | B128: ='DF raw data'!D133 -> 2.2500678e-06 | C128: ='DF raw data'!E133 -> -4.0608729e-06 | D128: ='DF raw data'!F133 -> 4.7216872e-06 | F128: 2.251543844e-06 | G128: -4.072580491e-06 | H128: 4.724784627e-06 | J128: -1.277154364e-05 | K128: 8.24975075e-06 | L128: 1.017752208e-05 | N128: -0.0003682387295 | O128: -0.009954073755 | P128: 7.689360372e-05 | Q128: 0.003357551961 | R128: 2.594492219e-06
A129: 61.53198 | B129: ='DF raw data'!D134 -> -1.1259848e-06 | C129: ='DF raw data'!E134 -> 5.2678215e-06 | D129: ='DF raw data'!F134 -> 4.8415513e-06 | F129: -1.126723446e-06 | G129: 5.283008752e-06 | H129: 4.844727358e-06 | J129: -1.622147831e-05 | K129: -1.965579822e-06 | L129: 5.509489055e-06 | N129: -0.0003763536863 | O129: -0.01014234845 | P129: 7.591030276e-05 | Q129: 0.003395526849 | R129: 2.66823278e-06
A130: 62.03224 | B130: ='DF raw data'!D135 -> -8.2354319e-07 | C130: ='DF raw data'!E135 -> -3.3411679e-06 | D130: ='DF raw data'!F135 -> 1.2324225e-05 | F130: -8.240834343e-07 | G130: -3.350800565e-06 | H130: 1.233230969e-05 | J130: -1.290199116e-05 | K130: 3.440554684e-06 | L130: 4.486213327e-06 | N130: -0.0003828080364 | O130: -0.010333852 | P130: 7.763147465e-05 | Q130: 0.003434362771 | R130: 2.744556767e-06
A131: 62.5325 | B131: ='DF raw data'!D136 -> 2.107892e-06 | C131: ='DF raw data'!E136 -> -6.4703027e-06 | D131: ='DF raw data'!F136 -> 1.5833488e-05 | F131: 2.109274777e-06 | G131: -6.488956733e-06 | H131: 1.584387477e-05 | J131: -6.317915435e-06 | K131: -7.548208903e-06 | L131: 1.574361604e-06 | N131: -0.0003859686367 | O131: -0.01052693667 | P131: 7.385540766e-05 | Q131: 0.003471309677 | R131: 2.821810122e-06
A132: 63.03276 | B132: ='DF raw data'!D137 -> 1.5203628e-06 | C132: ='DF raw data'!E137 -> 1.213345e-05 | D132: ='DF raw data'!F137 -> -3.3569094e-07 | F132: 1.521360158e-06 | G132: 1.216843102e-05 | H132: -3.359111533e-07 | J132: -1.547877542e-06 | K132: 3.630030577e-06 | L132: -7.886587009e-07 | N132: -0.000386742978 | O132: -0.01072040871 | P132: 7.567136676e-05 | Q132: 0.003509165035 | R132: 2.899498643e-06
A133: 63.53302 | B133: ='DF raw data'!D138 -> -1.6219332e-06 | C133: ='DF raw data'!E138 -> 1.2423216e-06 | D133: ='DF raw data'!F138 -> -6.1814662e-06 | F133: -1.622997188e-06 | G133: 1.245903242e-06 | H133: -6.185521242e-06 | J133: -1.084666575e-06 | K133: 3.680879254e-06 | L133: 2.007379378e-06 | N133: -0.0003872855933 | O133: -0.0109141522 | P133: 7.751276341e-05 | Q133: 0.00354794157 | R133: 2.977538382e-06
A134: 64.03328 | B134: ='DF raw data'!D139 -> -2.1444478e-06 | C134: ='DF raw data'!E139 -> 7.139538e-06 | D134: ='DF raw data'!F139 -> -4.6223049e-06 | F134: -2.145854558e-06 | G134: 7.160121454e-06 | H134: -4.625337132e-06 | J134: -5.314881076e-06 | K134: 1.204840197e-05 | L134: -4.817088839e-06 | N134: -0.0003899444157 | O134: -0.0111092258 | P134: 8.354009698e-05 | Q134: 0.003589733339 | R134: 3.057097529e-06
A135: 64.53354 | B135: ='DF raw data'!D140 -> -1.1128353e-06 | C135: ='DF raw data'!E140 -> -2.1674068e-06 | D135: ='DF raw data'!F140 -> -7.3281814e-07 | F135: -1.11356532e-06 | G135: =(1-$G$1*($B$2-$G$2))*C135*$M$2/$M$1 -> -2.173655484e-06 | H135: -7.332988687e-07 | J135: =-CELL("contents", INDEX($F$6:$F$1203,1204-CELL("row",F135))) -> -1.040125275e-05 | K135: =CELL("contents", INDEX($G$6:$G$1203,1204-CELL("row",G135))) -> 1.984812711e-06 | L135: =-CELL("contents", INDEX($H$6:$H$1203,1204-CELL("row",H135))) -> -3.621193346e-06 | N135: -0.0003951477464 | O135: -0.01130690241 | P135: 8.453301939e-05 | Q135: 0.003632021827 | R135: 3.13878377e-06
A136: =A135+$B$1 -> 65.0338 | B136: ='DF raw data'!D141 -> -6.3644467e-07 | C136: ='DF raw data'!E141 -> -4.2985057e-06 | D136: ='DF raw data'!F141 -> 2.0696407e-06 | F136: -6.368621777e-07 | G136: -4.310898392e-06 | H136: 2.070998384e-06 | J136: -1.360445367e-05 | K136: 6.308943142e-06 | L136: -4.289635356e-06 | N136: =J136*$B$1+N135 -> -0.0004019535104 | O136: =N136*$B$1+O135 -> -0.01150798367 | P136: =K136*$B$1+P135 -> 8.768913129e-05 | Q136: =P136*$B$1+Q135 -> 0.003675889192 | R136: =(N136^2+P136^2)*$B$1+R135 -> 3.223455781e-06
A137: 65.53406 | B137: ='DF raw data'!D142 -> 2.2877819e-06 | C137: ='DF raw data'!E142 -> -5.849598e-06 | D137: ='DF raw data'!F142 -> -4.6682926e-06 | F137: 2.289282685e-06 | G137: -5.866462527e-06 | H137: -4.671355e-06 | J137: -1.889868541e-05 | K137: -5.989434138e-06 | L137: -3.684661253e-06 | N137: -0.0004114077667 | O137: -0.01171379452 | P137: 8.469285696e-05 | Q137: 0.003718257641 | R137: 3.311716268e-06
A138: 66.03432 | B138: ='DF raw data'!D143 -> 1.3753166e-06 | C138: ='DF raw data'!E143 -> 1.3500944e-05 | D138: ='DF raw data'!F143 -> -5.9893246e-06 | F138: 1.376218808e-06 | G138: 1.353986754e-05 | H138: -5.993253597e-06 | J138: -2.001947517e-05 | K138: -1.457761178e-05 | L138: 1.341602114e-06 | N138: -0.0004214227094 | O138: -0.01192461544 | P138: 7.74002609e-05 | Q138: 0.003756977895 | R138: 3.403557951e-06
A139: 66.53458 | B139: ='DF raw data'!D144 -> -2.8187134e-07 | C139: ='DF raw data'!E144 -> 1.1358904e-05 | D139: ='DF raw data'!F144 -> -4.2288375e-06 | F139: -2.820562476e-07 | G139: 1.139165198e-05 | H139: -4.231611617e-06 | J139: -1.301801122e-05 | K139: -7.852899608e-06 | L139: 9.567953963e-06 | N139: -0.0004279350997 | O139: -0.01213869426 | P139: 7.347176934e-05 | Q139: 0.003793732883 | R139: 3.497870243e-06
A140: 67.03484 | B140: ='DF raw data'!D145 -> -2.077498e-06 | C140: ='DF raw data'!E145 -> 1.299152e-05 | D140: ='DF raw data'!F145 -> 1.2289151e-05 | F140: -2.078860839e-06 | G140: 1.302897485e-05 | H140: 1.229721268e-05 | J140: -6.597310799e-06 | K140: -9.112737308e-06 | L140: 6.246126073e-06 | N140: -0.0004312354704 | O140: -0.01235442411 | P140: 6.891303137e-05 | Q140: 0.003828207316 | R140: 3.593276347e-06
A141: 67.5351 | B141: ='DF raw data'!D146 -> 1.7055635e-07 | C141: ='DF raw data'!E146 -> 1.8250552e-05 | D141: ='DF raw data'!F146 -> 1.3441801e-05 | F141: 1.70668235e-07 | G141: 1.830316877e-05 | H141: 1.345061882e-05 | J141: -7.155969438e-06 | K141: -1.024291166e-05 | L141: -7.895915425e-07 | N141: -0.0004348153156 | O141: -0.01257194482 | P141: 6.378891239e-05 | Q141: 0.003860118357 | R141: 3.689893253e-06
A142: 68.03536 | B142: ='DF raw data'!D147 -> 6.3137063e-06 | C142: ='DF raw data'!E147 -> 1.1771862e-05 | D142: ='DF raw data'!F147 -> 6.8746449e-06 | F142: 6.317848091e-06 | G142: 1.180580055e-05 | H142: 6.879154667e-06 | J142: -1.261377721e-05 | K142: -4.746054751e-06 | L142: -2.781330156e-06 | N142: -0.0004411254838 | O142: -0.01279262226 | P142: 6.141465104e-05 | Q142: 0.00389084165 | R142: 3.789126554e-06
A143: 68.53562 | B143: ='DF raw data'!D148 -> 8.5585571e-06 | C143: ='DF raw data'!E148 -> 1.3595411e-05 | D143: ='DF raw data'!F148 -> 2.3525618e-06 | F143: 8.564171513e-06 | G143: 1.363460689e-05 | H143: 2.354105081e-06 | J143: -1.382861262e-05 | K143: 4.733845152e-06 | L143: -2.632283546e-06 | N143: -0.0004480433856 | O143: -0.01301676044 | P143: 6.378280441e-05 | Q143: 0.003922749636 | R143: 3.891585365e-06
A144: 69.03588 | B144: ='DF raw data'!D149 -> 5.1433885e-06 | C144: ='DF raw data'!E149 -> 1.0044648e-05 | D144: ='DF raw data'!F149 -> -2.894202e-08 | F144: 5.146762563e-06 | G144: 1.007360695e-05 | H144: -2.896100597e-08 | J144: -1.101882261e-05 | K144: 2.006893187e-06 | L144: -8.067524627e-06 | N144: -0.0004535556618 | O144: -0.0132436562 | P144: 6.47867728e-05 | Q144: 0.003955159867 | R144: 3.996594974e-06
A145: 69.53614 | B145: ='DF raw data'!D150 -> 1.0093296e-06 | C145: ='DF raw data'!E150 -> 7.9430365e-06 | D145: ='DF raw data'!F150 -> -4.5357847e-06 | F145: 1.00999172e-06 | G145: 7.965936459e-06 | H145: -4.538760175e-06 | J145: -1.205157965e-05 | K145: -2.435543142e-07 | L145: -3.635579176e-06 | N145: -0.000459584585 | O145: -0.01347356798 | P145: 6.466493232e-05 | Q145: 0.003987509146 | R145: 4.10435075e-06
A146: 70.0364 | B146: ='DF raw data'!D151 -> 6.9987954e-07 | C146: ='DF raw data'!E151 -> 9.7504408e-06 | D146: ='DF raw data'!F151 -> -5.3756958e-06 | F146: 7.00338661e-07 | G146: 9.778551548e-06 | H146: -5.379222256e-06 | J146: -1.326501114e-05 | K146: 1.188899572e-06 | L146: 6.963449128e-06 | N146: -0.0004662205395 | O146: -0.01370679947 | P146: 6.525969122e-05 | Q146: 0.004020155959 | R146: 4.215218581e-06
A147: 70.53666 | B147: ='DF raw data'!D152 -> 2.5045172e-06 | C147: ='DF raw data'!E152 -> 2.4491608e-05 | D147: ='DF raw data'!F152 -> -2.696689e-07 | F147: 2.506160163e-06 | G147: 2.456221788e-05 | H147: -2.698458028e-07 | J147: -1.045027889e-05 | K147: -3.432424111e-06 | L147: 6.913501484e-06 | N147: -0.000471448396 | O147: -0.01394264624 | P147: 6.354258673e-05 | Q147: 0.004051943774 | R147: 4.328428044e-06
A148: 71.03692 | B148: ='DF raw data'!D153 -> 2.4894987e-06 | C148: ='DF raw data'!E153 -> 1.658725e-05 | D148: ='DF raw data'!F153 -> 4.9984856e-06 | F148: 2.491131811e-06 | G148: 1.663507143e-05 | H148: 5.001764607e-06 | J148: -4.596654228e-06 | K148: -1.11212667e-06 | L148: 7.500626886e-06 | N148: -0.0004737479182 | O148: -0.01417964338 | P148: 6.298623424e-05 | Q148: 0.004083453267 | R148: 4.442689607e-06
A149: 71.53718 | B149: ='DF raw data'!D154 -> -1.0756556e-06 | C149: ='DF raw data'!E154 -> 8.0512445e-06 | D149: ='DF raw data'!F154 -> 1.7847887e-06 | F149: -1.07636123e-06 | G149: 8.074456425e-06 | H149: 1.785959521e-06 | J149: -1.245138575e-07 | K149: 2.831574427e-06 | L149: 8.247453283e-06 | N149: -0.0004738102075 | O149: -0.01441667167 | P149: 6.440275766e-05 | Q149: 0.004115671391 | R149: 4.557070969e-06
A150: 72.03744 | B150: ='DF raw data'!D155 -> -4.5881443e-06 | C150: ='DF raw data'!E155 -> 3.0149049e-06 | D150: ='DF raw data'!F155 -> -4.3065047e-06 | F150: -4.591154123e-06 | G150: 3.023596941e-06 | H150: -4.309329767e-06 | J150: -9.375212007e-07 | K150: -1.642559123e-06 | L150: -5.058572448e-06 | N150: -0.0004742792119 | O150: -0.01465393459 | P150: 6.358105104e-05 | Q150: 0.004147478447 | R150: 4.671622165e-06
A151: 72.5377 | B151: ='DF raw data'!D156 -> -2.835304e-06 | C151: ='DF raw data'!E156 -> 2.9032262e-06 | D151: ='DF raw data'!F156 -> -7.7361692e-06 | F151: =(1-$G$1*($B$2-$G$2))*B151 -> -2.837163959e-06 | G151: 2.911596269e-06 | H151: -7.741244127e-06 | J151: -2.121631078e-06 | K151: -3.221269096e-06 | L151: -7.708296127e-06 | N151: -0.0004753405791 | O151: -0.01489172847 | P151: 6.196957896e-05 | Q151: 0.004178479349 | R151: 4.786576357e-06
A152: 73.03796 | B152: ='DF raw data'!D157 -> 4.489712e-06 | C152: ='DF raw data'!E157 -> -2.2006325e-06 | D152: ='DF raw data'!F157 -> -3.1905083e-07 | F152: 4.492657251e-06 | G152: -2.206976975e-06 | H152: -3.192601273e-07 | J152: -3.502714674e-06 | K152: -4.03230511e-06 | L152: 2.926495122e-06 | N152: -0.0004770928471 | O152: -0.01513039894 | P152: 5.995237801e-05 | Q152: 0.004208471126 | R152: 4.902242409e-06
A153: 73.53822 | B153: ='DF raw data'!D158 -> 8.5546189e-06 | C153: ='DF raw data'!E158 -> 1.3278522e-05 | D153: ='DF raw data'!F158 -> 5.0964527e-06 | F153: 8.56023073e-06 | G153: 1.331680429e-05 | H153: 5.099795973e-06 | J153: -5.585794279e-06 | K153: -1.574044562e-06 | L153: 4.367269851e-06 | N153: -0.0004798871966 | O153: -0.0153704673 | P153: 5.916494647e-05 | Q153: 0.004238068982 | R153: 5.019199301e-06
A154: 74.03848 | B154: ='DF raw data'!D159 -> 7.0789888e-06 | C154: ='DF raw data'!E159 -> 1.2894251e-05 | D154: ='DF raw data'!F159 -> 1.4592732e-06 | F154: 7.083632617e-06 | G154: 1.293142543e-05 | H154: 1.460230483e-06 | J154: -8.014996891e-06 | K154: -2.382672553e-06 | L154: 5.869115316e-06 | N154: -0.0004838967789 | O154: -0.01561254151 | P154: 5.79729907e-05 | Q154: 0.00426707055 | R154: 5.138019535e-06
A155: 74.53874 | B155: ='DF raw data'!D160 -> 5.6649692e-06 | C155: ='DF raw data'!E160 -> -5.3711274e-06 | D155: ='DF raw data'!F160 -> 1.1266355e-06 | F155: 5.66868542e-06 | G155: -5.386612485e-06 | H155: 1.127374573e-06 | J155: -6.788273388e-06 | K155: -8.687227781e-07 | L155: 9.714800831e-06 | N155: -0.0004872926805 | O155: -0.01585631454 | P155: 5.753840344e-05 | Q155: 0.004295854712 | R155: 5.258464546e-06
A156: 75.039 | B156: ='DF raw data'!D161 -> 4.9596279e-06 | C156: ='DF raw data'!E161 -> -2.4352354e-07 | D156: ='DF raw data'!F161 -> 5.9003596e-06 | F156: 4.962881416e-06 | G156: -2.44225624e-07 | H156: 5.904230236e-06 | J156: -2.704735643e-06 | K156: -7.164437562e-06 | L156: 1.343954656e-05 | N156: -0.0004886457516 | O156: -0.01610076447 | P156: 5.395432191e-05 | Q156: 0.004322845901 | R156: 5.379370254e-06
A157: 75.53926 | B157: ='DF raw data'!D162 -> 5.0259764e-06 | C157: ='DF raw data'!E162 -> 8.1655804e-07 | D157: ='DF raw data'!F162 -> 1.9254904e-07 | F157: 5.029273441e-06 | G157: 8.189121958e-07 | H157: 1.926753522e-07 | J157: -1.566980365e-06 | K157: -1.61962028e-05 | L157: 1.113606347e-05 | N157: -0.0004894296492 | O157: -0.01634560654 | P157: 4.58520095e-05 | Q157: 0.004345783827 | R157: 5.500254976e-06
A158: 76.03952 | B158: ='DF raw data'!D163 -> 3.9439014e-06 | C158: ='DF raw data'!E163 -> 1.1074305e-05 | D158: ='DF raw data'!F163 -> -4.5096949e-06 | F158: 3.946488599e-06 | G158: 1.110623248e-05 | H158: -4.51265326e-06 | J158: -3.730345803e-06 | K158: -6.694088132e-06 | L158: 8.3371725e-08 | N158: -0.000491295792 | O158: -0.01659138218 | P158: 4.250322497e-05 | Q158: 0.00436704649 | R158: 5.621907242e-06
A159: 76.53978 | B159: ='DF raw data'!D164 -> 1.7098652e-06 | C159: ='DF raw data'!E164 -> 1.7187938e-05 | D159: ='DF raw data'!F164 -> -3.8104117e-06 | F159: 1.710986872e-06 | G159: 1.723749123e-05 | H159: -3.81291133e-06 | J159: -6.900752526e-06 | K159: -8.018693321e-06 | L159: 2.343232153e-06 | N159: -0.0004947479624 | O159: -0.01683888479 | P159: 3.849179345e-05 | Q159: 0.004386302395 | R159: 5.745099851e-06
A160: 77.04004 | B160: ='DF raw data'!D165 -> 4.9041927e-07 | C160: ='DF raw data'!E165 -> 9.0670264e-06 | D160: ='DF raw data'!F165 -> -4.1836465e-06 | F160: 4.90740985e-07 | G160: 9.093166848e-06 | H160: -4.186390972e-06 | J160: -8.324384216e-06 | K160: -1.399633476e-05 | L160: 9.493896213e-06 | N160: -0.0004989123189 | O160: -0.01708847067 | P160: 3.148998702e-05 | Q160: 0.004402055576 | R160: 5.870117387e-06
A161: 77.5403 | B161: ='DF raw data'!D166 -> 8.7202596e-07 | C161: ='DF raw data'!E166 -> 1.0025834e-05 | D161: ='DF raw data'!F166 -> -3.0819101e-06 | F161: 8.72598009e-07 | G161: 1.005473871e-05 | H161: -3.083931833e-06 | J161: -8.345824172e-06 | K161: -9.733626099e-06 | L161: 9.131272088e-06 | N161: -0.0005030874009 | O161: -0.01734014517 | P161: 2.662064323e-05 | Q161: 0.004415372819 | R161: 5.997086172e-06
A162: 78.04056 | B162: ='DF raw data'!D167 -> 1.713736e-06 | C162: ='DF raw data'!E167 -> 1.1874467e-05 | D162: ='DF raw data'!F167 -> -3.6347756e-06 | F162: 1.714860211e-06 | G162: 1.190870136e-05 | H162: -3.637160013e-06 | J162: -7.68290278e-06 | K162: -5.29080366e-06 | L162: 4.087826256e-06 | N162: -0.0005069308498 | O162: -0.0175937424 | P162: 2.397386579e-05 | Q162: 0.004427365985 | R162: 6.125929952e-06
A163: 78.54082 | B163: ='DF raw data'!D168 -> 2.1058893e-06 | C163: ='DF raw data'!E168 -> 2.1288133e-06 | D163: ='DF raw data'!F168 -> 3.7497367e-07 | F163: 2.107270763e-06 | G163: 2.134950718e-06 | H163: 3.752196527e-07 | J163: -8.079120128e-06 | K163: -8.316557803e-06 | L163: 7.823159628e-06 | N163: -0.0005109725105 | O163: -0.01784936151 | P163: 1.981342459e-05 | Q163: 0.004437277849 | R163: 6.256740678e-06
A164: 79.04108 | B164: ='DF raw data'!D169 -> 1.7796179e-06 | C164: ='DF raw data'!E169 -> 1.0369543e-05 | D164: ='DF raw data'!F169 -> 5.756403e-06 | F164: 1.780785329e-06 | G164: 1.039943863e-05 | H164: 5.7601792e-06 | J164: -9.724770868e-06 | K164: -7.797403171e-07 | L164: 7.612910295e-06 | N164: -0.0005158374243 | O164: -0.01810741434 | P164: 1.942335169e-05 | Q164: 0.004446994575 | R164: 6.390042716e-06
A165: 79.54134 | B165: ='DF raw data'!D170 -> 1.9485612e-06 | C165: ='DF raw data'!E170 -> 1.2870368e-05 | D165: ='DF raw data'!F170 -> 4.9690689e-06 | F165: 1.949839456e-06 | G165: 1.290747357e-05 | H165: 4.972328609e-06 | J165: -1.149452346e-05 | K165: 2.045030622e-06 | L165: 1.174090398e-05 | N165: -0.0005215876747 | O165: -0.01836834379 | P165: 2.044639871e-05 | Q165: 0.00445722309 | R165: 6.526349438e-06
A166: 80.0416 | B166: ='DF raw data'!D171 -> -3.1705865e-06 | C166: ='DF raw data'!E171 -> 1.5582409e-05 | D166: ='DF raw data'!F171 -> 5.4448714e-07 | F166: -3.172666405e-06 | G166: 1.562733345e-05 | H166: 5.448443236e-07 | J166: -9.339840519e-06 | K166: 2.878946208e-06 | L166: 1.325120809e-05 | N166: -0.0005262600233 | O166: -0.01863161063 | P166: 2.188662034e-05 | Q166: 0.004468172091 | R166: 6.665135887e-06
A167: 80.54186 | B167: ='DF raw data'!D172 -> -8.1554344e-06 | C167: ='DF raw data'!E172 -> 1.5549185e-05 | D167: ='DF raw data'!F172 -> -5.3943986e-06 | F167: -8.160784365e-06 | G167: 1.559401366e-05 | H167: -5.397937325e-06 | J167: -9.035864541e-06 | K167: -1.833238877e-06 | L167: 1.424458032e-05 | N167: -0.0005307803049 | O167: -0.01889713878 | P167: 2.096952426e-05 | Q167: 0.004478662305 | R167: 6.806292977e-06
A168: 81.04212 | B168: ='DF raw data'!D173 -> -4.7143008e-06 | C168: ='DF raw data'!E173 -> 9.1122574e-06 | D168: ='DF raw data'!F173 -> -4.9405662e-06 | F168: -4.717393381e-06 | G168: 9.13852825e-06 | H168: -4.943807211e-06 | J168: -1.422937135e-05 | K168: -1.69618739e-05 | L168: 1.475385318e-05 | N168: -0.0005378986902 | O168: -0.01916622798 | P168: 1.248417723e-05 | Q168: 0.004484907639 | R168: 6.951113673e-06
A169: 81.54238 | B169: ='DF raw data'!D174 -> 4.1878043e-06 | C169: ='DF raw data'!E174 -> 1.194505e-05 | D169: ='DF raw data'!F174 -> 2.0033613e-07 | F169: 4.1905515e-06 | G169: 1.197948786e-05 | H169: 2.004675505e-07 | J169: -1.694237891e-05 | K169: -3.58055555e-06 | L169: 1.590445949e-05 | N169: -0.0005463742847 | O169: -0.01943955718 | P169: 1.069296851e-05 | Q169: 0.004490256904 | R169: 7.100510918e-06
A170: 82.04264 | B170: ='DF raw data'!D175 -> 9.6045869e-06 | C170: ='DF raw data'!E175 -> 8.6731498e-06 | D170: ='DF raw data'!F175 -> 3.3803727e-07 | F170: 9.610887509e-06 | G170: 8.698154693e-06 | H170: 3.382590224e-07 | J170: -1.350252885e-05 | K170: 1.155757898e-05 | L170: 1.273687391e-05 | N170: -0.0005531290597 | O170: -0.01971626552 | P170: 1.647476297e-05 | Q170: 0.004498498569 | R170: 7.253702123e-06
A171: 82.5429 | B171: ='DF raw data'!D176 -> 8.7765611e-06 | C171: ='DF raw data'!E176 -> -2.1959613e-06 | D171: ='DF raw data'!F176 -> 3.4657451e-06 | F171: 8.782318524e-06 | G171: -2.202292308e-06 | H171: 3.468018629e-06 | J171: -1.236784499e-05 | K171: 1.650551098e-06 | L171: 1.355555962e-05 | N171: -0.0005593161979 | O171: -0.01999606904 | P171: 1.730046766e-05 | Q171: 0.004507153301 | R171: 7.410350496e-06
A172: 83.04316 | B172: ='DF raw data'!D177 -> 5.6213144e-06 | C172: ='DF raw data'!E177 -> 2.3598695e-08 | D172: ='DF raw data'!F177 -> -1.1443227e-06 | F172: 5.625001982e-06 | G172: 2.366673059e-08 | H172: -1.145073376e-06 | J172: -1.552268921e-05 | K172: -2.123208162e-06 | L172: 9.377617484e-06 | N172: -0.0005670815784 | O172: -0.02027975727 | P172: 1.623831155e-05 | Q172: 0.004515276679 | R172: 7.571356775e-06
A173: 83.54342 | B173: ='DF raw data'!D178 -> -8.3862852e-07 | C173: ='DF raw data'!E178 -> 8.7728195e-06 | D173: ='DF raw data'!F178 -> -1.0360796e-05 | F173: -8.391786603e-07 | G173: 8.798111743e-06 | H173: -1.036759268e-05 | J173: -1.435000043e-05 | K173: -9.103371684e-06 | L173: 1.77502045e-06 | N173: -0.0005742603096 | O173: -0.02056703674 | P173: 1.168425883e-05 | Q173: 0.004521121846 | R173: 7.736398265e-06
A174: 84.04368 | B174: ='DF raw data'!D179 -> -6.2995332e-06 | C174: ='DF raw data'!E179 -> 7.259755e-06 | D174: ='DF raw data'!F179 -> -1.1313983e-05 | F174: -6.303665694e-06 | G174: 7.280685043e-06 | H174: -1.132140497e-05 | J174: -7.147821397e-06 | K174: 3.698369333e-07 | L174: -1.002504612e-06 | N174: -0.0005778360787 | O174: -0.02085610501 | P174: 1.186927345e-05 | Q174: 0.004527059569 | R174: 7.903502821e-06
A175: 84.54394 | B175: ='DF raw data'!D180 -> -5.8382948e-06 | C175: ='DF raw data'!E180 -> 8.065922e-06 | D175: ='DF raw data'!F180 -> -4.8370572e-07 | F175: -5.842124721e-06 | G175: 8.089176241e-06 | H175: -4.84023031e-07 | J175: -4.821947324e-06 | K175: -1.823054399e-05 | L175: 2.669694672e-06 | N175: -0.0005802483061 | O175: -0.02114638003 | P175: 2.749261515e-06 | Q175: 0.004528434914 | R175: 8.071938189e-06
A176: 85.0442 | B176: ='DF raw data'!D181 -> -5.5592154e-06 | C176: ='DF raw data'!E181 -> 7.8845942e-06 | D176: ='DF raw data'!F181 -> 8.2778042e-06 | F176: -5.562862245e-06 | G176: 7.907325669e-06 | H176: 8.28323444e-06 | J176: -6.0672399e-06 | K176: -5.169838818e-06 | L176: 3.202594024e-07 | N176: -0.0005832835035 | O176: -0.02143817344 | P176: 1.629979473e-07 | Q176: 0.004528516456 | R176: 8.242136482e-06
A177: 85.54446 | B177: ='DF raw data'!D182 -> -6.4513215e-06 | C177: ='DF raw data'!E182 -> 5.0213812e-06 | D177: ='DF raw data'!F182 -> 7.0501483e-06 | F177: -6.455553567e-06 | G177: 5.035857959e-06 | H177: 7.054773197e-06 | J177: -7.60021137e-06 | K177: -1.051615617e-05 | L177: 9.538704188e-07 | N177: -0.0005870855853 | O177: -0.02173186887 | P177: -5.097814336e-06 | Q177: 0.004525966223 | R177: 8.414573839e-06
A178: 86.04472 | B178: ='DF raw data'!D183 -> -2.3942241e-06 | C178: ='DF raw data'!E183 -> 6.7731462e-06 | D178: ='DF raw data'!F183 -> 2.5561512e-06 | F178: -2.395794711e-06 | G178: 6.792673338e-06 | H178: 2.557828035e-06 | J178: -8.807098469e-06 | K178: -9.186735433e-06 | L178: -1.812732573e-06 | N178: -0.0005914914243 | O178: -0.02202776837 | P178: -9.693570604e-06 | Q178: 0.004521116917 | R178: 8.589642863e-06
A179: 86.54498 | B179: ='DF raw data'!D184 -> 3.5695709e-06 | C179: ='DF raw data'!E184 -> 1.0432514e-06 | D179: ='DF raw data'!F184 -> 8.8151768e-07 | F179: 3.571912539e-06 | G179: 1.046259118e-06 | H179: 8.820959556e-07 | J179: -9.043880596e-06 | K179: -1.027021014e-05 | L179: 5.044901986e-06 | N179: -0.000596015716 | O179: -0.02232593119 | P179: -1.483134593e-05 | Q179: 0.004513697388 | R179: 8.767462633e-06
A180: 87.04524 | B180: ='DF raw data'!D185 -> 4.6485088e-06 | C180: ='DF raw data'!E185 -> -3.5383719e-06 | D180: ='DF raw data'!F185 -> 8.3223285e-06 | F180: 4.651558222e-06 | G180: -3.548573109e-06 | H180: 8.327787947e-06 | J180: -7.63634696e-06 | K180: -1.038595788e-05 | L180: 5.198476265e-06 | N180: -0.000599835875 | O180: -0.02262600509 | P180: -2.002702522e-05 | Q180: 0.004503678669 | R180: 8.947658365e-06
A181: 87.5455 | B181: ='DF raw data'!D186 -> 2.4344689e-07 | C181: ='DF raw data'!E186 -> 1.7530179e-05 | D181: ='DF raw data'!F186 -> -1.7975444e-07 | F181: 2.436065912e-07 | G181: 1.758071891e-05 | H181: -1.798723589e-07 | J181: -9.040473263e-06 | K181: -1.011525568e-05 | L181: 1.454486217e-06 | N181: -0.0006043584621 | O181: -0.02292834145 | P181: -2.508728302e-05 | Q181: 0.004491128504 | R181: 9.130692755e-06
A182: 88.04576 | B182: ='DF raw data'!D187 -> -6.2956934e-07 | C182: ='DF raw data'!E187 -> 5.6347444e-06 | D182: ='DF raw data'!F187 -> -1.6169216e-06 | F182: -6.299823375e-07 | G182: 5.650989499e-06 | H182: -1.617982301e-06 | J182: -1.069460806e-05 | K182: -3.670074292e-06 | L182: 4.529369819e-06 | N182: -0.0006097085468 | O182: -0.02323335425 | P182: -2.692327439e-05 | Q182: 0.004477659867 | R182: 9.317024284e-06
A183: 88.54602 | B183: ='DF raw data'!D188 -> 1.2936149e-06 | C183: ='DF raw data'!E188 -> 8.7749549e-06 | D183: ='DF raw data'!F188 -> 1.5442628e-06 | F183: 1.294463511e-06 | G183: 8.800253299e-06 | H183: 1.545275836e-06 | J183: -1.082244987e-05 | K183: -2.867604905e-06 | L183: 8.794554746e-06 | N183: -0.0006151225855 | O183: -0.02354107548 | P183: -2.835782242e-05 | Q183: 0.004463473583 | R183: 9.506712852e-06
A184: 89.04628 | B184: ='DF raw data'!D189 -> 3.7207581e-06 | C184: ='DF raw data'!E189 -> 1.5235365e-05 | D184: ='DF raw data'!F189 -> 8.8662082e-06 | F184: 3.723198917e-06 | G184: 1.527928891e-05 | H184: 8.872024433e-06 | J184: -1.032116625e-05 | K184: -4.295242786e-06 | L184: 6.924091326e-06 | N184: -0.0006202858522 | O184: -0.02385137968 | P184: -3.050656058e-05 | Q184: 0.004448212371 | R184: 9.699655724e-06
A185: 89.54654 | B185: ='DF raw data'!D190 -> 7.1474074e-06 | C185: ='DF raw data'!E190 -> 1.062719e-05 | D185: ='DF raw data'!F190 -> 1.2022669e-05 | F185: 7.152096099e-06 | G185: 1.065782844e-05 | H185: 1.203055587e-05 | J185: -7.848615817e-06 | K185: -7.009082156e-06 | L185: 1.687444138e-06 | N185: -0.0006242122007 | O185: -0.02416364807 | P185: -3.401292402e-05 | Q185: 0.004431197065 | R185: 9.895156207e-06
A186: 90.0468 | B186: ='DF raw data'!D191 -> 9.8184528e-06 | C186: ='DF raw data'!E191 -> 1.0075336e-05 | D186: ='DF raw data'!F191 -> 2.1091737e-06 | F186: 9.824893705e-06 | G186: 1.010438343e-05 | H186: 2.110557318e-06 | J186: -3.954303623e-06 | K186: -1.236048613e-05 | L186: 1.325973168e-05 | N186: -0.0006261903806 | O186: -0.02447690607 | P186: -4.01963808e-05 | Q186: 0.004411088424 | R186: 1.009212365e-05
A187: 90.54706 | B187: ='DF raw data'!D192 -> 1.2598232e-05 | C187: ='DF raw data'!E192 -> 1.6829286e-05 | D187: ='DF raw data'!F192 -> -9.2418231e-06 | F187: 1.260649644e-05 | G187: 1.687780522e-05 | H187: -9.247885736e-06 | J187: -2.200180172e-06 | K187: -1.233840565e-05 | L187: 1.547337488e-05 | N187: -0.0006272910428 | O187: -0.02479071469 | P187: -4.636879162e-05 | Q187: 0.004387891972 | R187: 1.029004857e-05
A188: 91.04732 | B188: ='DF raw data'!D193 -> 1.4860839e-05 | C188: ='DF raw data'!E193 -> 1.283381e-05 | D188: ='DF raw data'!F193 -> -1.0196674e-05 | F188: 1.487058771e-05 | G188: 1.287081017e-05 | H188: -1.020336302e-05 | J188: -1.069103972e-06 | K188: -1.018537225e-05 | L188: 1.344260957e-05 | N188: -0.0006278258727 | O188: -0.02510479086 | P188: -5.146412594e-05 | Q188: 0.004362146529 | R188: 1.048855869e-05
A189: 91.54758 | B189: ='DF raw data'!D194 -> 1.5701546e-05 | C189: ='DF raw data'!E194 -> -2.5092495e-06 | D189: ='DF raw data'!F194 -> -1.1796967e-05 | F189: 1.571184621e-05 | G189: -2.516483725e-06 | H189: -1.180470581e-05 | J189: -2.992681312e-06 | K189: -1.478368518e-05 | L189: 1.184146791e-05 | N189: -0.0006293229915 | O189: -0.02541961598 | P189: -5.885981229e-05 | Q189: 0.004332701319 | R189: 1.068841851e-05
A190: 92.04784 | B190: ='DF raw data'!D195 -> 1.3066013e-05 | C190: ='DF raw data'!E195 -> 1.1243224e-05 | D190: ='DF raw data'!F195 -> -7.3468946e-06 | F190: 1.30745843e-05 | G190: 1.127563848e-05 | H190: -7.351714163e-06 | J190: -8.174699687e-06 | K190: -1.11304852e-05 | L190: 9.707276199e-06 | N190: -0.0006334124667 | O190: -0.0257364869 | P190: -6.442794881e-05 | Q190: 0.004300470593 | R190: 1.089120506e-05
A191: 92.5481 | B191: ='DF raw data'!D196 -> 6.9874081e-06 | C191: ='DF raw data'!E196 -> 1.5879285e-05 | D191: ='DF raw data'!F196 -> 2.8481236e-06 | F191: 6.99199184e-06 | G191: 1.592506535e-05 | H191: 2.849991969e-06 | J191: -1.280266905e-05 | K191: -1.354017041e-05 | L191: 1.135397132e-05 | N191: -0.00063981713 | O191: -0.02605656182 | P191: -7.120155446e-05 | Q191: 0.004264851304 | R191: 1.109853063e-05
A192: 93.04836 | B192: ='DF raw data'!D197 -> 3.3722944e-07 | C192: ='DF raw data'!E197 -> 1.6153344e-05 | D192: ='DF raw data'!F197 -> 1.4695223e-06 | F192: 3.374506625e-07 | G192: 1.619991447e-05 | H192: 1.470486307e-06 | J192: -1.531055414e-05 | K192: -1.152723776e-05 | L192: 7.969342161e-06 | N192: -0.0006474763878 | O192: -0.02638046835 | P192: -7.696817042e-05 | Q192: 0.004226347207 | R192: 1.131121605e-05
A193: 93.54862 | B193: ='DF raw data'!D198 -> -2.2089278e-06 | C193: ='DF raw data'!E198 -> 1.3370586e-05 | D193: ='DF raw data'!F198 -> -5.827731e-06 | F193: -2.210376857e-06 | G193: 1.340913371e-05 | H193: -5.831553992e-06 | J193: -1.241646986e-05 | K193: -1.270705743e-05 | L193: -1.541821272e-07 | N193: -0.000653687851 | O193: -0.02670748224 | P193: -8.332500297e-05 | Q193: 0.004184663041 | R193: 1.152845439e-05
A194: 94.04888 | B194: ='DF raw data'!D199 -> 4.34951e-07 | C194: ='DF raw data'!E199 -> 2.2569029e-06 | D194: ='DF raw data'!F199 -> -5.1856841e-06 | F194: 4.352363279e-07 | G194: 2.263409604e-06 | H194: -5.189085909e-06 | J194: -8.525297829e-06 | K194: -1.201886205e-05 | L194: 3.416122507e-06 | N194: -0.0006579527165 | O194: -0.02703662967 | P194: -8.93375589e-05 | Q194: 0.004139971034 | R194: 1.174901051e-05
A195: 94.54914 | B195: ='DF raw data'!D200 -> 4.3531763e-08 | C195: ='DF raw data'!E200 -> 1.5264051e-05 | D195: ='DF raw data'!F200 -> -5.7914446e-07 | F195: 4.356031984e-08 | G195: 1.530805761e-05 | H195: -5.795243788e-07 | J195: -6.158613102e-06 | K195: -1.494653433e-05 | L195: 9.411649394e-06 | N195: -0.0006610336243 | O195: -0.02736731835 | P195: -9.681471216e-05 | Q195: 0.004091538506 | R195: 1.197229582e-05
A196: 95.0494 | B196: ='DF raw data'!D201 -> -4.733191e-06 | C196: ='DF raw data'!E201 -> 1.3196598e-05 | D196: ='DF raw data'!F201 -> 1.507591e-06 | F196: -4.736295973e-06 | G196: 1.32346441e-05 | H196: 1.50857998e-06 | J196: -2.763447533e-06 | K196: -1.569427188e-05 | L196: 1.052516298e-05 | N196: -0.0006624160665 | O196: -0.02769869861 | P196: -0.0001046659286 | Q196: 0.004039178328 | R196: 1.219728776e-05
A197: 95.54966 | B197: ='DF raw data'!D202 -> -5.4066259e-06 | C197: ='DF raw data'!E202 -> 1.0622921e-05 | D197: ='DF raw data'!F202 -> -4.2985848e-06 | F197: -5.410172647e-06 | G197: 1.065354713e-05 | H197: -4.301404672e-06 | J197: -2.036804168e-06 | K197: -7.560920144e-06 | L197: 1.177373651e-05 | N197: -0.0006634349982 | O197: -0.0280305886 | P197: -0.0001084483545 | Q197: 0.003984925954 | R197: 1.242335878e-05
A198: 96.04992 | B198: ='DF raw data'!D203 -> -1.5591542e-07 | C198: ='DF raw data'!E203 -> 1.6608597e-05 | D198: ='DF raw data'!F203 -> -5.7657708e-06 | F198: -1.560177005e-07 | G198: 1.665647997e-05 | H198: -5.769553146e-06 | J198: -5.471444915e-06 | K198: -7.495619823e-06 | L198: 3.921397851e-06 | N198: -0.0006661721432 | O198: -0.02836384788 | P198: -0.0001121981133 | Q198: 0.003928797726 | R198: 1.265166431e-05
A199: 96.55018 | B199: ='DF raw data'!D204 -> 5.0698313e-06 | C199: ='DF raw data'!E204 -> 1.1085646e-05 | D199: ='DF raw data'!F204 -> -2.3339762e-06 | F199: 5.073157109e-06 | G199: =(1-$G$1*($B$2-$G$2))*C199*$M$2/$M$1 -> 1.111760618e-05 | H199: -2.335507288e-06 | J199: =-CELL("contents", INDEX($F$6:$F$1203,1204-CELL("row",F199))) -> -6.300949513e-06 | K199: =CELL("contents", INDEX($G$6:$G$1203,1204-CELL("row",G199))) -> 2.361359985e-06 | L199: =-CELL("contents", INDEX($H$6:$H$1203,1204-CELL("row",H199))) -> -3.674205199e-06 | N199: -0.0006693242562 | O199: -0.02869868403 | P199: -0.0001110168193 | Q199: 0.003873260452 | R199: 1.288194384e-05
A200: =A199+$B$1 -> 97.05044 | B200: ='DF raw data'!D205 -> 7.8942003e-06 | C200: ='DF raw data'!E205 -> 1.5405085e-05 | D200: ='DF raw data'!F205 -> -3.718288e-07 | F200: 7.899378895e-06 | G200: 1.544949822e-05 | H200: -3.720727197e-07 | J200: -4.966754755e-06 | K200: -3.432157745e-06 | L200: -4.305885109e-06 | N200: =J200*$B$1+N199 -> -0.000671808925 | O200: =N200*$B$1+O199 -> -0.02903476316 | P200: =K200*$B$1+P199 -> -0.0001127337906 | Q200: =P200*$B$1+Q199 -> 0.003816864246 | R200: =(N200^2+P200^2)*$B$1+R199 -> 1.311408255e-05
... 1003 more rows

Sheet 15 mm
A1: dz | B1: ='DF raw data'!H7 -> 0.50022 | C1: mm | F1: T_coeff | G1: -0.0008 | H1: /degC | L1: Hallref | M1: ='PI vs gap'!B44 -> 0.50549 | N1: T | P1: IBy total | Q1: =P1203*1000 -> -5.35122331 | R1: muTm
A2: Tref | B2: ='DF raw data'!H8 -> 20.81 | C2: degC | F2: Tcorr | G2: 20 | H2: degC | L2: NMRref | M2: ='PI vs gap'!B45 -> 0.506615 | N2: T | P2: JBy total | Q2: =Q1203 -> -5.681979718 | R2: muTm^2
A3: Encoder | B3: ='DF raw data'!H9 -> 491230 | P3: PI total | Q3: =R1203 -> 2878.279537 | R3: T^2mm^3
J4: SXR-rotation
A5: z [mm] | B5: Bx | C5: By | D5: Bz | F5: Bx_corr | G5: By_corr | H5: Bz_corr | J5: Bx_rot | K5: By_rot | L5: Bz_rot | N5: Ix | O5: Jx | P5: Iy | Q5: Jy | R5: PI
A6: 0 | B6: ='DF raw data'!G11 -> 6.3071302e-06 | C6: ='DF raw data'!H11 -> 6.3970128e-06 | D6: ='DF raw data'!I11 -> -5.1794318e-06 | F6: =(1-$G$1*($B$2-$G$2))*B6 -> 6.31121722e-06 | G6: =(1-$G$1*($B$2-$G$2))*C6*$M$2/$M$1 -> 6.415404247e-06 | H6: =(1-$G$1*($B$2-$G$2))*D6 -> -5.182788072e-06 | J6: =-CELL("contents", INDEX($F$6:$F$1203,1204-CELL("row",F6))) -> -4.454179839e-06 | K6: =CELL("contents", INDEX($G$6:$G$1203,1204-CELL("row",G6))) -> 1.109002749e-06 | L6: =-CELL("contents", INDEX($H$6:$H$1203,1204-CELL("row",H6))) -> 5.218685418e-06 | N6: =J6*$B$1 -> -2.228069839e-06 | O6: =N6*$B$1 -> -1.114525095e-06 | P6: =K6*$B$1 -> 5.547453549e-07 | Q6: =P6*$B$1 -> 2.774947214e-07 | R6: =(N6^2+P6)^2*$B$1 -> 1.539416629e-13
A7: =A6+$B$1 -> 0.50022 | B7: ='DF raw data'!G12 -> 7.0914357e-06 | C7: ='DF raw data'!H12 -> -1.4115414e-05 | D7: ='DF raw data'!I12 -> -4.4178131e-07 | F7: =(1-$G$1*($B$2-$G$2))*B7 -> 7.09603095e-06 | G7: =(1-$G$1*($B$2-$G$2))*C7*$M$2/$M$1 -> -1.415599589e-05 | H7: -4.420675843e-07 | J7: =-CELL("contents", INDEX($F$6:$F$1203,1204-CELL("row",F7))) -> -6.994706735e-06 | K7: =CELL("contents", INDEX($G$6:$G$1203,1204-CELL("row",G7))) -> -6.132967768e-06 | L7: =-CELL("contents", INDEX($H$6:$H$1203,1204-CELL("row",H7))) -> 4.622505744e-06 | N7: =J7*$B$1+N6 -> -5.726962042e-06 | O7: =N7*$B$1+O6 -> -3.979266048e-06 | P7: =K7*$B$1+P6 -> -2.513087782e-06 | Q7: =P7*$B$1+Q6 -> -9.796020489e-07 | R7: =(N7^2+P7^2)*$B$1+R6 -> 1.971939889e-11
A8: =A7+$B$1 -> 1.00044 | B8: ='DF raw data'!G13 -> 7.0545902e-06 | C8: ='DF raw data'!H13 -> -1.2932183e-05 | D8: ='DF raw data'!I13 -> -6.3818214e-07 | F8: 7.059161574e-06 | G8: -1.29693631e-05 | H8: -6.38595682e-07 | J8: -9.800400347e-06 | K8: 9.189034389e-06 | L8: 4.277199831e-06 | N8: =J8*$B$1+N7 -> -1.06293183e-05 | O8: =N8*$B$1+O7 -> -9.29626365e-06 | P8: =K8*$B$1+P7 -> 2.083451e-06 | Q8: =P8*$B$1+Q7 -> 6.258181014e-08 | R8: =(N8^2+P8^2)*$B$1+R7 -> 7.840679783e-11
A9: 1.50066 | B9: ='DF raw data'!G14 -> 7.4831214e-06 | C9: ='DF raw data'!H14 -> -2.5295676e-05 | D9: ='DF raw data'!I14 -> -6.1183778e-06 | F9: 7.487970463e-06 | G9: -2.536840121e-05 | H9: -6.122342509e-06 | J9: -1.350258501e-05 | K9: 1.279898165e-05 | L9: 5.045731216e-06 | N9: -1.738358138e-05 | O9: -1.799187873e-05 | P9: 8.485757603e-06 | Q9: 4.307327478e-06 | R9: 2.65587613e-10
A10: 2.00088 | B10: ='DF raw data'!G15 -> 7.1109262e-06 | C10: ='DF raw data'!H15 -> -1.3928749e-05 | D10: ='DF raw data'!I15 -> 2.8212736e-07 | F10: 7.11553408e-06 | G10: -1.396879423e-05 | H10: 2.823101785e-07 | J10: -1.576712448e-05 | K10: 5.282294289e-06 | L10: 5.896177449e-06 | N10: -2.527061238e-05 | O10: -3.063274445e-05 | P10: 1.112806685e-05 | Q10: 9.873809079e-06 | R10: 6.469742103e-10
A11: 2.5011 | B11: ='DF raw data'!G16 -> 6.505109e-06 | C11: ='DF raw data'!H16 -> 3.3195154e-06 | D11: ='DF raw data'!I16 -> 4.960812e-06 | F11: 6.509324311e-06 | G11: 3.329059025e-06 | H11: 4.964026606e-06 | J11: -1.588808681e-05 | K11: 7.791781194e-06 | L11: 6.301821936e-06 | N11: -3.321815117e-05 | O11: -4.724912803e-05 | P11: 1.502567164e-05 | Q11: 1.738995055e-05 | R11: 1.311874826e-09
A12: 3.00132 | B12: ='DF raw data'!G17 -> 6.8951922e-06 | C12: ='DF raw data'!H17 -> -6.8149475e-06 | D12: ='DF raw data'!I17 -> 8.7919971e-06 | F12: 6.899660285e-06 | G12: -6.834540511e-06 | H12: 8.797694314e-06 | J12: -1.301920698e-05 | K12: 2.352372095e-06 | L12: 6.353301774e-06 | N12: -3.973061889e-05 | O12: -6.712317821e-05 | P12: 1.620237521e-05 | Q12: 2.549470267e-05 | R12: 2.232799374e-09
A13: 3.50154 | B13: ='DF raw data'!G18 -> 6.8463314e-06 | C13: ='DF raw data'!H18 -> -5.9100439e-06 | D13: ='DF raw data'!I18 -> 6.607293e-06 | F13: 6.850767823e-06 | G13: -5.927035309e-06 | H13: 6.611574526e-06 | J13: -8.050699075e-06 | K13: -2.568385654e-06 | L13: 5.991144748e-06 | N13: -4.375773958e-05 | O13: -8.90116747e-05 | P13: 1.491761734e-05 | Q13: 3.295679322e-05 | R13: 3.301907115e-09
A14: 4.00176 | B14: ='DF raw data'!G19 -> 6.7323908e-06 | C14: ='DF raw data'!H19 -> -3.6215008e-06 | D14: ='DF raw data'!I19 -> 1.6084171e-06 | F14: 6.736753389e-06 | G14: -3.631912635e-06 | H14: 1.609459354e-06 | J14: -6.744434563e-06 | K14: -1.859187651e-06 | L14: 5.497993893e-06 | N14: -4.713144064e-05 | O14: -0.0001125877639 | P14: 1.398761449e-05 | Q14: 3.995367774e-05 | R14: 4.510951888e-09
A15: 4.50198 | B15: ='DF raw data'!G20 -> 7.2080475e-06 | C15: ='DF raw data'!H20 -> -1.6142307e-05 | D15: ='DF raw data'!I20 -> 3.8644671e-06 | F15: 7.212718315e-06 | G15: -1.618871622e-05 | H15: 3.866971275e-06 | J15: -6.667488735e-06 | K15: -1.353784179e-06 | L15: 5.543012046e-06 | N15: -5.046665185e-05 | O15: -0.0001378321925 | P15: 1.331042457e-05 | Q15: 4.661181832e-05 | R15: 5.873576355e-09
A16: 5.0022 | B16: ='DF raw data'!G21 -> 6.667844e-06 | C16: ='DF raw data'!H21 -> -1.6154247e-06 | D16: ='DF raw data'!I21 -> 2.2487332e-06 | F16: 6.672164763e-06 | G16: -1.620069055e-06 | H16: 2.250190379e-06 | J16: -5.591191446e-06 | K16: 1.556199055e-06 | L16: 5.955249202e-06 | N16: -5.326347764e-05 | O16: -0.0001644756493 | P16: 1.408886646e-05 | Q16: 5.36593511e-05 | R16: 7.391991267e-09
A17: 5.50242 | B17: ='DF raw data'!G22 -> 6.6199846e-06 | C17: ='DF raw data'!H22 -> -1.7444456e-06 | D17: ='DF raw data'!I22 -> -6.1997721e-06 | F17: 6.62427435e-06 | G17: -1.749460891e-06 | H17: -6.203789552e-06 | J17: -6.075505478e-06 | K17: -8.104806263e-06 | L17: 5.564524677e-06 | N17: -5.630256699e-05 | O17: -0.0001926393194 | P17: 1.003468027e-05 | Q17: 5.867889886e-05 | R17: 9.028047744e-09
A18: 6.00264 | B18: ='DF raw data'!G23 -> 6.6354705e-06 | C18: ='DF raw data'!H23 -> -2.1415274e-06 | D18: ='DF raw data'!I23 -> -5.7159918e-06 | F18: 6.639770285e-06 | G18: -2.147684303e-06 | H18: -5.719695763e-06 | J18: -7.796953154e-06 | K18: -9.781051863e-06 | L18: 4.602460263e-06 | N18: -6.020275889e-05 | O18: -0.0002227539434 | P18: 5.142002508e-06 | Q18: 6.125103136e-05 | R18: 1.085425711e-08
A19: 6.50286 | B19: ='DF raw data'!G24 -> 6.5542363e-06 | C19: ='DF raw data'!H24 -> 1.4960985e-06 | D19: ='DF raw data'!I24 -> 3.0992944e-06 | F19: 6.558483445e-06 | G19: 1.500399791e-06 | H19: 3.101302743e-06 | J19: -8.776334582e-06 | K19: 6.814428455e-06 | L19: 4.59280421e-06 | N19: -6.459285698e-05 | O19: -0.0002550645823 | P19: 8.55071591e-06 | Q19: 6.552827047e-05 | R19: 1.297786704e-08
A20: 7.00308 | B20: ='DF raw data'!G25 -> 6.7993406e-06 | C20: ='DF raw data'!H25 -> -4.314521e-06 | D20: ='DF raw data'!I25 -> 8.7728959e-06 | F20: 6.803746573e-06 | G20: -4.326925272e-06 | H20: 8.778580737e-06 | J20: -7.802363557e-06 | K20: -6.06354154e-08 | L20: 5.513510841e-06 | N20: -6.849575528e-05 | O20: -0.000289327529 | P20: 8.520384862e-06 | Q20: 6.979033739e-05 | R20: 1.53610479e-08
A21: 7.5033 | B21: ='DF raw data'!G26 -> 6.6801922e-06 | C21: ='DF raw data'!H26 -> -1.7867444e-06 | D21: ='DF raw data'!I26 -> 4.7988192e-06 | F21: 6.684520965e-06 | G21: -1.7918813e-06 | H21: 4.801928835e-06 | J21: -5.555324119e-06 | K21: 1.283226607e-06 | L21: 6.366354226e-06 | N21: -7.127463951e-05 | O21: -0.0003249805292 | P21: 9.162280476e-06 | Q21: 7.437349332e-05 | R21: 1.79441948e-08
A22: 8.00352 | B22: ='DF raw data'!G27 -> 8.3311734e-06 | C22: ='DF raw data'!H27 -> -1.6801971e-05 | D22: ='DF raw data'!I27 -> 3.2885739e-06 | F22: 8.336572e-06 | G22: -1.685027676e-05 | H22: 3.290704896e-06 | J22: -4.260213531e-06 | K22: -5.647101605e-06 | L22: 6.430487858e-06 | N22: -7.340568352e-05 | O22: -0.0003616995202 | P22: 6.337487311e-06 | Q22: 7.754363123e-05 | R22: 2.065966814e-08
A23: 8.50374 | B23: ='DF raw data'!G28 -> 9.7042757e-06 | C23: ='DF raw data'!H28 -> -1.8345056e-05 | D23: ='DF raw data'!I28 -> -8.40773e-07 | F23: =(1-$G$1*($B$2-$G$2))*B23 -> 9.710564071e-06 | G23: -1.839779814e-05 | H23: -8.413178209e-07 | J23: -3.738696707e-06 | K23: -1.082638368e-05 | L23: -4.139065077e-07 | N23: -7.527585439e-05 | O23: -0.0003993540081 | P23: 9.219136657e-07 | Q23: 7.800479088e-05 | R23: 2.349456704e-08
A24: 9.00396 | B24: ='DF raw data'!G29 -> 7.7094019e-06 | C24: ='DF raw data'!H29 -> -3.222018e-06 | D24: ='DF raw data'!I29 -> -4.4399508e-06 | F24: 7.714397592e-06 | G24: -3.231281319e-06 | H24: -4.442827888e-06 | J24: -6.181438378e-06 | K24: -7.365231377e-06 | L24: -5.706984631e-06 | N24: -7.836793349e-05 | O24: -0.0004385552158 | P24: -2.762322374e-06 | Q24: 7.662302198e-05 | R24: 2.657050157e-08
A25: 9.50418 | B25: ='DF raw data'!G30 -> 8.5485763e-06 | C25: ='DF raw data'!H30 -> 1.0551209e-06 | D25: ='DF raw data'!I30 -> -2.6373998e-06 | F25: 8.554115777e-06 | G25: 1.058154378e-06 | H25: -2.639108835e-06 | J25: -8.342048847e-06 | K25: -8.308596983e-06 | L25: -5.659234409e-06 | N25: -8.254079316e-05 | O25: -0.0004798437714 | P25: -6.918448756e-06 | Q25: 7.316227555e-05 | R25: 3.000243469e-08
A26: 10.0044 | B26: ='DF raw data'!G31 -> 1.0194216e-05 | C26: ='DF raw data'!H31 -> -3.9218448e-06 | D26: ='DF raw data'!I31 -> 3.8753819e-06 | F26: 1.020082185e-05 | G26: -3.933120125e-06 | H26: 3.877893147e-06 | J26: -8.137929764e-06 | K26: -9.000315777e-07 | L26: 3.049014382e-06 | N26: -8.661154839e-05 | O26: -0.0005231686001 | P26: -7.368662552e-06 | Q26: 6.947632316e-05 | R26: 3.378202573e-08
A27: 10.50462 | B27: ='DF raw data'!G32 -> 4.5571596e-06 | C27: ='DF raw data'!H32 -> 7.790602e-07 | D27: ='DF raw data'!I32 -> 2.5904885e-06 | F27: 4.560112639e-06 | G27: 7.813000023e-07 | H27: 2.592167137e-06 | J27: -7.466529778e-06 | K27: 4.119343784e-06 | L27: 9.710067149e-06 | N27: -9.034645592e-05 | O27: -0.0005683617043 | P27: -5.308084404e-06 | Q27: 6.682111318e-05 | R27: 3.78791566e-08
A28: 11.00484 | B28: ='DF raw data'!G33 -> 5.2876482e-07 | C28: ='DF raw data'!H33 -> -3.9896824e-07 | D28: ='DF raw data'!I33 -> -1.5701387e-06 | F28: 5.291074596e-07 | G28: -4.001152759e-07 | H28: -1.57115615e-06 | J28: -1.028083967e-05 | K28: -3.125170124e-06 | L28: 6.441476174e-06 | N28: -9.548913754e-05 | O28: -0.0006161272806 | P28: -6.871357003e-06 | Q28: 6.338392298e-05 | R28: 4.246386845e-08
A29: 11.50506 | B29: ='DF raw data'!G34 -> 2.1362248e-06 | C29: ='DF raw data'!H34 -> -3.162377e-06 | D29: ='DF raw data'!I34 -> -4.3775885e-06 | F29: 2.137609074e-06 | G29: -3.171468851e-06 | H29: -4.380425177e-06 | J29: -1.179416267e-05 | K29: 5.210036944e-06 | L29: 3.257864029e-06 | N29: -0.0001013888136 | O29: -0.000666843993 | P29: -4.265192323e-06 | Q29: 6.125038848e-05 | R29: 4.761507568e-08
A30: 12.00528 | B30: ='DF raw data'!G35 -> 3.3355118e-06 | C30: ='DF raw data'!H35 -> 9.6206131e-06 | D30: ='DF raw data'!I35 -> -7.7798995e-06 | F30: 3.337673212e-06 | G30: 9.648272415e-06 | H30: -7.784940875e-06 | J30: -8.902105529e-06 | K30: 9.383060215e-06 | L30: -5.718752652e-07 | N30: -0.0001058418248 | O30: -0.0007197881906 | P30: 4.284020573e-07 | Q30: 6.146468376e-05 | R30: 5.321887797e-08
A31: 12.5055 | B31: ='DF raw data'!G36 -> 5.4093498e-06 | C31: ='DF raw data'!H36 -> -4.3497475e-06 | D31: ='DF raw data'!I36 -> -5.5419528e-06 | F31: 5.412855059e-06 | G31: -4.362253048e-06 | H31: -5.545543985e-06 | J31: -5.759509745e-06 | K31: 2.605409593e-06 | L31: -4.093201777e-06 | N31: -0.0001087228468 | O31: -0.000774173533 | P31: 1.731680044e-06 | Q31: 6.233090475e-05 | R31: 5.913330724e-08
A32: 13.00572 | B32: ='DF raw data'!G37 -> 6.0889924e-06 | C32: ='DF raw data'!H37 -> -2.1932958e-06 | D32: ='DF raw data'!I37 -> -2.3379741e-06 | F32: 6.092938067e-06 | G32: -2.199601537e-06 | H32: -2.339489107e-06 | J32: -5.777410137e-06 | K32: 1.469226926e-05 | L32: -5.514681299e-08 | N32: -0.0001116128229 | O32: -0.0008300044993 | P32: 9.081046974e-06 | Q32: 6.687342607e-05 | R32: 6.540600984e-08
A33: 13.50594 | B33: ='DF raw data'!G38 -> 5.513346e-06 | C33: ='DF raw data'!H38 -> -6.0433358e-06 | D33: ='DF raw data'!I38 -> -3.9713427e-06 | F33: 5.516918648e-06 | G33: -6.060710424e-06 | H33: -3.97391613e-06 | J33: -7.701105785e-06 | K33: 1.797192927e-06 | L33: 5.202567881e-06 | N33: -0.00011546507 | O33: -0.0008877624366 | P33: 9.98003882e-06 | Q33: 7.186564108e-05 | R33: 7.212485662e-08
A34: 14.00616 | B34: ='DF raw data'!G39 -> 2.1383607e-06 | C34: ='DF raw data'!H39 -> -4.7792473e-06 | D34: ='DF raw data'!I39 -> -8.6672816e-07 | F34: 2.139746358e-06 | G34: -4.792987662e-06 | H34: -8.672897998e-07 | J34: -6.749443607e-06 | K34: -4.943179727e-07 | L34: 3.445268588e-06 | N34: -0.0001188412767 | O34: -0.00094720922 | P34: 9.732771084e-06 | Q34: 7.673416784e-05 | R34: 7.923697251e-08
A35: 14.50638 | B35: ='DF raw data'!G40 -> -4.6505907e-06 | C35: ='DF raw data'!H40 -> -3.3357012e-06 | D35: ='DF raw data'!I40 -> -5.2666178e-06 | F35: -4.653604283e-06 | G35: -3.345291359e-06 | H35: -5.270030568e-06 | J35: -5.937444773e-06 | K35: 7.56738039e-06 | L35: 3.541589264e-07 | N35: -0.0001218113053 | O35: -0.001008141671 | P35: 1.35181261e-05 | Q35: 8.349620487e-05 | R35: 8.675064399e-08
A36: 15.0066 | B36: ='DF raw data'!G41 -> -9.5451933e-06 | C36: ='DF raw data'!H41 -> 4.6525838e-06 | D36: ='DF raw data'!I41 -> -6.477037e-06 | F36: -9.551378585e-06 | G36: 4.665960004e-06 | H36: -6.48123412e-06 | J36: -7.134236291e-06 | K36: -5.085632506e-06 | L36: -1.19022997e-06 | N36: -0.000125379993 | O36: -0.001070859251 | P36: 1.097419101e-05 | Q36: 8.89857147e-05 | R36: 9.467441667e-08
A37: 15.50682 | B37: ='DF raw data'!G42 -> -8.2044635e-06 | C37: ='DF raw data'!H42 -> -1.820101e-06 | D37: ='DF raw data'!I42 -> -7.3601649e-07 | F37: -8.209779992e-06 | G37: -1.8253338e-06 | H37: -7.364934287e-07 | J37: -7.471740052e-06 | K37: -1.117876187e-06 | L37: -3.206193568e-06 | N37: -0.0001291175068 | O37: -0.001135446411 | P37: 1.041500698e-05 | Q37: 9.41955095e-05 | R37: 1.030680097e-07
A38: 16.00704 | B38: ='DF raw data'!G43 -> -3.178098e-06 | C38: ='DF raw data'!H43 -> -2.4815001e-06 | D38: ='DF raw data'!I43 -> -2.5338411e-06 | F38: -3.180157408e-06 | G38: -2.488634426e-06 | H38: -2.535483029e-06 | J38: -9.357698162e-06 | K38: -1.063677111e-05 | L38: 7.217091147e-07 | N38: -0.0001337984146 | O38: -0.001202375053 | P38: 5.094281341e-06 | Q38: 9.674377091e-05 | R38: 1.120359376e-07
A39: 16.50726 | B39: ='DF raw data'!G44 -> 9.653063e-07 | C39: ='DF raw data'!H44 -> 3.7918088e-07 | D39: ='DF raw data'!I44 -> -9.8219789e-06 | F39: 9.659318185e-07 | G39: 3.802710271e-07 | H39: -9.828343542e-06 | J39: -1.028177428e-05 | K39: -2.854069342e-06 | L39: -1.557779287e-06 | N39: -0.0001389415637 | O39: -0.001271876402 | P39: 3.666618775e-06 | Q39: 9.857788695e-05 | R39: 1.216992887e-07
A40: 17.00748 | B40: ='DF raw data'!G45 -> 4.447275e-07 | C40: ='DF raw data'!H45 -> -9.5664818e-06 | D40: ='DF raw data'!I45 -> 3.010977e-06 | F40: 4.450156834e-07 | G40: -9.593985488e-06 | H40: 3.012928113e-06 | J40: -5.667201669e-06 | K40: 2.934272566e-07 | L40: -3.741568766e-06 | N40: -0.0001417764113 | O40: -0.001342795799 | P40: 3.813396957e-06 | Q40: 0.0001004854244 | R40: 1.317612604e-07
A41: 17.5077 | B41: ='DF raw data'!G46 -> -3.1182237e-06 | C41: ='DF raw data'!H46 -> -1.6532982e-05 | D41: ='DF raw data'!I46 -> -7.5039287e-07 | F41: -3.120244309e-06 | G41: -1.658051441e-05 | H41: -7.508791246e-07 | J41: -1.234839358e-06 | K41: 1.432425826e-06 | L41: 8.21670928e-07 | N41: -0.0001423941027 | O41: -0.001414024177 | P41: 4.529925004e-06 | Q41: 0.0001027513835 | R41: 1.41914026e-07
A42: 18.00792 | B42: ='DF raw data'!G47 -> -3.7917923e-06 | C42: ='DF raw data'!H47 -> -9.3766157e-06 | D42: ='DF raw data'!I47 -> -9.7043776e-06 | F42: -3.794249381e-06 | G42: -9.403573522e-06 | H42: -9.710666037e-06 | J42: -2.848149906e-06 | K42: 1.955892782e-06 | L42: 1.30110507e-06 | N42: -0.0001438188042 | O42: -0.001485965219 | P42: 5.508301691e-06 | Q42: 0.0001055067461 | R42: 1.52275678e-07
A43: 18.50814 | B43: ='DF raw data'!G48 -> -2.0146554e-06 | C43: ='DF raw data'!H48 -> -1.0316742e-05 | D43: ='DF raw data'!I48 -> -4.9025016e-06 | F43: -2.015960897e-06 | G43: -1.034640269e-05 | H43: -4.905678421e-06 | J43: -5.373113523e-06 | K43: -9.853309207e-06 | L43: 2.734676723e-06 | N43: -0.0001465065431 | O43: -0.001559250722 | P43: 5.794793594e-07 | Q43: 0.0001057966133 | R43: 1.630126517e-07
A44: 19.00836 | B44: ='DF raw data'!G49 -> -1.0611398e-06 | C44: ='DF raw data'!H49 -> -1.2730472e-06 | D44: ='DF raw data'!I49 -> 1.4532791e-06 | F44: -1.061827419e-06 | G44: -1.276707218e-06 | H44: 1.454220825e-06 | J44: -5.072613725e-06 | K44: -5.822128165e-06 | L44: -2.733952754e-06 | N44: -0.0001490439659 | O44: -0.001633805495 | P44: -2.332865591e-06 | Q44: 0.0001046296673 | R44: 1.74127313e-07
A45: 19.50858 | B45: ='DF raw data'!G50 -> -1.5548352e-07 | C45: ='DF raw data'!H50 -> 6.0280377e-07 | D45: ='DF raw data'!I50 -> -3.9183665e-06 | F45: -1.555842733e-07 | G45: 6.045368341e-07 | H45: -3.920905601e-06 | J45: -4.156885317e-06 | K45: -7.628973262e-06 | L45: -3.491362938e-06 | N45: -0.0001511233231 | O45: -0.001709400403 | P45: -6.149030596e-06 | Q45: 0.0001015537992 | R45: 1.855703804e-07
A46: 20.0088 | B46: ='DF raw data'!G51 -> -2.3453088e-08 | C46: ='DF raw data'!H51 -> 8.3083228e-07 | D46: ='DF raw data'!I51 -> -1.8957887e-06 | F46: -2.34682856e-08 | G46: 8.332209274e-07 | H46: -1.897017171e-06 | J46: -4.422119378e-06 | K46: -1.675018482e-05 | L46: -3.583640795e-07 | N46: -0.0001533353556 | O46: -0.001786101815 | P46: -1.452780805e-05 | Q46: 9.428669905e-05 | R46: 1.974369937e-07
A47: 20.50902 | B47: ='DF raw data'!G52 -> -5.2627655e-07 | C47: ='DF raw data'!H52 -> -9.4754851e-06 | D47: ='DF raw data'!I52 -> 1.4777709e-06 | F47: -5.266175772e-07 | G47: -9.502727172e-06 | H47: 1.478728496e-06 | J47: -3.568775869e-06 | K47: -9.27564839e-06 | L47: 2.648899475e-06 | N47: -0.0001551205287 | O47: -0.001863696206 | P47: -1.916767288e-05 | Q47: 8.469864572e-05 | R47: 2.096572573e-07
A48: 21.00924 | B48: ='DF raw data'!G53 -> -2.1302656e-06 | C48: ='DF raw data'!H53 -> 1.6931715e-06 | D48: ='DF raw data'!I53 -> -8.4343418e-07 | F48: -2.131646012e-06 | G48: 1.698039377e-06 | H48: -8.439807253e-07 | J48: -1.106931127e-06 | K48: 4.97800727e-06 | L48: 1.250023891e-06 | N48: -0.0001556742378 | O48: -0.001941567573 | P48: -1.667757409e-05 | Q48: 7.635618961e-05 | R48: 2.21918955e-07
A49: 21.50946 | B49: ='DF raw data'!G54 -> 1.1611492e-06 | C49: ='DF raw data'!H54 -> -8.1446797e-06 | D49: ='DF raw data'!I54 -> 1.6282495e-06 | F49: 1.161901625e-06 | G49: -8.168095699e-06 | H49: 1.629304606e-06 | J49: -2.731463042e-06 | K49: -9.134745656e-06 | L49: -2.002182374e-06 | N49: -0.0001570405702 | O49: -0.002020122407 | P49: -2.124695656e-05 | Q49: 6.5728037e-05 | R49: 2.344810668e-07
A50: 22.00968 | B50: ='DF raw data'!G55 -> 5.4872462e-06 | C50: ='DF raw data'!H55 -> 8.2973003e-08 | D50: ='DF raw data'!I55 -> -9.2789168e-07 | F50: 5.490801936e-06 | G50: 8.321155084e-08 | H50: -9.284929538e-07 | J50: -6.879555665e-06 | K50: -1.550561192e-05 | L50: -7.32307608e-07 | N50: -0.0001604818616 | O50: -0.002100398644 | P50: -2.900317376e-05 | Q50: 5.122006942e-05 | R50: 2.477847238e-07
A51: 22.5099 | B51: ='DF raw data'!G56 -> 6.3069301e-06 | C51: ='DF raw data'!H56 -> -4.4845056e-06 | D51: ='DF raw data'!I56 -> 1.3882557e-06 | F51: 6.311016991e-06 | G51: -4.497398578e-06 | H51: 1.38915529e-06 | J51: -1.127284407e-05 | K51: 2.812950965e-06 | L51: -5.84528159e-07 | N51: -0.0001661207636 | O51: -0.002183495572 | P51: -2.759607942e-05 | Q51: 3.741595857e-05 | R51: 2.619697884e-07
A52: 23.01012 | B52: ='DF raw data'!G57 -> 2.8752079e-06 | C52: ='DF raw data'!H57 -> 5.3288909e-07 | D52: ='DF raw data'!I57 -> 6.116657e-06 | F52: 2.877071035e-06 | G52: 5.344211491e-07 | H52: 6.120620594e-06 | J52: -1.310062671e-05 | K52: -6.174184126e-06 | L52: -5.976637153e-06 | N52: -0.0001726739591 | O52: -0.00226987054 | P52: -3.068452981e-05 | Q52: 2.206694307e-05 | R52: 2.773554734e-07
A53: 23.51034 | B53: ='DF raw data'!G58 -> -3.1488111e-07 | C53: ='DF raw data'!H58 -> 1.2896869e-06 | D53: ='DF raw data'!I58 -> 6.4980118e-06 | F53: -3.15085153e-07 | G53: 1.293394757e-06 | H53: 6.502222512e-06 | J53: -7.872362688e-06 | K53: -7.513496518e-06 | L53: -2.304068169e-06 | N53: -0.0001766118724 | O53: -0.002358215331 | P53: -3.444293104e-05 | Q53: 4.83790011e-06 | R53: 2.93551631e-07
A54: 24.01056 | B54: ='DF raw data'!G59 -> -8.8658993e-07 | C54: ='DF raw data'!H59 -> -3.4198913e-06 | D54: ='DF raw data'!I59 -> 1.0505564e-05 | F54: -8.871644403e-07 | G54: -3.429723506e-06 | H54: 1.051237161e-05 | J54: -1.416782481e-06 | K54: -3.614418282e-07 | L54: 5.700181826e-06 | N54: -0.0001773205753 | O54: -0.002446914629 | P54: -3.462373147e-05 | Q54: -1.248158284e-05 | R54: 3.098795067e-07
A55: 24.51078 | B55: ='DF raw data'!G60 -> 1.7025536e-06 | C55: ='DF raw data'!H60 -> -3.9302522e-06 | D55: ='DF raw data'!I60 -> 5.6914428e-06 | F55: 1.703656855e-06 | G55: -3.941551697e-06 | H55: 5.695130855e-06 | J55: -1.724429507e-06 | K55: 1.250919691e-07 | L55: 4.395410682e-06 | N55: -0.0001781831694 | O55: -0.002536045414 | P55: -3.456115796e-05 | Q55: -2.976976528e-05 | R55: 3.263586121e-07
A56: 25.011 | B56: ='DF raw data'!G61 -> 3.1918003e-06 | C56: ='DF raw data'!H61 -> 2.1997928e-06 | D56: ='DF raw data'!I61 -> -9.3235184e-07 | F56: 3.193868587e-06 | G56: 2.206117216e-06 | H56: -9.32956004e-07 | J56: -6.801274772e-06 | K56: -6.489708359e-06 | L56: 7.534002972e-06 | N56: -0.0001815853031 | O56: -0.002626878014 | P56: -3.780743988e-05 | Q56: -4.868180286e-05 | R56: 3.435674931e-07
A57: 25.51122 | B57: ='DF raw data'!G62 -> 3.0466872e-06 | C57: ='DF raw data'!H62 -> 4.1774529e-06 | D57: ='DF raw data'!I62 -> -6.626718e-06 | F57: 3.048661453e-06 | G57: 4.1894631e-06 | H57: -6.631012113e-06 | J57: -1.031630664e-05 | K57: -1.883139716e-06 | L57: 7.42065387e-06 | N57: -0.000186745726 | O57: -0.002720291962 | P57: -3.874942403e-05 | Q57: -6.806503974e-05 | R57: 3.617632377e-07
A58: 26.01144 | B58: ='DF raw data'!G63 -> 2.5155618e-06 | C58: ='DF raw data'!H63 -> 6.371527e-06 | D58: ='DF raw data'!I63 -> -9.9758508e-06 | F58: 2.517191884e-06 | G58: 6.389845175e-06 | H58: -9.982315151e-06 | J58: -1.105222821e-05 | K58: 1.106037648e-05 | L58: 5.899107946e-06 | N58: -0.0001922742716 | O58: -0.002816471398 | P58: -3.32168025e-05 | Q58: -8.468074869e-05 | R58: 3.808079895e-07
A59: 26.51166 | B59: ='DF raw data'!G64 -> 2.6600078e-06 | C59: ='DF raw data'!H64 -> -9.3831532e-06 | D59: ='DF raw data'!I64 -> -3.8788999e-06 | F59: 2.661731485e-06 | G59: -9.410129817e-06 | H59: -3.881413427e-06 | J59: -1.042304176e-05 | K59: 6.99895184e-06 | L59: 7.466272712e-06 | N59: -0.0001974880856 | O59: -0.002915258888 | P59: -2.971578681e-05 | Q59: -9.954517957e-05 | R59: 4.0075905e-07
A60: 27.01188 | B60: ='DF raw data'!G65 -> 3.3403844e-06 | C60: ='DF raw data'!H65 -> 2.8206321e-06 | D60: ='DF raw data'!I65 -> -1.3159022e-06 | F60: 3.342548969e-06 | G60: 2.828741433e-06 | H60: -1.316754905e-06 | J60: -6.952493398e-06 | K60: 9.702466377e-06 | L60: 3.180810931e-06 | N60: -0.0002009658618 | O60: -0.003015786031 | P60: -2.486241908e-05 | Q60: -0.0001119818588 | R60: 4.2127078e-07
A61: 27.5121 | B61: ='DF raw data'!G66 -> 4.6205723e-06 | C61: ='DF raw data'!H66 -> -3.3255585e-06 | D61: ='DF raw data'!I66 -> -8.7830704e-06 | F61: 4.623566431e-06 | G61: -3.335119499e-06 | H61: -8.78876183e-06 | J61: -5.535419729e-06 | K61: -7.939550213e-06 | L61: 6.062604524e-06 | N61: -0.0002037347895 | O61: -0.003117698248 | P61: -2.883394089e-05 | Q61: -0.0001264051728 | R61: 4.424497249e-07
A62: 28.01232 | B62: ='DF raw data'!G67 -> 2.8902932e-06 | C62: ='DF raw data'!H67 -> 1.8384324e-07 | D62: ='DF raw data'!I67 -> -1.1765158e-05 | F62: 2.89216611e-06 | G62: 1.843717903e-07 | H62: -1.177278182e-05 | J62: -7.415900892e-06 | K62: -6.835259673e-07 | L62: 9.307886505e-06 | N62: -0.0002074443714 | O62: -0.003221466071 | P62: -2.917585425e-05 | Q62: -0.0001409995186 | R62: 4.644015783e-07
A63: 28.51254 | B63: ='DF raw data'!G68 -> 1.5057763e-06 | C63: ='DF raw data'!H68 -> -2.7834741e-07 | D63: ='DF raw data'!I68 -> -3.5129849e-06 | F63: 1.506752043e-06 | G63: -2.791476603e-07 | H63: -3.515261314e-06 | J63: -1.137864459e-05 | K63: -1.772077627e-06 | L63: 7.673590266e-06 | N63: -0.000213136197 | O63: -0.00332808106 | P63: -3.006228292e-05 | Q63: -0.0001560372737 | R63: 4.875771607e-07
A64: 29.01276 | B64: ='DF raw data'!G69 -> 1.8038795e-06 | C64: ='DF raw data'!H69 -> 3.8019878e-06 | D64: ='DF raw data'!I69 -> -3.9421261e-06 | F64: 1.805048414e-06 | G64: 3.812918536e-06 | H64: -3.944680598e-06 | J64: -1.267115059e-05 | K64: -1.010835326e-05 | L64: 4.410326941e-06 | N64: -0.0002194745599 | O64: -0.003437866624 | P64: -3.511868339e-05 | Q64: -0.0001736043415 | R64: 5.122892315e-07
A65: 29.51298 | B65: ='DF raw data'!G70 -> 2.7375036e-06 | C65: ='DF raw data'!H70 -> -1.8099281e-05 | D65: ='DF raw data'!I70 -> 1.4576719e-06 | F65: 2.739277502e-06 | G65: -1.815131653e-05 | H65: 1.458616471e-06 | J65: -8.524058413e-06 | K65: -3.71473948e-06 | L65: 2.06712583e-07 | N65: -0.0002237384644 | O65: -0.003549785079 | P65: -3.697687037e-05 | Q65: -0.0001921009116 | R65: 5.380136399e-07
A66: 30.0132 | B66: ='DF raw data'!G71 -> -7.576968e-07 | C66: ='DF raw data'!H71 -> 2.3469636e-06 | D66: ='DF raw data'!I71 -> 2.6509863e-06 | F66: -7.581877875e-07 | G66: 2.353711133e-06 | H66: 2.652704139e-06 | J66: -5.329765251e-06 | K66: -4.314746759e-06 | L66: -3.068470581e-06 | N66: -0.0002264045196 | O66: -0.003663037147 | P66: -3.913519299e-05 | Q66: -0.0002116771179 | R66: 5.644205388e-07
A67: 30.51342 | B67: ='DF raw data'!G72 -> -3.1509978e-06 | C67: ='DF raw data'!H72 -> -1.5009412e-06 | D67: ='DF raw data'!I72 -> 6.3604443e-06 | F67: -3.153039647e-06 | G67: -1.505256414e-06 | H67: 6.364565868e-06 | J67: -5.283678607e-06 | K67: -1.050737516e-05 | L67: -3.961243824e-07 | N67: -0.0002290475213 | O67: -0.003777611299 | P67: -4.439119219e-05 | Q67: -0.00023388248 | R67: 5.916491866e-07
A68: 31.01364 | B68: ='DF raw data'!G73 -> -4.5098312e-07 | C68: ='DF raw data'!H73 -> 3.628398e-06 | D68: ='DF raw data'!I73 -> 1.1105949e-05 | F68: -4.512753571e-07 | G68: 3.638829664e-06 | H68: 1.111314565e-05 | J68: -5.85589126e-06 | K68: -1.122594312e-05 | L68: 3.209514919e-06 | N68: -0.0002319767553 | O68: -0.003893650711 | P68: -5.000663346e-05 | Q68: -0.0002588967982 | R68: 6.198185148e-07
A69: 31.51386 | B69: ='DF raw data'!G74 -> 3.7203222e-06 | C69: ='DF raw data'!H74 -> 1.0214231e-05 | D69: ='DF raw data'!I74 -> 8.5753636e-06 | F69: 3.722732969e-06 | G69: 1.024359697e-05 | H69: 8.580920436e-06 | J69: -6.991032756e-06 | K69: -7.648510671e-06 | L69: 7.805920161e-06 | N69: -0.0002354738097 | O69: -0.00401143942 | P69: -5.383257147e-05 | Q69: -0.0002858249271 | R69: 6.490042813e-07
A70: 32.01408 | B70: ='DF raw data'!G75 -> 3.518272e-06 | C70: ='DF raw data'!H75 -> -7.0585829e-06 | D70: ='DF raw data'!I75 -> 1.7891109e-06 | F70: 3.52055184e-06 | G70: -7.078876365e-06 | H70: 1.790270244e-06 | J70: -9.763329841e-06 | K70: -2.693362935e-06 | L70: 2.513373411e-06 | N70: -0.0002403576225 | O70: -0.00413167111 | P70: -5.517984548e-05 | Q70: -0.0003134269894 | R70: 6.79425962e-07
A71: 32.5143 | B71: ='DF raw data'!G76 -> 7.3528787e-07 | C71: ='DF raw data'!H76 -> -5.2705786e-07 | D71: ='DF raw data'!I76 -> -5.6407857e-06 | F71: 7.357643365e-07 | G71: =(1-$G$1*($B$2-$G$2))*C71*$M$2/$M$1 -> -5.285731542e-07 | H71: -5.644440929e-06 | J71: =-CELL("contents", INDEX($F$6:$F$1203,1204-CELL("row",F71))) -> -1.227720548e-05 | K71: =CELL("contents", INDEX($G$6:$G$1203,1204-CELL("row",G71))) -> 3.193909884e-06 | L71: =-CELL("contents", INDEX($H$6:$H$1203,1204-CELL("row",H71))) -> -2.133978923e-06 | N71: -0.0002464989262 | O71: -0.004254974803 | P71: -5.358218788e-05 | Q71: -0.0003402298714 | R71: 7.112563469e-07
A72: =A71+$B$1 -> 33.01452 | B72: ='DF raw data'!G77 -> -2.9398842e-07 | C72: ='DF raw data'!H77 -> 1.7133186e-06 | D72: ='DF raw data'!I77 -> 1.3085903e-06 | F72: -2.941789245e-07 | G72: 1.7182444e-06 | H72: 1.309438267e-06 | J72: -1.33150986e-05 | K72: 1.06190142e-06 | L72: 6.252978506e-08 | N72: =J72*$B$1+N71 -> -0.0002531594049 | O72: =N72*$B$1+O71 -> -0.0043816102 | P72: =K72*$B$1+P71 -> -5.305100355e-05 | Q72: =P72*$B$1+Q71 -> -0.0003667670444 | R72: =(N72^2+P72^2)*$B$1+R71 -> 7.447231125e-07
A73: 33.51474 | B73: ='DF raw data'!G78 -> -1.1864952e-06 | C73: ='DF raw data'!H78 -> -9.7562133e-06 | D73: ='DF raw data'!I78 -> 8.8191274e-07 | F73: -1.187264049e-06 | G73: -9.784262467e-06 | H73: 8.824842195e-07 | J73: -1.385037523e-05 | K73: -1.854371745e-06 | L73: 6.520658951e-06 | N73: -0.0002600876396 | O73: -0.004511711239 | P73: -5.397859738e-05 | Q73: -0.0003937682184 | R73: 7.800182701e-07
A74: 34.01496 | B74: ='DF raw data'!G79 -> -3.3940992e-06 | C74: ='DF raw data'!H79 -> -1.2207407e-05 | D74: ='DF raw data'!I79 -> -6.0438374e-06 | F74: -3.396298576e-06 | G74: -1.224250336e-05 | H74: -6.047753807e-06 | J74: -1.439680609e-05 | K74: -4.482947049e-06 | L74: 4.43350315e-06 | N74: -0.0002672892099 | O74: -0.004645414648 | P74: -5.622105716e-05 | Q74: -0.0004218911156 | R74: 8.173368476e-07
A75: 34.51518 | B75: ='DF raw data'!G80 -> -3.9011948e-06 | C75: ='DF raw data'!H80 -> -9.8484657e-07 | D75: ='DF raw data'!I80 -> -4.3858413e-06 | F75: -3.903722774e-06 | G75: -9.876780093e-07 | H75: -4.388683325e-06 | J75: -1.498297868e-05 | K75: -6.642519533e-06 | L75: 2.528158686e-06 | N75: -0.0002747839955 | O75: -0.004782867098 | P75: -5.954377828e-05 | Q75: -0.0004516761044 | R75: 8.568800918e-07
A76: 35.0154 | B76: ='DF raw data'!G81 -> -7.886685e-07 | C76: ='DF raw data'!H81 -> -8.6354248e-06 | D76: ='DF raw data'!I81 -> -4.9984715e-06 | F76: -7.891795572e-07 | G76: -8.660251694e-06 | H76: -5.00171051e-06 | J76: -1.354453117e-05 | K76: -1.243254717e-06 | L76: 6.03965166e-07 | N76: -0.0002815592409 | O76: -0.004923708662 | P76: -6.016567915e-05 | Q76: -0.0004817721804 | R76: 8.983460863e-07
A77: 35.51562 | B77: ='DF raw data'!G82 -> -2.4854847e-08 | C77: ='DF raw data'!H82 -> -7.6121742e-06 | D77: ='DF raw data'!I82 -> -4.0631217e-06 | F77: -2.487095294e-08 | G77: -7.634059243e-06 | H77: -4.065754603e-06 | J77: -1.032826238e-05 | K77: -1.588964987e-05 | L77: -2.50705612e-06 | N77: -0.0002867256443 | O77: -0.005067134564 | P77: -6.811399981e-05 | Q77: -0.0005158441654 | R77: 9.417907496e-07
A78: 36.01584 | B78: ='DF raw data'!G83 -> -1.9906925e-06 | C78: ='DF raw data'!H83 -> -4.2626179e-06 | D78: ='DF raw data'!I83 -> -2.2160455e-06 | F78: -1.991982469e-06 | G78: -4.27487295e-06 | H78: -2.217481497e-06 | J78: -6.995708784e-06 | K78: -2.041168146e-06 | L78: -6.983186875e-06 | N78: -0.0002902250377 | O78: -0.005212310932 | P78: -6.913503294e-05 | Q78: -0.0005504268916 | R78: 9.863154445e-07
A79: 36.51606 | B79: ='DF raw data'!G84 -> -4.7737435e-06 | C79: ='DF raw data'!H84 -> 2.5512397e-06 | D79: ='DF raw data'!I84 -> -3.5024038e-06 | F79: -4.776836886e-06 | G79: 2.558574528e-06 | H79: -3.504673358e-06 | J79: -8.784416115e-06 | K79: 1.016919869e-05 | L79: -5.395843342e-06 | N79: -0.0002946191784 | O79: -0.005359685337 | P79: -6.404819637e-05 | Q79: -0.0005824650804 | R79: 1.031786759e-06
A80: 37.01628 | B80: ='DF raw data'!G85 -> -7.9849915e-06 | C80: ='DF raw data'!H85 -> 8.3178293e-06 | D80: ='DF raw data'!I85 -> -4.1231519e-06 | F80: -7.990165774e-06 | G80: 8.341743105e-06 | H80: -4.125823702e-06 | J80: -1.147729747e-05 | K80: -2.014808179e-06 | L80: 4.635292424e-06 | N80: -0.0003003603521 | O80: -0.005509931593 | P80: -6.505604372e-05 | Q80: -0.0006150074146 | R80: 1.079031853e-06
A81: 37.5165 | B81: ='DF raw data'!G86 -> -9.988009e-06 | C81: ='DF raw data'!H86 -> 8.5833508e-06 | D81: ='DF raw data'!I86 -> 5.1514894e-06 | F81: -9.99448123e-06 | G81: 8.608027981e-06 | H81: 5.154827565e-06 | J81: -1.153013069e-05 | K81: -9.735289473e-06 | L81: 5.818858579e-06 | N81: -0.0003061279541 | O81: -0.005663062918 | P81: -6.992583022e-05 | Q81: -0.0006499857134 | R81: 1.128355518e-06
A82: 38.01672 | B82: ='DF raw data'!G87 -> -7.5156768e-06 | C82: ='DF raw data'!H87 -> -1.5097487e-06 | D82: ='DF raw data'!I87 -> 1.4751752e-06 | F82: -7.520546959e-06 | G82: -1.514089236e-06 | H82: 1.476131114e-06 | J82: -1.097875663e-05 | K82: 3.194176248e-06 | L82: -2.316967523e-07 | N82: -0.0003116197477 | O82: -0.005818941348 | P82: -6.832803938e-05 | Q82: -0.0006841647652 | R82: 1.179265703e-06
A83: 38.51694 | B83: ='DF raw data'!G88 -> -2.5069326e-06 | C83: ='DF raw data'!H88 -> -8.0861082e-06 | D83: ='DF raw data'!I88 -> -4.2715014e-06 | F83: -2.508557092e-06 | G83: -8.109355805e-06 | H83: -4.274269333e-06 | J83: -1.057092052e-05 | K83: 4.358732355e-06 | L83: -4.229369657e-08 | N83: -0.0003169075336 | O83: -0.005977464834 | P83: -6.614771428e-05 | Q83: -0.0007172531748 | R83: 1.231691713e-06
A84: 39.01716 | B84: ='DF raw data'!G89 -> 4.2577045e-07 | C84: ='DF raw data'!H89 -> 2.8551892e-06 | D84: ='DF raw data'!I89 -> 2.8793331e-06 | F84: 4.260463493e-07 | G84: 2.863397885e-06 | H84: 2.881198908e-06 | J84: -1.011298997e-05 | K84: -6.220347866e-06 | L84: 3.886673634e-06 | N84: -0.0003219662534 | O84: -0.006138518794 | P84: -6.925925669e-05 | Q84: -0.0007518980402 | R84: 1.28594513e-06
A85: 39.51738 | B85: ='DF raw data'!G90 -> 9.021615e-07 | C85: ='DF raw data'!H90 -> 6.8945628e-06 | D85: ='DF raw data'!I90 -> 7.2917351e-06 | F85: 9.027461007e-07 | G85: 6.914384706e-06 | H85: 7.296460144e-06 | J85: -1.074357933e-05 | K85: 1.688403855e-06 | L85: 1.836480269e-06 | N85: -0.0003273404067 | O85: -0.006302261012 | P85: -6.841468331e-05 | Q85: -0.0007861204331 | R85: 1.341885889e-06
A86: 40.0176 | B86: ='DF raw data'!G91 -> -1.0212905e-06 | C86: ='DF raw data'!H91 -> -4.4139251e-06 | D86: ='DF raw data'!I91 -> 6.6697207e-06 | F86: -1.021952296e-06 | G86: -4.426615159e-06 | H86: 6.674042679e-06 | J86: -9.989624084e-06 | K86: -9.610979907e-06 | L86: -5.765457597e-06 | N86: -0.0003323374164 | O86: -0.006468502834 | P86: -7.322228768e-05 | Q86: -0.0008227476859 | R86: 1.399816198e-06
A87: 40.51782 | B87: ='DF raw data'!G92 -> -5.1087586e-06 | C87: ='DF raw data'!H92 -> -7.0437727e-06 | D87: ='DF raw data'!I92 -> 6.927618e-06 | F87: =(1-$G$1*($B$2-$G$2))*B87 -> -5.112069076e-06 | G87: -7.064023585e-06 | H87: 6.932107096e-06 | J87: -6.09340587e-06 | K87: -1.350172224e-06 | L87: -1.57083264e-06 | N87: -0.0003353854599 | O87: -0.006636269349 | P87: -7.389767083e-05 | Q87: -0.0008597127788 | R87: 1.458814282e-06
A88: 41.01804 | B88: ='DF raw data'!G93 -> -7.8063704e-06 | C88: ='DF raw data'!H93 -> 2.4690505e-06 | D88: ='DF raw data'!I93 -> 6.1712976e-06 | F88: -7.811428928e-06 | G88: 2.476149034e-06 | H88: 6.175296601e-06 | J88: -2.631407448e-06 | K88: -2.088003111e-06 | L88: 6.864168401e-06 | N88: -0.0003367017426 | O88: -0.006804694295 | P88: -7.494213175e-05 | Q88: -0.0008972003319 | R88: 1.518332652e-06
A89: 41.51826 | B89: ='DF raw data'!G94 -> -5.0283256e-06 | C89: ='DF raw data'!H94 -> -9.2350474e-06 | D89: ='DF raw data'!I94 -> -2.6744708e-06 | F89: -5.031583955e-06 | G89: -9.261598212e-06 | H89: -2.676203857e-06 | J89: -1.214719328e-07 | K89: 4.348662487e-07 | L89: 1.529856905e-05 | N89: -0.0003367625052 | O89: -0.006973149635 | P89: -7.472460295e-05 | Q89: -0.0009345790728 | R89: 1.577855206e-06
A90: 42.01848 | B90: ='DF raw data'!G95 -> 1.6811273e-06 | C90: ='DF raw data'!H95 -> -1.1386828e-05 | D90: ='DF raw data'!I95 -> -4.025585e-06 | F90: 1.68221667e-06 | G90: -1.141956519e-05 | H90: -4.028193579e-06 | J90: 1.978757304e-06 | K90: 5.829713209e-06 | L90: 9.016124465e-06 | N90: -0.0003357726913 | O90: -0.007141109851 | P90: -7.180846381e-05 | Q90: -0.0009704991025 | R90: 1.636831022e-06
A91: 42.5187 | B91: ='DF raw data'!G96 -> 8.1482131e-06 | C91: ='DF raw data'!H96 -> 5.0810213e-06 | D91: ='DF raw data'!I96 -> -5.1862203e-06 | F91: 8.153493142e-06 | G91: 5.095629264e-06 | H91: -5.189580971e-06 | J91: 2.160099538e-06 | K91: 5.03942875e-06 | L91: 4.120696282e-06 | N91: -0.0003346921663 | O91: -0.007308529566 | P91: -6.928764076e-05 | Q91: -0.001005158166 | R91: 1.695266534e-06
A92: 43.01892 | B92: ='DF raw data'!G97 -> 9.5558244e-06 | C92: ='DF raw data'!H97 -> -5.6109002e-06 | D92: ='DF raw data'!I97 -> -4.9918831e-06 | F92: 9.562016574e-06 | G92: -5.627031569e-06 | H92: -4.99511784e-06 | J92: 3.161694952e-08 | K92: -9.194693111e-06 | L92: 1.153696111e-05 | N92: -0.0003346763508 | O92: -0.00747594137 | P92: -7.388701015e-05 | Q92: -0.001042117926 | R92: 1.754026151e-06
A93: 43.51914 | B93: ='DF raw data'!G98 -> 4.7867779e-06 | C93: ='DF raw data'!H98 -> 2.9037562e-06 | D93: ='DF raw data'!I98 -> 2.7200033e-06 | F93: 4.789879732e-06 | G93: 2.912104515e-06 | H93: 2.721765862e-06 | J93: -3.105902521e-06 | K93: -2.151431245e-06 | L93: 8.300936724e-06 | N93: -0.0003362299854 | O93: -0.007644130334 | P93: -7.496319908e-05 | Q93: -0.001079616018 | R93: 1.813387301e-06
A94: 44.01936 | B94: ='DF raw data'!G99 -> 1.2989199e-06 | C94: ='DF raw data'!H99 -> -5.9511385e-06 | D94: ='DF raw data'!I99 -> 7.3101705e-06 | F94: 1.2997616e-06 | G94: -5.968248056e-06 | H94: 7.31490749e-06 | J94: -6.118586977e-06 | K94: -4.162070572e-06 | L94: 3.520948497e-07 | N94: -0.000339290625 | O94: -0.00781385029 | P94: -7.704515003e-05 | Q94: -0.001118155543 | R94: 1.873940975e-06
A95: 44.51958 | B95: ='DF raw data'!G100 -> -4.2541814e-07 | C95: ='DF raw data'!H100 -> 1.0538659e-07 | D95: ='DF raw data'!I100 -> 3.9081929e-06 | F95: -4.25693811e-07 | G95: 1.05689577e-07 | H95: 3.910725409e-06 | J95: -4.733105967e-06 | K95: -6.99136499e-06 | L95: -3.062010798e-06 | N95: -0.0003416582192 | O95: -0.007984754565 | P95: -8.054237062e-05 | Q95: -0.001158444447 | R95: 1.935576789e-06
A96: 45.0198 | B96: ='DF raw data'!G101 -> 7.1673145e-07 | C96: ='DF raw data'!H101 -> -3.353218e-07 | D96: ='DF raw data'!I101 -> 1.4696518e-06 | F96: 7.17195892e-07 | G96: -3.36285852e-07 | H96: 1.470604134e-06 | J96: -6.211478932e-07 | K96: 1.457180492e-06 | L96: 2.155746819e-06 | N96: -0.0003419689298 | O96: -0.008155814263 | P96: -7.98134598e-05 | Q96: -0.001198368736 | R96: 1.997260386e-06
A97: 45.52002 | B97: ='DF raw data'!G102 -> 5.1599745e-06 | C97: ='DF raw data'!H102 -> 4.5059478e-06 | D97: ='DF raw data'!I102 -> 1.7184968e-06 | F97: 5.163318163e-06 | G97: 4.518902425e-06 | H97: 1.719610386e-06 | J97: 1.079327151e-06 | K97: 4.480768905e-06 | L97: -6.679082443e-07 | N97: -0.0003414290288 | O97: -0.008326603892 | P97: -7.757208957e-05 | Q97: -0.001237171847 | R97: 2.058582962e-06
A98: 46.02024 | B98: ='DF raw data'!G103 -> 8.7593035e-06 | C98: ='DF raw data'!H103 -> -1.6689285e-06 | D98: ='DF raw data'!I103 -> -3.5484588e-06 | F98: 8.764979529e-06 | G98: -1.673726679e-06 | H98: -3.550758201e-06 | J98: -9.129654385e-07 | K98: -3.659345278e-06 | L98: 4.737786097e-06 | N98: -0.0003418857124 | O98: -0.008497621963 | P98: -7.940256727e-05 | Q98: -0.001276890599 | R98: 2.120205367e-06
A99: 46.52046 | B99: ='DF raw data'!G104 -> 7.3508909e-06 | C99: ='DF raw data'!H104 -> 1.035243e-06 | D99: ='DF raw data'!I104 -> -2.9155287e-06 | F99: 7.355654277e-06 | G99: 1.038219329e-06 | H99: -2.917417963e-06 | J99: -4.78593908e-06 | K99: -1.728128135e-05 | L99: 8.091355303e-06 | N99: -0.0003442797348 | O99: -0.008669837572 | P99: -8.804700982e-05 | Q99: -0.001320933474 | R99: 2.183373555e-06
A100: 47.02068 | B100: ='DF raw data'!G105 -> 1.8145593e-06 | C100: ='DF raw data'!H105 -> 1.3839313e-05 | D100: ='DF raw data'!I105 -> -2.5639235e-06 | F100: 1.815735134e-06 | G100: 1.38791011e-05 | H100: -2.565584922e-06 | J100: -6.586469468e-06 | K100: -7.998691357e-06 | L100: 2.673168892e-07 | N100: -0.0003475744186 | O100: -0.008843701247 | P100: -9.204811521e-05 | Q100: -0.001366977783 | R100: 2.248042413e-06
A101: 47.5209 | B101: ='DF raw data'!G106 -> -4.2328725e-06 | C101: ='DF raw data'!H106 -> 1.4090023e-05 | D101: ='DF raw data'!I106 -> 5.7629615e-07 | F101: -4.235615401e-06 | G101: 1.413053189e-05 | H101: 5.766695899e-07 | J101: -9.662005625e-06 | K101: -8.799950377e-06 | L101: 8.907303895e-06 | N101: -0.000352407547 | O101: -0.00901998255 | P101: -9.645002639e-05 | Q101: -0.001415224015 | R101: 2.314818625e-06
A102: 48.02112 | B102: ='DF raw data'!G107 -> -6.3034399e-06 | C102: ='DF raw data'!H107 -> 6.7720757e-06 | D102: ='DF raw data'!I107 -> -2.4312155e-06 | F102: -6.307524529e-06 | G102: 6.791545455e-06 | H102: -2.432790928e-06 | J102: -1.369828774e-05 | K102: -1.131612866e-05 | L102: 1.093725375e-05 | N102: -0.0003592597045 | O102: -0.00919969144 | P102: -0.0001021105803 | Q102: -0.001466301769 | R102: 2.384596367e-06
A103: 48.52134 | B103: ='DF raw data'!G108 -> -4.0045898e-06 | C103: ='DF raw data'!H108 -> 2.5133465e-06 | D103: ='DF raw data'!I108 -> -4.2492734e-06 | F103: -4.007184774e-06 | G103: 2.520572385e-06 | H103: -4.252026929e-06 | J103: -1.28022645e-05 | K103: -6.370083423e-06 | L103: 4.185894703e-06 | N103: -0.0003656636533 | O103: -0.009382603712 | P103: -0.0001052970234 | Q103: -0.001518973446 | R103: 2.457026907e-06
A104: 49.02156 | B104: ='DF raw data'!G109 -> -3.8479952e-06 | C104: ='DF raw data'!H109 -> 3.991934e-07 | D104: ='DF raw data'!I109 -> 6.3328239e-06 | F104: -3.850488701e-06 | G104: 4.003410832e-07 | H104: 6.33692757e-06 | J104: -8.350130381e-06 | K104: 1.565433227e-06 | L104: -7.557721132e-06 | N104: -0.0003698405555 | O104: -0.009567605355 | P104: -0.0001045139624 | Q104: -0.001571253421 | R104: 2.530912005e-06
A105: 49.52178 | B105: ='DF raw data'!G110 -> -6.3043744e-06 | C105: ='DF raw data'!H110 -> 3.4580132e-06 | D105: ='DF raw data'!I110 -> 7.9948122e-06 | F105: -6.308459635e-06 | G105: 3.467955007e-06 | H105: 7.999992838e-06 | J105: -7.491443312e-06 | K105: -2.111955076e-06 | L105: -3.469451749e-06 | N105: -0.0003735879253 | O105: -0.009754481507 | P105: -0.0001055704046 | Q105: -0.001624061848 | R105: 2.606301686e-06
A106: 50.022 | B106: ='DF raw data'!G111 -> -6.0564003e-06 | C106: ='DF raw data'!H111 -> 8.0787286e-06 | D106: ='DF raw data'!I111 -> 2.0704349e-06 | F106: -6.060324847e-06 | G106: 8.101954989e-06 | H106: 2.071776542e-06 | J106: -1.002094937e-05 | K106: -7.408053036e-06 | L106: 4.007015865e-06 | N106: -0.0003786006046 | O106: -0.009943865102 | P106: -0.0001092760609 | Q106: -0.00167872392 | R106: 2.683975685e-06
A107: 50.52222 | B107: ='DF raw data'!G112 -> -6.1059955e-06 | C107: ='DF raw data'!H112 -> 8.7914959e-06 | D107: ='DF raw data'!I112 -> -5.6251442e-06 | F107: -6.109952185e-06 | G107: 8.816771499e-06 | H107: -5.628789293e-06 | J107: -9.307135618e-06 | K107: 3.79030551e-06 | L107: 8.083563157e-06 | N107: -0.00038325622 | O107: -0.01013557753 | P107: -0.0001073800742 | Q107: -0.00173243758 | R107: 2.763218442e-06
A108: 51.02244 | B108: ='DF raw data'!G113 -> -8.2090692e-06 | C108: ='DF raw data'!H113 -> 1.7986764e-05 | D108: ='DF raw data'!I113 -> -3.5899227e-06 | F108: -8.214388677e-06 | G108: 1.803847605e-05 | H108: -3.59224897e-06 | J108: -5.508836114e-06 | K108: -2.630471139e-06 | L108: 5.290143393e-06 | N108: -0.00038601185 | O108: -0.01032866838 | P108: -0.0001086958885 | Q108: -0.001786809438 | R108: 2.843663794e-06
A109: 51.52266 | B109: ='DF raw data'!G114 -> -7.5654716e-06 | C109: ='DF raw data'!H114 -> 9.7596439e-06 | D109: ='DF raw data'!I114 -> 7.8753902e-07 | F109: -7.570374026e-06 | G109: 9.78770293e-06 | H109: 7.880493453e-07 | J109: -2.989549674e-06 | K109: 3.028785211e-06 | L109: 2.657178637e-07 | N109: -0.0003875072825 | O109: -0.01052250727 | P109: -0.0001071808296 | Q109: -0.001840423432 | R109: 2.924524169e-06
A110: 52.02288 | B110: ='DF raw data'!G115 -> -2.4010678e-06 | C110: ='DF raw data'!H115 -> 1.2454339e-05 | D110: ='DF raw data'!I115 -> 5.6853864e-06 | F110: -2.402623692e-06 | G110: 1.249014529e-05 | H110: 5.68907053e-06 | J110: -5.141343333e-06 | K110: -2.733907968e-06 | L110: 6.286969418e-06 | N110: -0.0003900790853 | O110: -0.01071763263 | P110: -0.000108548385 | Q110: -0.001894721505 | R110: 3.006532459e-06
A111: 52.5231 | B111: ='DF raw data'!G116 -> 2.4541523e-06 | C111: ='DF raw data'!H116 -> 1.8293993e-06 | D111: ='DF raw data'!I116 -> 5.2137843e-06 | F111: 2.455742591e-06 | G111: 1.834658833e-06 | H111: 5.217162832e-06 | J111: -6.022739708e-06 | K111: -9.063425999e-06 | L111: 8.547545823e-06 | N111: -0.0003930917801 | O111: -0.010914265 | P111: -0.000113082092 | Q111: -0.001951287429 | R111: 3.090223621e-06
A112: 53.02332 | B112: ='DF raw data'!G117 -> 2.2468284e-06 | C112: ='DF raw data'!H117 -> 9.9763292e-06 | D112: ='DF raw data'!I117 -> 2.6650962e-06 | F112: 2.248284345e-06 | G112: 1.00050112e-05 | H112: 2.666823182e-06 | J112: -3.326051386e-06 | K112: -7.327499207e-06 | L112: 5.244923209e-06 | N112: -0.0003947555375 | O112: -0.01111172961 | P112: -0.0001167474536 | Q112: -0.002009686841 | R112: 3.174991854e-06
A113: 53.52354 | B113: ='DF raw data'!G118 -> -3.2682914e-07 | C113: ='DF raw data'!H118 -> 1.4746218e-05 | D113: ='DF raw data'!I118 -> 1.0814413e-06 | F113: -3.270409253e-07 | G113: 1.478861346e-05 | H113: 1.082142074e-06 | J113: -1.345648015e-06 | K113: -4.185800199e-07 | L113: 1.216410724e-05 | N113: -0.0003954286576 | O113: -0.01130953094 | P113: -0.0001169568357 | Q113: -0.002068190989 | R113: 3.260050625e-06
A114: 54.02376 | B114: ='DF raw data'!G119 -> -2.5417089e-06 | C114: ='DF raw data'!H119 -> 2.647577e-06 | D114: ='DF raw data'!I119 -> 1.6227261e-06 | F114: -2.543355927e-06 | G114: 2.655188798e-06 | H114: 1.623777627e-06 | J114: -1.937030683e-06 | K114: 4.198784623e-07 | L114: 3.99882336e-06 | N114: -0.0003963975991 | O114: -0.01150781694 | P114: -0.0001167468041 | Q114: -0.002126590075 | R114: 3.345468629e-06
A115: 54.52398 | B115: ='DF raw data'!G120 -> -4.2751917e-06 | C115: ='DF raw data'!H120 -> 3.2039659e-06 | D115: ='DF raw data'!I120 -> 2.9534078e-06 | F115: -4.277962024e-06 | G115: 3.21317732e-06 | H115: 2.955321608e-06 | J115: -3.280432143e-06 | K115: -5.136345789e-06 | L115: 2.044263325e-06 | N115: -0.0003980385368 | O115: -0.01170692378 | P115: -0.000119316107 | Q115: -0.002186274378 | R115: 3.431842122e-06
A116: 55.0242 | B116: ='DF raw data'!G121 -> -3.066493e-06 | C116: ='DF raw data'!H121 -> -1.6299657e-06 | D116: ='DF raw data'!I121 -> 8.1911811e-09 | F116: -3.068480087e-06 | G116: -1.63465186e-06 | H116: 8.196488985e-09 | J116: -5.225835549e-06 | K116: -9.771014989e-06 | L116: 3.98989908e-06 | N116: -0.0004006526043 | O116: -0.01190733823 | P116: -0.0001242037641 | Q116: -0.002248403585 | R116: 3.519855373e-06
A117: 55.52442 | B117: ='DF raw data'!G122 -> 6.2428359e-07 | C117: ='DF raw data'!H122 -> -9.9271915e-07 | D117: ='DF raw data'!I122 -> -2.3935461e-06 | F117: 6.246881258e-07 | G117: -9.95573223e-07 | H117: -2.395097118e-06 | J117: -4.898084203e-06 | K117: -3.479904162e-06 | L117: 5.281086228e-06 | N117: -0.000403102724 | O117: -0.01210897827 | P117: -0.0001259444818 | Q117: -0.002311403534 | R117: 3.60907152e-06
A118: 56.02464 | B118: ='DF raw data'!G123 -> 3.5955677e-06 | C118: ='DF raw data'!H123 -> 1.4367684e-05 | D118: ='DF raw data'!I123 -> 1.3736137e-06 | F118: 3.597897628e-06 | G118: 1.440899117e-05 | H118: 1.374503802e-06 | J118: -2.42247995e-06 | K118: 4.798259174e-07 | L118: 6.004865233e-06 | N118: -0.0004043144969 | O118: -0.01231122447 | P118: -0.0001257044633 | Q118: -0.002374283421 | R118: 3.698746872e-06
A119: 56.52486 | B119: ='DF raw data'!G124 -> 6.1047458e-06 | C119: ='DF raw data'!H124 -> 1.4976913e-05 | D119: ='DF raw data'!I124 -> 2.7236631e-06 | F119: 6.108701675e-06 | G119: 1.501997171e-05 | H119: 2.725428034e-06 | J119: -1.351058419e-06 | K119: -9.782792152e-06 | L119: 1.601289263e-05 | N119: -0.0004049903233 | O119: -0.01251380873 | P119: -0.0001305980115 | Q119: -0.002439611158 | R119: 3.789323209e-06
A120: 57.02508 | B120: ='DF raw data'!G125 -> 7.5694288e-06 | C120: ='DF raw data'!H125 -> 7.106044e-06 | D120: ='DF raw data'!I125 -> 5.8999562e-06 | F120: 7.57433379e-06 | G120: 7.126473915e-06 | H120: 5.903779372e-06 | J120: -2.588326349e-06 | K120: -1.293296676e-05 | L120: 1.083675867e-05 | N120: -0.0004062850559 | O120: -0.01271704064 | P120: -0.0001370673402 | Q120: -0.002508174983 | R120: 3.881291159e-06
A121: 57.5253 | B121: ='DF raw data'!G126 -> 5.3286503e-06 | C121: ='DF raw data'!H126 -> 2.4146118e-06 | D121: ='DF raw data'!I126 -> 8.9072018e-06 | F121: 5.332103265e-06 | G121: 2.421553822e-06 | H121: 8.912973667e-06 | J121: -2.806137199e-06 | K121: -5.734481703e-06 | L121: -6.209570096e-07 | N121: -0.0004076887419 | O121: -0.0129209747 | P121: -0.0001399358426 | Q121: -0.00257817369 | R121: 3.974228108e-06
A122: 58.02552 | B122: ='DF raw data'!G127 -> 1.7259009e-07 | C122: ='DF raw data'!H127 -> -1.0342139e-06 | D122: ='DF raw data'!I127 -> 8.2090501e-06 | F122: 1.727019284e-07 | G122: -1.037187271e-06 | H122: 8.214369564e-06 | J122: -9.715424818e-07 | K122: -1.311232393e-06 | L122: -3.846725564e-06 | N122: -0.0004081747269 | O122: -0.01312515186 | P122: -0.0001405917473 | Q122: -0.002648500494 | R122: 4.067455434e-06
A123: 58.52574 | B123: ='DF raw data'!G128 -> -2.0151226e-06 | C123: ='DF raw data'!H128 -> -8.1211965e-06 | D123: ='DF raw data'!I128 -> 1.2834224e-05 | F123: -2.016428399e-06 | G123: -8.144544984e-06 | H123: 1.284254058e-05 | J123: -1.703456625e-06 | K123: 1.23478624e-06 | L123: -1.569433835e-06 | N123: -0.0004090268299 | O123: -0.01332975526 | P123: -0.0001399740825 | Q123: -0.002718518329 | R123: 4.160944396e-06
A124: 59.02596 | B124: ='DF raw data'!G129 -> -3.5019156e-07 | C124: ='DF raw data'!H129 -> -8.4067306e-06 | D124: ='DF raw data'!I129 -> 3.4581927e-07 | F124: -3.504184841e-07 | G124: -8.430899997e-06 | H124: 3.460433609e-07 | J124: -5.017642827e-06 | K124: 1.011379987e-05 | L124: 5.115991516e-06 | N124: -0.0004115367552 | O124: -0.01353561418 | P124: -0.0001349149575 | Q124: -0.002786005489 | R124: 4.254767934e-06
A125: 59.52618 | B125: ='DF raw data'!G130 -> 1.4792104e-06 | C125: ='DF raw data'!H130 -> -4.571235e-06 | D125: ='DF raw data'!I130 -> -9.4719297e-07 | F125: 1.480168928e-06 | G125: -4.584377326e-06 | H125: -9.47806751e-07 | J125: -6.85297205e-06 | K125: 3.250913099e-06 | L125: 1.025010377e-05 | N125: -0.0004149647489 | O125: -0.01374318785 | P125: -0.0001332887858 | Q125: -0.002852679206 | R125: 4.349790547e-06
A126: 60.0264 | B126: ='DF raw data'!G131 -> 2.2966906e-06 | C126: ='DF raw data'!H131 -> -1.9162164e-07 | D126: ='DF raw data'!I131 -> -2.4025547e-07 | F126: 2.298178856e-06 | G126: -1.921725533e-07 | H126: -2.404111555e-07 | J126: -7.835492411e-06 | K126: -6.263034539e-06 | L126: 1.55142117e-05 | N126: -0.0004188842189 | O126: -0.01395272211 | P126: -0.0001364216809 | Q126: -0.002920920059 | R126: 4.446870676e-06
A127: 60.52662 | B127: ='DF raw data'!G132 -> 2.6642797e-06 | C127: ='DF raw data'!H132 -> -1.834642e-06 | D127: ='DF raw data'!I132 -> -1.5807871e-06 | F127: 2.666006153e-06 | G127: -1.839916606e-06 | H127: -1.58181145e-06 | J127: -8.450386204e-06 | K127: -2.295810847e-06 | L127: 1.380126643e-05 | N127: -0.0004231112711 | O127: -0.01416437083 | P127: -0.0001375700914 | Q127: -0.00298973537 | R127: 4.545888563e-06
A128: 61.02684 | B128: ='DF raw data'!G133 -> 1.5773317e-06 | C128: ='DF raw data'!H133 -> 1.2333819e-06 | D128: ='DF raw data'!I133 -> 2.4706917e-06 | F128: 1.578353811e-06 | G128: 1.23692788e-06 | H128: 2.472292708e-06 | J128: -6.161200773e-06 | K128: 9.784032207e-07 | L128: 3.083311792e-06 | N128: -0.000426193227 | O128: -0.01437756121 | P128: -0.0001370806746 | Q128: -0.003058305865 | R128: 4.646148547e-06
A129: 61.52706 | B129: ='DF raw data'!G134 -> -9.3872126e-07 | C129: ='DF raw data'!H134 -> -3.8908893e-06 | D129: ='DF raw data'!I134 -> 1.372616e-06 | F129: -9.393295514e-07 | G129: -3.902075628e-06 | H129: 1.373505455e-06 | J129: -3.341613864e-06 | K129: -4.530986066e-06 | L129: 4.266078629e-06 | N129: -0.0004278647691 | O129: -0.01459158772 | P129: -0.0001393471644 | Q129: -0.003128010104 | R129: 4.747436041e-06
A130: 62.02728 | B130: ='DF raw data'!G135 -> -3.7664943e-06 | C130: ='DF raw data'!H135 -> -2.6113614e-07 | D130: ='DF raw data'!I135 -> 3.106283e-06 | F130: -3.768934988e-06 | G130: -2.618869078e-07 | H130: 3.108295871e-06 | J130: -4.309039549e-06 | K130: -1.442054028e-05 | L130: 6.076856453e-06 | N130: -0.0004300202368 | O130: -0.01480669244 | P130: -0.0001465606071 | Q130: -0.003201322651 | R130: 4.850680156e-06
A131: 62.5275 | B131: ='DF raw data'!G136 -> -5.7173133e-06 | C131: ='DF raw data'!H136 -> 5.1604093e-06 | D131: ='DF raw data'!I136 -> 4.7735953e-06 | F131: -5.721018119e-06 | G131: 5.175245505e-06 | H131: 4.77668859e-06 | J131: -9.096738769e-06 | K131: -2.505902831e-05 | L131: 4.37449874e-06 | N131: -0.0004345706075 | O131: -0.01502407335 | P131: -0.0001590956342 | Q131: -0.003280905469 | R131: 4.957808789e-06
A132: 63.02772 | B132: ='DF raw data'!G137 -> -6.1608634e-06 | C132: ='DF raw data'!H137 -> -1.964336e-06 | D132: ='DF raw data'!I137 -> 3.2249484e-06 | F132: -6.164855639e-06 | G132: -1.969983477e-06 | H132: 3.227038167e-06 | J132: -1.290906466e-05 | K132: -1.59562849e-05 | L132: -1.140348267e-06 | N132: -0.0004410279798 | O132: -0.01524468437 | P132: -0.000167077287 | Q132: -0.003364480869 | R132: 5.06906797e-06
A133: 63.52794 | B133: ='DF raw data'!G138 -> -6.2266781e-06 | C133: ='DF raw data'!H138 -> 4.9760147e-06 | D133: ='DF raw data'!I138 -> 2.8718789e-06 | F133: -6.230712987e-06 | G133: 4.99032077e-06 | H133: 2.873739878e-06 | J133: -1.170606262e-05 | K133: -6.125207521e-06 | L133: -2.506923234e-06 | N133: -0.0004468835865 | O133: -0.01546822448 | P133: -0.0001701412384 | Q133: -0.00344958892 | R133: 5.183444764e-06
A134: 64.02816 | B134: ='DF raw data'!G139 -> -5.5218711e-06 | C134: ='DF raw data'!H139 -> 4.2182819e-06 | D134: ='DF raw data'!I139 -> -1.1877198e-06 | F134: -5.525449272e-06 | G134: 4.230409484e-06 | H134: -1.188489442e-06 | J134: -8.523657954e-06 | K134: -2.310798613e-06 | L134: 1.358644231e-06 | N134: -0.0004511472906 | O134: -0.01569389737 | P134: -0.000171297146 | Q134: -0.003535275178 | R134: 5.299934292e-06
A135: 64.52838 | B135: ='DF raw data'!G140 -> -1.9760741e-06 | C135: ='DF raw data'!H140 -> -7.3647989e-06 | D135: ='DF raw data'!I140 -> -6.2038994e-06 | F135: -1.977354596e-06 | G135: =(1-$G$1*($B$2-$G$2))*C135*$M$2/$M$1 -> -7.385972737e-06 | H135: -6.207919527e-06 | J135: =-CELL("contents", INDEX($F$6:$F$1203,1204-CELL("row",F135))) -> -5.930231501e-06 | K135: =CELL("contents", INDEX($G$6:$G$1203,1204-CELL("row",G135))) -> 3.621167531e-06 | L135: =-CELL("contents", INDEX($H$6:$H$1203,1204-CELL("row",H135))) -> -9.295018872e-07 | N135: -0.000454113711 | O135: -0.01592105414 | P135: -0.0001694857656 | Q135: -0.003620055348 | R135: 5.417458324e-06
A136: =A135+$B$1 -> 65.0286 | B136: ='DF raw data'!G141 -> 3.0432161e-06 | C136: ='DF raw data'!H141 -> -8.3709729e-06 | D136: ='DF raw data'!I141 -> -4.6984455e-06 | F136: 3.045188104e-06 | G136: -8.395039493e-06 | H136: -4.701490093e-06 | J136: -3.325650526e-06 | K136: 5.989483834e-06 | L136: -2.554473327e-06 | N136: =J136*$B$1+N135 -> -0.0004557772679 | O136: =N136*$B$1+O135 -> -0.01614904304 | P136: =K136*$B$1+P135 -> -0.000166489706 | Q136: =P136*$B$1+Q135 -> -0.003703336828 | R136: =(N136^2+P136^2)*$B$1+R135 -> 5.535235993e-06
A137: 65.52882 | B137: ='DF raw data'!G142 -> 6.384359e-06 | C137: ='DF raw data'!H142 -> -8.1356065e-06 | D137: ='DF raw data'!I142 -> -6.969603e-06 | F137: 6.388496065e-06 | G137: -8.158996413e-06 | H137: -6.974119303e-06 | J137: -1.578620884e-06 | K137: -1.222246993e-06 | L137: 1.303301993e-06 | N137: -0.0004565669257 | O137: -0.01637742695 | P137: -0.0001671010984 | Q137: -0.00378692414 | R137: 5.653476063e-06
A138: 66.02904 | B138: ='DF raw data'!G143 -> 3.6974939e-06 | C138: ='DF raw data'!H143 -> -8.4835865e-06 | D138: ='DF raw data'!I143 -> -9.6379572e-06 | F138: 3.699889876e-06 | G138: -8.507976858e-06 | H138: -9.644202596e-06 | J138: -3.055006562e-06 | K138: 9.89242725e-07 | L138: 6.726843972e-06 | N138: -0.0004580951011 | O138: -0.01660657528 | P138: -0.0001666062594 | Q138: -0.003870263923 | R138: 5.772332721e-06
A139: 66.52926 | B139: ='DF raw data'!G144 -> -2.4866406e-06 | C139: ='DF raw data'!H144 -> 1.8554181e-06 | D139: ='DF raw data'!I144 -> -1.4701743e-06 | F139: -2.488251943e-06 | G139: 1.860752437e-06 | H139: -1.471126973e-06 | J139: -9.041969002e-06 | K139: 2.31062311e-06 | L139: 2.439583827e-06 | N139: -0.0004626180748 | O139: -0.01683798609 | P139: -0.0001654504395 | Q139: -0.003953025542 | R139: 5.893080492e-06
A140: 67.02948 | B140: ='DF raw data'!G145 -> -4.0684022e-06 | C140: ='DF raw data'!H145 -> -6.4684373e-06 | D140: ='DF raw data'!I145 -> 6.9376674e-06 | F140: -4.071038525e-06 | G140: -6.487034093e-06 | H140: 6.942163008e-06 | J140: -1.577928135e-05 | K140: -3.489003348e-06 | L140: 3.032498086e-06 | N140: -0.0004705111869 | O140: -0.0170733452 | P140: -0.0001671957088 | Q140: -0.004036660179 | R140: 6.017802937e-06
A141: 67.5297 | B141: ='DF raw data'!G146 -> -2.3592827e-06 | C141: ='DF raw data'!H146 -> 8.4030557e-07 | D141: ='DF raw data'!I146 -> 2.1459739e-06 | F141: -2.360811515e-06 | G141: 8.427214531e-07 | H141: 2.147364491e-06 | J141: -1.622792689e-05 | K141: -7.641283152e-06 | L141: 1.052861312e-05 | N141: -0.0004786287205 | O141: -0.01731276486 | P141: -0.0001710180314 | Q141: -0.004122206819 | R141: 6.14702608e-06
A142: 68.02992 | B142: ='DF raw data'!G147 -> 4.2076459e-07 | C142: ='DF raw data'!H147 -> 5.7169327e-06 | D142: ='DF raw data'!I147 -> -8.4785555e-08 | F142: 4.210372455e-07 | G142: 5.733368913e-06 | H142: -8.484049604e-08 | J142: -1.227820913e-05 | K142: -1.317235202e-05 | L142: 6.807493799e-06 | N142: -0.0004847705263 | O142: -0.01755525677 | P142: -0.0001776071054 | Q142: -0.004211049445 | R142: 6.280358094e-06
A143: 68.53014 | B143: ='DF raw data'!G148 -> 4.4230601e-06 | C143: ='DF raw data'!H148 -> 7.7071345e-06 | D143: ='DF raw data'!I148 -> -7.6862824e-07 | F143: 4.425926243e-06 | G143: 7.729292554e-06 | H143: -7.691263111e-07 | J143: -9.216164607e-06 | K143: -6.384399865e-06 | L143: -6.995174538e-06 | N143: -0.0004893806361 | O143: -0.01780005475 | P143: -0.0001808007099 | Q143: -0.004301489576 | R143: 6.416509125e-06
A144: 69.03036 | B144: ='DF raw data'!G149 -> 7.2260691e-06 | C144: ='DF raw data'!H149 -> 8.0447044e-06 | D144: ='DF raw data'!I149 -> -3.9975653e-06 | F144: 7.230751593e-06 | G144: 8.067832969e-06 | H144: -4.000155722e-06 | J144: -7.284386526e-06 | K144: -2.657637418e-06 | L144: -2.127718469e-06 | N144: -0.000493024432 | O144: -0.01804667543 | P144: -0.0001821301132 | Q144: -0.004392594701 | R144: 6.554692134e-06
A145: 69.53058 | B145: ='DF raw data'!G150 -> 5.0636545e-06 | C145: ='DF raw data'!H150 -> 3.4282582e-06 | D145: ='DF raw data'!I150 -> -5.2879818e-06 | F145: 5.066935748e-06 | G145: 3.438114461e-06 | H145: -5.291408412e-06 | J145: -5.270185769e-06 | K145: -6.574275493e-06 | L145: 1.022462827e-06 | N145: -0.0004956606843 | O145: -0.01829461482 | P145: -0.0001854186973 | Q145: -0.004485344842 | R145: 6.69478355e-06
A146: 70.0308 | B146: ='DF raw data'!G151 -> -1.2671953e-06 | C146: ='DF raw data'!H151 -> -6.6819175e-06 | D146: ='DF raw data'!I151 -> -8.2626175e-06 | F146: -1.268016443e-06 | G146: -6.701128049e-06 | H146: -8.267971676e-06 | J146: -4.335422935e-06 | K146: -4.19565816e-06 | L146: 1.763222128e-06 | N146: -0.0004978293496 | O146: -0.01854363902 | P146: -0.0001875174495 | Q146: -0.004579144821 | R146: 6.836344237e-06
A147: 70.53102 | B147: ='DF raw data'!G152 -> -6.9844177e-06 | C147: ='DF raw data'!H152 -> -2.3990417e-06 | D147: ='DF raw data'!I152 -> -4.624238e-06 | F147: -6.988943603e-06 | G147: -2.405938958e-06 | H147: -4.627234506e-06 | J147: -4.914248171e-06 | K147: -2.82958465e-06 | L147: 5.152820866e-06 | N147: -0.0005002875548 | O147: -0.01879389286 | P147: -0.0001889328643 | Q147: -0.004673652818 | R147: 6.979398786e-06
A148: 71.03124 | B148: ='DF raw data'!G153 -> -6.7991214e-06 | C148: ='DF raw data'!H153 -> 1.1255704e-06 | D148: ='DF raw data'!I153 -> 4.5772608e-06 | F148: -6.803527231e-06 | G148: 1.128806421e-06 | H148: 4.580226865e-06 | J148: -5.802657687e-06 | K148: 1.234027766e-05 | L148: 4.656803154e-06 | N148: -0.0005031901602 | O148: -0.01904559864 | P148: -0.0001827600106 | Q148: -0.004765073031 | R148: 7.122762618e-06
A149: 71.53146 | B149: ='DF raw data'!G154 -> -1.0514611e-06 | C149: ='DF raw data'!H154 -> 4.3693199e-06 | D149: ='DF raw data'!I154 -> 3.2413211e-06 | F149: -1.052142447e-06 | G149: 4.381881719e-06 | H149: 3.243421476e-06 | J149: -8.785485508e-06 | K149: -6.373024053e-06 | L149: 1.124222925e-06 | N149: -0.0005075848358 | O149: -0.01929950273 | P149: -0.0001859479247 | Q149: -0.004858087902 | R149: 7.268936404e-06
A150: 72.03168 | B150: ='DF raw data'!G155 -> 5.2052974e-06 | C150: ='DF raw data'!H155 -> 8.9666864e-06 | D150: ='DF raw data'!I155 -> 9.2996498e-07 | F150: 5.208670433e-06 | G150: 8.992465673e-06 | H150: 9.305675973e-07 | J150: -8.539420661e-06 | K150: 2.37966975e-06 | L150: -2.60288978e-06 | N150: -0.0005118564248 | O150: -0.01955554355 | P150: -0.0001847575663 | Q150: -0.004950507331 | R150: 7.417067732e-06
A151: 72.5319 | B151: ='DF raw data'!G156 -> 7.24249e-06 | C151: ='DF raw data'!H156 -> 1.9849774e-06 | D151: ='DF raw data'!I156 -> 5.4178386e-06 | F151: =(1-$G$1*($B$2-$G$2))*B151 -> 7.247183134e-06 | G151: 1.990684221e-06 | H151: 5.421349359e-06 | J151: -5.764986592e-06 | K151: -8.407484269e-06 | L151: 1.69935607e-06 | N151: -0.0005147401864 | O151: -0.01981302688 | P151: -0.0001889631581 | Q151: -0.005045030482 | R151: 7.567466145e-06
A152: 73.03212 | B152: ='DF raw data'!G157 -> 5.6467106e-06 | C152: ='DF raw data'!H157 -> -1.3270858e-06 | D152: ='DF raw data'!I157 -> 1.6187989e-06 | F152: 5.650369668e-06 | G152: -1.330901179e-06 | H152: 1.619847882e-06 | J152: -3.46758494e-06 | K152: -6.232121318e-06 | L152: 8.808940197e-06 | N152: -0.0005164747417 | O152: -0.02007137788 | P152: -0.0001920805898 | Q152: -0.005141113035 | R152: 7.719353502e-06
A153: 73.53234 | B153: ='DF raw data'!G158 -> 4.5663046e-06 | C153: ='DF raw data'!H158 -> 4.9910905e-06 | D153: ='DF raw data'!I158 -> -1.276464e-07 | F153: 4.569263565e-06 | G153: 5.005439913e-06 | H153: -1.277291149e-07 | J153: -4.472948494e-06 | K153: 2.835698978e-06 | L153: 7.241574802e-06 | N153: -0.0005187122 | O153: -0.0203308481 | P153: -0.0001906621164 | Q153: -0.005236486039 | R153: 7.872127888e-06
A154: 74.03256 | B154: ='DF raw data'!G159 -> 3.1899981e-06 | C154: ='DF raw data'!H159 -> 1.1078571e-05 | D154: ='DF raw data'!I159 -> -1.1067893e-06 | F154: 3.192065219e-06 | G154: 1.111042195e-05 | H154: -1.107506499e-06 | J154: -6.310348958e-06 | K154: -1.962430825e-05 | L154: -2.482948008e-06 | N154: -0.0005218687627 | O154: -0.02059189729 | P154: -0.0002004785879 | Q154: -0.005336769438 | R154: 8.028465981e-06
A155: 74.53278 | B155: ='DF raw data'!G160 -> 2.4025549e-06 | C155: ='DF raw data'!H160 -> 7.8547037e-06 | D155: ='DF raw data'!I160 -> -4.9852947e-06 | F155: 2.404111756e-06 | G155: 7.877286016e-06 | H155: -4.988525171e-06 | J155: -7.821466228e-06 | K155: -8.266315271e-06 | L155: -6.8167603e-06 | N155: -0.0005257812166 | O155: -0.02085490357 | P155: -0.0002046135641 | Q155: -0.005439121235 | R155: 8.187692309e-06
A156: 75.033 | B156: ='DF raw data'!G161 -> 2.2952222e-06 | C156: ='DF raw data'!H161 -> 5.722939e-06 | D156: ='DF raw data'!I161 -> -7.1248737e-06 | F156: 2.296709504e-06 | G156: 5.739392481e-06 | H156: -7.129490618e-06 | J156: -1.152391866e-05 | K156: -6.667007835e-06 | L156: -5.451984598e-06 | N156: -0.0005315457112 | O156: -0.02112079336 | P156: -0.0002079485348 | Q156: -0.005543141251 | R156: 8.3506557e-06
A157: 75.53322 | B157: ='DF raw data'!G162 -> -2.2677176e-07 | C157: ='DF raw data'!H162 -> 6.0574403e-06 | D157: ='DF raw data'!I162 -> -4.119292e-06 | F157: -2.269187081e-07 | G157: 6.074855474e-06 | H157: -4.121961301e-06 | J157: -1.238273882e-05 | K157: -2.317799984e-07 | L157: 4.524409619e-06 | N157: -0.0005377398048 | O157: -0.02138978157 | P157: -0.0002080644758 | Q157: -0.005647219263 | R157: 8.516956302e-06
A158: 76.03344 | B158: ='DF raw data'!G163 -> -4.859583e-06 | C158: ='DF raw data'!H163 -> 1.7625576e-05 | D158: ='DF raw data'!I163 -> -2.3957416e-06 | F158: -4.86273201e-06 | G158: 1.767624963e-05 | H158: -2.397294041e-06 | J158: -1.050686704e-05 | K158: -5.863742262e-06 | L158: 7.51349149e-06 | N158: -0.0005429955498 | O158: -0.0216613988 | P158: -0.000210997637 | Q158: -0.005752764501 | R158: 8.686713047e-06
A159: 76.53366 | B159: ='DF raw data'!G164 -> -4.3751156e-06 | C159: ='DF raw data'!H164 -> 1.3186054e-05 | D159: ='DF raw data'!I164 -> 3.5747564e-06 | F159: -4.377950675e-06 | G159: 1.322396398e-05 | H159: 3.577072842e-06 | J159: -9.91214411e-06 | K159: -1.40906967e-05 | L159: 4.969211364e-06 | N159: -0.0005479538025 | O159: -0.02193549625 | P159: -0.0002180460853 | Q159: -0.005861835514 | R159: 8.860688295e-06
A160: 77.03388 | B160: ='DF raw data'!G165 -> -8.5495066e-07 | C160: ='DF raw data'!H165 -> -3.281186e-07 | D160: ='DF raw data'!I165 -> -2.7868807e-06 | F160: -8.55504668e-07 | G160: -3.290619428e-07 | H160: -2.788686599e-06 | J160: -1.105563441e-05 | K160: -1.62051744e-05 | L160: 6.30468509e-06 | N160: -0.000553484052 | O160: -0.02221236005 | P160: -0.0002261522376 | Q160: -0.005974961386 | R160: 9.039511658e-06
A161: 77.5341 | B161: ='DF raw data'!G166 -> -4.2561845e-07 | C161: ='DF raw data'!H166 -> 2.3869923e-06 | D161: ='DF raw data'!I166 -> -7.5331168e-06 | F161: -4.258942508e-07 | G161: 2.393854916e-06 | H161: -7.53799826e-06 | J161: -1.1373101e-05 | K161: -5.657941079e-06 | L161: 1.078567759e-05 | N161: -0.0005591731046 | O161: -0.02249206962 | P161: -0.0002289824529 | Q161: -0.006089502989 | R161: 9.222145744e-06
A162: 78.03432 | B162: ='DF raw data'!G167 -> 3.1323117e-07 | C162: ='DF raw data'!H167 -> 1.271092e-05 | D162: ='DF raw data'!I167 -> -1.0560086e-06 | F162: 3.134341438e-07 | G162: 1.274746396e-05 | H162: -1.056692894e-06 | J162: -1.272825857e-05 | K162: -4.50368841e-06 | L162: 1.448142289e-05 | N162: -0.0005655400341 | O162: -0.02277496405 | P162: -0.0002312352879 | Q162: -0.006205171505 | R162: 9.408880515e-06
A163: 78.53454 | B163: ='DF raw data'!G168 -> 2.7626015e-06 | C163: ='DF raw data'!H168 -> 1.5126485e-05 | D163: ='DF raw data'!I168 -> 1.6530751e-06 | F163: 2.764391666e-06 | G163: 1.516997373e-05 | H163: 1.654146293e-06 | J163: -1.701013743e-05 | K163: -1.33912686e-05 | L163: 1.559446167e-05 | N163: -0.000574048845 | O163: -0.02306211477 | P163: -0.0002379338683 | Q163: -0.006324190784 | R163: 9.602037768e-06
A164: 79.03476 | B164: ='DF raw data'!G169 -> 3.0408801e-06 | C164: ='DF raw data'!H169 -> 1.3234489e-05 | D164: ='DF raw data'!I169 -> 8.0457659e-07 | F164: 3.04285059e-06 | G164: 1.327253823e-05 | H164: 8.050979556e-07 | J164: -1.797342123e-05 | K164: -6.274943078e-06 | L164: 1.401757351e-05 | N164: -0.0005830395098 | O164: -0.02335376279 | P164: -0.0002410727203 | Q164: -0.00644478018 | R164: 9.801150902e-06
A165: 79.53498 | B165: ='DF raw data'!G170 -> -5.2013564e-07 | C165: ='DF raw data'!H170 -> 1.8352221e-05 | D165: ='DF raw data'!I170 -> 5.1593207e-07 | F165: -5.204726879e-07 | G165: 1.840498374e-05 | H165: 5.16266394e-07 | J165: -1.622893054e-05 | K165: -6.019362689e-06 | L165: 6.986973327e-06 | N165: -0.0005911575454 | O165: -0.02364947162 | P165: -0.0002440837259 | Q165: -0.006566875742 | R165: 1.000576295e-05
A166: 80.0352 | B166: ='DF raw data'!G171 -> -2.4775627e-06 | C166: ='DF raw data'!H171 -> 1.3091187e-05 | D166: ='DF raw data'!I171 -> 7.4274823e-07 | F166: -2.479168161e-06 | G166: 1.312882423e-05 | H166: 7.432295309e-07 | J166: -1.224868601e-05 | K166: -3.845608751e-06 | L166: 1.114876672e-05 | N166: -0.0005972845831 | O166: -0.02394824531 | P166: -0.0002460073763 | Q166: -0.006689933551 | R166: 1.0214489e-05
A167: 80.53542 | B167: ='DF raw data'!G172 -> 8.337434e-07 | C167: ='DF raw data'!H172 -> 9.6661115e-06 | D167: ='DF raw data'!I172 -> 6.2760984e-07 | F167: 8.342836657e-07 | G167: 9.693901624e-06 | H167: 6.280165312e-07 | J167: -5.889888376e-06 | K167: -6.915225717e-06 | L167: 5.088354118e-06 | N167: -0.0006002308231 | O167: -0.02424849277 | P167: -0.0002494665105 | Q167: -0.006814721689 | R167: 1.042583724e-05
A168: 81.03564 | B168: ='DF raw data'!G173 -> 3.2279117e-06 | C168: ='DF raw data'!H173 -> 6.1915343e-06 | D168: ='DF raw data'!I173 -> -3.6097551e-06 | F168: 3.230003387e-06 | G168: 6.209334995e-06 | H168: -3.612094221e-06 | J168: -1.424329768e-06 | K168: -3.373121642e-06 | L168: 2.37598354e-06 | N168: -0.0006009433013 | O168: -0.02454909663 | P168: -0.0002511538134 | Q168: -0.00694035385 | R168: 1.063803611e-05
A169: 81.53586 | B169: ='DF raw data'!G174 -> 2.7247547e-06 | C169: ='DF raw data'!H174 -> 5.0663421e-06 | D169: ='DF raw data'!I174 -> -1.7889686e-06 | F169: 2.726520341e-06 | G169: 5.080907861e-06 | H169: -1.790127852e-06 | J169: -4.059568697e-06 | K169: 3.573128514e-06 | L169: 6.432551894e-06 | N169: -0.0006029739788 | O169: -0.02485071628 | P169: -0.0002493664631 | Q169: -0.007065091942 | R169: 1.08510104e-05
A170: 82.03608 | B170: ='DF raw data'!G175 -> 2.310107e-06 | C170: ='DF raw data'!H175 -> 4.5317011e-06 | D170: ='DF raw data'!I175 -> 3.9447309e-06 | F170: 2.311603949e-06 | G170: 4.544729765e-06 | H170: 3.947287086e-06 | J170: -1.057299086e-05 | K170: -3.550687481e-06 | L170: 1.305144786e-05 | N170: -0.0006082628003 | O170: -0.02515498149 | P170: -0.000251142588 | Q170: -0.007190718487 | R170: 1.106763379e-05
A171: 82.5363 | B171: ='DF raw data'!G176 -> 2.0616658e-06 | C171: ='DF raw data'!H176 -> 4.3813288e-06 | D171: ='DF raw data'!I176 -> 2.6108539e-06 | F171: 2.063001759e-06 | G171: 4.393925144e-06 | H171: 2.612545733e-06 | J171: -1.312847875e-05 | K171: -1.367615029e-05 | L171: 1.014847695e-05 | N171: -0.0006148299279 | O171: -0.02546253172 | P171: -0.0002579836719 | Q171: -0.00731976708 | R171: 1.129001731e-05
A172: 83.03652 | B172: ='DF raw data'!G177 -> -1.9446514e-07 | C172: ='DF raw data'!H177 -> 2.0023197e-06 | D172: ='DF raw data'!I177 -> 2.1387198e-06 | F172: -1.945911534e-07 | G172: 2.00807638e-06 | H172: 2.14010569e-06 | J172: -1.062128213e-05 | K172: -3.967911664e-06 | L172: 4.945836827e-06 | N172: -0.0006201429057 | O172: -0.0257727396 | P172: -0.0002599685006 | Q172: -0.007449808523 | R172: 1.15161972e-05
A173: 83.53674 | B173: ='DF raw data'!G178 -> -4.4690987e-06 | C173: ='DF raw data'!H178 -> 7.3654264e-06 | D173: ='DF raw data'!I178 -> 5.0790118e-06 | F173: -4.471994676e-06 | G173: 7.386602041e-06 | H173: 5.082303e-06 | J173: -6.03716635e-06 | K173: -8.487636848e-06 | L173: 8.749602671e-06 | N173: -0.000623162817 | O173: -0.02608445811 | P173: -0.0002642141864 | Q173: -0.007581973743 | R173: 1.174536851e-05
A174: 84.03696 | B174: ='DF raw data'!G179 -> -7.7693912e-06 | C174: ='DF raw data'!H179 -> 1.9149982e-05 | D174: ='DF raw data'!I179 -> 5.8142346e-06 | F174: -7.774425765e-06 | G174: 1.92050383e-05 | H174: 5.818002224e-06 | J174: -1.78280641e-06 | K174: -7.048101841e-06 | L174: 1.528498326e-05 | N174: -0.0006240546124 | O174: -0.02639662271 | P174: -0.0002677397879 | Q174: -0.00771590254 | R174: 1.197603434e-05
A175: 84.53718 | B175: ='DF raw data'!G180 -> -6.9502421e-06 | C175: ='DF raw data'!H180 -> 1.305236e-05 | D175: ='DF raw data'!I180 -> 9.2725177e-06 | F175: -6.954745857e-06 | G175: 1.308988561e-05 | H175: 9.278526291e-06 | J175: -2.209477915e-06 | K175: -1.02761523e-05 | L175: 1.65306189e-05 | N175: -0.0006251598375 | O175: -0.02670934016 | P175: -0.0002728801248 | Q175: -0.007852402636 | R175: 1.220878089e-05
A176: 85.0374 | B176: ='DF raw data'!G181 -> -1.5044227e-06 | C176: ='DF raw data'!H181 -> 6.8776171e-06 | D176: ='DF raw data'!I181 -> 7.5867028e-06 | F176: -1.505397566e-06 | G176: 6.897390287e-06 | H176: 7.591618983e-06 | J176: -6.49022164e-06 | K176: -1.538678527e-05 | L176: 1.399000165e-05 | N176: -0.0006284063762 | O176: -0.0270236816 | P176: -0.0002805769025 | Q176: -0.007992752814 | R176: 1.244569407e-05
A177: 85.53762 | B177: ='DF raw data'!G182 -> 4.4360095e-06 | C177: ='DF raw data'!H182 -> 7.3428782e-06 | D177: ='DF raw data'!I182 -> 3.7438042e-06 | F177: 4.438884034e-06 | G177: 7.363989015e-06 | H177: 3.746230185e-06 | J177: -8.643350364e-06 | K177: -6.061246761e-06 | L177: 6.608434793e-06 | N177: -0.0006327299529 | O177: -0.02734018578 | P177: -0.0002836088593 | Q177: -0.008134619638 | R177: 1.268619044e-05
A178: 86.03784 | B178: ='DF raw data'!G183 -> 7.5777052e-06 | C178: ='DF raw data'!H183 -> 8.628449e-06 | D178: ='DF raw data'!I183 -> 1.3985721e-06 | F178: 7.582615553e-06 | G178: 8.653255838e-06 | H178: 1.399478375e-06 | J178: -8.161708462e-06 | K178: -1.946162788e-06 | L178: -1.089335332e-06 | N178: -0.0006368126027 | O178: -0.02765873218 | P178: -0.0002845823689 | Q178: -0.00827697343 | R178: 1.292955618e-05
A179: 86.53806 | B179: ='DF raw data'!G184 -> 8.9334535e-06 | C179: ='DF raw data'!H184 -> 5.7765774e-06 | D179: ='DF raw data'!I184 -> 3.1406246e-06 | F179: 8.939242378e-06 | G179: 5.793185092e-06 | H179: 3.142659725e-06 | J179: -6.369125921e-06 | K179: -1.588255754e-05 | L179: -5.790003092e-07 | N179: -0.0006399985668 | O179: -0.02797887226 | P179: -0.0002925271418 | Q179: -0.008423301357 | R179: 1.317725026e-05
A180: 87.03828 | B180: ='DF raw data'!G185 -> 9.1317661e-06 | C180: ='DF raw data'!H185 -> 1.6698525e-05 | D180: ='DF raw data'!I185 -> 4.2496154e-06 | F180: 9.137683484e-06 | G180: 1.674653335e-05 | H180: 4.252369151e-06 | J180: -9.838322605e-07 | K180: -8.831797575e-06 | L180: 5.08582408e-06 | N180: -0.0006404906994 | O180: -0.02829925852 | P180: -0.0002969449836 | Q180: -0.008571839177 | R180: 1.342656224e-05
A181: 87.5385 | B181: ='DF raw data'!G186 -> 8.0044347e-06 | C181: ='DF raw data'!H186 -> 1.7571538e-05 | D181: ='DF raw data'!I186 -> 4.923741e-06 | F181: 8.009621574e-06 | G181: 1.762205627e-05 | H181: 4.926931584e-06 | J181: 3.221769455e-06 | K181: -2.495118013e-05 | L181: 3.550357842e-06 | N181: -0.0006388791059 | O181: -0.02861883862 | P181: -0.0003094260629 | Q181: -0.008726620282 | R181: 1.36786286e-05
A182: 88.03872 | B182: ='DF raw data'!G187 -> 5.04116e-06 | C182: ='DF raw data'!H187 -> 9.8090113e-06 | D182: ='DF raw data'!I187 -> 4.4077474e-06 | F182: 5.044426672e-06 | G182: 9.837212261e-06 | H182: 4.41060362e-06 | J182: 2.824419739e-06 | K182: -2.348367615e-05 | L182: -4.661409137e-06 | N182: -0.0006374662747 | O182: -0.028937712 | P182: -0.0003211730674 | Q182: -0.008887277474 | R182: 1.393349839e-05
A183: 88.53894 | B183: ='DF raw data'!G188 -> 4.8302635e-08 | C183: ='DF raw data'!H188 -> 1.1831768e-05 | D183: ='DF raw data'!I188 -> 8.3565766e-07 | F183: 4.833393511e-08 | G183: 1.18657844e-05 | H183: 8.361991662e-07 | J183: -1.027047196e-06 | K183: -1.834574592e-05 | L183: -9.572057076e-07 | N183: -0.0006379800242 | O183: -0.02925684237 | P183: -0.0003303499764 | Q183: -0.009052525139 | R183: 1.419168675e-05
A184: 89.03916 | B184: ='DF raw data'!G189 -> -3.7387265e-06 | C184: ='DF raw data'!H189 -> 1.2447133e-05 | D184: ='DF raw data'!I189 -> -1.3409933e-06 | F184: -3.741149195e-06 | G184: 1.248291858e-05 | H184: -1.341862264e-06 | J184: -2.177818412e-06 | K184: -1.333064982e-05 | L184: 3.829600474e-06 | N184: -0.0006390694125 | O184: -0.02957651767 | P184: -0.0003370182341 | Q184: -0.0092211084 | R184: 1.445279709e-05
A185: 89.53938 | B185: ='DF raw data'!G190 -> -2.7565086e-06 | C185: ='DF raw data'!H190 -> 1.7034894e-05 | D185: ='DF raw data'!I190 -> -3.7360076e-06 | F185: -2.758294818e-06 | G185: 1.708386941e-05 | H185: -3.738428533e-06 | J185: -1.267367122e-06 | K185: -7.766129055e-06 | L185: 6.388531187e-06 | N185: -0.0006397033749 | O185: -0.02989651009 | P185: -0.0003409030072 | Q185: -0.009391634903 | R185: 1.471563032e-05
A186: 90.0396 | B186: ='DF raw data'!G191 -> 2.6016687e-06 | C186: ='DF raw data'!H191 -> 1.3406743e-05 | D186: ='DF raw data'!I191 -> 8.428454e-07 | F186: 2.603354581e-06 | G186: 1.344528746e-05 | H186: 8.433915638e-07 | J186: -4.112334967e-06 | K186: -1.109440604e-05 | L186: 8.195179537e-06 | N186: -0.0006417604471 | O186: -0.0302175315 | P186: -0.000346452651 | Q186: -0.009564937448 | R186: 1.498169029e-05
A187: 90.53982 | B187: ='DF raw data'!G192 -> 7.4998088e-06 | C187: ='DF raw data'!H192 -> 1.0822525e-05 | D187: ='DF raw data'!I192 -> 4.256271e-06 | F187: 7.504668676e-06 | G187: 1.085363982e-05 | H187: 4.259029064e-06 | J187: -8.820350786e-06 | K187: -9.691935086e-06 | L187: 5.76584795e-06 | N187: -0.000646172563 | O187: -0.03054075994 | P187: -0.0003513007507 | Q187: -0.009740665109 | R187: 1.52522849e-05
A188: 91.04004 | B188: ='DF raw data'!G193 -> 7.7688092e-06 | C188: ='DF raw data'!H193 -> 2.5684043e-05 | D188: ='DF raw data'!I193 -> 1.6500128e-06 | F188: 7.773843388e-06 | G188: 2.575788476e-05 | H188: 1.651082008e-06 | J188: -9.567092962e-06 | K188: -1.023413685e-05 | L188: 1.07134198e-05 | N188: -0.0006509582142 | O188: -0.03086638226 | P188: -0.0003564200707 | Q188: -0.009918953557 | R188: 1.5527797e-05
A189: 91.54026 | B189: ='DF raw data'!G194 -> 4.7692902e-06 | C189: ='DF raw data'!H194 -> 1.4521125e-05 | D189: ='DF raw data'!I194 -> -6.0817724e-06 | F189: 4.7723807e-06 | G189: 1.456287331e-05 | H189: -6.085713389e-06 | J189: -6.113176573e-06 | K189: -1.504958259e-05 | L189: 1.111719928e-05 | N189: -0.0006540161474 | O189: -0.03119353422 | P189: -0.0003639481729 | Q189: -0.01010100771 | R189: 1.580801794e-05
A190: 92.04048 | B190: ='DF raw data'!G195 -> 1.9609406e-06 | C190: ='DF raw data'!H195 -> 3.9424867e-06 | D190: ='DF raw data'!I195 -> -9.0688518e-06 | F190: 1.96221129e-06 | G190: 3.953821371e-06 | H190: -9.074728416e-06 | J190: -5.580371539e-06 | K190: -2.268134906e-05 | L190: 1.854261483e-06 | N190: -0.0006568075609 | O190: -0.0315220825 | P190: -0.0003752938373 | Q190: -0.0102887372 | R190: 1.609426466e-05
A191: 92.5407 | B191: ='DF raw data'!G196 -> 5.4538583e-07 | C191: ='DF raw data'!H196 -> 8.8640809e-06 | D191: ='DF raw data'!I196 -> -3.2393816e-06 | F191: 5.4573924e-07 | G191: 8.889565181e-06 | H191: -3.241480719e-06 | J191: -7.061432245e-06 | K191: -6.195994551e-06 | L191: 1.667989057e-06 | N191: -0.0006603398305 | O191: -0.03185239769 | P191: -0.0003783931977 | Q191: -0.01047801704 | R191: 1.638400714e-05
A192: 93.04092 | B192: ='DF raw data'!G197 -> -1.9732709e-06 | C192: ='DF raw data'!H197 -> 1.7962613e-05 | D192: ='DF raw data'!I197 -> -3.3803424e-06 | F192: -1.97454958e-06 | G192: 1.801425561e-05 | H192: -3.382532862e-06 | J192: -1.027796781e-05 | K192: -1.232685217e-06 | L192: -2.52643547e-06 | N192: -0.0006654810756 | O192: -0.03218528463 | P192: -0.0003790098115 | Q192: -0.01066760533 | R192: 1.667739292e-05
A193: 93.54114 | B193: ='DF raw data'!G198 -> -4.3518203e-06 | C193: ='DF raw data'!H198 -> 2.2061629e-05 | D193: ='DF raw data'!I198 -> -2.049195e-06 | F193: -4.35464028e-06 | G193: 2.21250563e-05 | H193: -2.050522878e-06 | J193: -1.088751754e-05 | K193: -8.505167604e-06 | L193: -1.5644393e-06 | N193: -0.0006709272296 | O193: -0.03252089585 | P193: -0.0003832642664 | Q193: -0.01085932178 | R193: 1.697604169e-05
A194: 94.04136 | B194: ='DF raw data'!G199 -> -2.1019637e-06 | C194: ='DF raw data'!H199 -> 1.2173608e-05 | D194: ='DF raw data'!I199 -> -1.6652446e-06 | F194: -2.103325772e-06 | G194: 1.220860719e-05 | H194: -1.666323679e-06 | J194: -6.311283663e-06 | K194: -9.643494819e-06 | L194: 3.567563084e-07 | N194: -0.0006740842599 | O194: -0.03285808628 | P194: -0.0003880881354 | Q194: -0.01105345123 | R194: 1.727867579e-05
A195: 94.54158 | B195: ='DF raw data'!G200 -> 1.4687307e-06 | C195: ='DF raw data'!H200 -> 1.1449365e-05 | D195: ='DF raw data'!I200 -> -7.122811e-06 | F195: 1.469682437e-06 | G195: 1.148228199e-05 | H195: -7.127426582e-06 | J195: -2.136874198e-06 | K195: -1.132054633e-05 | L195: 8.4150176e-06 | N195: -0.0006751531671 | O195: -0.0331958114 | P195: -0.0003937508991 | Q195: -0.0112504133 | R195: 1.758424596e-05
A196: 95.0418 | B196: ='DF raw data'!G201 -> 3.9652259e-06 | C196: ='DF raw data'!H201 -> 1.8560368e-05 | D196: ='DF raw data'!I201 -> -9.2151386e-06 | F196: 3.967795366e-06 | G196: 1.861372916e-05 | H196: -9.22111001e-06 | J196: -4.50941731e-06 | K196: -1.225922831e-05 | L196: 1.140256708e-05 | N196: -0.0006774088678 | O196: -0.03353466486 | P196: -0.0003998832103 | Q196: -0.01145044288 | R196: 1.789377677e-05
A197: 95.54202 | B197: ='DF raw data'!G202 -> 5.0311473e-06 | C197: ='DF raw data'!H202 -> 1.701488e-05 | D197: ='DF raw data'!I202 -> -1.6323008e-06 | F197: 5.034407483e-06 | G197: 1.706379787e-05 | H197: -1.633358531e-06 | J197: -1.059149284e-05 | K197: -2.101914893e-05 | L197: 1.03985479e-05 | N197: -0.0006827069444 | O197: -0.03387616853 | P197: -0.0004103974089 | Q197: -0.01165573187 | R197: 1.821117377e-05
A198: 96.04224 | B198: ='DF raw data'!G203 -> 4.8608035e-06 | C198: ='DF raw data'!H203 -> 1.7556995e-05 | D198: ='DF raw data'!I203 -> -1.3030849e-07 | F198: 4.863953301e-06 | G198: 1.760747146e-05 | H198: -1.303929299e-07 | J198: -1.410451981e-05 | K198: -2.962858414e-06 | L198: 9.048024723e-06 | N198: -0.0006897623073 | O198: -0.03422120143 | P198: -0.00041187949 | Q198: -0.01186176223 | R198: 1.853402414e-05
A199: 96.54246 | B199: ='DF raw data'!G204 -> 3.7086411e-06 | C199: ='DF raw data'!H204 -> 1.5180123e-05 | D199: ='DF raw data'!I204 -> -7.9566671e-06 | F199: 3.711044299e-06 | G199: =(1-$G$1*($B$2-$G$2))*C199*$M$2/$M$1 -> 1.522376594e-05 | H199: -7.96182302e-06 | J199: =-CELL("contents", INDEX($F$6:$F$1203,1204-CELL("row",F199))) -> -1.524954731e-05 | K199: =CELL("contents", INDEX($G$6:$G$1203,1204-CELL("row",G199))) -> -4.583709611e-06 | L199: =-CELL("contents", INDEX($H$6:$H$1203,1204-CELL("row",H199))) -> 1.932113699e-06 | N199: -0.0006973904358 | O199: -0.03457005007 | P199: -0.0004141723532 | Q199: -0.01206893953 | R199: 1.886311496e-05
A200: =A199+$B$1 -> 97.04268 | B200: ='DF raw data'!G205 -> 1.444901e-06 | C200: ='DF raw data'!H205 -> 1.4258674e-05 | D200: ='DF raw data'!I205 -> -4.6650362e-06 | F200: 1.445837296e-06 | G200: 1.429966777e-05 | H200: -4.668059143e-06 | J200: -1.442659538e-05 | K200: -1.72612068e-05 | L200: 7.702893142e-06 | N200: =J200*$B$1+N199 -> -0.0007046069074 | O200: =N200*$B$1+O199 -> -0.03492250854 | P200: =K200*$B$1+P199 -> -0.0004228067541 | Q200: =P200*$B$1+Q199 -> -0.01228043592 | R200: =(N200^2+P200^2)*$B$1+R199 -> 1.920088173e-05
... 1003 more rows

Sheet 20 mm
A1: dz | B1: ='DF raw data'!K7 -> 0.50021 | C1: mm | F1: T_coeff | G1: -0.0008 | H1: /degC | L1: Hallref | M1: ='PI vs gap'!B44 -> 0.50549 | N1: T | P1: IBy total | Q1: =P1203*1000 -> 3.41520853 | R1: muTm
A2: Tref | B2: ='DF raw data'!K8 -> 20.8 | C2: degC | F2: Tcorr | G2: 20 | H2: degC | L2: NMRref | M2: ='PI vs gap'!B45 -> 0.506615 | N2: T | P2: JBy total | Q2: =Q1203 -> -2.677351172 | R2: muTm^2
A3: Encoder | B3: ='DF raw data'!K9 -> 591570 | P3: PI total | Q3: =R1203 -> 1874.742524 | R3: T^2mm^3
J4: SXR-rotation
A5: z [mm] | B5: Bx | C5: By | D5: Bz | F5: Bx_corr | G5: By_corr | H5: Bz_corr | J5: Bx_rot | K5: By_rot | L5: Bz_rot | N5: Ix | O5: Jx | P5: Iy | Q5: Jy | R5: PI
A6: 0 | B6: ='DF raw data'!J11 -> -3.0925619e-06 | C6: ='DF raw data'!K11 -> -2.877395e-06 | D6: ='DF raw data'!L11 -> 1.4116531e-05 | F6: =(1-$G$1*($B$2-$G$2))*B6 -> -3.09454114e-06 | G6: =(1-$G$1*($B$2-$G$2))*C6*$M$2/$M$1 -> -2.885644456e-06 | H6: =(1-$G$1*($B$2-$G$2))*D6 -> 1.412556558e-05 | J6: =-CELL("contents", INDEX($F$6:$F$1203,1204-CELL("row",F6))) -> -9.4046087e-06 | K6: =CELL("contents", INDEX($G$6:$G$1203,1204-CELL("row",G6))) -> 4.90737075e-08 | L6: =-CELL("contents", INDEX($H$6:$H$1203,1204-CELL("row",H6))) -> -1.729928446e-06 | N6: =J6*$B$1 -> -4.704279318e-06 | O6: =N6*$B$1 -> -2.353127558e-06 | P6: =K6*$B$1 -> 2.454715923e-08 | Q6: =P6*$B$1 -> 1.227873452e-08 | R6: =(N6^2+P6)^2*$B$1 -> 3.019517591e-16
A7: =A6+$B$1 -> 0.50021 | B7: ='DF raw data'!J12 -> -3.0097926e-06 | C7: ='DF raw data'!K12 -> -5.9743697e-06 | D7: ='DF raw data'!L12 -> 9.2634082e-06 | F7: =(1-$G$1*($B$2-$G$2))*B7 -> -3.011718867e-06 | G7: =(1-$G$1*($B$2-$G$2))*C7*$M$2/$M$1 -> -5.991498144e-06 | H7: 9.269336781e-06 | J7: =-CELL("contents", INDEX($F$6:$F$1203,1204-CELL("row",F7))) -> -4.102647015e-06 | K7: =CELL("contents", INDEX($G$6:$G$1203,1204-CELL("row",G7))) -> -2.877254972e-07 | L7: =-CELL("contents", INDEX($H$6:$H$1203,1204-CELL("row",H7))) -> -1.601795994e-06 | N7: =J7*$B$1+N6 -> -6.756464381e-06 | O7: =N7*$B$1+O6 -> -5.732778606e-06 | P7: =K7*$B$1+P6 -> -1.193760117e-07 | Q7: =P7*$B$1+Q6 -> -4.743434031e-08 | R7: =(N7^2+P7^2)*$B$1+R6 -> 2.284192219e-11
A8: =A7+$B$1 -> 1.00042 | B8: ='DF raw data'!J13 -> -3.5865746e-06 | C8: ='DF raw data'!K13 -> 9.2973032e-06 | D8: ='DF raw data'!L13 -> 6.908725e-06 | F8: -3.588870008e-06 | G8: 9.323958454e-06 | H8: 6.913146584e-06 | J8: 6.200255225e-07 | K8: 9.907636367e-06 | L8: -1.005889558e-06 | N8: =J8*$B$1+N7 -> -6.446321414e-06 | O8: =N8*$B$1+O7 -> -8.95729304e-06 | P8: =K8*$B$1+P7 -> 4.836522775e-06 | Q8: =P8*$B$1+Q7 -> 2.371842717e-06 | R8: =(N8^2+P8^2)*$B$1+R7 -> 5.532906723e-11
A9: 1.50063 | B9: ='DF raw data'!J14 -> -2.8881752e-06 | C9: ='DF raw data'!K14 -> -9.0789554e-06 | D9: ='DF raw data'!L14 -> 1.1047656e-05 | F9: -2.890023632e-06 | G9: -9.104984653e-06 | H9: 1.10547265e-05 | J9: 1.504954855e-06 | K9: 2.624105972e-06 | L9: -4.217704204e-07 | N9: -5.693527946e-06 | O9: -1.180525265e-05 | P9: 6.149126824e-06 | Q9: 5.447697446e-06 | R9: 9.04578257e-11
A10: 2.00084 | B10: ='DF raw data'!J15 -> -2.9537898e-06 | C10: ='DF raw data'!K15 -> -6.8907475e-06 | D10: ='DF raw data'!L15 -> 1.3023513e-05 | F10: -2.955680225e-06 | G10: -6.910503188e-06 | H10: 1.303184805e-05 | J10: 5.104195196e-07 | K10: -5.757293201e-08 | L10: -4.410167202e-07 | N10: -5.438210998e-06 | O10: -1.452550018e-05 | P10: 6.120328267e-06 | Q10: 8.509146848e-06 | R10: 1.23988181e-10
A11: 2.50105 | B11: ='DF raw data'!J16 -> -3.3548206e-06 | C11: ='DF raw data'!K16 -> 3.6996341e-06 | D11: ='DF raw data'!L16 -> 1.0817978e-05 | F11: -3.356967685e-06 | G11: 3.710240905e-06 | H11: 1.082490151e-05 | J11: 1.822030454e-07 | K11: 6.860056371e-07 | L11: -8.607750737e-07 | N11: -5.347071213e-06 | O11: -1.720015867e-05 | P11: 6.463475147e-06 | Q11: 1.174224175e-05 | R11: 1.59186799e-10
A12: 3.00126 | B12: ='DF raw data'!J17 -> -3.1770667e-06 | C12: ='DF raw data'!K17 -> -2.9401028e-06 | D12: ='DF raw data'!L17 -> 2.700898e-07 | F12: -3.179100023e-06 | G12: -2.948532038e-06 | H12: 2.702626575e-07 | J12: -2.211293823e-06 | K12: 3.07326342e-07 | L12: -1.102254892e-06 | N12: -6.453182496e-06 | O12: -2.042810509e-05 | P12: 6.617202857e-06 | Q12: 1.505223279e-05 | R12: 2.019202085e-10
A13: 3.50147 | B13: ='DF raw data'!J18 -> -3.1513682e-06 | C13: ='DF raw data'!K18 -> -4.7404365e-06 | D13: ='DF raw data'!L18 -> -6.2916097e-06 | F13: -3.153385076e-06 | G13: -4.754027273e-06 | H13: -6.29563633e-06 | J13: -3.9573742e-06 | K13: 2.880085665e-06 | L13: -9.762538028e-07 | N13: -8.432700645e-06 | O13: -2.464622628e-05 | P13: 8.057850507e-06 | Q13: 1.908285019e-05 | R13: 2.699684742e-10
A14: 4.00168 | B14: ='DF raw data'!J19 -> -3.4729003e-06 | C14: ='DF raw data'!K19 -> 5.4716793e-06 | D14: ='DF raw data'!L19 -> 2.301919e-06 | F14: -3.475122956e-06 | G14: 5.487366537e-06 | H14: 2.303392228e-06 | J14: -9.336413983e-06 | K14: 3.405018739e-06 | L14: -8.712309512e-07 | N14: -1.310286828e-05 | O14: -3.120041202e-05 | P14: 9.76107493e-06 | Q14: 2.396543749e-05 | R14: 4.035064071e-10
A15: 4.50189 | B15: ='DF raw data'!J20 -> -2.9987789e-06 | C15: ='DF raw data'!K20 -> -6.3826565e-06 | D15: ='DF raw data'!L20 -> 8.6220925e-06 | F15: -3.000698118e-06 | G15: -6.400955498e-06 | H15: 8.627610639e-06 | J15: -1.046199539e-05 | K15: -2.509905797e-06 | L15: -1.038787899e-06 | N15: -1.8336063e-05 | O15: -4.037229409e-05 | P15: 8.505594951e-06 | Q15: 2.822002114e-05 | R15: 6.078703799e-10
A16: 5.0021 | B16: ='DF raw data'!J21 -> -3.3060267e-06 | C16: ='DF raw data'!K21 -> 1.3782654e-06 | D16: ='DF raw data'!L21 -> 4.7980293e-06 | F16: -3.308142557e-06 | G16: 1.38221687e-06 | H16: 4.801100039e-06 | J16: -7.768066783e-06 | K16: 5.763014758e-06 | L16: -8.126920803e-07 | N16: -2.222172769e-05 | O16: -5.14878245e-05 | P16: 1.138831256e-05 | Q16: 3.391656896e-05 | R16: 9.197507368e-10
A17: 5.50231 | B17: ='DF raw data'!J22 -> -3.5295704e-06 | C17: ='DF raw data'!K22 -> 8.3721179e-06 | D17: ='DF raw data'!L22 -> 1.045579e-05 | F17: -3.531829325e-06 | G17: 8.396120659e-06 | H17: 1.046248171e-05 | J17: -9.536456128e-06 | K17: 4.330178779e-06 | L17: -2.891094417e-07 | N17: -2.69919584e-05 | O17: -6.498947201e-05 | P17: 1.355431129e-05 | Q17: 4.069657101e-05 | R17: 1.376084903e-09
A18: 6.00252 | B18: ='DF raw data'!J23 -> -3.1358823e-06 | C18: ='DF raw data'!K23 -> -1.6101013e-06 | D18: ='DF raw data'!L23 -> 1.5119434e-05 | F18: -3.137889265e-06 | G18: -1.614717441e-06 | H18: 1.512911044e-05 | J18: -1.210448191e-05 | K18: -5.077845402e-06 | L18: -5.855978929e-07 | N18: -3.30467413e-05 | O18: -8.151978248e-05 | P18: 1.101432224e-05 | Q18: 4.620604514e-05 | R18: 1.98304092e-09
A19: 6.50273 | B19: ='DF raw data'!J24 -> -3.194622e-06 | C19: ='DF raw data'!K24 -> -1.5253764e-06 | D19: ='DF raw data'!L24 -> 5.6408699e-06 | F19: -3.196666558e-06 | G19: -1.529749635e-06 | H19: 5.644480057e-06 | J19: -1.28271041e-05 | K19: -3.557633934e-06 | L19: -1.708683558e-06 | N19: -3.946298704e-05 | O19: -0.0001012595632 | P19: 9.234758172e-06 | Q19: 5.082536353e-05 | R19: 2.80468992e-09
A20: 7.00294 | B20: ='DF raw data'!J25 -> -3.4743687e-06 | C20: ='DF raw data'!K25 -> 5.579087e-06 | D20: ='DF raw data'!L25 -> 2.3657437e-06 | F20: -3.476592296e-06 | G20: 5.595082174e-06 | H20: 2.367257776e-06 | J20: -1.522480865e-05 | K20: 4.029374742e-06 | L20: -2.282480553e-06 | N20: -4.707858858e-05 | O20: -0.000124808744 | P20: 1.125029171e-05 | Q20: 5.645287194e-05 | R20: 3.976663226e-09
A21: 7.50315 | B21: ='DF raw data'!J26 -> -3.6264908e-06 | C21: ='DF raw data'!K26 -> 1.0223554e-05 | D21: ='DF raw data'!L26 -> 5.8559726e-06 | F21: -3.628811754e-06 | G21: 1.02528648e-05 | H21: 5.859720422e-06 | J21: -1.751524659e-05 | K21: 1.089528635e-05 | L21: -1.6075905e-06 | N21: -5.583989007e-05 | O21: -0.0001527404154 | P21: 1.67002229e-05 | Q21: 6.480649044e-05 | R21: 5.675871978e-09
A22: 8.00336 | B22: ='DF raw data'!J27 -> -1.2222429e-06 | C22: ='DF raw data'!K27 -> 1.4189635e-06 | D22: ='DF raw data'!L27 -> 4.9030514e-06 | F22: -1.223025135e-06 | G22: 1.423031651e-06 | H22: 4.906189353e-06 | J22: -1.925190934e-05 | K22: 1.113065623e-05 | L22: -5.21464784e-07 | N22: -6.546988764e-05 | O22: -0.0001854891079 | P22: 2.226788845e-05 | Q22: 7.594511092e-05 | R22: 8.067958754e-09
A23: 8.50357 | B23: ='DF raw data'!J28 -> 3.9182651e-06 | C23: ='DF raw data'!K28 -> 1.3258874e-07 | D23: ='DF raw data'!L28 -> 1.0486605e-05 | F23: =(1-$G$1*($B$2-$G$2))*B23 -> 3.92077279e-06 | G23: 1.329688703e-07 | H23: 1.049331643e-05 | J23: -1.559958035e-05 | K23: 3.534278165e-06 | L23: 4.38344491e-06 | N23: -7.327295373e-05 | O23: -0.0002221409721 | P23: 2.403576973e-05 | Q23: 8.79680433e-05 | R23: 1.104252954e-08
A24: 9.00378 | B24: ='DF raw data'!J29 -> 6.5740915e-06 | C24: ='DF raw data'!K29 -> -3.2339096e-06 | D24: ='DF raw data'!L29 -> 2.5145425e-07 | F24: 6.578298919e-06 | G24: -3.243181179e-06 | H24: 2.516151807e-07 | J24: -7.147968674e-06 | K24: 4.352660248e-06 | L24: 4.50378618e-06 | N24: -7.684843914e-05 | O24: -0.0002605813299 | P24: 2.621301391e-05 | Q24: 0.000101080055 | R24: 1.434031637e-08
A25: 9.50399 | B25: ='DF raw data'!J30 -> 6.4554779e-06 | C25: ='DF raw data'!K30 -> -2.7654471e-06 | D25: ='DF raw data'!L30 -> -1.2878731e-05 | F25: 6.459609406e-06 | G25: -2.773375603e-06 | H25: -1.288697339e-05 | J25: -4.414300145e-06 | K25: -7.235461677e-07 | L25: 8.092213404e-06 | N25: -7.905651621e-05 | O25: -0.0003001261898 | P25: 2.585108888e-05 | Q25: 0.0001140110282 | R25: 1.780087497e-08
A26: 10.0042 | B26: ='DF raw data'!J31 -> 4.4808958e-06 | C26: ='DF raw data'!K31 -> -4.3261434e-06 | D26: ='DF raw data'!L31 -> -1.6531905e-06 | F26: 4.483763573e-06 | G26: -4.3385464e-06 | H26: -1.654248542e-06 | J26: -7.79819035e-06 | K26: 1.220307806e-06 | L26: 3.232722219e-06 | N26: -8.295724901e-05 | O26: -0.0003416222354 | P26: 2.646149905e-05 | Q26: 0.0001272473346 | R26: 2.159352527e-08
A27: 10.50441 | B27: ='DF raw data'!J32 -> 1.1035743e-06 | C27: ='DF raw data'!K32 -> -8.2590459e-06 | D27: ='DF raw data'!L32 -> 8.8037186e-06 | F27: 1.104280588e-06 | G27: -8.282724483e-06 | H27: 8.80935298e-06 | J27: -1.242581844e-05 | K27: -1.503636684e-05 | L27: 4.627389135e-06 | N27: -8.917276765e-05 | O27: -0.0003862273455 | P27: 1.8940158e-05 | Q27: 0.000136721391 | R27: 2.575052651e-08
A28: 11.00462 | B28: ='DF raw data'!J33 -> -3.2559751e-07 | C28: ='DF raw data'!K33 -> -3.9121196e-06 | D28: ='DF raw data'!L33 -> 6.6351213e-06 | F28: -3.258058924e-07 | G28: -3.923335599e-06 | H28: 6.639367778e-06 | J28: -1.283846036e-05 | K28: 4.238384859e-06 | L28: 7.448157572e-06 | N28: -9.559469391e-05 | O28: -0.0004340447673 | P28: 2.106024049e-05 | Q28: 0.0001472559339 | R28: 3.054347832e-08
A29: 11.50483 | B29: ='DF raw data'!J34 -> -7.4638615e-07 | C29: ='DF raw data'!K34 -> -7.0057622e-06 | D29: ='DF raw data'!L34 -> 3.2930418e-06 | F29: -7.468638371e-07 | G29: -7.025847634e-06 | H29: 3.295149347e-06 | J29: -1.148418218e-05 | K29: 3.823976452e-06 | L29: 4.225744947e-06 | N29: -0.0001013391967 | O29: -0.0004847356469 | P29: 2.297303175e-05 | Q29: 0.0001587472741 | R29: 3.594444226e-08
A30: 12.00504 | B30: ='DF raw data'!J35 -> -1.541038e-06 | C30: ='DF raw data'!K35 -> -1.5319611e-05 | D30: ='DF raw data'!L35 -> 1.1877372e-06 | F30: -1.542024264e-06 | G30: -1.536353214e-05 | H30: 1.188497352e-06 | J30: -1.248105477e-05 | K30: 3.847662164e-06 | L30: 7.125046813e-07 | N30: -0.0001075823451 | O30: -0.0005385494117 | P30: 2.489767084e-05 | Q30: 0.0001712013381 | R30: 4.204393046e-08
A31: 12.50525 | B31: ='DF raw data'!J36 -> -6.7787996e-06 | C31: ='DF raw data'!K36 -> -4.4435628e-06 | D31: ='DF raw data'!L36 -> 3.7297693e-06 | F31: -6.783138032e-06 | G31: -4.45630244e-06 | H31: 3.732156352e-06 | J31: -1.713994155e-05 | K31: 1.97566331e-06 | L31: 3.607793911e-06 | N31: -0.0001161559152 | O31: -0.0005966517621 | P31: 2.588591738e-05 | Q31: 0.0001841497328 | R31: 4.912804322e-08
A32: 13.00546 | B32: ='DF raw data'!J37 -> -6.5834238e-06 | C32: ='DF raw data'!K37 -> -5.7244624e-06 | D32: ='DF raw data'!L37 -> -3.5403975e-06 | F32: -6.587637191e-06 | G32: -5.740874363e-06 | H32: -3.542663354e-06 | J32: -2.162443279e-05 | K32: -1.413943871e-05 | L32: 1.021524958e-05 | N32: -0.0001269726728 | O32: -0.0006601647627 | P32: 1.881322875e-05 | Q32: 0.0001935602979 | R32: 5.736950178e-08
A33: 13.50567 | B33: ='DF raw data'!J38 -> -1.4245604e-06 | C33: ='DF raw data'!K38 -> -4.8124866e-06 | D33: ='DF raw data'!L38 -> -5.1281768e-06 | F33: -1.425472119e-06 | G33: -4.82628394e-06 | H33: -5.131458833e-06 | J33: -2.197689422e-05 | K33: -1.072354638e-05 | L33: 7.552714446e-06 | N33: -0.000137965735 | O33: -0.000729176603 | P33: 1.344920361e-05 | Q33: 0.0002002877241 | R33: 6.698124958e-08
A34: 14.00588 | B34: ='DF raw data'!J39 -> 1.3718402e-06 | C34: ='DF raw data'!K39 -> -1.5954257e-06 | D34: ='DF raw data'!L39 -> 2.660179e-06 | F34: 1.372718178e-06 | G34: -1.599999766e-06 | H34: 2.661881515e-06 | J34: -2.181252008e-05 | K34: -4.736766628e-06 | L34: 8.447440004e-06 | N34: -0.0001488765757 | O34: -0.0008036461549 | P34: 1.107982557e-05 | Q34: 0.0002058299636 | R34: 7.812942851e-08
A35: 14.50609 | B35: ='DF raw data'!J40 -> 1.2299977e-06 | C35: ='DF raw data'!K40 -> -3.3310473e-06 | D35: ='DF raw data'!L40 -> 1.0491198e-05 | F35: 1.230784899e-06 | G35: -3.340597372e-06 | H35: 1.049791237e-05 | J35: -1.748191827e-05 | K35: -2.403394103e-06 | L35: 9.158160874e-06 | N35: -0.000157621206 | O35: -0.0008824898584 | P35: 9.877623809e-06 | Q35: 0.0002107708498 | R35: 9.060567235e-08
A36: 15.0063 | B36: ='DF raw data'!J41 -> -2.3114738e-07 | C36: ='DF raw data'!K41 -> -3.9317356e-06 | D36: ='DF raw data'!L41 -> 6.9113871e-06 | F36: -2.312953143e-07 | G36: -3.943007838e-06 | H36: 6.915810388e-06 | J36: -1.095839489e-05 | K36: -5.310008207e-06 | L36: 6.591724305e-06 | N36: -0.0001631027047 | O36: -0.0009640754623 | P36: 7.221504604e-06 | Q36: 0.0002143831187 | R36: 1.03938591e-07
A37: 15.50651 | B37: ='DF raw data'!J42 -> 1.5134158e-06 | C37: ='DF raw data'!K42 -> -1.340226e-05 | D37: ='DF raw data'!L42 -> -9.7806526e-07 | F37: 1.514384386e-06 | G37: -1.344068411e-05 | H37: -9.786912218e-07 | J37: -8.861053547e-06 | K37: -2.722662725e-06 | L37: -7.032287986e-06 | N37: -0.0001675350923 | O37: -0.001047878191 | P37: 5.859601483e-06 | Q37: 0.0002173141499 | R37: 1.179956636e-07
A38: 16.00672 | B38: ='DF raw data'!J43 -> 1.0124616e-06 | C38: ='DF raw data'!K43 -> 2.7695121e-06 | D38: ='DF raw data'!L43 -> -3.1093934e-06 | F38: 1.013109575e-06 | G38: 2.777452257e-06 | H38: -3.111383412e-06 | J38: -1.089454105e-05 | K38: 5.857618009e-06 | L38: 3.839833522e-07 | N38: -0.0001729846507 | O38: -0.001134406843 | P38: 8.789640587e-06 | Q38: 0.000221710816 | R38: 1.330024374e-07
A39: 16.50693 | B39: ='DF raw data'!J44 -> 3.4412731e-06 | C39: ='DF raw data'!K44 -> -5.4266538e-06 | D39: ='DF raw data'!L44 -> -3.4746411e-06 | F39: 3.443475515e-06 | G39: -5.44221195e-06 | H39: -3.47686487e-06 | J39: -1.004708202e-05 | K39: 1.232156278e-05 | L39: 1.09826424e-05 | N39: -0.0001780103016 | O39: -0.001223449376 | P39: 1.49530095e-05 | Q39: 0.0002291904609 | R39: 1.489647687e-07
A40: 17.00714 | B40: ='DF raw data'!J45 -> 5.863877e-06 | C40: ='DF raw data'!K45 -> 3.2785381e-06 | D40: ='DF raw data'!L45 -> 2.0054074e-07 | F40: 5.867629881e-06 | G40: 3.287937628e-06 | H40: 2.006690861e-07 | J40: -5.471152298e-06 | K40: 7.829572014e-06 | L40: 1.197613182e-05 | N40: -0.0001807470267 | O40: -0.001313860846 | P40: 1.886943972e-05 | Q40: 0.0002386291434 | R40: 1.654844758e-07
A41: 17.50735 | B41: ='DF raw data'!J46 -> -1.6286252e-07 | C41: ='DF raw data'!K46 -> 7.7845061e-06 | D41: ='DF raw data'!L46 -> 6.7713415e-07 | F41: -1.62966752e-07 | G41: 7.806824183e-06 | H41: 6.775675159e-07 | J41: -4.1514053e-06 | K41: 1.631939475e-05 | L41: 8.716025589e-06 | N41: -0.0001828236011 | O41: -0.00140531104 | P41: 2.703256417e-05 | Q41: 0.0002521511023 | R41: 1.825692627e-07
A42: 18.00756 | B42: ='DF raw data'!J47 -> -1.0400758e-05 | C42: ='DF raw data'!K47 -> -8.916426e-08 | D42: ='DF raw data'!L47 -> 2.4521312e-06 | F42: -1.040741449e-05 | G42: -8.941989283e-08 | H42: 2.453700564e-06 | J42: -1.200135395e-05 | K42: 7.917350956e-06 | L42: 4.689924132e-06 | N42: -0.0001888267984 | O42: -0.001499764093 | P42: 3.099290229e-05 | Q42: 0.0002676540619 | R42: 2.00885012e-07
A43: 18.50777 | B43: ='DF raw data'!J48 -> -9.7728453e-06 | C43: ='DF raw data'!K48 -> -4.9304372e-06 | D43: ='DF raw data'!L48 -> 3.2541082e-06 | F43: -9.779099921e-06 | G43: -4.944572703e-06 | H43: 3.256190829e-06 | J43: -1.697563346e-05 | K43: 2.019553683e-06 | L43: 7.271810182e-06 | N43: -0.00019731818 | O43: -0.001598464619 | P43: 3.200310324e-05 | Q43: 0.0002836623342 | R43: 2.208727347e-07
A44: 19.00798 | B44: ='DF raw data'!J49 -> -1.4280313e-06 | C44: ='DF raw data'!K49 -> -7.5241269e-06 | D44: ='DF raw data'!L49 -> -4.8603135e-07 | F44: -1.42894524e-06 | G44: -7.545698479e-06 | H44: -4.863424101e-07 | J44: -1.28802711e-05 | K44: 2.267503219e-06 | L44: 6.318677667e-06 | N44: -0.0002037610204 | O44: -0.001700387919 | P44: 3.313733102e-05 | Q44: 0.0003002379586 | R44: 2.421900023e-07
A45: 19.50819 | B45: ='DF raw data'!J50 -> 4.4250928e-06 | C45: ='DF raw data'!K50 -> -8.5699294e-06 | D45: ='DF raw data'!L50 -> -9.8254968e-06 | F45: 4.427924859e-06 | G45: -8.594499282e-06 | H45: -9.831785118e-06 | J45: -7.980933731e-06 | K45: 4.84160183e-06 | L45: 5.265651462e-06 | N45: -0.0002077531633 | O45: -0.001804308129 | P45: 3.555914868e-05 | Q45: 0.0003180250003 | R45: 2.644122466e-07
A46: 20.0084 | B46: ='DF raw data'!J51 -> 6.4317146e-06 | C46: ='DF raw data'!K51 -> -9.5327387e-06 | D46: ='DF raw data'!L51 -> -9.3822473e-06 | F46: 6.435830897e-06 | G46: -9.560068944e-06 | H46: -9.388251938e-06 | J46: -5.221750283e-06 | K46: -3.227866999e-07 | L46: 7.3831599e-06 | N46: -0.000210365135 | O46: -0.001909534873 | P46: 3.539768754e-05 | Q46: 0.0003357312776 | R46: 2.871750462e-07
A47: 20.50861 | B47: ='DF raw data'!J52 -> 2.0056261e-06 | C47: ='DF raw data'!K52 -> -2.1075186e-06 | D47: ='DF raw data'!L52 -> -3.1767452e-06 | F47: 2.006909701e-06 | G47: -2.11356083e-06 | H47: -3.178778317e-06 | J47: 2.132612399e-07 | K47: -3.484574572e-06 | L47: 1.137016825e-05 | N47: -0.0002102584596 | O47: -0.002014708257 | P47: 3.365466849e-05 | Q47: 0.0003525656793 | R47: 3.098551961e-07
A48: 21.00882 | B48: ='DF raw data'!J53 -> -2.5119755e-06 | C48: ='DF raw data'!K53 -> -9.0189105e-06 | D48: ='DF raw data'!L53 -> 8.5756244e-07 | F48: -2.513583164e-06 | G48: -9.044767605e-06 | H48: 8.5811128e-07 | J48: 1.596059225e-06 | K48: 1.498900344e-06 | L48: 8.56286803e-07 | N48: -0.0002094600948 | O48: -0.002119482291 | P48: 3.440443343e-05 | Q48: 0.000369775121 | R48: 3.323932563e-07
A49: 21.50903 | B49: ='DF raw data'!J54 -> -1.131931e-06 | C49: ='DF raw data'!K54 -> -7.0297801e-06 | D49: ='DF raw data'!L54 -> 5.3111478e-07 | F49: -1.132655436e-06 | G49: -7.049934393e-06 | H49: 5.314546935e-07 | J49: -4.252261807e-06 | K49: 9.465348659e-07 | L49: -1.660134607e-06 | N49: -0.0002115871187 | O49: -0.002225320284 | P49: 3.487789964e-05 | Q49: 0.0003872213952 | R49: 3.553957016e-07
A50: 22.00924 | B50: ='DF raw data'!J55 -> -1.7968221e-06 | C50: ='DF raw data'!K55 -> 5.1298402e-06 | D50: ='DF raw data'!L55 -> 4.1972462e-06 | F50: -1.797972066e-06 | G50: 5.144547389e-06 | H50: 4.199932438e-06 | J50: -8.232005714e-06 | K50: 9.299203986e-06 | L50: 3.029136207e-06 | N50: -0.0002157048503 | O50: -0.002333218007 | P50: 3.952945447e-05 | Q50: 0.0004069944236 | R50: 3.794513808e-07
A51: 22.50945 | B51: ='DF raw data'!J56 -> -2.3364912e-06 | C51: ='DF raw data'!K56 -> 5.2113216e-07 | D51: ='DF raw data'!L56 -> -1.5266706e-06 | F51: -2.337986554e-06 | G51: 5.226262395e-07 | H51: -1.527647669e-06 | J51: -7.93745212e-06 | K51: 1.676734735e-06 | L51: 1.08872754e-05 | N51: -0.0002196752432 | O51: -0.002443101761 | P51: 4.036817395e-05 | Q51: 0.0004271869879 | R51: 4.04405258e-07
A52: 23.00966 | B52: ='DF raw data'!J57 -> 1.9709835e-06 | C52: ='DF raw data'!K57 -> -4.3578993e-06 | D52: ='DF raw data'!L57 -> -7.3264582e-06 | F52: 1.972244929e-06 | G52: -4.370393344e-06 | H52: -7.331147133e-06 | J52: -4.916843567e-06 | K52: -1.262664294e-06 | L52: 8.993067482e-06 | N52: -0.0002221346975 | O52: -0.002554215758 | P52: 3.973657664e-05 | Q52: 0.0004470636209 | R52: 4.298773615e-07
A53: 23.50987 | B53: ='DF raw data'!J58 -> 1.9709166e-06 | C53: ='DF raw data'!K58 -> 2.0988991e-05 | D53: ='DF raw data'!L58 -> -4.9032242e-06 | F53: 1.972177987e-06 | G53: 2.104916618e-05 | H53: -4.906362263e-06 | J53: -4.031379833e-06 | K53: -4.344303659e-06 | L53: 2.018464991e-06 | N53: -0.000224151234 | O53: -0.002666338446 | P53: 3.756351251e-05 | Q53: 0.0004658532655 | R53: 4.557156056e-07
A54: 24.01008 | B54: ='DF raw data'!J59 -> 9.6680492e-07 | C54: ='DF raw data'!K59 -> 1.4126168e-07 | D54: ='DF raw data'!L59 -> 1.4014421e-06 | F54: 9.674236751e-07 | G54: 1.416666755e-07 | H54: 1.402339023e-06 | J54: -4.513819697e-06 | K54: -8.30560369e-06 | L54: 7.114108417e-06 | N54: -0.0002264090918 | O54: -0.002779590538 | P54: 3.340896649e-05 | Q54: 0.0004825647646 | R54: 4.819152227e-07
A55: 24.51029 | B55: ='DF raw data'!J60 -> -1.9897946e-06 | C55: ='DF raw data'!K60 -> 3.0761282e-06 | D55: ='DF raw data'!L60 -> 4.5404649e-06 | F55: -1.991068069e-06 | G55: 3.084947422e-06 | H55: 4.543370798e-06 | J55: -5.909642752e-06 | K55: 5.473316471e-06 | L55: 7.788599015e-06 | N55: -0.0002293651542 | O55: -0.002894321282 | P55: 3.614677412e-05 | Q55: 0.0005006457425 | R55: 5.088840265e-07
A56: 25.0105 | B56: ='DF raw data'!J61 -> 3.1352806e-07 | C56: ='DF raw data'!K61 -> 2.0909017e-06 | D56: ='DF raw data'!L61 -> 5.4979782e-06 | F56: 3.13728718e-07 | G56: 2.096896289e-06 | H56: 5.501496906e-06 | J56: -7.816825068e-06 | K56: 1.367464797e-05 | L56: 2.635750001e-06 | N56: -0.0002332752082 | O56: -0.003011007874 | P56: 4.298696978e-05 | Q56: 0.0005221482546 | R56: 5.370284434e-07
A57: 25.51071 | B57: ='DF raw data'!J62 -> 4.9254468e-06 | C57: ='DF raw data'!K62 -> 6.9393782e-06 | D57: ='DF raw data'!L62 -> 8.5643242e-06 | F57: 4.928599086e-06 | G57: 6.959273312e-06 | H57: 8.569805367e-06 | J57: -8.431313489e-06 | K57: -4.669325729e-06 | L57: -3.154816391e-07 | N57: -0.0002374926355 | O57: -0.003129804065 | P57: 4.065132635e-05 | Q57: 0.0005424824546 | R57: 5.660682761e-07
A58: 26.01092 | B58: ='DF raw data'!J63 -> 5.8786954e-06 | C58: ='DF raw data'!K63 -> -7.6480801e-06 | D58: ='DF raw data'!L63 -> 3.4742022e-06 | F58: 5.882457765e-06 | G58: -7.670007051e-06 | H58: 3.476425689e-06 | J58: -8.494231631e-06 | K58: 1.283735432e-06 | L58: 4.478811806e-06 | N58: -0.0002417415352 | O58: -0.003250725598 | P58: 4.129346366e-05 | Q58: 0.000563137858 | R58: 5.961529663e-07
A59: 26.51113 | B59: ='DF raw data'!J64 -> 4.0269997e-06 | C59: ='DF raw data'!K64 -> 2.5704383e-06 | D59: ='DF raw data'!L64 -> -2.3468167e-06 | F59: 4.02957698e-06 | G59: 2.577807715e-06 | H59: -2.348318663e-06 | J59: -7.905258129e-06 | K59: -5.523699205e-06 | L59: 7.955490758e-06 | N59: -0.0002456958243 | O59: -0.003373625107 | P59: 3.853045408e-05 | Q59: 0.0005824111765 | R59: 6.270914721e-07
A60: 27.01134 | B60: ='DF raw data'!J65 -> 5.8099317e-07 | C60: ='DF raw data'!K65 -> 1.0394932e-06 | D60: ='DF raw data'!L65 -> 7.12408e-07 | F60: 5.813650056e-07 | G60: 1.042473414e-06 | H60: 7.128639411e-07 | J60: -4.522034951e-06 | K60: 1.056504326e-05 | L60: 5.580454306e-06 | N60: -0.0002479577914 | O60: -0.003497656074 | P60: 4.381519436e-05 | Q60: 0.0006043279748 | R60: 6.588062054e-07
A61: 27.51155 | B61: ='DF raw data'!J66 -> 2.980421e-07 | C61: ='DF raw data'!K66 -> 2.0922369e-06 | D61: ='DF raw data'!L66 -> -3.2972077e-06 | F61: 2.982328469e-07 | G61: 2.098235317e-06 | H61: -3.299317913e-06 | J61: -6.514578964e-06 | K61: -1.732604856e-06 | L61: 1.190806929e-05 | N61: -0.000251216449 | O61: -0.003623317053 | P61: 4.294852809e-05 | Q61: 0.0006258112581 | R61: 6.91296986e-07
A62: 28.01176 | B62: ='DF raw data'!J67 -> 6.7097926e-06 | C62: ='DF raw data'!K67 -> -3.5445275e-06 | D62: ='DF raw data'!L67 -> 6.9562581e-08 | F62: 6.714086867e-06 | G62: -3.554689617e-06 | H62: 6.960710105e-08 | J62: -1.054555184e-05 | K62: 1.865671165e-06 | L62: 1.64921182e-05 | N62: -0.0002564914395 | O62: -0.003751616636 | P62: 4.388175546e-05 | Q62: 0.000647761351 | R62: 7.251679393e-07
A63: 28.51197 | B63: ='DF raw data'!J68 -> 7.8586836e-06 | C63: ='DF raw data'!K68 -> -4.846378e-06 | D63: ='DF raw data'!L68 -> 4.7986287e-06 | F63: 7.863713158e-06 | G63: -4.860272506e-06 | H63: 4.801699822e-06 | J63: -9.873957191e-06 | K63: -5.382264974e-06 | L63: 8.068505941e-06 | N63: -0.0002614304916 | O63: -0.003882386783 | P63: 4.11894927e-05 | Q63: 0.0006683647471 | R63: 7.602038863e-07
A64: 29.01218 | B64: ='DF raw data'!J69 -> 1.5060734e-06 | C64: ='DF raw data'!K69 -> -4.2687054e-07 | D64: ='DF raw data'!L69 -> 4.7590956e-06 | F64: 1.507037287e-06 | G64: -4.280943726e-07 | H64: 4.762141421e-06 | J64: -6.24433802e-06 | K64: 1.63953549e-06 | L64: 2.908463626e-06 | N64: -0.0002645539719 | O64: -0.004014719325 | P64: 4.200960475e-05 | Q64: 0.0006893783715 | R64: 7.960957601e-07
A65: 29.51239 | B65: ='DF raw data'!J70 -> -2.9060641e-06 | C65: ='DF raw data'!K70 -> 3.9024408e-06 | D65: ='DF raw data'!L70 -> -2.292509e-06 | F65: -2.907923981e-06 | G65: 3.91362905e-06 | H65: -2.293976206e-06 | J65: -4.692354986e-06 | K65: -3.814281235e-06 | L65: 4.685195407e-06 | N65: -0.0002669011348 | O65: -0.004148225942 | P65: 4.010166313e-05 | Q65: 0.0007094376244 | R65: 8.32533237e-07
A66: 30.0126 | B66: ='DF raw data'!J71 -> -2.4997603e-06 | C66: ='DF raw data'!K71 -> 2.3984492e-06 | D66: ='DF raw data'!L71 -> -3.997103e-07 | F66: -2.501360147e-06 | G66: 2.405325524e-06 | H66: -3.999661146e-07 | J66: -3.633231981e-06 | K66: -8.883394874e-06 | L66: 6.944020531e-06 | N66: -0.0002687185138 | O66: -0.004282641629 | P66: 3.565810018e-05 | Q66: 0.0007272741627 | R66: 8.692892379e-07
A67: 30.51281 | B67: ='DF raw data'!J72 -> 1.4733662e-06 | C67: ='DF raw data'!K72 -> 5.4915188e-07 | D67: ='DF raw data'!L72 -> -5.3068743e-06 | F67: 1.474309154e-06 | G67: 5.507262917e-07 | H67: -5.3102707e-06 | J67: -1.654848326e-06 | K67: 8.315917475e-07 | L67: 8.732940207e-06 | N67: -0.0002695462854 | O67: -0.004417471377 | P67: 3.607407069e-05 | Q67: 0.0007453187736 | R67: 9.06283038e-07
A68: 31.01302 | B68: ='DF raw data'!J73 -> 5.7496691e-06 | C68: ='DF raw data'!K73 -> -3.116894e-06 | D68: ='DF raw data'!L73 -> -1.3775226e-06 | F68: 5.753348888e-06 | G68: -3.125830097e-06 | H68: -1.378404214e-06 | J68: -6.29243158e-08 | K68: -1.413404027e-07 | L68: 6.397661384e-06 | N68: -0.0002695777608 | O68: -0.004552316868 | P68: 3.600337081e-05 | Q68: 0.0007633280197 | R68: 9.432827773e-07
A69: 31.51323 | B69: ='DF raw data'!J74 -> 6.4012766e-06 | C69: ='DF raw data'!K74 -> -7.7565574e-06 | D69: ='DF raw data'!L74 -> 3.2634923e-06 | F69: 6.405373417e-06 | G69: -7.778795354e-06 | H69: 3.265580935e-06 | J69: 3.286702244e-06 | K69: 2.151491064e-06 | L69: 8.080493408e-06 | N69: -0.0002679337195 | O69: -0.004686339994 | P69: 3.707956815e-05 | Q69: 0.0007818755905 | R69: 9.798798278e-07
A70: 32.01344 | B70: ='DF raw data'!J75 -> 3.0231547e-06 | C70: ='DF raw data'!K75 -> -9.7227394e-06 | D70: ='DF raw data'!L75 -> 4.8250504e-06 | F70: 3.025089519e-06 | G70: -9.750614374e-06 | H70: 4.828138432e-06 | J70: 5.181662243e-06 | K70: 4.844677423e-06 | L70: 1.232756159e-05 | N70: -0.0002653418002 | O70: -0.004819066616 | P70: 3.950292424e-05 | Q70: 0.0008016353482 | R70: 1.015878317e-06
A71: 32.51365 | B71: ='DF raw data'!J76 -> 4.7172421e-07 | C71: ='DF raw data'!K76 -> -8.223019e-06 | D71: ='DF raw data'!L76 -> -2.7877379e-06 | F71: 4.720261135e-07 | G71: =(1-$G$1*($B$2-$G$2))*C71*$M$2/$M$1 -> -8.246594294e-06 | H71: -2.789522052e-06 | J71: =-CELL("contents", INDEX($F$6:$F$1203,1204-CELL("row",F71))) -> -7.941646203e-07 | K71: =CELL("contents", INDEX($G$6:$G$1203,1204-CELL("row",G71))) -> 7.550844591e-06 | L71: =-CELL("contents", INDEX($H$6:$H$1203,1204-CELL("row",H71))) -> 9.109943135e-06 | N71: -0.0002657390493 | O71: -0.004951991946 | P71: 4.327993222e-05 | Q71: 0.0008232844031 | R71: 1.052138737e-06
A72: =A71+$B$1 -> 33.01386 | B72: ='DF raw data'!J77 -> -1.0169215e-06 | C72: ='DF raw data'!K77 -> 6.772726e-06 | D72: ='DF raw data'!L77 -> -8.2424413e-06 | F72: -1.01757233e-06 | G72: 6.792143322e-06 | H72: -8.247716462e-06 | J72: -7.566020656e-06 | K72: 2.336684293e-06 | L72: 1.348834102e-05 | N72: =J72*$B$1+N71 -> -0.0002695236485 | O72: =N72*$B$1+O71 -> -0.00508681037 | P72: =K72*$B$1+P71 -> 4.444876507e-05 | Q72: =P72*$B$1+Q71 -> 0.0008455181199 | R72: =(N72^2+P72^2)*$B$1+R71 -> 1.089463752e-06
A73: 33.51407 | B73: ='DF raw data'!J78 -> -5.3185222e-06 | C73: ='DF raw data'!K78 -> 6.4088699e-06 | D73: ='DF raw data'!L78 -> -5.5931232e-06 | F73: -5.321926054e-06 | G73: 6.427244051e-06 | H73: -5.596702799e-06 | J73: -8.227797522e-06 | K73: 6.523722563e-06 | L73: 1.166046292e-05 | N73: -0.0002736392751 | O73: -0.005223687472 | P73: 4.771199633e-05 | Q73: 0.0008693841376 | R73: 1.128057398e-06
A74: 34.01428 | B74: ='DF raw data'!J79 -> -9.585613e-06 | C74: ='DF raw data'!K79 -> 6.169902e-06 | D74: ='DF raw data'!L79 -> -1.7775802e-06 | F74: -9.591747792e-06 | G74: 6.187591033e-06 | H74: -1.778717851e-06 | J74: -1.013731873e-05 | K74: -2.87855198e-06 | L74: 3.491116586e-06 | N74: -0.0002787100633 | O74: -0.005363101033 | P74: 4.627211584e-05 | Q74: 0.0008925299127 | R74: 1.167984365e-06
A75: 34.51449 | B75: ='DF raw data'!J80 -> -6.1727146e-06 | C75: ='DF raw data'!K80 -> -1.2386482e-05 | D75: ='DF raw data'!L80 -> -2.8239431e-06 | F75: -6.176665137e-06 | G75: -1.242199389e-05 | H75: -2.825750424e-06 | J75: -1.593801581e-05 | K75: 3.85729761e-06 | L75: 1.407716963e-07 | N75: -0.0002866824182 | O75: -0.005506502445 | P75: 4.820157468e-05 | Q75: 0.0009166408223 | R75: 1.210257212e-06
A76: 35.0147 | B76: ='DF raw data'!J81 -> 1.7401637e-06 | C76: ='DF raw data'!K81 -> -1.0407221e-05 | D76: ='DF raw data'!L81 -> 1.9316119e-06 | F76: 1.741277405e-06 | G76: -1.043705837e-05 | H76: 1.932848132e-06 | J76: -2.11582236e-05 | K76: -2.972618898e-06 | L76: 4.209294425e-06 | N76: -0.0002972659732 | O76: -0.005655197858 | P76: 4.671464098e-05 | Q76: 0.0009400079529 | R76: 1.255550886e-06
A77: 35.51491 | B77: ='DF raw data'!J82 -> 4.7864751e-06 | C77: ='DF raw data'!K82 -> 1.0201139e-05 | D77: ='DF raw data'!L82 -> -2.1950057e-06 | F77: 4.789538444e-06 | G77: 1.023038554e-05 | H77: -2.196410504e-06 | J77: -1.700108073e-05 | K77: 3.02580304e-06 | L77: 6.948749255e-06 | N77: -0.0003057700838 | O77: -0.005808147111 | P77: 4.822817792e-05 | Q77: 0.0009641321698 | R77: 1.303481659e-06
A78: 36.01512 | B78: ='DF raw data'!J83 -> 3.5613555e-06 | C78: ='DF raw data'!K83 -> 1.4054848e-06 | D78: ='DF raw data'!L83 -> 5.0820154e-06 | F78: 3.563634768e-06 | G78: 1.409514308e-06 | H78: 5.08526789e-06 | J78: -1.2157781e-05 | K78: -1.106373692e-06 | L78: 8.784486976e-06 | N78: -0.0003118515274 | O78: -0.005964138364 | P78: 4.767475874e-05 | Q78: 0.0009879795608 | R78: 1.353264688e-06
A79: 36.51533 | B79: ='DF raw data'!J84 -> -1.532828e-06 | C79: ='DF raw data'!K84 -> 1.0999382e-06 | D79: ='DF raw data'!L84 -> 4.1991098e-06 | F79: -1.53380901e-06 | G79: 1.103091709e-06 | H79: 4.20179723e-06 | J79: -9.992178904e-06 | K79: -1.738358404e-06 | L79: 1.18319496e-05 | N79: -0.0003168497152 | O79: -0.00612262976 | P79: 4.680521448e-05 | Q79: 0.001011391997 | R79: 1.404578466e-06
A80: 37.01554 | B80: ='DF raw data'!J85 -> -2.9859632e-06 | C80: ='DF raw data'!K85 -> 6.8525178e-06 | D80: ='DF raw data'!L85 -> 2.4890021e-06 | F80: -2.987874216e-06 | G80: 6.872163884e-06 | H80: 2.490595061e-06 | J80: -8.115386726e-06 | K80: 7.013196768e-06 | L80: 7.224659024e-06 | N80: -0.0003209091128 | O80: -0.006283151707 | P80: 5.031328564e-05 | Q80: 0.001036559206 | R80: 1.457357666e-06
A81: 37.51575 | B81: ='DF raw data'!J86 -> 5.1791471e-07 | C81: ='DF raw data'!K86 -> -9.6004544e-07 | D81: ='DF raw data'!L86 -> 2.2167958e-06 | F81: 5.182461754e-07 | G81: -9.627978784e-07 | H81: 2.218214549e-06 | J81: -3.844629389e-06 | K81: 7.171092659e-06 | L81: 7.159526666e-06 | N81: -0.0003228322349 | O81: -0.006444635619 | P81: 5.390033789e-05 | Q81: 0.001063520694 | R81: 1.510943112e-06
A82: 38.01596 | B82: ='DF raw data'!J87 -> 4.1699104e-06 | C82: ='DF raw data'!K87 -> -4.3672417e-06 | D82: ='DF raw data'!L87 -> -5.962831e-06 | F82: 4.172579143e-06 | G82: -4.379762528e-06 | H82: -5.966647212e-06 | J82: -2.016661638e-06 | K82: 3.496411311e-06 | L82: 2.297039465e-06 | N82: -0.0003238409892 | O82: -0.006606624121 | P82: 5.56492778e-05 | Q82: 0.001091357019 | R82: 1.5649507e-06
A83: 38.51617 | B83: ='DF raw data'!J88 -> 7.3125402e-06 | C83: ='DF raw data'!K88 -> 5.2463211e-06 | D83: ='DF raw data'!L88 -> -8.2871666e-06 | F83: 7.317220226e-06 | G83: 5.261362238e-06 | H83: -8.292470387e-06 | J83: -5.811257926e-06 | K83: -8.988567541e-06 | L83: 2.186088402e-06 | N83: -0.0003267478385 | O83: -0.006770066657 | P83: 5.115310643e-05 | Q83: 0.001116944314 | R83: 1.619664065e-06
A84: 39.01638 | B84: ='DF raw data'!J89 -> 6.1534365e-06 | C84: ='DF raw data'!K89 -> 6.0503544e-06 | D84: ='DF raw data'!L89 -> -5.4936263e-06 | F84: 6.157374699e-06 | G84: 6.067700691e-06 | H84: -5.497142221e-06 | J84: -9.657417194e-06 | K84: 1.628915329e-05 | L84: 3.090604622e-06 | N84: -0.0003315785752 | O84: -0.006935925576 | P84: 5.93011038e-05 | Q84: 0.00114660732 | R84: 1.676418378e-06
A85: 39.51659 | B85: ='DF raw data'!J90 -> 3.4059628e-06 | C85: ='DF raw data'!K90 -> -4.503735e-06 | D85: ='DF raw data'!L90 -> 3.1994666e-06 | F85: 3.408142616e-06 | G85: -4.516647153e-06 | H85: 3.201514259e-06 | J85: -1.283204826e-05 | K85: 7.129343908e-06 | L85: 1.934952678e-06 | N85: -0.0003379972941 | O85: -0.007104995202 | P85: 6.286727291e-05 | Q85: 0.001178054158 | R85: 1.735540431e-06
A86: 40.0168 | B86: ='DF raw data'!J91 -> 3.0796916e-06 | C86: ='DF raw data'!K91 -> -4.0990535e-06 | D86: ='DF raw data'!L91 -> 1.2845738e-06 | F86: 3.081662603e-06 | G86: -4.110805436e-06 | H86: 1.285395927e-06 | J86: -1.300403826e-05 | K86: 3.197674184e-07 | L86: -5.791192593e-06 | N86: -0.000344502044 | O86: -0.00727731857 | P86: 6.302722377e-05 | Q86: 0.001209581006 | R86: 1.796893233e-06
A87: 40.51701 | B87: ='DF raw data'!J92 -> 1.2921416e-06 | C87: ='DF raw data'!K92 -> -4.4981325e-06 | D87: ='DF raw data'!L92 -> -4.7725116e-06 | F87: =(1-$G$1*($B$2-$G$2))*B87 -> 1.292968571e-06 | G87: -4.51102859e-06 | H87: -4.775566007e-06 | J87: -9.560434865e-06 | K87: -2.098974531e-06 | L87: 3.044387262e-06 | N87: -0.0003492842692 | O87: -0.007452034054 | P87: 6.197729572e-05 | Q87: 0.001240582669 | R87: 1.859840003e-06
A88: 41.01722 | B88: ='DF raw data'!J93 -> -4.1773737e-06 | C88: ='DF raw data'!K93 -> -4.518198e-07 | D88: ='DF raw data'!L93 -> -5.8692567e-06 | F88: -4.180047219e-06 | G88: -4.531151618e-07 | H88: -5.873013024e-06 | J88: -4.463859243e-06 | K88: 1.656184787e-07 | L88: 1.163255908e-05 | N88: -0.0003515171362 | O88: -0.007627866441 | P88: 6.206013974e-05 | Q88: 0.001271625771 | R88: 1.923574639e-06
A89: 41.51743 | B89: ='DF raw data'!J94 -> -9.7524198e-06 | C89: ='DF raw data'!K94 -> 2.8154088e-06 | D89: ='DF raw data'!L94 -> 6.1205255e-06 | F89: -9.758661349e-06 | G89: 2.823480542e-06 | H89: 6.124442636e-06 | J89: -4.71425009e-07 | K89: -1.426313633e-06 | L89: 1.104497726e-05 | N89: -0.0003517529477 | O89: -0.007803816783 | P89: 6.13466834e-05 | Q89: 0.001302311996 | R89: 1.987348188e-06
A90: 42.01764 | B90: ='DF raw data'!J95 -> -9.91876e-06 | C90: ='DF raw data'!K95 -> 1.101718e-05 | D90: ='DF raw data'!L95 -> 5.1709321e-06 | F90: -9.925108006e-06 | G90: 1.104876612e-05 | H90: 5.174241497e-06 | J90: -2.218907993e-06 | K90: 2.371741916e-06 | L90: 9.594235083e-06 | N90: -0.0003528628677 | O90: -0.007980322318 | P90: 6.253305242e-05 | Q90: 0.001333591654 | R90: 2.05158645e-06
A91: 42.51785 | B91: ='DF raw data'!J96 -> -8.0685322e-06 | C91: ='DF raw data'!K96 -> -8.831895e-07 | D91: ='DF raw data'!L96 -> 5.457181e-06 | F91: -8.073696061e-06 | G91: -8.857215934e-07 | H91: 5.460673596e-06 | J91: -9.744380415e-06 | K91: -8.955115308e-06 | L91: 1.190174224e-05 | N91: -0.0003577371042 | O91: -0.008159265995 | P91: 5.805361419e-05 | Q91: 0.001362630652 | R91: 2.117287062e-06
A92: 43.01806 | B92: ='DF raw data'!J97 -> -6.5393692e-06 | C92: ='DF raw data'!K97 -> -1.2815181e-05 | D92: ='DF raw data'!L97 -> 1.0034903e-05 | F92: -6.543554396e-06 | G92: -1.285192197e-05 | H92: 1.004132534e-05 | J92: -1.139875554e-05 | K92: 8.185466041e-08 | L92: 4.369793679e-06 | N92: -0.0003634388757 | O92: -0.008341061755 | P92: 5.809455871e-05 | Q92: 0.001391690132 | R92: 2.185046906e-06
A93: 43.51827 | B93: ='DF raw data'!J98 -> -2.3210721e-06 | C93: ='DF raw data'!K98 -> -6.5519789e-06 | D93: ='DF raw data'!L98 -> 1.3305304e-05 | F93: -2.322557586e-06 | G93: -6.570763343e-06 | H93: 1.331381939e-05 | J93: -5.137591856e-06 | K93: 1.049299629e-06 | L93: 1.326526234e-06 | N93: -0.0003660087505 | O93: -0.008524142992 | P93: 5.861942888e-05 | Q93: 0.001421012156 | R93: 2.253775081e-06
A94: 44.01848 | B94: ='DF raw data'!J99 -> 2.2177558e-06 | C94: ='DF raw data'!K99 -> -6.870735e-06 | D94: ='DF raw data'!L99 -> 1.0689129e-05 | F94: 2.219175164e-06 | G94: -6.890433313e-06 | H94: 1.069597004e-05 | J94: 3.55921424e-06 | K94: 9.092007053e-07 | L94: 1.587529969e-07 | N94: -0.000364228396 | O94: -0.008706333678 | P94: 5.907422017e-05 | Q94: 0.001450561672 | R94: 2.321879717e-06
A95: 44.51869 | B95: ='DF raw data'!J100 -> 3.7032648e-06 | C95: ='DF raw data'!K100 -> -5.3416597e-06 | D95: ='DF raw data'!L100 -> 9.0508172e-07 | F95: 3.705634889e-06 | G95: -5.356974173e-06 | H95: 9.056609723e-07 | J95: 2.694522992e-06 | K95: -5.443014644e-06 | L95: -2.883103906e-07 | N95: -0.0003628805686 | O95: -0.008887850167 | P95: 5.635156981e-05 | Q95: 0.00147874929 | R95: 2.389336941e-06
A96: 45.0189 | B96: ='DF raw data'!J101 -> 1.6854825e-07 | C96: ='DF raw data'!K101 -> 4.5823863e-06 | D96: ='DF raw data'!L101 -> 4.2958127e-06 | F96: 1.686561209e-07 | G96: 4.595523945e-06 | H96: 4.29856202e-06 | J96: -5.314390635e-06 | K96: -1.971721641e-06 | L96: 1.092749913e-05 | N96: -0.00036553888 | O96: -0.00907069637 | P96: 5.536529493e-05 | Q96: 0.001506443565 | R96: 2.457707638e-06
A97: 45.51911 | B97: ='DF raw data'!J102 -> -1.0522988e-06 | C97: ='DF raw data'!K102 -> 5.5469309e-06 | D97: ='DF raw data'!L102 -> 3.6696053e-06 | F97: -1.052972271e-06 | G97: 5.562833883e-06 | H97: 3.671953847e-06 | J97: -1.164855731e-05 | K97: 5.773985521e-06 | L97: 9.04228266e-06 | N97: -0.0003713656048 | O97: -0.009256457159 | P97: 5.825350023e-05 | Q97: 0.001535582548 | R97: 2.528390254e-06
A98: 46.01932 | B98: ='DF raw data'!J103 -> -1.6999018e-06 | C98: ='DF raw data'!K103 -> 5.2219809e-07 | D98: ='DF raw data'!L103 -> -3.7456505e-06 | F98: -1.700989737e-06 | G98: 5.236952255e-07 | H98: -3.748047716e-06 | J98: -1.038578565e-05 | K98: 3.988297311e-06 | L98: 6.499087656e-06 | N98: -0.0003765606787 | O98: -0.009444816576 | P98: 6.024848642e-05 | Q98: 0.001565719443 | R98: 2.601134706e-06
A99: 46.51953 | B99: ='DF raw data'!J104 -> -1.1004918e-06 | C99: ='DF raw data'!K104 -> -1.88703e-07 | D99: ='DF raw data'!L104 -> -7.4387353e-06 | F99: -1.101196115e-06 | G99: -1.892440092e-07 | H99: -7.443496091e-06 | J99: -4.120547364e-06 | K99: -4.933935995e-07 | L99: 1.185219555e-05 | N99: -0.0003786218177 | O99: -0.009634206996 | P99: 6.000168601e-05 | Q99: 0.001595732887 | R99: 2.674642908e-06
A100: 47.01974 | B100: ='DF raw data'!J105 -> 4.3543387e-06 | C100: ='DF raw data'!K105 -> -2.1830394e-06 | D100: ='DF raw data'!L105 -> -1.6495347e-05 | F100: 4.357125477e-06 | G100: -2.189298147e-06 | H100: -1.650590402e-05 | J100: 7.570162005e-07 | K100: 3.655777506e-06 | L100: 1.201735419e-05 | N100: -0.0003782431506 | O100: -0.009823408002 | P100: 6.183034248e-05 | Q100: 0.001626661042 | R100: 2.748119192e-06
A101: 47.51995 | B101: ='DF raw data'!J106 -> 6.9517591e-06 | C101: ='DF raw data'!K106 -> -7.3748845e-07 | D101: ='DF raw data'!L106 -> -1.8265951e-05 | F101: 6.956208226e-06 | G101: -7.396028203e-07 | H101: -1.827764121e-05 | J101: 3.442661894e-06 | K101: -3.018782169e-06 | L101: 1.499229393e-05 | N101: -0.0003765210967 | O101: -0.01001174762 | P101: 6.032031745e-05 | Q101: 0.001656833868 | R101: 2.820853065e-06
A102: 48.02016 | B102: ='DF raw data'!J107 -> 2.218824e-06 | C102: ='DF raw data'!K107 -> 5.5237169e-06 | D102: ='DF raw data'!L107 -> -9.4161223e-06 | F102: 2.220244047e-06 | G102: 5.539553328e-06 | H102: -9.422148618e-06 | J102: 5.913904578e-06 | K102: -8.705695469e-06 | L102: 6.015996975e-06 | N102: -0.0003735629025 | O102: -0.01019860752 | P102: 5.596564152e-05 | Q102: 0.001684828442 | R102: 2.892223726e-06
A103: 48.52037 | B103: ='DF raw data'!J108 -> -4.8379929e-06 | C103: ='DF raw data'!K108 -> 5.4874806e-07 | D103: ='DF raw data'!L108 -> -1.5674688e-06 | F103: -4.841089215e-06 | G103: 5.503213139e-07 | H103: -1.56847198e-06 | J103: 1.586641501e-06 | K103: 7.125003901e-07 | L103: 6.480174359e-06 | N103: -0.0003727692485 | O103: -0.01038507043 | P103: 5.632204134e-05 | Q103: 0.00171300129 | R103: 2.963318116e-06
A104: 49.02058 | B104: ='DF raw data'!J109 -> -7.5095054e-06 | C104: ='DF raw data'!K109 -> 5.2792775e-06 | D104: ='DF raw data'!L109 -> 2.7268668e-06 | F104: -7.514311483e-06 | G104: 5.294413124e-06 | H104: 2.728611995e-06 | J104: -9.38423667e-06 | K104: -8.806453615e-06 | L104: 1.420738491e-05 | N104: -0.0003774633375 | O104: -0.01057388136 | P104: 5.191696518e-05 | Q104: 0.001738970675 | R104: 3.035935573e-06
A105: 49.52079 | B105: ='DF raw data'!J110 -> -2.9180121e-06 | C105: ='DF raw data'!K110 -> 3.5236433e-06 | D105: ='DF raw data'!L110 -> 3.7324833e-07 | F105: -2.919879628e-06 | G105: 3.533745542e-06 | H105: 3.734872089e-07 | J105: -1.392383255e-05 | K105: -9.581612734e-06 | L105: 9.68194278e-06 | N105: -0.0003844281778 | O105: -0.01076617618 | P105: 4.712414667e-05 | Q105: 0.001762542645 | R105: 3.110969929e-06
A106: 50.021 | B106: ='DF raw data'!J111 -> 3.5658172e-07 | C106: ='DF raw data'!K111 -> 4.636825e-06 | D106: ='DF raw data'!L111 -> -4.8067868e-06 | F106: 3.568099323e-07 | G106: 4.65011872e-06 | H106: -4.809863144e-06 | J106: -1.083055412e-05 | K106: -1.473414585e-06 | L106: 9.896051122e-06 | N106: -0.0003898457293 | O106: -0.01096118091 | P106: 4.638712996e-05 | Q106: 0.001785745951 | R106: 3.188068026e-06
A107: 50.52121 | B107: ='DF raw data'!J112 -> 9.2028063e-07 | C107: ='DF raw data'!K112 -> 1.0187529e-05 | D107: ='DF raw data'!L112 -> 1.9714778e-06 | F107: 9.208696096e-07 | G107: 1.021673652e-05 | H107: 1.972739546e-06 | J107: -7.533493652e-06 | K107: -2.079973611e-06 | L107: 1.246455121e-05 | N107: -0.0003936140582 | O107: -0.0111580706 | P107: 4.534670636e-05 | Q107: 0.001808428827 | R107: 3.266595169e-06
A108: 51.02142 | B108: ='DF raw data'!J113 -> 1.8244684e-06 | C108: ='DF raw data'!K113 -> 7.5689502e-07 | D108: ='DF raw data'!L113 -> 8.0580476e-06 | F108: 1.82563606e-06 | G108: 7.590650287e-07 | H108: 8.06320475e-06 | J108: -7.195592134e-06 | K108: -5.82958908e-06 | L108: 8.762641504e-06 | N108: -0.0003972133653 | O108: -0.0113567607 | P108: 4.243068761e-05 | Q108: 0.001829653081 | R108: 3.346418091e-06
A109: 51.52163 | B109: ='DF raw data'!J114 -> 3.4717775e-06 | C109: ='DF raw data'!K114 -> 6.8517174e-06 | D109: ='DF raw data'!L114 -> 3.558526e-06 | F109: 3.473999438e-06 | G109: 6.871361189e-06 | H109: 3.560803457e-06 | J109: -8.912283613e-06 | K109: 8.462490697e-06 | L109: 6.091449634e-06 | N109: -0.0004016713787 | O109: -0.01155768074 | P109: 4.666371008e-05 | Q109: 0.001852994736 | R109: 3.428211129e-06
A110: 52.02184 | B110: ='DF raw data'!J115 -> 2.5149245e-06 | C110: ='DF raw data'!K115 -> -9.6578253e-07 | D110: ='DF raw data'!L115 -> 4.8242518e-06 | F110: 2.516534052e-06 | G110: -9.685514166e-07 | H110: 4.827339321e-06 | J110: -1.087249995e-05 | K110: 1.598454448e-06 | L110: 1.107714284e-05 | N110: -0.0004071099119 | O110: -0.01176132119 | P110: 4.746327298e-05 | Q110: 0.001876736339 | R110: 3.512242028e-06
A111: 52.52205 | B111: ='DF raw data'!J116 -> -3.8810063e-06 | C111: ='DF raw data'!K116 -> -5.6763486e-07 | D111: ='DF raw data'!L116 -> 2.8362817e-06 | F111: -3.883490144e-06 | G111: -5.692622621e-07 | H111: 2.83809692e-06 | J111: -8.191262555e-06 | K111: -9.652665559e-06 | L111: 1.262897938e-05 | N111: -0.0004112072633 | O111: -0.01196701117 | P111: 4.263491314e-05 | Q111: 0.001898062749 | R111: 3.597732494e-06
A112: 53.02226 | B112: ='DF raw data'!J117 -> -8.2306669e-06 | C112: ='DF raw data'!K117 -> 4.3133978e-06 | D112: ='DF raw data'!L117 -> -3.7976281e-06 | F112: -8.235934527e-06 | G112: 4.325764258e-06 | H112: -3.800058582e-06 | J112: -1.806800713e-06 | K112: -1.599463433e-06 | L112: 1.151634775e-05 | N112: -0.0004121110431 | O112: -0.01217315324 | P112: 4.183484554e-05 | Q112: 0.001918988957 | R112: 3.68356136e-06
A113: 53.52247 | B113: ='DF raw data'!J118 -> -2.7412598e-06 | C113: ='DF raw data'!K118 -> 9.5334681e-06 | D113: ='DF raw data'!L118 -> -5.5068031e-06 | F113: -2.743014206e-06 | G113: 9.560800436e-06 | H113: -5.510327454e-06 | J113: -2.483404963e-06 | K113: -1.746715295e-05 | L113: 4.668744886e-06 | N113: -0.0004133532671 | O113: -0.01237991668 | P113: 3.309760096e-05 | Q113: 0.001935544708 | R113: 3.769575658e-06
A114: 54.02268 | B114: ='DF raw data'!J119 -> 4.1990124e-06 | C114: ='DF raw data'!K119 -> 2.0353971e-06 | D114: ='DF raw data'!L119 -> -4.4669632e-06 | F114: 4.201699768e-06 | G114: 2.041232558e-06 | H114: -4.469822056e-06 | J114: -8.445473346e-06 | K114: -1.037296314e-05 | L114: 1.725773288e-06 | N114: -0.0004175777773 | O114: -0.01258879326 | P114: 2.790894107e-05 | Q114: 0.00194950504 | R114: 3.857187494e-06
A115: 54.52289 | B115: ='DF raw data'!J120 -> 4.1414751e-06 | C115: ='DF raw data'!K120 -> 1.3193109e-05 | D115: ='DF raw data'!L120 -> -5.2871746e-06 | F115: 4.144125644e-06 | G115: 1.323093348e-05 | H115: -5.290558392e-06 | J115: -1.10559773e-05 | K115: -9.515912209e-06 | L115: 2.889282858e-06 | N115: -0.0004231080877 | O115: -0.01280043615 | P115: 2.314898662e-05 | Q115: 0.001961084394 | R115: 3.947003366e-06
A116: 55.0231 | B116: ='DF raw data'!J121 -> 2.0887294e-06 | C116: ='DF raw data'!K121 -> 1.4058919e-05 | D116: ='DF raw data'!L121 -> -2.672132e-06 | F116: 2.090066187e-06 | G116: 1.409922575e-05 | H116: -2.673842164e-06 | J116: -1.007025884e-05 | K116: -4.248226394e-06 | L116: 3.39881485e-06 | N116: -0.0004281453319 | O116: -0.01301459873 | P116: 2.10239813e-05 | Q116: 0.0019716008 | R116: 4.03891717e-06
A117: 55.52331 | B117: ='DF raw data'!J122 -> 1.8240678e-06 | C117: ='DF raw data'!K122 -> 3.4994907e-06 | D117: ='DF raw data'!L122 -> -2.5016218e-06 | F117: 1.825235203e-06 | G117: 3.509523697e-06 | H117: -2.503222838e-06 | J117: -1.01197525e-05 | K117: -1.197098656e-06 | L117: 1.179552131e-05 | N117: -0.0004332073333 | O117: -0.01323129337 | P117: 2.042518058e-05 | Q117: 0.00198181768 | R117: 4.132999558e-06
A118: 56.02352 | B118: ='DF raw data'!J123 -> -3.3435512e-08 | C118: ='DF raw data'!K123 -> 1.0776476e-05 | D118: ='DF raw data'!L123 -> -2.9833393e-06 | F118: -3.345691073e-08 | G118: 1.080737202e-05 | H118: -2.985248637e-06 | J118: -9.245242471e-06 | K118: -6.908766523e-06 | L118: 3.730464971e-06 | N118: -0.000437831896 | O118: -0.01345030126 | P118: 1.696934648e-05 | Q118: 0.001990305917 | R118: 4.229032239e-06
A119: 56.52373 | B119: ='DF raw data'!J124 -> -4.1366566e-06 | C119: ='DF raw data'!K124 -> 3.4920183e-06 | D119: ='DF raw data'!L124 -> 2.3107702e-06 | F119: -4.13930406e-06 | G119: 3.502029873e-06 | H119: 2.312249093e-06 | J119: -6.139874807e-06 | K119: -9.654807181e-06 | L119: 3.408284207e-07 | N119: -0.0004409031228 | O119: -0.01367084541 | P119: 1.213991538e-05 | Q119: 0.001996378424 | R119: 4.326344564e-06
A120: 57.02394 | B120: ='DF raw data'!J125 -> -9.522535e-06 | C120: ='DF raw data'!K125 -> 8.1371536e-06 | D120: ='DF raw data'!L125 -> 5.4579132e-06 | F120: -9.528629422e-06 | G120: 8.160482719e-06 | H120: 5.461406264e-06 | J120: -5.031459575e-06 | K120: -8.67813177e-06 | L120: 6.189812546e-06 | N120: -0.0004434199092 | O120: -0.01389264848 | P120: 7.799027083e-06 | Q120: 0.002000279575 | R120: 4.424726887e-06
A121: 57.52415 | B121: ='DF raw data'!J126 -> -6.9392649e-06 | C121: ='DF raw data'!K126 -> 1.1583787e-06 | D121: ='DF raw data'!L126 -> -9.3473875e-07 | F121: -6.94370603e-06 | G121: 1.161699757e-06 | H121: -9.353369828e-07 | J121: -3.303746345e-06 | K121: -2.796926129e-06 | L121: 1.004930544e-06 | N121: -0.0004450724762 | O121: -0.01411527819 | P121: 6.399976664e-06 | Q121: 0.002003480907 | R121: 4.523833729e-06
A122: 58.02436 | B122: ='DF raw data'!J127 -> 2.1011449e-06 | C122: ='DF raw data'!K127 -> 3.7836332e-07 | D122: ='DF raw data'!L127 -> 2.0499454e-06 | F122: 2.102489633e-06 | G122: 3.79448083e-07 | H122: 2.051257365e-06 | J122: -2.848691196e-06 | K122: -5.93088356e-06 | L122: -2.418928324e-07 | N122: -0.00044649742 | O122: -0.01433862066 | P122: 3.433289398e-06 | Q122: 0.002005198273 | R122: 4.623561464e-06
A123: 58.52457 | B123: ='DF raw data'!J128 -> 6.488719e-06 | C123: ='DF raw data'!K128 -> 7.3287183e-06 | D123: ='DF raw data'!L128 -> 4.3887221e-06 | F123: 6.49287178e-06 | G123: 7.349729645e-06 | H123: 4.391530882e-06 | J123: -3.216449111e-06 | K123: 6.799104523e-06 | L123: -4.961464706e-06 | N123: -0.00044810632 | O123: -0.01456276792 | P123: 6.834269472e-06 | Q123: 0.002008616843 | R123: 4.724026632e-06
A124: 59.02478 | B124: ='DF raw data'!J129 -> 4.4011967e-06 | C124: ='DF raw data'!K129 -> 5.3910871e-06 | D124: ='DF raw data'!L129 -> 1.4496788e-07 | F124: 4.404013466e-06 | G124: 5.40654328e-06 | H124: 1.450606594e-07 | J124: -4.733633288e-06 | K124: -5.048407344e-08 | L124: 7.204296301e-07 | N124: -0.0004504741307 | O124: -0.01478809959 | P124: 6.809016833e-06 | Q124: 0.002012022781 | R124: 4.825555909e-06
A125: 59.52499 | B125: ='DF raw data'!J130 -> -4.1097019e-07 | C125: ='DF raw data'!K130 -> -1.853071e-06 | D125: ='DF raw data'!L130 -> -3.3176404e-06 | F125: -4.112332109e-07 | G125: -1.858383732e-06 | H125: -3.31976369e-06 | J125: -4.690485691e-06 | K125: -1.760839874e-06 | L125: 8.417005238e-06 | N125: -0.0004528203586 | O125: -0.01501460486 | P125: 5.92822712e-06 | Q125: 0.00201498814 | R125: 4.928139687e-06
A126: 60.0252 | B126: ='DF raw data'!J131 -> -6.7457586e-06 | C126: ='DF raw data'!K131 -> 7.9755728e-06 | D126: ='DF raw data'!L131 -> -3.552643e-06 | F126: -6.750075886e-06 | G126: 7.998438669e-06 | H126: -3.554916692e-06 | J126: -5.404560106e-06 | K126: -5.008934299e-06 | L126: 1.182722158e-05 | N126: -0.0004555237736 | O126: -0.01524246241 | P126: 3.422708094e-06 | Q126: 0.002016700212 | R126: 5.031940076e-06
A127: 60.52541 | B127: ='DF raw data'!J132 -> -1.0847111e-05 | C127: ='DF raw data'!K132 -> 3.4490574e-06 | D127: ='DF raw data'!L132 -> -5.0161671e-06 | F127: -1.085405315e-05 | G127: 3.458945805e-06 | H127: -5.019377447e-06 | J127: -7.085584774e-06 | K127: -6.341278393e-06 | L127: 9.304472053e-06 | N127: -0.0004590680539 | O127: -0.01547209284 | P127: 2.50737229e-07 | Q127: 0.002016825634 | R127: 5.137356103e-06
A128: 61.02562 | B128: ='DF raw data'!J133 -> -5.6194954e-06 | C128: ='DF raw data'!K133 -> -1.2250322e-06 | D128: ='DF raw data'!L133 -> -5.5925921e-06 | F128: -5.623091877e-06 | G128: -1.228544352e-06 | H128: -5.596171359e-06 | J128: -6.778808763e-06 | K128: 6.38803827e-06 | L128: 9.025298797e-06 | N128: -0.0004624588819 | O128: -0.0157034194 | P128: 3.446097852e-06 | Q128: 0.002018549406 | R128: 5.244341064e-06
